Workbook

Sheet Notes
A1: UsingVIXToForecastTheSnP500.xlsm
A2: Coded 2012-Oct-11 by Ronald McAllister (rpmac_xltt@sprynet.com)
A4: This Workbook demonstrates an EXCEL version of the ideas presented
A5: by Trent Gardner in an article titled "Using VIX To Forecast The S&P 500"
A6: which appears in the December 2012 issue of
A7: "Technical Analysis of Stocks and Commodities" magazine.
A9: Data for this EXCEL example was retrieved from Yahoo Finance.
A11: Daily Price history for the VIX(^VIX), SPDR S&P 500 ETF (SPY), and the ProShares Ultra Dow 30 ETF (DDM) can be retrieved from Yahoo Finance: http://finance.yahoo.com
A12: The Yahoo Finance symbols are "^VIX", "SPY", and "DDM" respectively.
A13: Select "Historical Prices" from the left margin.
A14: At the top of the page select the bullet for "Daily" and then click "Get Prices". The "Get Prices" button sets the type of download for the next step.
A15: Then go to the bottom of the page and click "Download to Spreadsheet".
A16: Use the "Save As" option to save the file to your drive for later input processing. I find it useful to copy the series name from the top of the
A17: history page and paste this as the file name.csv in the save as dialog(See "Automated data import" below)
A18: The resulting .csv files are in date-descending sequence (most recent first) and may be used in this spread sheet with out sorting.
A20: Automated data import
A21: The Input Data tabs each have a button that will automate importing Price History data which you have previously downloaded to your hard drive from Yahoo Finance (.csv format please!)
A22: The VBA macro code behind this button uses the standard EXCEL file open dialog to allow you to navigate to the directory where you have stored the downloaded
A23: history files. You may then select the file you are interested in.
A24: Subsequent processing will adjust the Open, High, Low, and Close prices as indicated by the Adjusted Close values provided in the downloaded file.
A25: Both the Raw and the Adjusted data will be copied to the InputPriceData tab for use in this workbook.
A26: After import, the imported file name will appear in cell A1 of the data tab. Depending on how you named the download file you may want to change this to the symbol and description.
A27: Unlike some other data sources, YAHOO history files DO NOT contain the symbol or a description in the headers!
A28: Notes: After the data has been transferred to this workbook, the source history file will be closed with out saving it so that it remains unchanged for future uses.
A29: You will be wise to download all data symbols on the same day. This greatly simplifies data alignment by date. Formula code on the Calcs n Charts tab will try to adjust alignments but it is not bullet proof.
A30: I modified the data import routine to trim the last dot(.) and qualifier from the file name before placing it in cell A1 of the data sheet. So a "good" choice of file name at download time
A31: can save you the step of modifying the contents of cell A1 after the import
A33: Development Notes:
A34: 1 | C34: This workbook contains and uses VBA macros.
A35: 2 | C35: Input Data
C36: All data in this workbook is sorted date descending (most recent date at the top) and the formulas are built accordingly.
A37: 3 | C37: This workbook only supports LONG trades for one symbol at a time. As delivered this symbol is DDM.
A38: 4 | C38: Things found on the way to something else:
B39: a | C39: At proof time, the article text indicates that the VIX indicator calculations are based on the LOW. The example Wealth-Lab code references the CLOSE. (May change by publication time)
C40: I was not able to match the Author's signal dates (see figure 2 of the article) until I changed my logic to use the VIX LOW price series. Using VIX-LOW, all signal dates match.
B41: b | C41: Trade Pricing values. It appears that the Close-Adjusted DDM price series I downloaded from YAHOO provides OPEN prices that match for all trades documented in Mr. Gardner's trade tables.
C42: On the otherhand, SPY as downloaded from YAHOO matches open prices on the recent trades, but for the trades before the 3/8/2010 trade, the Yahoo Open prices on the trade dates
C43: are higher than the author's transaction prices by as much as +0.50.
C44: This just points up what Sunny Harris told us in "How Good Is Your Data?" which appeared in the February 2011 issue of S&C:
C45: (paraphrasing) "Data from your source may not match data from my source, entry for entry".
A47: Calculation and Chart Worksheet Usage Comments:
A48: 1 | C48: In General, Items in Bolded BLUE are items you may freely change to play what-if games.
C49: Be sure to have a backup copy of the spreadsheet before you alter anything else.
A50: 2 | C50: Several of the column formulas begin with "IF" logic that determines when there is sufficient data available for the subsequent calculations to be relevant. The cell will generally calculate to blank or the result of the calculation.
C51: In a couple of cases, this "IF" logic also sets starter values for subsequent smoothing calculations.
A52: 3 | C52: Data windowing can be performed by changing cell A11. Positive values logically "Pan" the data window represented by the Calculation sheet down the input sheet and back in time.
C53: This can have two side effects: First, data may fall outside of the fixed Y-axis scales and be clipped or fall well inside the Y-axis scales wasting a lot of chart vertical space.
C54: Second, you may move far enough back that you do not have sufficient data points to fill the left of the chart.
A55: 4 | C55: The VBA macros behind the Green button address these Data Windowing problems and also resizes and vertically aligns all charts on the work sheet to match the Price chart
C56: and then horizontally adjusts the X-axis positions of all charts on the work sheet so that the corresponding data points align vertically.
C57: The macros behind the green button are sensitive to the user control values in cells A11 and A12, and also uses the computed values in cells A8, F11, and F12
A59: Chart Notes:
A60: 1 | C60: You get to choose the VIX price series to be used in primary chart, for the 50 day moving average, and the system signals. As delivered, this is set to LOW but you can play what if with this value
A61: 2 | C61: All data plotted in reverse order to get dates/times to read ascending left to right.
A62: 3 | C62: Added a vertical Cursor, aligned to the same date across all of the charts. This cursor is user controlled by way of a scroll bar located at the bottom of the chart stack.
C63: The individual chart cursors are built using a separate data series plotted as vertical bars, whose max value matches the maximum y-axis value on the particular chart.
C64: To position the cursor, the value of the scroll bar is used in an "IF" statement to determine which data point is set to this maximum y-axis value. All other data points of the series are set to zero.
A65: 4 | C65: Added a toggle button to allow dynamic switch between raw data and data that has been adjusted per the imported "Adjusted Close" column.
C66: VIX data appears to have no differences between CLOSE and ADJUSTED CLOSE as downloaded from Yahoo. I also compared Yahoo VIX to CBOE VIX
C67: and found that there are numerous places out of 2211 dates in common where there are differences as large as $10 between Yahoo and CBOE.
C68: These are not clustered and made no material difference in this system's signal location when I substituted VIX data from CBOE in place of the VIX from Yahoo.
C69: Luck of the draw you say? And I agree…

Sheet CalculationsAndCharts
A1: Using VIX To Forecast
B2: Price Data: | C2: =Data4SymbolToTrade!A1 -> ProShares Ultra Dow30 (DDM) | U2: Summary of Trade Simulation: | V2: =C2 -> ProShares Ultra Dow30 (DDM)
U3: Using Simulation Period of | V3: =TEXT(OFFSET($B$31,V22,0,1,1),"ddd mm/dd/yy") & " thru " & TEXT(OFFSET($B$31,1,0,1,1),"ddd mm/dd/yy") -> Fri 09/08/06 thru Wed 10/10/12
A4: User Charting Controls
A5: Data Control | U5: Initial capital | V5: 25000
A6: =MIN(VIXinputData!$B$7,Data4SymbolToTrade!B7) -> 1590 | B6: Available Input Data Rows | E6: Earliest: | F6: =OFFSET(VIXinputData!B10,CalculationsAndCharts!A6,0,1,1) -> 2006-06-21 | T6: Max Position Size as % of current capital | V6: 0.96
E7: Latest: | F7: =OFFSET(VIXinputData!B10,1,0,1,1) -> 2012-10-10
A8: =MIN(A6-A11,COUNTA(B32:B9982)) -> 1590 | B8: Logically Available for Calc / Plot
F9: Chart y-Axis Range | U9: Ending Cash in Account | V9: =AH32 -> 1933.86
A10: Price Chart Windowing Controls | F10: Primary | G10: Target | U10: Ending Open Trade Asset value | V10: =AI32 -> 50185.56
A11: 0 | B11: Input Data Offset (Pan) | E11: Max High+ | F11: =CEILING(MAX(OFFSET($H$32,0,0,$A$12,1)),1)+F14 -> 75 | G11: =CEILING(MAX(OFFSET($X$32,0,0,$A$12,1)),1)+G14 -> 106 | U11: Ending Account Equity | V11: =V10+V9 -> 52119.42
A12: 1590 | B12: Data Points to Plot (Zoom) | E12: Min Low- | F12: =FLOOR(MIN(OFFSET($H$32,0,0,$A$12,1)),1)-F14 -> 7 | G12: =FLOOR(MIN(OFFSET($X$32,0,0,$A$12,1)),1)-G14 -> 14
B13: First: | C13: =OFFSET(B31,A12,0,1,1) -> 2006-06-21 | E13: White space %: | F13: 0.04 | U13: Net Gain/Loss | V13: =V11-V5 -> 27119.42 | W13: =V13/V5 -> 1.0847768
B14: Last: | C14: =B32 -> 2012-10-10 | E14: White space Allowance: | F14: =FLOOR((CEILING(MAX(OFFSET($H$32,0,0,$A$12,1)),1)-FLOOR(MIN(OFFSET($H$32,0,0,$A$12,1)),1))*F13,1) -> 2 | G14: =FLOOR((CEILING(MAX(OFFSET($X$32,0,0,$A$12,1)),1)-FLOOR(MIN(OFFSET($X$32,0,0,$A$12,1)),1))*F13,1) -> 3
U15: Bars Available | V15: =A8 -> 1590
A16: VIX Signal Controls | U16: SMA stabilization period bars | V16: =A17+5 -> 55
A17: 50 | B17: SMA Length | U17: Default Back Test Start Date Offset | V17: =A8-V16 -> 1535 | W17: =OFFSET($W$31,V17,0,1,1) -> 2006-09-08 | X17: =W17 -> 2006-09-08
A18: 12 | B18: Signal Counting Interval Length
A19: 11 | B19: Signal Count Threshold | U19: Date range on chart: | V19: =TEXT(C13,"ddd mm/dd/yy") & " to " & TEXT(C14,"ddd mm/dd/yy") -> Wed 06/21/06 to Wed 10/10/12
U20: User specified test start date | V20: =IF(W20="",0,IFERROR(MATCH(W20,OFFSET($B$31,1,0,$A$8,1),0),"Not found")) -> Not found | W20: 2004-06-24 | X20: =IF(W20="","",W20) -> 2004-06-24
A22: Help! I would like to plot data | D22: Chart Windowing values to use | U22: Using Back Test Start Date of | V22: =IF(V20="Not Found",V17,MIN(V17:V20)) -> 1535 | W22: =OFFSET($W$31,V22,0,1,1) -> 2006-09-08 | X22: =W22 -> 2006-09-08
B23: From | C23: 2003-01-03 | D23: =OFFSET(VIXinputData!$A$10,MATCH(C23,OFFSET(VIXinputData!B10,1,0,VIXinputData!$B$7,1),0),0,1,1)-D24 -> 2462 | E23: ==> for Points to Plot
B24: To | C24: 2012-10-10 | D24: =OFFSET(VIXinputData!$A$10,MATCH(C24,OFFSET(VIXinputData!B10,1,0,VIXinputData!$B$7,1),0),0,1,1)-1 -> 0 | E24: ==> for Offset
B26: 1590 | E26: Date at cursor | F26: =OFFSET(B31,B27,0,1,1) -> 2012-10-10 | S26: Transaction details in columns V thru AJ
B27: =A12-B26+1 -> 1 | F27: Scroll Cursor Here =>
B28: 0 | V28: Trade Calculations for: | X28: =Data4SymbolToTrade!A1 -> ProShares Ultra Dow30 (DDM)
I29: Signal Calculations Via: | J29: Low | K29: =MATCH(J29,D31:G31,0) -> 3 | S29: =$F$11 -> 75 | T29: 75 | U29: =$F$11 -> 75 | Y29: =$G$11 -> 106 | Z29: 106 | AA29: =$G$11 -> 106
D30: =VIXinputData!A1 -> VOLATILITYS&P500 (^VIX) | H30: Plot | I30: ="SMA(" & A17 & ")" -> SMA(50) | L30: =A18 & " Day Up Count" -> 12 Day Up Count | M30: =A18 & " Day Down Count" -> 12 Day Down Count | N30: Buy | O30: Sell | P30: Tran | Q30: Actual Buy | R30: Actual Sell | S30: Buy | T30: Sell | U30: Primary Cursor | V30: Date Match ndx | Y30: Buy | Z30: Sell | AA30: Target Cursor | AB30: Position size | AC30: Buy @ | AD30: Sell @ | AG30: net of trade | AH30: Account Balance | AI30: Asset Value | AJ30: Account Equity
A31: Rel Row | B31: Date | C31: Volume | D31: Open | E31: High | F31: Low | G31: Close | H31: =INDEX(D31:G31,$K$29) -> Low | J31: Above | K31: Below | N31: Signal | O31: Signal | P31: Active | S31: Marker | T31: Marker | W31: Date | X31: Open | Y31: Marker | Z31: Marker | AE31: Cost | AF31: Proceeds
A32: 1 | B32: =OFFSET(VIXinputData!B$10,CalculationsAndCharts!$A32+$A$11,0,1,1) -> 2012-10-10 | C32: =OFFSET(VIXinputData!G$10,CalculationsAndCharts!$A32+$A$11,0,1,1) -> 0 | D32: =OFFSET(VIXinputData!C$10,CalculationsAndCharts!$A32+$A$11,$B$28,1,1) -> 16.52 | E32: =OFFSET(VIXinputData!D$10,CalculationsAndCharts!$A32+$A$11,$B$28,1,1) -> 16.79 | F32: =OFFSET(VIXinputData!E$10,CalculationsAndCharts!$A32+$A$11,$B$28,1,1) -> 16.13 | G32: =OFFSET(VIXinputData!F$10,CalculationsAndCharts!$A32+$A$11,$B$28,1,1) -> 16.29 | H32: =INDEX(D32:G32,$K$29) -> 16.13 | I32: =AVERAGE(OFFSET(C32,0,$K$29,$A$17,1)) -> 15.0542 | J32: =IF(INDEX(D32:G32,1,$K$29)>I32,1,0) -> 1 | K32: =IF(INDEX(D32:G32,1,$K$29)<I32,1,0) -> 0 | L32: =SUM(OFFSET(J32,0,0,$A$18,1)) -> 4 | M32: =SUM(OFFSET(K32,0,0,$A$18,1)) -> 8 | N32: =IF(M33>=$A$19,1,0) -> 0 | O32: =IF(L33=$A$19,1,0) -> 0 | P32: =IF(AND(P33=0,N33=1),1,IF(AND(P33=1,O33=1),0,P33)) -> 1 | Q32: =IF(AND(P32=1,P33=0),1,0) -> 0 | R32: =IF(AND(P33=1,O33=1),1,0) -> 0 | S32: =IF($Q32=1,$S$29,0) -> 0 | T32: =IF($R32=1,$T$29,0) -> 0 | U32: =IF($A32=$B$27,U$29,0) -> 75 | V32: =IF(A32>$A$8,"",MATCH(B32,OFFSET(Data4SymbolToTrade!$B$10,1,0,Data4SymbolToTrade!$B$7,1),0)) -> 1 | W32: =IF(A32>$A$8,"",OFFSET(Data4SymbolToTrade!$B$10,CalculationsAndCharts!$V32,0,1,1)) -> 2012-10-10 | X32: =IF(A32>$A$8,"",OFFSET(Data4SymbolToTrade!$C$10,CalculationsAndCharts!$V32,$B$28,1,1)) -> 74.02 | Y32: =IF($Q32=1,$Y$29,0) -> 0 | Z32: =IF($R32=1,$Z$29,0) -> 0 | AA32: =IF($A32=$B$27,AA$29,0) -> 106 | AB32: =IF(A32>$V$22,"",IF(Q32=1,INT(AH33*$V$6/AC32),IF(R33=1,0,AB33))) -> 678 | AC32: =IF(A32>$V$22,"",IF(Q32=1,$X32,0)) -> 0 | AD32: =IF(A32>$V$22,"",IF(R32=1,$X32,0)) -> 0 | AE32: =IF(A32>$V$22,"",IF(Q32=1,AB32*AC32,IF(R33=1,0,AE33))) -> 45087 | AF32: =IF(A32>$V$22,"",IF(R32=1,AB32*AD32,0)) -> 0 | AG32: =IF(A32>$V$22,0,IF(R32=1,AF32-AE32,0)) -> 0 | AH32: =IF(A32>$V$22,0,IF(A32=$V$22,$V$5,AH33-IF(Q32=1,AE32,0)+IF(R32=1,AF32,0))) -> 1933.86 | AI32: =IF(A32>$V$22,0,IF(R32=1,0,AB32*X32)) -> 50185.56 | AJ32: =AH32+AI32 -> 52119.42
A33: 2 | B33: =OFFSET(VIXinputData!B$10,CalculationsAndCharts!$A33+$A$11,0,1,1) -> 2012-10-09 | C33: =OFFSET(VIXinputData!G$10,CalculationsAndCharts!$A33+$A$11,0,1,1) -> 0 | D33: =OFFSET(VIXinputData!C$10,CalculationsAndCharts!$A33+$A$11,$B$28,1,1) -> 15.28 | E33: =OFFSET(VIXinputData!D$10,CalculationsAndCharts!$A33+$A$11,$B$28,1,1) -> 16.4 | F33: =OFFSET(VIXinputData!E$10,CalculationsAndCharts!$A33+$A$11,$B$28,1,1) -> 15.18 | G33: =OFFSET(VIXinputData!F$10,CalculationsAndCharts!$A33+$A$11,$B$28,1,1) -> 16.37 | H33: =INDEX(D33:G33,$K$29) -> 15.18 | I33: 15.0968 | J33: 1 | K33: 0 | L33: 3 | M33: 9 | N33: 0 | O33: 0 | P33: =IF(AND(P34=0,N34=1),1,IF(AND(P34=1,O34=1),0,P34)) -> 1 | Q33: =IF(AND(P33=1,P34=0),1,0) -> 0 | R33: =IF(AND(P34=1,O34=1),1,IF(AND(A33=1,P33=1),1,0)) -> 0 | S33: =IF(Q33=1,$S$29,0) -> 0 | T33: =IF(R33=1,$T$29,0) -> 0 | U33: 0 | V33: =IF(A33>$A$8,"",MATCH(B33,OFFSET(Data4SymbolToTrade!$B$10,1,0,Data4SymbolToTrade!$B$7,1),0)) -> 2 | W33: =IF(A33>$A$8,"",OFFSET(Data4SymbolToTrade!$B$10,CalculationsAndCharts!$V33,0,1,1)) -> 2012-10-09 | X33: =IF(A33>$A$8,"",OFFSET(Data4SymbolToTrade!$C$10,CalculationsAndCharts!$V33,$B$28,1,1)) -> 75.15 | Y33: 0 | Z33: 0 | AA33: 0 | AB33: =IF(A33>$V$22,"",IF(Q33=1,INT(AH34*$V$6/AC33),IF(R34=1,0,AB34))) -> 678 | AC33: =IF(A33>$V$22,"",IF(Q33=1,$X33,0)) -> 0 | AD33: =IF(A33>$V$22,"",IF(R33=1,$X33,0)) -> 0 | AE33: =IF(A33>$V$22,"",IF(Q33=1,AB33*AC33,IF(R34=1,0,AE34))) -> 45087 | AF33: =IF(A33>$V$22,"",IF(R33=1,AB33*AD33,0)) -> 0 | AG33: =IF(A33>$V$22,0,IF(R33=1,AF33-AE33,0)) -> 0 | AH33: =IF(A33>$V$22,0,IF(A33=$V$22,$V$5,AH34-IF(Q33=1,AE33,0)+IF(R33=1,AF33,0))) -> 1933.86 | AI33: =IF(A33>$V$22,0,IF(R33=1,0,AB33*X33)) -> 50951.7 | AJ33: =AH33+AI33 -> 52885.56
A34: 3 | B34: =OFFSET(VIXinputData!B$10,CalculationsAndCharts!$A34+$A$11,0,1,1) -> 2012-10-08 | C34: =OFFSET(VIXinputData!G$10,CalculationsAndCharts!$A34+$A$11,0,1,1) -> 0 | D34: =OFFSET(VIXinputData!C$10,CalculationsAndCharts!$A34+$A$11,$B$28,1,1) -> 15.19 | E34: =OFFSET(VIXinputData!D$10,CalculationsAndCharts!$A34+$A$11,$B$28,1,1) -> 15.46 | F34: =OFFSET(VIXinputData!E$10,CalculationsAndCharts!$A34+$A$11,$B$28,1,1) -> 15.04 | G34: =OFFSET(VIXinputData!F$10,CalculationsAndCharts!$A34+$A$11,$B$28,1,1) -> 15.11 | H34: 15.04 | I34: 15.1378 | J34: 0 | K34: 1 | L34: 2 | M34: 10 | N34: 0 | O34: 0 | P34: 1 | Q34: 0 | R34: 0 | S34: 0 | T34: 0 | U34: 0 | V34: =IF(A34>$A$8,"",MATCH(B34,OFFSET(Data4SymbolToTrade!$B$10,1,0,Data4SymbolToTrade!$B$7,1),0)) -> 3 | W34: =IF(A34>$A$8,"",OFFSET(Data4SymbolToTrade!$B$10,CalculationsAndCharts!$V34,0,1,1)) -> 2012-10-08 | X34: =IF(A34>$A$8,"",OFFSET(Data4SymbolToTrade!$C$10,CalculationsAndCharts!$V34,$B$28,1,1)) -> 75.17 | Y34: 0 | Z34: 0 | AA34: 0 | AB34: =IF(A34>$V$22,"",IF(Q34=1,INT(AH35*$V$6/AC34),IF(R35=1,0,AB35))) -> 678 | AC34: =IF(A34>$V$22,"",IF(Q34=1,$X34,0)) -> 0 | AD34: =IF(A34>$V$22,"",IF(R34=1,$X34,0)) -> 0 | AE34: =IF(A34>$V$22,"",IF(Q34=1,AB34*AC34,IF(R35=1,0,AE35))) -> 45087 | AF34: =IF(A34>$V$22,"",IF(R34=1,AB34*AD34,0)) -> 0 | AG34: =IF(A34>$V$22,0,IF(R34=1,AF34-AE34,0)) -> 0 | AH34: =IF(A34>$V$22,0,IF(A34=$V$22,$V$5,AH35-IF(Q34=1,AE34,0)+IF(R34=1,AF34,0))) -> 1933.86 | AI34: =IF(A34>$V$22,0,IF(R34=1,0,AB34*X34)) -> 50965.26 | AJ34: 52899.12
A35: 4 | B35: =OFFSET(VIXinputData!B$10,CalculationsAndCharts!$A35+$A$11,0,1,1) -> 2012-10-05 | C35: =OFFSET(VIXinputData!G$10,CalculationsAndCharts!$A35+$A$11,0,1,1) -> 0 | D35: =OFFSET(VIXinputData!C$10,CalculationsAndCharts!$A35+$A$11,$B$28,1,1) -> 13.68 | E35: =OFFSET(VIXinputData!D$10,CalculationsAndCharts!$A35+$A$11,$B$28,1,1) -> 14.78 | F35: =OFFSET(VIXinputData!E$10,CalculationsAndCharts!$A35+$A$11,$B$28,1,1) -> 13.67 | G35: =OFFSET(VIXinputData!F$10,CalculationsAndCharts!$A35+$A$11,$B$28,1,1) -> 14.33 | H35: 13.67 | I35: 15.1674 | J35: 0 | K35: 1 | L35: 2 | M35: 10 | N35: 0 | O35: 0 | P35: 1 | Q35: 0 | R35: 0 | S35: 0 | T35: 0 | U35: 0 | V35: =IF(A35>$A$8,"",MATCH(B35,OFFSET(Data4SymbolToTrade!$B$10,1,0,Data4SymbolToTrade!$B$7,1),0)) -> 4 | W35: =IF(A35>$A$8,"",OFFSET(Data4SymbolToTrade!$B$10,CalculationsAndCharts!$V35,0,1,1)) -> 2012-10-05 | X35: =IF(A35>$A$8,"",OFFSET(Data4SymbolToTrade!$C$10,CalculationsAndCharts!$V35,$B$28,1,1)) -> 75.94 | Y35: 0 | Z35: 0 | AA35: 0 | AB35: =IF(A35>$V$22,"",IF(Q35=1,INT(AH36*$V$6/AC35),IF(R36=1,0,AB36))) -> 678 | AC35: =IF(A35>$V$22,"",IF(Q35=1,$X35,0)) -> 0 | AD35: =IF(A35>$V$22,"",IF(R35=1,$X35,0)) -> 0 | AE35: =IF(A35>$V$22,"",IF(Q35=1,AB35*AC35,IF(R36=1,0,AE36))) -> 45087 | AF35: =IF(A35>$V$22,"",IF(R35=1,AB35*AD35,0)) -> 0 | AG35: =IF(A35>$V$22,0,IF(R35=1,AF35-AE35,0)) -> 0 | AH35: =IF(A35>$V$22,0,IF(A35=$V$22,$V$5,AH36-IF(Q35=1,AE35,0)+IF(R35=1,AF35,0))) -> 1933.86 | AI35: =IF(A35>$V$22,0,IF(R35=1,0,AB35*X35)) -> 51487.32 | AJ35: 53421.18
A36: 5 | B36: =OFFSET(VIXinputData!B$10,CalculationsAndCharts!$A36+$A$11,0,1,1) -> 2012-10-04 | C36: =OFFSET(VIXinputData!G$10,CalculationsAndCharts!$A36+$A$11,0,1,1) -> 0 | D36: =OFFSET(VIXinputData!C$10,CalculationsAndCharts!$A36+$A$11,$B$28,1,1) -> 15.23 | E36: =OFFSET(VIXinputData!D$10,CalculationsAndCharts!$A36+$A$11,$B$28,1,1) -> 15.33 | F36: =OFFSET(VIXinputData!E$10,CalculationsAndCharts!$A36+$A$11,$B$28,1,1) -> 14.53 | G36: =OFFSET(VIXinputData!F$10,CalculationsAndCharts!$A36+$A$11,$B$28,1,1) -> 14.55 | H36: 14.53 | I36: 15.2354 | J36: 0 | K36: 1 | L36: 2 | M36: 10 | N36: 0 | O36: 0 | P36: 1 | Q36: 0 | R36: 0 | S36: 0 | T36: 0 | U36: 0 | V36: =IF(A36>$A$8,"",MATCH(B36,OFFSET(Data4SymbolToTrade!$B$10,1,0,Data4SymbolToTrade!$B$7,1),0)) -> 5 | W36: =IF(A36>$A$8,"",OFFSET(Data4SymbolToTrade!$B$10,CalculationsAndCharts!$V36,0,1,1)) -> 2012-10-04 | X36: =IF(A36>$A$8,"",OFFSET(Data4SymbolToTrade!$C$10,CalculationsAndCharts!$V36,$B$28,1,1)) -> 74.91 | Y36: 0 | Z36: 0 | AA36: 0 | AB36: =IF(A36>$V$22,"",IF(Q36=1,INT(AH37*$V$6/AC36),IF(R37=1,0,AB37))) -> 678 | AC36: =IF(A36>$V$22,"",IF(Q36=1,$X36,0)) -> 0 | AD36: =IF(A36>$V$22,"",IF(R36=1,$X36,0)) -> 0 | AE36: =IF(A36>$V$22,"",IF(Q36=1,AB36*AC36,IF(R37=1,0,AE37))) -> 45087 | AF36: =IF(A36>$V$22,"",IF(R36=1,AB36*AD36,0)) -> 0 | AG36: =IF(A36>$V$22,0,IF(R36=1,AF36-AE36,0)) -> 0 | AH36: =IF(A36>$V$22,0,IF(A36=$V$22,$V$5,AH37-IF(Q36=1,AE36,0)+IF(R36=1,AF36,0))) -> 1933.86 | AI36: =IF(A36>$V$22,0,IF(R36=1,0,AB36*X36)) -> 50788.98 | AJ36: 52722.84
A37: 6 | B37: =OFFSET(VIXinputData!B$10,CalculationsAndCharts!$A37+$A$11,0,1,1) -> 2012-10-03 | C37: =OFFSET(VIXinputData!G$10,CalculationsAndCharts!$A37+$A$11,0,1,1) -> 0 | D37: =OFFSET(VIXinputData!C$10,CalculationsAndCharts!$A37+$A$11,$B$28,1,1) -> 15.63 | E37: =OFFSET(VIXinputData!D$10,CalculationsAndCharts!$A37+$A$11,$B$28,1,1) -> 16.02 | F37: =OFFSET(VIXinputData!E$10,CalculationsAndCharts!$A37+$A$11,$B$28,1,1) -> 15.13 | G37: =OFFSET(VIXinputData!F$10,CalculationsAndCharts!$A37+$A$11,$B$28,1,1) -> 15.43 | H37: 15.13 | I37: 15.3246 | J37: 0 | K37: 1 | L37: 2 | M37: 10 | N37: 0 | O37: 0 | P37: 1 | Q37: 0 | R37: 0 | S37: 0 | T37: 0 | U37: 0 | V37: =IF(A37>$A$8,"",MATCH(B37,OFFSET(Data4SymbolToTrade!$B$10,1,0,Data4SymbolToTrade!$B$7,1),0)) -> 6 | W37: =IF(A37>$A$8,"",OFFSET(Data4SymbolToTrade!$B$10,CalculationsAndCharts!$V37,0,1,1)) -> 2012-10-03 | X37: =IF(A37>$A$8,"",OFFSET(Data4SymbolToTrade!$C$10,CalculationsAndCharts!$V37,$B$28,1,1)) -> 74.44 | Y37: 0 | Z37: 0 | AA37: 0 | AB37: =IF(A37>$V$22,"",IF(Q37=1,INT(AH38*$V$6/AC37),IF(R38=1,0,AB38))) -> 678 | AC37: =IF(A37>$V$22,"",IF(Q37=1,$X37,0)) -> 0 | AD37: =IF(A37>$V$22,"",IF(R37=1,$X37,0)) -> 0 | AE37: =IF(A37>$V$22,"",IF(Q37=1,AB37*AC37,IF(R38=1,0,AE38))) -> 45087 | AF37: =IF(A37>$V$22,"",IF(R37=1,AB37*AD37,0)) -> 0 | AG37: =IF(A37>$V$22,0,IF(R37=1,AF37-AE37,0)) -> 0 | AH37: =IF(A37>$V$22,0,IF(A37=$V$22,$V$5,AH38-IF(Q37=1,AE37,0)+IF(R37=1,AF37,0))) -> 1933.86 | AI37: =IF(A37>$V$22,0,IF(R37=1,0,AB37*X37)) -> 50470.32 | AJ37: 52404.18
A38: 7 | B38: =OFFSET(VIXinputData!B$10,CalculationsAndCharts!$A38+$A$11,0,1,1) -> 2012-10-02 | C38: =OFFSET(VIXinputData!G$10,CalculationsAndCharts!$A38+$A$11,0,1,1) -> 0 | D38: =OFFSET(VIXinputData!C$10,CalculationsAndCharts!$A38+$A$11,$B$28,1,1) -> 15.85 | E38: =OFFSET(VIXinputData!D$10,CalculationsAndCharts!$A38+$A$11,$B$28,1,1) -> 16.5 | F38: =OFFSET(VIXinputData!E$10,CalculationsAndCharts!$A38+$A$11,$B$28,1,1) -> 15.7 | G38: =OFFSET(VIXinputData!F$10,CalculationsAndCharts!$A38+$A$11,$B$28,1,1) -> 15.71 | H38: 15.7 | I38: 15.3894 | J38: 1 | K38: 0 | L38: 2 | M38: 10 | N38: 1 | O38: 0 | P38: 1 | Q38: 0 | R38: 0 | S38: 0 | T38: 0 | U38: 0 | V38: =IF(A38>$A$8,"",MATCH(B38,OFFSET(Data4SymbolToTrade!$B$10,1,0,Data4SymbolToTrade!$B$7,1),0)) -> 7 | W38: =IF(A38>$A$8,"",OFFSET(Data4SymbolToTrade!$B$10,CalculationsAndCharts!$V38,0,1,1)) -> 2012-10-02 | X38: =IF(A38>$A$8,"",OFFSET(Data4SymbolToTrade!$C$10,CalculationsAndCharts!$V38,$B$28,1,1)) -> 74.83 | Y38: 0 | Z38: 0 | AA38: 0 | AB38: =IF(A38>$V$22,"",IF(Q38=1,INT(AH39*$V$6/AC38),IF(R39=1,0,AB39))) -> 678 | AC38: =IF(A38>$V$22,"",IF(Q38=1,$X38,0)) -> 0 | AD38: =IF(A38>$V$22,"",IF(R38=1,$X38,0)) -> 0 | AE38: =IF(A38>$V$22,"",IF(Q38=1,AB38*AC38,IF(R39=1,0,AE39))) -> 45087 | AF38: =IF(A38>$V$22,"",IF(R38=1,AB38*AD38,0)) -> 0 | AG38: =IF(A38>$V$22,0,IF(R38=1,AF38-AE38,0)) -> 0 | AH38: =IF(A38>$V$22,0,IF(A38=$V$22,$V$5,AH39-IF(Q38=1,AE38,0)+IF(R38=1,AF38,0))) -> 1933.86 | AI38: =IF(A38>$V$22,0,IF(R38=1,0,AB38*X38)) -> 50734.74 | AJ38: 52668.6
A39: 8 | B39: =OFFSET(VIXinputData!B$10,CalculationsAndCharts!$A39+$A$11,0,1,1) -> 2012-10-01 | C39: =OFFSET(VIXinputData!G$10,CalculationsAndCharts!$A39+$A$11,0,1,1) -> 0 | D39: =OFFSET(VIXinputData!C$10,CalculationsAndCharts!$A39+$A$11,$B$28,1,1) -> 16.03 | E39: =OFFSET(VIXinputData!D$10,CalculationsAndCharts!$A39+$A$11,$B$28,1,1) -> 16.53 | F39: =OFFSET(VIXinputData!E$10,CalculationsAndCharts!$A39+$A$11,$B$28,1,1) -> 15.13 | G39: =OFFSET(VIXinputData!F$10,CalculationsAndCharts!$A39+$A$11,$B$28,1,1) -> 16.32 | H39: 15.13 | I39: 15.4422 | J39: 0 | K39: 1 | L39: 1 | M39: 11 | N39: 1 | O39: 0 | P39: 1 | Q39: 0 | R39: 0 | S39: 0 | T39: 0 | U39: 0 | V39: =IF(A39>$A$8,"",MATCH(B39,OFFSET(Data4SymbolToTrade!$B$10,1,0,Data4SymbolToTrade!$B$7,1),0)) -> 8 | W39: =IF(A39>$A$8,"",OFFSET(Data4SymbolToTrade!$B$10,CalculationsAndCharts!$V39,0,1,1)) -> 2012-10-01 | X39: =IF(A39>$A$8,"",OFFSET(Data4SymbolToTrade!$C$10,CalculationsAndCharts!$V39,$B$28,1,1)) -> 74.24 | Y39: 0 | Z39: 0 | AA39: 0 | AB39: =IF(A39>$V$22,"",IF(Q39=1,INT(AH40*$V$6/AC39),IF(R40=1,0,AB40))) -> 678 | AC39: =IF(A39>$V$22,"",IF(Q39=1,$X39,0)) -> 0 | AD39: =IF(A39>$V$22,"",IF(R39=1,$X39,0)) -> 0 | AE39: =IF(A39>$V$22,"",IF(Q39=1,AB39*AC39,IF(R40=1,0,AE40))) -> 45087 | AF39: =IF(A39>$V$22,"",IF(R39=1,AB39*AD39,0)) -> 0 | AG39: =IF(A39>$V$22,0,IF(R39=1,AF39-AE39,0)) -> 0 | AH39: =IF(A39>$V$22,0,IF(A39=$V$22,$V$5,AH40-IF(Q39=1,AE39,0)+IF(R39=1,AF39,0))) -> 1933.86 | AI39: =IF(A39>$V$22,0,IF(R39=1,0,AB39*X39)) -> 50334.72 | AJ39: =AH39+AI39 -> 52268.58
A40: 9 | B40: =OFFSET(VIXinputData!B$10,CalculationsAndCharts!$A40+$A$11,0,1,1) -> 2012-09-28 | C40: =OFFSET(VIXinputData!G$10,CalculationsAndCharts!$A40+$A$11,0,1,1) -> 0 | D40: =OFFSET(VIXinputData!C$10,CalculationsAndCharts!$A40+$A$11,$B$28,1,1) -> 15.23 | E40: =OFFSET(VIXinputData!D$10,CalculationsAndCharts!$A40+$A$11,$B$28,1,1) -> 15.77 | F40: =OFFSET(VIXinputData!E$10,CalculationsAndCharts!$A40+$A$11,$B$28,1,1) -> 14.95 | G40: =OFFSET(VIXinputData!F$10,CalculationsAndCharts!$A40+$A$11,$B$28,1,1) -> 15.73 | H40: 14.95 | I40: 15.459 | J40: 0 | K40: 1 | L40: 1 | M40: 11 | N40: 1 | O40: 0 | P40: 1 | Q40: 0 | R40: 0 | S40: 0 | T40: 0 | U40: 0 | V40: =IF(A40>$A$8,"",MATCH(B40,OFFSET(Data4SymbolToTrade!$B$10,1,0,Data4SymbolToTrade!$B$7,1),0)) -> 9 | W40: =IF(A40>$A$8,"",OFFSET(Data4SymbolToTrade!$B$10,CalculationsAndCharts!$V40,0,1,1)) -> 2012-09-28 | X40: =IF(A40>$A$8,"",OFFSET(Data4SymbolToTrade!$C$10,CalculationsAndCharts!$V40,$B$28,1,1)) -> 73.53 | Y40: 0 | Z40: 0 | AA40: 0 | AB40: =IF(A40>$V$22,"",IF(Q40=1,INT(AH41*$V$6/AC40),IF(R41=1,0,AB41))) -> 678 | AC40: =IF(A40>$V$22,"",IF(Q40=1,$X40,0)) -> 0 | AD40: =IF(A40>$V$22,"",IF(R40=1,$X40,0)) -> 0 | AE40: =IF(A40>$V$22,"",IF(Q40=1,AB40*AC40,IF(R41=1,0,AE41))) -> 45087 | AF40: =IF(A40>$V$22,"",IF(R40=1,AB40*AD40,0)) -> 0 | AG40: =IF(A40>$V$22,0,IF(R40=1,AF40-AE40,0)) -> 0 | AH40: =IF(A40>$V$22,0,IF(A40=$V$22,$V$5,AH41-IF(Q40=1,AE40,0)+IF(R40=1,AF40,0))) -> 1933.86 | AI40: =IF(A40>$V$22,0,IF(R40=1,0,AB40*X40)) -> 49853.34 | AJ40: 51787.2
A41: 10 | B41: =OFFSET(VIXinputData!B$10,CalculationsAndCharts!$A41+$A$11,0,1,1) -> 2012-09-27 | C41: =OFFSET(VIXinputData!G$10,CalculationsAndCharts!$A41+$A$11,0,1,1) -> 0 | D41: =OFFSET(VIXinputData!C$10,CalculationsAndCharts!$A41+$A$11,$B$28,1,1) -> 16.38 | E41: =OFFSET(VIXinputData!D$10,CalculationsAndCharts!$A41+$A$11,$B$28,1,1) -> 16.5 | F41: =OFFSET(VIXinputData!E$10,CalculationsAndCharts!$A41+$A$11,$B$28,1,1) -> 14.83 | G41: =OFFSET(VIXinputData!F$10,CalculationsAndCharts!$A41+$A$11,$B$28,1,1) -> 14.84 | H41: 14.83 | I41: 15.469 | J41: 0 | K41: 1 | L41: 1 | M41: 11 | N41: 1 | O41: 0 | P41: 1 | Q41: 0 | R41: 0 | S41: 0 | T41: 0 | U41: 0 | V41: =IF(A41>$A$8,"",MATCH(B41,OFFSET(Data4SymbolToTrade!$B$10,1,0,Data4SymbolToTrade!$B$7,1),0)) -> 10 | W41: =IF(A41>$A$8,"",OFFSET(Data4SymbolToTrade!$B$10,CalculationsAndCharts!$V41,0,1,1)) -> 2012-09-27 | X41: =IF(A41>$A$8,"",OFFSET(Data4SymbolToTrade!$C$10,CalculationsAndCharts!$V41,$B$28,1,1)) -> 74.12 | Y41: 0 | Z41: 0 | AA41: 0 | AB41: =IF(A41>$V$22,"",IF(Q41=1,INT(AH42*$V$6/AC41),IF(R42=1,0,AB42))) -> 678 | AC41: =IF(A41>$V$22,"",IF(Q41=1,$X41,0)) -> 0 | AD41: =IF(A41>$V$22,"",IF(R41=1,$X41,0)) -> 0 | AE41: =IF(A41>$V$22,"",IF(Q41=1,AB41*AC41,IF(R42=1,0,AE42))) -> 45087 | AF41: =IF(A41>$V$22,"",IF(R41=1,AB41*AD41,0)) -> 0 | AG41: =IF(A41>$V$22,0,IF(R41=1,AF41-AE41,0)) -> 0 | AH41: =IF(A41>$V$22,0,IF(A41=$V$22,$V$5,AH42-IF(Q41=1,AE41,0)+IF(R41=1,AF41,0))) -> 1933.86 | AI41: =IF(A41>$V$22,0,IF(R41=1,0,AB41*X41)) -> 50253.36 | AJ41: 52187.22
A42: 11 | B42: =OFFSET(VIXinputData!B$10,CalculationsAndCharts!$A42+$A$11,0,1,1) -> 2012-09-26 | C42: =OFFSET(VIXinputData!G$10,CalculationsAndCharts!$A42+$A$11,0,1,1) -> 0 | D42: =OFFSET(VIXinputData!C$10,CalculationsAndCharts!$A42+$A$11,$B$28,1,1) -> 15.83 | E42: =OFFSET(VIXinputData!D$10,CalculationsAndCharts!$A42+$A$11,$B$28,1,1) -> 17.08 | F42: =OFFSET(VIXinputData!E$10,CalculationsAndCharts!$A42+$A$11,$B$28,1,1) -> 15.83 | G42: =OFFSET(VIXinputData!F$10,CalculationsAndCharts!$A42+$A$11,$B$28,1,1) -> 16.81 | H42: 15.83 | I42: 15.4862 | J42: 1 | K42: 0 | L42: 1 | M42: 11 | N42: 1 | O42: 0 | P42: 1 | Q42: 0 | R42: 0 | S42: 0 | T42: 0 | U42: 0 | V42: =IF(A42>$A$8,"",MATCH(B42,OFFSET(Data4SymbolToTrade!$B$10,1,0,Data4SymbolToTrade!$B$7,1),0)) -> 11 | W42: =IF(A42>$A$8,"",OFFSET(Data4SymbolToTrade!$B$10,CalculationsAndCharts!$V42,0,1,1)) -> 2012-09-26 | X42: =IF(A42>$A$8,"",OFFSET(Data4SymbolToTrade!$C$10,CalculationsAndCharts!$V42,$B$28,1,1)) -> 74.04 | Y42: 0 | Z42: 0 | AA42: 0 | AB42: =IF(A42>$V$22,"",IF(Q42=1,INT(AH43*$V$6/AC42),IF(R43=1,0,AB43))) -> 678 | AC42: =IF(A42>$V$22,"",IF(Q42=1,$X42,0)) -> 0 | AD42: =IF(A42>$V$22,"",IF(R42=1,$X42,0)) -> 0 | AE42: =IF(A42>$V$22,"",IF(Q42=1,AB42*AC42,IF(R43=1,0,AE43))) -> 45087 | AF42: =IF(A42>$V$22,"",IF(R42=1,AB42*AD42,0)) -> 0 | AG42: =IF(A42>$V$22,0,IF(R42=1,AF42-AE42,0)) -> 0 | AH42: =IF(A42>$V$22,0,IF(A42=$V$22,$V$5,AH43-IF(Q42=1,AE42,0)+IF(R42=1,AF42,0))) -> 1933.86 | AI42: =IF(A42>$V$22,0,IF(R42=1,0,AB42*X42)) -> 50199.12 | AJ42: 52132.98
A43: 12 | B43: =OFFSET(VIXinputData!B$10,CalculationsAndCharts!$A43+$A$11,0,1,1) -> 2012-09-25 | C43: =OFFSET(VIXinputData!G$10,CalculationsAndCharts!$A43+$A$11,0,1,1) -> 0 | D43: =OFFSET(VIXinputData!C$10,CalculationsAndCharts!$A43+$A$11,$B$28,1,1) -> 14.19 | E43: =OFFSET(VIXinputData!D$10,CalculationsAndCharts!$A43+$A$11,$B$28,1,1) -> 15.72 | F43: =OFFSET(VIXinputData!E$10,CalculationsAndCharts!$A43+$A$11,$B$28,1,1) -> 14.03 | G43: =OFFSET(VIXinputData!F$10,CalculationsAndCharts!$A43+$A$11,$B$28,1,1) -> 15.43 | H43: 14.03 | I43: 15.4914 | J43: 0 | K43: 1 | L43: 0 | M43: 12 | N43: 1 | O43: 0 | P43: 1 | Q43: 0 | R43: 0 | S43: 0 | T43: 0 | U43: 0 | V43: =IF(A43>$A$8,"",MATCH(B43,OFFSET(Data4SymbolToTrade!$B$10,1,0,Data4SymbolToTrade!$B$7,1),0)) -> 12 | W43: =IF(A43>$A$8,"",OFFSET(Data4SymbolToTrade!$B$10,CalculationsAndCharts!$V43,0,1,1)) -> 2012-09-25 | X43: =IF(A43>$A$8,"",OFFSET(Data4SymbolToTrade!$C$10,CalculationsAndCharts!$V43,$B$28,1,1)) -> 75.34 | Y43: 0 | Z43: 0 | AA43: 0 | AB43: =IF(A43>$V$22,"",IF(Q43=1,INT(AH44*$V$6/AC43),IF(R44=1,0,AB44))) -> 678 | AC43: =IF(A43>$V$22,"",IF(Q43=1,$X43,0)) -> 0 | AD43: =IF(A43>$V$22,"",IF(R43=1,$X43,0)) -> 0 | AE43: =IF(A43>$V$22,"",IF(Q43=1,AB43*AC43,IF(R44=1,0,AE44))) -> 45087 | AF43: =IF(A43>$V$22,"",IF(R43=1,AB43*AD43,0)) -> 0 | AG43: =IF(A43>$V$22,0,IF(R43=1,AF43-AE43,0)) -> 0 | AH43: =IF(A43>$V$22,0,IF(A43=$V$22,$V$5,AH44-IF(Q43=1,AE43,0)+IF(R43=1,AF43,0))) -> 1933.86 | AI43: =IF(A43>$V$22,0,IF(R43=1,0,AB43*X43)) -> 51080.52 | AJ43: 53014.38
A44: 13 | B44: =OFFSET(VIXinputData!B$10,CalculationsAndCharts!$A44+$A$11,0,1,1) -> 2012-09-24 | C44: =OFFSET(VIXinputData!G$10,CalculationsAndCharts!$A44+$A$11,0,1,1) -> 0 | D44: =OFFSET(VIXinputData!C$10,CalculationsAndCharts!$A44+$A$11,$B$28,1,1) -> 15.06 | E44: =OFFSET(VIXinputData!D$10,CalculationsAndCharts!$A44+$A$11,$B$28,1,1) -> 15.06 | F44: =OFFSET(VIXinputData!E$10,CalculationsAndCharts!$A44+$A$11,$B$28,1,1) -> 13.87 | G44: =OFFSET(VIXinputData!F$10,CalculationsAndCharts!$A44+$A$11,$B$28,1,1) -> 14.15 | H44: 13.87 | I44: 15.54 | J44: 0 | K44: 1 | L44: 0 | M44: 12 | N44: 1 | O44: 0 | P44: 1 | Q44: 0 | R44: 0 | S44: 0 | T44: 0 | U44: 0 | V44: =IF(A44>$A$8,"",MATCH(B44,OFFSET(Data4SymbolToTrade!$B$10,1,0,Data4SymbolToTrade!$B$7,1),0)) -> 13 | W44: =IF(A44>$A$8,"",OFFSET(Data4SymbolToTrade!$B$10,CalculationsAndCharts!$V44,0,1,1)) -> 2012-09-24 | X44: =IF(A44>$A$8,"",OFFSET(Data4SymbolToTrade!$C$10,CalculationsAndCharts!$V44,$B$28,1,1)) -> 74.72 | Y44: 0 | Z44: 0 | AA44: 0 | AB44: =IF(A44>$V$22,"",IF(Q44=1,INT(AH45*$V$6/AC44),IF(R45=1,0,AB45))) -> 678 | AC44: =IF(A44>$V$22,"",IF(Q44=1,$X44,0)) -> 0 | AD44: =IF(A44>$V$22,"",IF(R44=1,$X44,0)) -> 0 | AE44: =IF(A44>$V$22,"",IF(Q44=1,AB44*AC44,IF(R45=1,0,AE45))) -> 45087 | AF44: =IF(A44>$V$22,"",IF(R44=1,AB44*AD44,0)) -> 0 | AG44: =IF(A44>$V$22,0,IF(R44=1,AF44-AE44,0)) -> 0 | AH44: =IF(A44>$V$22,0,IF(A44=$V$22,$V$5,AH45-IF(Q44=1,AE44,0)+IF(R44=1,AF44,0))) -> 1933.86 | AI44: =IF(A44>$V$22,0,IF(R44=1,0,AB44*X44)) -> 50660.16 | AJ44: 52594.02
A45: 14 | B45: =OFFSET(VIXinputData!B$10,CalculationsAndCharts!$A45+$A$11,0,1,1) -> 2012-09-21 | C45: =OFFSET(VIXinputData!G$10,CalculationsAndCharts!$A45+$A$11,0,1,1) -> 0 | D45: =OFFSET(VIXinputData!C$10,CalculationsAndCharts!$A45+$A$11,$B$28,1,1) -> 13.94 | E45: =OFFSET(VIXinputData!D$10,CalculationsAndCharts!$A45+$A$11,$B$28,1,1) -> 14.18 | F45: =OFFSET(VIXinputData!E$10,CalculationsAndCharts!$A45+$A$11,$B$28,1,1) -> 13.69 | G45: =OFFSET(VIXinputData!F$10,CalculationsAndCharts!$A45+$A$11,$B$28,1,1) -> 13.98 | H45: 13.69 | I45: 15.5898 | J45: 0 | K45: 1 | L45: 0 | M45: 12 | N45: 1 | O45: 0 | P45: 1 | Q45: 0 | R45: 0 | S45: 0 | T45: 0 | U45: 0 | V45: =IF(A45>$A$8,"",MATCH(B45,OFFSET(Data4SymbolToTrade!$B$10,1,0,Data4SymbolToTrade!$B$7,1),0)) -> 14 | W45: =IF(A45>$A$8,"",OFFSET(Data4SymbolToTrade!$B$10,CalculationsAndCharts!$V45,0,1,1)) -> 2012-09-21 | X45: =IF(A45>$A$8,"",OFFSET(Data4SymbolToTrade!$C$10,CalculationsAndCharts!$V45,$B$28,1,1)) -> 76.18 | Y45: 0 | Z45: 0 | AA45: 0 | AB45: =IF(A45>$V$22,"",IF(Q45=1,INT(AH46*$V$6/AC45),IF(R46=1,0,AB46))) -> 678 | AC45: =IF(A45>$V$22,"",IF(Q45=1,$X45,0)) -> 0 | AD45: =IF(A45>$V$22,"",IF(R45=1,$X45,0)) -> 0 | AE45: =IF(A45>$V$22,"",IF(Q45=1,AB45*AC45,IF(R46=1,0,AE46))) -> 45087 | AF45: =IF(A45>$V$22,"",IF(R45=1,AB45*AD45,0)) -> 0 | AG45: =IF(A45>$V$22,0,IF(R45=1,AF45-AE45,0)) -> 0 | AH45: =IF(A45>$V$22,0,IF(A45=$V$22,$V$5,AH46-IF(Q45=1,AE45,0)+IF(R45=1,AF45,0))) -> 1933.86 | AI45: =IF(A45>$V$22,0,IF(R45=1,0,AB45*X45)) -> 51650.04 | AJ45: 53583.9
A46: 15 | B46: =OFFSET(VIXinputData!B$10,CalculationsAndCharts!$A46+$A$11,0,1,1) -> 2012-09-20 | C46: =OFFSET(VIXinputData!G$10,CalculationsAndCharts!$A46+$A$11,0,1,1) -> 0 | D46: =OFFSET(VIXinputData!C$10,CalculationsAndCharts!$A46+$A$11,$B$28,1,1) -> 14.63 | E46: =OFFSET(VIXinputData!D$10,CalculationsAndCharts!$A46+$A$11,$B$28,1,1) -> 14.67 | F46: =OFFSET(VIXinputData!E$10,CalculationsAndCharts!$A46+$A$11,$B$28,1,1) -> 14.07 | G46: =OFFSET(VIXinputData!F$10,CalculationsAndCharts!$A46+$A$11,$B$28,1,1) -> 14.07 | H46: 14.07 | I46: 15.671 | J46: 0 | K46: 1 | L46: 1 | M46: 11 | N46: 0 | O46: 0 | P46: 1 | Q46: 0 | R46: 0 | S46: 0 | T46: 0 | U46: 0 | V46: =IF(A46>$A$8,"",MATCH(B46,OFFSET(Data4SymbolToTrade!$B$10,1,0,Data4SymbolToTrade!$B$7,1),0)) -> 15 | W46: =IF(A46>$A$8,"",OFFSET(Data4SymbolToTrade!$B$10,CalculationsAndCharts!$V46,0,1,1)) -> 2012-09-20 | X46: =IF(A46>$A$8,"",OFFSET(Data4SymbolToTrade!$C$10,CalculationsAndCharts!$V46,$B$28,1,1)) -> 74.77 | Y46: 0 | Z46: 0 | AA46: 0 | AB46: =IF(A46>$V$22,"",IF(Q46=1,INT(AH47*$V$6/AC46),IF(R47=1,0,AB47))) -> 678 | AC46: =IF(A46>$V$22,"",IF(Q46=1,$X46,0)) -> 0 | AD46: =IF(A46>$V$22,"",IF(R46=1,$X46,0)) -> 0 | AE46: =IF(A46>$V$22,"",IF(Q46=1,AB46*AC46,IF(R47=1,0,AE47))) -> 45087 | AF46: =IF(A46>$V$22,"",IF(R46=1,AB46*AD46,0)) -> 0 | AG46: =IF(A46>$V$22,0,IF(R46=1,AF46-AE46,0)) -> 0 | AH46: =IF(A46>$V$22,0,IF(A46=$V$22,$V$5,AH47-IF(Q46=1,AE46,0)+IF(R46=1,AF46,0))) -> 1933.86 | AI46: =IF(A46>$V$22,0,IF(R46=1,0,AB46*X46)) -> 50694.06 | AJ46: 52627.92
A47: 16 | B47: =OFFSET(VIXinputData!B$10,CalculationsAndCharts!$A47+$A$11,0,1,1) -> 2012-09-19 | C47: =OFFSET(VIXinputData!G$10,CalculationsAndCharts!$A47+$A$11,0,1,1) -> 0 | D47: =OFFSET(VIXinputData!C$10,CalculationsAndCharts!$A47+$A$11,$B$28,1,1) -> 13.95 | E47: =OFFSET(VIXinputData!D$10,CalculationsAndCharts!$A47+$A$11,$B$28,1,1) -> 14.08 | F47: =OFFSET(VIXinputData!E$10,CalculationsAndCharts!$A47+$A$11,$B$28,1,1) -> 13.61 | G47: =OFFSET(VIXinputData!F$10,CalculationsAndCharts!$A47+$A$11,$B$28,1,1) -> 13.88 | H47: 13.61 | I47: 15.7464 | J47: 0 | K47: 1 | L47: 2 | M47: 10 | N47: 0 | O47: 0 | P47: 1 | Q47: 0 | R47: 0 | S47: 0 | T47: 0 | U47: 0 | V47: =IF(A47>$A$8,"",MATCH(B47,OFFSET(Data4SymbolToTrade!$B$10,1,0,Data4SymbolToTrade!$B$7,1),0)) -> 16 | W47: =IF(A47>$A$8,"",OFFSET(Data4SymbolToTrade!$B$10,CalculationsAndCharts!$V47,0,1,1)) -> 2012-09-19 | X47: =IF(A47>$A$8,"",OFFSET(Data4SymbolToTrade!$C$10,CalculationsAndCharts!$V47,$B$28,1,1)) -> 75.48 | Y47: 0 | Z47: 0 | AA47: 0 | AB47: =IF(A47>$V$22,"",IF(Q47=1,INT(AH48*$V$6/AC47),IF(R48=1,0,AB48))) -> 678 | AC47: =IF(A47>$V$22,"",IF(Q47=1,$X47,0)) -> 0 | AD47: =IF(A47>$V$22,"",IF(R47=1,$X47,0)) -> 0 | AE47: =IF(A47>$V$22,"",IF(Q47=1,AB47*AC47,IF(R48=1,0,AE48))) -> 45087 | AF47: =IF(A47>$V$22,"",IF(R47=1,AB47*AD47,0)) -> 0 | AG47: =IF(A47>$V$22,0,IF(R47=1,AF47-AE47,0)) -> 0 | AH47: =IF(A47>$V$22,0,IF(A47=$V$22,$V$5,AH48-IF(Q47=1,AE47,0)+IF(R47=1,AF47,0))) -> 1933.86 | AI47: =IF(A47>$V$22,0,IF(R47=1,0,AB47*X47)) -> 51175.44 | AJ47: 53109.3
A48: 17 | B48: =OFFSET(VIXinputData!B$10,CalculationsAndCharts!$A48+$A$11,0,1,1) -> 2012-09-18 | C48: =OFFSET(VIXinputData!G$10,CalculationsAndCharts!$A48+$A$11,0,1,1) -> 0 | D48: =OFFSET(VIXinputData!C$10,CalculationsAndCharts!$A48+$A$11,$B$28,1,1) -> 14.51 | E48: =OFFSET(VIXinputData!D$10,CalculationsAndCharts!$A48+$A$11,$B$28,1,1) -> 14.88 | F48: =OFFSET(VIXinputData!E$10,CalculationsAndCharts!$A48+$A$11,$B$28,1,1) -> 14.17 | G48: =OFFSET(VIXinputData!F$10,CalculationsAndCharts!$A48+$A$11,$B$28,1,1) -> 14.18 | H48: 14.17 | I48: 15.82 | J48: 0 | K48: 1 | L48: 3 | M48: 9 | N48: 0 | O48: 0 | P48: 1 | Q48: 0 | R48: 0 | S48: 0 | T48: 0 | U48: 0 | V48: =IF(A48>$A$8,"",MATCH(B48,OFFSET(Data4SymbolToTrade!$B$10,1,0,Data4SymbolToTrade!$B$7,1),0)) -> 17 | W48: =IF(A48>$A$8,"",OFFSET(Data4SymbolToTrade!$B$10,CalculationsAndCharts!$V48,0,1,1)) -> 2012-09-18 | X48: =IF(A48>$A$8,"",OFFSET(Data4SymbolToTrade!$C$10,CalculationsAndCharts!$V48,$B$28,1,1)) -> 74.74 | Y48: 0 | Z48: 0 | AA48: 0 | AB48: =IF(A48>$V$22,"",IF(Q48=1,INT(AH49*$V$6/AC48),IF(R49=1,0,AB49))) -> 678 | AC48: =IF(A48>$V$22,"",IF(Q48=1,$X48,0)) -> 0 | AD48: =IF(A48>$V$22,"",IF(R48=1,$X48,0)) -> 0 | AE48: =IF(A48>$V$22,"",IF(Q48=1,AB48*AC48,IF(R49=1,0,AE49))) -> 45087 | AF48: =IF(A48>$V$22,"",IF(R48=1,AB48*AD48,0)) -> 0 | AG48: =IF(A48>$V$22,0,IF(R48=1,AF48-AE48,0)) -> 0 | AH48: =IF(A48>$V$22,0,IF(A48=$V$22,$V$5,AH49-IF(Q48=1,AE48,0)+IF(R48=1,AF48,0))) -> 1933.86 | AI48: =IF(A48>$V$22,0,IF(R48=1,0,AB48*X48)) -> 50673.72 | AJ48: 52607.58
A49: 18 | B49: =OFFSET(VIXinputData!B$10,CalculationsAndCharts!$A49+$A$11,0,1,1) -> 2012-09-17 | C49: =OFFSET(VIXinputData!G$10,CalculationsAndCharts!$A49+$A$11,0,1,1) -> 0 | D49: =OFFSET(VIXinputData!C$10,CalculationsAndCharts!$A49+$A$11,$B$28,1,1) -> 14.67 | E49: =OFFSET(VIXinputData!D$10,CalculationsAndCharts!$A49+$A$11,$B$28,1,1) -> 14.92 | F49: =OFFSET(VIXinputData!E$10,CalculationsAndCharts!$A49+$A$11,$B$28,1,1) -> 14.54 | G49: =OFFSET(VIXinputData!F$10,CalculationsAndCharts!$A49+$A$11,$B$28,1,1) -> 14.59 | H49: 14.54 | I49: 15.8912 | J49: 0 | K49: 1 | L49: 4 | M49: 8 | N49: 0 | O49: 0 | P49: 1 | Q49: 0 | R49: 0 | S49: 0 | T49: 0 | U49: 0 | V49: =IF(A49>$A$8,"",MATCH(B49,OFFSET(Data4SymbolToTrade!$B$10,1,0,Data4SymbolToTrade!$B$7,1),0)) -> 18 | W49: =IF(A49>$A$8,"",OFFSET(Data4SymbolToTrade!$B$10,CalculationsAndCharts!$V49,0,1,1)) -> 2012-09-17 | X49: =IF(A49>$A$8,"",OFFSET(Data4SymbolToTrade!$C$10,CalculationsAndCharts!$V49,$B$28,1,1)) -> 75.19 | Y49: 0 | Z49: 0 | AA49: 0 | AB49: =IF(A49>$V$22,"",IF(Q49=1,INT(AH50*$V$6/AC49),IF(R50=1,0,AB50))) -> 678 | AC49: =IF(A49>$V$22,"",IF(Q49=1,$X49,0)) -> 0 | AD49: =IF(A49>$V$22,"",IF(R49=1,$X49,0)) -> 0 | AE49: =IF(A49>$V$22,"",IF(Q49=1,AB49*AC49,IF(R50=1,0,AE50))) -> 45087 | AF49: =IF(A49>$V$22,"",IF(R49=1,AB49*AD49,0)) -> 0 | AG49: =IF(A49>$V$22,0,IF(R49=1,AF49-AE49,0)) -> 0 | AH49: =IF(A49>$V$22,0,IF(A49=$V$22,$V$5,AH50-IF(Q49=1,AE49,0)+IF(R49=1,AF49,0))) -> 1933.86 | AI49: =IF(A49>$V$22,0,IF(R49=1,0,AB49*X49)) -> 50978.82 | AJ49: 52912.68
A50: 19 | B50: =OFFSET(VIXinputData!B$10,CalculationsAndCharts!$A50+$A$11,0,1,1) -> 2012-09-14 | C50: =OFFSET(VIXinputData!G$10,CalculationsAndCharts!$A50+$A$11,0,1,1) -> 0 | D50: =OFFSET(VIXinputData!C$10,CalculationsAndCharts!$A50+$A$11,$B$28,1,1) -> 13.82 | E50: =OFFSET(VIXinputData!D$10,CalculationsAndCharts!$A50+$A$11,$B$28,1,1) -> 14.71 | F50: =OFFSET(VIXinputData!E$10,CalculationsAndCharts!$A50+$A$11,$B$28,1,1) -> 13.51 | G50: =OFFSET(VIXinputData!F$10,CalculationsAndCharts!$A50+$A$11,$B$28,1,1) -> 14.51 | H50: 13.51 | I50: 15.9394 | J50: 0 | K50: 1 | L50: 5 | M50: 7 | N50: 0 | O50: 0 | P50: 1 | Q50: 0 | R50: 0 | S50: 0 | T50: 0 | U50: 0 | V50: =IF(A50>$A$8,"",MATCH(B50,OFFSET(Data4SymbolToTrade!$B$10,1,0,Data4SymbolToTrade!$B$7,1),0)) -> 19 | W50: =IF(A50>$A$8,"",OFFSET(Data4SymbolToTrade!$B$10,CalculationsAndCharts!$V50,0,1,1)) -> 2012-09-14 | X50: =IF(A50>$A$8,"",OFFSET(Data4SymbolToTrade!$C$10,CalculationsAndCharts!$V50,$B$28,1,1)) -> 75.26 | Y50: 0 | Z50: 0 | AA50: 0 | AB50: =IF(A50>$V$22,"",IF(Q50=1,INT(AH51*$V$6/AC50),IF(R51=1,0,AB51))) -> 678 | AC50: =IF(A50>$V$22,"",IF(Q50=1,$X50,0)) -> 0 | AD50: =IF(A50>$V$22,"",IF(R50=1,$X50,0)) -> 0 | AE50: =IF(A50>$V$22,"",IF(Q50=1,AB50*AC50,IF(R51=1,0,AE51))) -> 45087 | AF50: =IF(A50>$V$22,"",IF(R50=1,AB50*AD50,0)) -> 0 | AG50: =IF(A50>$V$22,0,IF(R50=1,AF50-AE50,0)) -> 0 | AH50: =IF(A50>$V$22,0,IF(A50=$V$22,$V$5,AH51-IF(Q50=1,AE50,0)+IF(R50=1,AF50,0))) -> 1933.86 | AI50: =IF(A50>$V$22,0,IF(R50=1,0,AB50*X50)) -> 51026.28 | AJ50: 52960.14
A51: 20 | B51: =OFFSET(VIXinputData!B$10,CalculationsAndCharts!$A51+$A$11,0,1,1) -> 2012-09-13 | C51: =OFFSET(VIXinputData!G$10,CalculationsAndCharts!$A51+$A$11,0,1,1) -> 0 | D51: =OFFSET(VIXinputData!C$10,CalculationsAndCharts!$A51+$A$11,$B$28,1,1) -> 15.6 | E51: =OFFSET(VIXinputData!D$10,CalculationsAndCharts!$A51+$A$11,$B$28,1,1) -> 16.54 | F51: =OFFSET(VIXinputData!E$10,CalculationsAndCharts!$A51+$A$11,$B$28,1,1) -> 13.91 | G51: =OFFSET(VIXinputData!F$10,CalculationsAndCharts!$A51+$A$11,$B$28,1,1) -> 14.05 | H51: 13.91 | I51: 16.0128 | J51: 0 | K51: 1 | L51: 5 | M51: 7 | N51: 0 | O51: 0 | P51: 1 | Q51: 0 | R51: 0 | S51: 0 | T51: 0 | U51: 0 | V51: =IF(A51>$A$8,"",MATCH(B51,OFFSET(Data4SymbolToTrade!$B$10,1,0,Data4SymbolToTrade!$B$7,1),0)) -> 20 | W51: =IF(A51>$A$8,"",OFFSET(Data4SymbolToTrade!$B$10,CalculationsAndCharts!$V51,0,1,1)) -> 2012-09-13 | X51: =IF(A51>$A$8,"",OFFSET(Data4SymbolToTrade!$C$10,CalculationsAndCharts!$V51,$B$28,1,1)) -> 72.61 | Y51: 0 | Z51: 0 | AA51: 0 | AB51: =IF(A51>$V$22,"",IF(Q51=1,INT(AH52*$V$6/AC51),IF(R52=1,0,AB52))) -> 678 | AC51: =IF(A51>$V$22,"",IF(Q51=1,$X51,0)) -> 0 | AD51: =IF(A51>$V$22,"",IF(R51=1,$X51,0)) -> 0 | AE51: =IF(A51>$V$22,"",IF(Q51=1,AB51*AC51,IF(R52=1,0,AE52))) -> 45087 | AF51: =IF(A51>$V$22,"",IF(R51=1,AB51*AD51,0)) -> 0 | AG51: =IF(A51>$V$22,0,IF(R51=1,AF51-AE51,0)) -> 0 | AH51: =IF(A51>$V$22,0,IF(A51=$V$22,$V$5,AH52-IF(Q51=1,AE51,0)+IF(R51=1,AF51,0))) -> 1933.86 | AI51: =IF(A51>$V$22,0,IF(R51=1,0,AB51*X51)) -> 49229.58 | AJ51: 51163.44
A52: 21 | B52: =OFFSET(VIXinputData!B$10,CalculationsAndCharts!$A52+$A$11,0,1,1) -> 2012-09-12 | C52: =OFFSET(VIXinputData!G$10,CalculationsAndCharts!$A52+$A$11,0,1,1) -> 0 | D52: =OFFSET(VIXinputData!C$10,CalculationsAndCharts!$A52+$A$11,$B$28,1,1) -> 15.59 | E52: =OFFSET(VIXinputData!D$10,CalculationsAndCharts!$A52+$A$11,$B$28,1,1) -> 16.31 | F52: =OFFSET(VIXinputData!E$10,CalculationsAndCharts!$A52+$A$11,$B$28,1,1) -> 15.43 | G52: =OFFSET(VIXinputData!F$10,CalculationsAndCharts!$A52+$A$11,$B$28,1,1) -> 15.8 | H52: 15.43 | I52: 16.06 | J52: 0 | K52: 1 | L52: 5 | M52: 7 | N52: 0 | O52: 0 | P52: 1 | Q52: 0 | R52: 0 | S52: 0 | T52: 0 | U52: 0 | V52: =IF(A52>$A$8,"",MATCH(B52,OFFSET(Data4SymbolToTrade!$B$10,1,0,Data4SymbolToTrade!$B$7,1),0)) -> 21 | W52: =IF(A52>$A$8,"",OFFSET(Data4SymbolToTrade!$B$10,CalculationsAndCharts!$V52,0,1,1)) -> 2012-09-12 | X52: =IF(A52>$A$8,"",OFFSET(Data4SymbolToTrade!$C$10,CalculationsAndCharts!$V52,$B$28,1,1)) -> 72.89 | Y52: 0 | Z52: 0 | AA52: 0 | AB52: =IF(A52>$V$22,"",IF(Q52=1,INT(AH53*$V$6/AC52),IF(R53=1,0,AB53))) -> 678 | AC52: =IF(A52>$V$22,"",IF(Q52=1,$X52,0)) -> 0 | AD52: =IF(A52>$V$22,"",IF(R52=1,$X52,0)) -> 0 | AE52: =IF(A52>$V$22,"",IF(Q52=1,AB52*AC52,IF(R53=1,0,AE53))) -> 45087 | AF52: =IF(A52>$V$22,"",IF(R52=1,AB52*AD52,0)) -> 0 | AG52: =IF(A52>$V$22,0,IF(R52=1,AF52-AE52,0)) -> 0 | AH52: =IF(A52>$V$22,0,IF(A52=$V$22,$V$5,AH53-IF(Q52=1,AE52,0)+IF(R52=1,AF52,0))) -> 1933.86 | AI52: =IF(A52>$V$22,0,IF(R52=1,0,AB52*X52)) -> 49419.42 | AJ52: 51353.28
A53: 22 | B53: =OFFSET(VIXinputData!B$10,CalculationsAndCharts!$A53+$A$11,0,1,1) -> 2012-09-11 | C53: =OFFSET(VIXinputData!G$10,CalculationsAndCharts!$A53+$A$11,0,1,1) -> 0 | D53: =OFFSET(VIXinputData!C$10,CalculationsAndCharts!$A53+$A$11,$B$28,1,1) -> 16.11 | E53: =OFFSET(VIXinputData!D$10,CalculationsAndCharts!$A53+$A$11,$B$28,1,1) -> 16.41 | F53: =OFFSET(VIXinputData!E$10,CalculationsAndCharts!$A53+$A$11,$B$28,1,1) -> 15.46 | G53: =OFFSET(VIXinputData!F$10,CalculationsAndCharts!$A53+$A$11,$B$28,1,1) -> 16.41 | H53: 15.46 | I53: 16.0846 | J53: 0 | K53: 1 | L53: 5 | M53: 7 | N53: 0 | O53: 0 | P53: 1 | Q53: 0 | R53: 0 | S53: 0 | T53: 0 | U53: 0 | V53: =IF(A53>$A$8,"",MATCH(B53,OFFSET(Data4SymbolToTrade!$B$10,1,0,Data4SymbolToTrade!$B$7,1),0)) -> 22 | W53: =IF(A53>$A$8,"",OFFSET(Data4SymbolToTrade!$B$10,CalculationsAndCharts!$V53,0,1,1)) -> 2012-09-11 | X53: =IF(A53>$A$8,"",OFFSET(Data4SymbolToTrade!$C$10,CalculationsAndCharts!$V53,$B$28,1,1)) -> 71.94 | Y53: 0 | Z53: 0 | AA53: 0 | AB53: =IF(A53>$V$22,"",IF(Q53=1,INT(AH54*$V$6/AC53),IF(R54=1,0,AB54))) -> 678 | AC53: =IF(A53>$V$22,"",IF(Q53=1,$X53,0)) -> 0 | AD53: =IF(A53>$V$22,"",IF(R53=1,$X53,0)) -> 0 | AE53: =IF(A53>$V$22,"",IF(Q53=1,AB53*AC53,IF(R54=1,0,AE54))) -> 45087 | AF53: =IF(A53>$V$22,"",IF(R53=1,AB53*AD53,0)) -> 0 | AG53: =IF(A53>$V$22,0,IF(R53=1,AF53-AE53,0)) -> 0 | AH53: =IF(A53>$V$22,0,IF(A53=$V$22,$V$5,AH54-IF(Q53=1,AE53,0)+IF(R53=1,AF53,0))) -> 1933.86 | AI53: =IF(A53>$V$22,0,IF(R53=1,0,AB53*X53)) -> 48775.32 | AJ53: 50709.18
A54: 23 | B54: =OFFSET(VIXinputData!B$10,CalculationsAndCharts!$A54+$A$11,0,1,1) -> 2012-09-10 | C54: =OFFSET(VIXinputData!G$10,CalculationsAndCharts!$A54+$A$11,0,1,1) -> 0 | D54: =OFFSET(VIXinputData!C$10,CalculationsAndCharts!$A54+$A$11,$B$28,1,1) -> 14.27 | E54: =OFFSET(VIXinputData!D$10,CalculationsAndCharts!$A54+$A$11,$B$28,1,1) -> 16.28 | F54: =OFFSET(VIXinputData!E$10,CalculationsAndCharts!$A54+$A$11,$B$28,1,1) -> 13.97 | G54: =OFFSET(VIXinputData!F$10,CalculationsAndCharts!$A54+$A$11,$B$28,1,1) -> 16.28 | H54: 13.97 | I54: 16.1128 | J54: 0 | K54: 1 | L54: 5 | M54: 7 | N54: 0 | O54: 0 | P54: 1 | Q54: 0 | R54: 0 | S54: 0 | T54: 0 | U54: 0 | V54: =IF(A54>$A$8,"",MATCH(B54,OFFSET(Data4SymbolToTrade!$B$10,1,0,Data4SymbolToTrade!$B$7,1),0)) -> 23 | W54: =IF(A54>$A$8,"",OFFSET(Data4SymbolToTrade!$B$10,CalculationsAndCharts!$V54,0,1,1)) -> 2012-09-10 | X54: =IF(A54>$A$8,"",OFFSET(Data4SymbolToTrade!$C$10,CalculationsAndCharts!$V54,$B$28,1,1)) -> 72.14 | Y54: 0 | Z54: 0 | AA54: 0 | AB54: =IF(A54>$V$22,"",IF(Q54=1,INT(AH55*$V$6/AC54),IF(R55=1,0,AB55))) -> 678 | AC54: =IF(A54>$V$22,"",IF(Q54=1,$X54,0)) -> 0 | AD54: =IF(A54>$V$22,"",IF(R54=1,$X54,0)) -> 0 | AE54: =IF(A54>$V$22,"",IF(Q54=1,AB54*AC54,IF(R55=1,0,AE55))) -> 45087 | AF54: =IF(A54>$V$22,"",IF(R54=1,AB54*AD54,0)) -> 0 | AG54: =IF(A54>$V$22,0,IF(R54=1,AF54-AE54,0)) -> 0 | AH54: =IF(A54>$V$22,0,IF(A54=$V$22,$V$5,AH55-IF(Q54=1,AE54,0)+IF(R54=1,AF54,0))) -> 1933.86 | AI54: =IF(A54>$V$22,0,IF(R54=1,0,AB54*X54)) -> 48910.92 | AJ54: 50844.78
A55: 24 | B55: =OFFSET(VIXinputData!B$10,CalculationsAndCharts!$A55+$A$11,0,1,1) -> 2012-09-07 | C55: =OFFSET(VIXinputData!G$10,CalculationsAndCharts!$A55+$A$11,0,1,1) -> 0 | D55: =OFFSET(VIXinputData!C$10,CalculationsAndCharts!$A55+$A$11,$B$28,1,1) -> 15.6 | E55: =OFFSET(VIXinputData!D$10,CalculationsAndCharts!$A55+$A$11,$B$28,1,1) -> 15.6 | F55: =OFFSET(VIXinputData!E$10,CalculationsAndCharts!$A55+$A$11,$B$28,1,1) -> 14.33 | G55: =OFFSET(VIXinputData!F$10,CalculationsAndCharts!$A55+$A$11,$B$28,1,1) -> 14.38 | H55: 14.33 | I55: 16.2254 | J55: 0 | K55: 1 | L55: 5 | M55: 7 | N55: 0 | O55: 0 | P55: 1 | Q55: 0 | R55: 0 | S55: 0 | T55: 0 | U55: 0 | V55: =IF(A55>$A$8,"",MATCH(B55,OFFSET(Data4SymbolToTrade!$B$10,1,0,Data4SymbolToTrade!$B$7,1),0)) -> 24 | W55: =IF(A55>$A$8,"",OFFSET(Data4SymbolToTrade!$B$10,CalculationsAndCharts!$V55,0,1,1)) -> 2012-09-07 | X55: =IF(A55>$A$8,"",OFFSET(Data4SymbolToTrade!$C$10,CalculationsAndCharts!$V55,$B$28,1,1)) -> 72.25 | Y55: 0 | Z55: 0 | AA55: 0 | AB55: =IF(A55>$V$22,"",IF(Q55=1,INT(AH56*$V$6/AC55),IF(R56=1,0,AB56))) -> 678 | AC55: =IF(A55>$V$22,"",IF(Q55=1,$X55,0)) -> 0 | AD55: =IF(A55>$V$22,"",IF(R55=1,$X55,0)) -> 0 | AE55: =IF(A55>$V$22,"",IF(Q55=1,AB55*AC55,IF(R56=1,0,AE56))) -> 45087 | AF55: =IF(A55>$V$22,"",IF(R55=1,AB55*AD55,0)) -> 0 | AG55: =IF(A55>$V$22,0,IF(R55=1,AF55-AE55,0)) -> 0 | AH55: =IF(A55>$V$22,0,IF(A55=$V$22,$V$5,AH56-IF(Q55=1,AE55,0)+IF(R55=1,AF55,0))) -> 1933.86 | AI55: =IF(A55>$V$22,0,IF(R55=1,0,AB55*X55)) -> 48985.5 | AJ55: 50919.36
A56: 25 | B56: =OFFSET(VIXinputData!B$10,CalculationsAndCharts!$A56+$A$11,0,1,1) -> 2012-09-06 | C56: =OFFSET(VIXinputData!G$10,CalculationsAndCharts!$A56+$A$11,0,1,1) -> 0 | D56: =OFFSET(VIXinputData!C$10,CalculationsAndCharts!$A56+$A$11,$B$28,1,1) -> 17.3 | E56: =OFFSET(VIXinputData!D$10,CalculationsAndCharts!$A56+$A$11,$B$28,1,1) -> 17.3 | F56: =OFFSET(VIXinputData!E$10,CalculationsAndCharts!$A56+$A$11,$B$28,1,1) -> 15.63 | G56: =OFFSET(VIXinputData!F$10,CalculationsAndCharts!$A56+$A$11,$B$28,1,1) -> 15.63 | H56: 15.63 | I56: 16.3264 | J56: 0 | K56: 1 | L56: 5 | M56: 7 | N56: 0 | O56: 0 | P56: 1 | Q56: 0 | R56: 0 | S56: 0 | T56: 0 | U56: 0 | V56: =IF(A56>$A$8,"",MATCH(B56,OFFSET(Data4SymbolToTrade!$B$10,1,0,Data4SymbolToTrade!$B$7,1),0)) -> 25 | W56: =IF(A56>$A$8,"",OFFSET(Data4SymbolToTrade!$B$10,CalculationsAndCharts!$V56,0,1,1)) -> 2012-09-06 | X56: =IF(A56>$A$8,"",OFFSET(Data4SymbolToTrade!$C$10,CalculationsAndCharts!$V56,$B$28,1,1)) -> 70.43 | Y56: 0 | Z56: 0 | AA56: 0 | AB56: =IF(A56>$V$22,"",IF(Q56=1,INT(AH57*$V$6/AC56),IF(R57=1,0,AB57))) -> 678 | AC56: =IF(A56>$V$22,"",IF(Q56=1,$X56,0)) -> 0 | AD56: =IF(A56>$V$22,"",IF(R56=1,$X56,0)) -> 0 | AE56: =IF(A56>$V$22,"",IF(Q56=1,AB56*AC56,IF(R57=1,0,AE57))) -> 45087 | AF56: =IF(A56>$V$22,"",IF(R56=1,AB56*AD56,0)) -> 0 | AG56: =IF(A56>$V$22,0,IF(R56=1,AF56-AE56,0)) -> 0 | AH56: =IF(A56>$V$22,0,IF(A56=$V$22,$V$5,AH57-IF(Q56=1,AE56,0)+IF(R56=1,AF56,0))) -> 1933.86 | AI56: =IF(A56>$V$22,0,IF(R56=1,0,AB56*X56)) -> 47751.54 | AJ56: 49685.4
A57: 26 | B57: =OFFSET(VIXinputData!B$10,CalculationsAndCharts!$A57+$A$11,0,1,1) -> 2012-09-05 | C57: =OFFSET(VIXinputData!G$10,CalculationsAndCharts!$A57+$A$11,0,1,1) -> 0 | D57: =OFFSET(VIXinputData!C$10,CalculationsAndCharts!$A57+$A$11,$B$28,1,1) -> 17.38 | E57: =OFFSET(VIXinputData!D$10,CalculationsAndCharts!$A57+$A$11,$B$28,1,1) -> 17.84 | F57: =OFFSET(VIXinputData!E$10,CalculationsAndCharts!$A57+$A$11,$B$28,1,1) -> 16.99 | G57: =OFFSET(VIXinputData!F$10,CalculationsAndCharts!$A57+$A$11,$B$28,1,1) -> 17.74 | H57: 16.99 | I57: 16.4022 | J57: 1 | K57: 0 | L57: 5 | M57: 7 | N57: 0 | O57: 0 | P57: 1 | Q57: 0 | R57: 0 | S57: 0 | T57: 0 | U57: 0 | V57: =IF(A57>$A$8,"",MATCH(B57,OFFSET(Data4SymbolToTrade!$B$10,1,0,Data4SymbolToTrade!$B$7,1),0)) -> 26 | W57: =IF(A57>$A$8,"",OFFSET(Data4SymbolToTrade!$B$10,CalculationsAndCharts!$V57,0,1,1)) -> 2012-09-05 | X57: =IF(A57>$A$8,"",OFFSET(Data4SymbolToTrade!$C$10,CalculationsAndCharts!$V57,$B$28,1,1)) -> 69.57 | Y57: 0 | Z57: 0 | AA57: 0 | AB57: =IF(A57>$V$22,"",IF(Q57=1,INT(AH58*$V$6/AC57),IF(R58=1,0,AB58))) -> 678 | AC57: =IF(A57>$V$22,"",IF(Q57=1,$X57,0)) -> 0 | AD57: =IF(A57>$V$22,"",IF(R57=1,$X57,0)) -> 0 | AE57: =IF(A57>$V$22,"",IF(Q57=1,AB57*AC57,IF(R58=1,0,AE58))) -> 45087 | AF57: =IF(A57>$V$22,"",IF(R57=1,AB57*AD57,0)) -> 0 | AG57: =IF(A57>$V$22,0,IF(R57=1,AF57-AE57,0)) -> 0 | AH57: =IF(A57>$V$22,0,IF(A57=$V$22,$V$5,AH58-IF(Q57=1,AE57,0)+IF(R57=1,AF57,0))) -> 1933.86 | AI57: =IF(A57>$V$22,0,IF(R57=1,0,AB57*X57)) -> 47168.46 | AJ57: 49102.32
A58: 27 | B58: =OFFSET(VIXinputData!B$10,CalculationsAndCharts!$A58+$A$11,0,1,1) -> 2012-09-04 | C58: =OFFSET(VIXinputData!G$10,CalculationsAndCharts!$A58+$A$11,0,1,1) -> 0 | D58: =OFFSET(VIXinputData!C$10,CalculationsAndCharts!$A58+$A$11,$B$28,1,1) -> 18.65 | E58: =OFFSET(VIXinputData!D$10,CalculationsAndCharts!$A58+$A$11,$B$28,1,1) -> 18.96 | F58: =OFFSET(VIXinputData!E$10,CalculationsAndCharts!$A58+$A$11,$B$28,1,1) -> 17.85 | G58: =OFFSET(VIXinputData!F$10,CalculationsAndCharts!$A58+$A$11,$B$28,1,1) -> 17.98 | H58: 17.85 | I58: 16.4602 | J58: 1 | K58: 0 | L58: 4 | M58: 8 | N58: 0 | O58: 0 | P58: 1 | Q58: 0 | R58: 0 | S58: 0 | T58: 0 | U58: 0 | V58: =IF(A58>$A$8,"",MATCH(B58,OFFSET(Data4SymbolToTrade!$B$10,1,0,Data4SymbolToTrade!$B$7,1),0)) -> 27 | W58: =IF(A58>$A$8,"",OFFSET(Data4SymbolToTrade!$B$10,CalculationsAndCharts!$V58,0,1,1)) -> 2012-09-04 | X58: =IF(A58>$A$8,"",OFFSET(Data4SymbolToTrade!$C$10,CalculationsAndCharts!$V58,$B$28,1,1)) -> 69.97 | Y58: 0 | Z58: 0 | AA58: 0 | AB58: =IF(A58>$V$22,"",IF(Q58=1,INT(AH59*$V$6/AC58),IF(R59=1,0,AB59))) -> 678 | AC58: =IF(A58>$V$22,"",IF(Q58=1,$X58,0)) -> 0 | AD58: =IF(A58>$V$22,"",IF(R58=1,$X58,0)) -> 0 | AE58: =IF(A58>$V$22,"",IF(Q58=1,AB58*AC58,IF(R59=1,0,AE59))) -> 45087 | AF58: =IF(A58>$V$22,"",IF(R58=1,AB58*AD58,0)) -> 0 | AG58: =IF(A58>$V$22,0,IF(R58=1,AF58-AE58,0)) -> 0 | AH58: =IF(A58>$V$22,0,IF(A58=$V$22,$V$5,AH59-IF(Q58=1,AE58,0)+IF(R58=1,AF58,0))) -> 1933.86 | AI58: =IF(A58>$V$22,0,IF(R58=1,0,AB58*X58)) -> 47439.66 | AJ58: 49373.52
A59: 28 | B59: =OFFSET(VIXinputData!B$10,CalculationsAndCharts!$A59+$A$11,0,1,1) -> 2012-08-31 | C59: =OFFSET(VIXinputData!G$10,CalculationsAndCharts!$A59+$A$11,0,1,1) -> 0 | D59: =OFFSET(VIXinputData!C$10,CalculationsAndCharts!$A59+$A$11,$B$28,1,1) -> 17.25 | E59: =OFFSET(VIXinputData!D$10,CalculationsAndCharts!$A59+$A$11,$B$28,1,1) -> 18.04 | F59: =OFFSET(VIXinputData!E$10,CalculationsAndCharts!$A59+$A$11,$B$28,1,1) -> 16.56 | G59: =OFFSET(VIXinputData!F$10,CalculationsAndCharts!$A59+$A$11,$B$28,1,1) -> 17.47 | H59: 16.56 | I59: 16.4612 | J59: 1 | K59: 0 | L59: 3 | M59: 9 | N59: 0 | O59: 0 | P59: 1 | Q59: 0 | R59: 0 | S59: 0 | T59: 0 | U59: 0 | V59: =IF(A59>$A$8,"",MATCH(B59,OFFSET(Data4SymbolToTrade!$B$10,1,0,Data4SymbolToTrade!$B$7,1),0)) -> 28 | W59: =IF(A59>$A$8,"",OFFSET(Data4SymbolToTrade!$B$10,CalculationsAndCharts!$V59,0,1,1)) -> 2012-08-31 | X59: =IF(A59>$A$8,"",OFFSET(Data4SymbolToTrade!$C$10,CalculationsAndCharts!$V59,$B$28,1,1)) -> 69.86 | Y59: 0 | Z59: 0 | AA59: 0 | AB59: =IF(A59>$V$22,"",IF(Q59=1,INT(AH60*$V$6/AC59),IF(R60=1,0,AB60))) -> 678 | AC59: =IF(A59>$V$22,"",IF(Q59=1,$X59,0)) -> 0 | AD59: =IF(A59>$V$22,"",IF(R59=1,$X59,0)) -> 0 | AE59: =IF(A59>$V$22,"",IF(Q59=1,AB59*AC59,IF(R60=1,0,AE60))) -> 45087 | AF59: =IF(A59>$V$22,"",IF(R59=1,AB59*AD59,0)) -> 0 | AG59: =IF(A59>$V$22,0,IF(R59=1,AF59-AE59,0)) -> 0 | AH59: =IF(A59>$V$22,0,IF(A59=$V$22,$V$5,AH60-IF(Q59=1,AE59,0)+IF(R59=1,AF59,0))) -> 1933.86 | AI59: =IF(A59>$V$22,0,IF(R59=1,0,AB59*X59)) -> 47365.08 | AJ59: 49298.94
A60: 29 | B60: =OFFSET(VIXinputData!B$10,CalculationsAndCharts!$A60+$A$11,0,1,1) -> 2012-08-30 | C60: =OFFSET(VIXinputData!G$10,CalculationsAndCharts!$A60+$A$11,0,1,1) -> 0 | D60: =OFFSET(VIXinputData!C$10,CalculationsAndCharts!$A60+$A$11,$B$28,1,1) -> 17.48 | E60: =OFFSET(VIXinputData!D$10,CalculationsAndCharts!$A60+$A$11,$B$28,1,1) -> 18.05 | F60: =OFFSET(VIXinputData!E$10,CalculationsAndCharts!$A60+$A$11,$B$28,1,1) -> 17.44 | G60: =OFFSET(VIXinputData!F$10,CalculationsAndCharts!$A60+$A$11,$B$28,1,1) -> 17.83 | H60: 17.44 | I60: 16.4654 | J60: 1 | K60: 0 | L60: 2 | M60: 10 | N60: 1 | O60: 0 | P60: 1 | Q60: 0 | R60: 0 | S60: 0 | T60: 0 | U60: 0 | V60: =IF(A60>$A$8,"",MATCH(B60,OFFSET(Data4SymbolToTrade!$B$10,1,0,Data4SymbolToTrade!$B$7,1),0)) -> 29 | W60: =IF(A60>$A$8,"",OFFSET(Data4SymbolToTrade!$B$10,CalculationsAndCharts!$V60,0,1,1)) -> 2012-08-30 | X60: =IF(A60>$A$8,"",OFFSET(Data4SymbolToTrade!$C$10,CalculationsAndCharts!$V60,$B$28,1,1)) -> 69.61 | Y60: 0 | Z60: 0 | AA60: 0 | AB60: =IF(A60>$V$22,"",IF(Q60=1,INT(AH61*$V$6/AC60),IF(R61=1,0,AB61))) -> 678 | AC60: =IF(A60>$V$22,"",IF(Q60=1,$X60,0)) -> 0 | AD60: =IF(A60>$V$22,"",IF(R60=1,$X60,0)) -> 0 | AE60: =IF(A60>$V$22,"",IF(Q60=1,AB60*AC60,IF(R61=1,0,AE61))) -> 45087 | AF60: =IF(A60>$V$22,"",IF(R60=1,AB60*AD60,0)) -> 0 | AG60: =IF(A60>$V$22,0,IF(R60=1,AF60-AE60,0)) -> 0 | AH60: =IF(A60>$V$22,0,IF(A60=$V$22,$V$5,AH61-IF(Q60=1,AE60,0)+IF(R60=1,AF60,0))) -> 1933.86 | AI60: =IF(A60>$V$22,0,IF(R60=1,0,AB60*X60)) -> 47195.58 | AJ60: 49129.44
A61: 30 | B61: =OFFSET(VIXinputData!B$10,CalculationsAndCharts!$A61+$A$11,0,1,1) -> 2012-08-29 | C61: =OFFSET(VIXinputData!G$10,CalculationsAndCharts!$A61+$A$11,0,1,1) -> 0 | D61: =OFFSET(VIXinputData!C$10,CalculationsAndCharts!$A61+$A$11,$B$28,1,1) -> 16.61 | E61: =OFFSET(VIXinputData!D$10,CalculationsAndCharts!$A61+$A$11,$B$28,1,1) -> 17.06 | F61: =OFFSET(VIXinputData!E$10,CalculationsAndCharts!$A61+$A$11,$B$28,1,1) -> 16.5 | G61: =OFFSET(VIXinputData!F$10,CalculationsAndCharts!$A61+$A$11,$B$28,1,1) -> 17.06 | H61: 16.5 | I61: 16.4584 | J61: 1 | K61: 0 | L61: 1 | M61: 11 | N61: 1 | O61: 0 | P61: 1 | Q61: 0 | R61: 0 | S61: 0 | T61: 0 | U61: 0 | V61: =IF(A61>$A$8,"",MATCH(B61,OFFSET(Data4SymbolToTrade!$B$10,1,0,Data4SymbolToTrade!$B$7,1),0)) -> 30 | W61: =IF(A61>$A$8,"",OFFSET(Data4SymbolToTrade!$B$10,CalculationsAndCharts!$V61,0,1,1)) -> 2012-08-29 | X61: =IF(A61>$A$8,"",OFFSET(Data4SymbolToTrade!$C$10,CalculationsAndCharts!$V61,$B$28,1,1)) -> 70.14 | Y61: 0 | Z61: 0 | AA61: 0 | AB61: =IF(A61>$V$22,"",IF(Q61=1,INT(AH62*$V$6/AC61),IF(R62=1,0,AB62))) -> 678 | AC61: =IF(A61>$V$22,"",IF(Q61=1,$X61,0)) -> 0 | AD61: =IF(A61>$V$22,"",IF(R61=1,$X61,0)) -> 0 | AE61: =IF(A61>$V$22,"",IF(Q61=1,AB61*AC61,IF(R62=1,0,AE62))) -> 45087 | AF61: =IF(A61>$V$22,"",IF(R61=1,AB61*AD61,0)) -> 0 | AG61: =IF(A61>$V$22,0,IF(R61=1,AF61-AE61,0)) -> 0 | AH61: =IF(A61>$V$22,0,IF(A61=$V$22,$V$5,AH62-IF(Q61=1,AE61,0)+IF(R61=1,AF61,0))) -> 1933.86 | AI61: =IF(A61>$V$22,0,IF(R61=1,0,AB61*X61)) -> 47554.92 | AJ61: 49488.78
A62: 31 | B62: =OFFSET(VIXinputData!B$10,CalculationsAndCharts!$A62+$A$11,0,1,1) -> 2012-08-28 | C62: =OFFSET(VIXinputData!G$10,CalculationsAndCharts!$A62+$A$11,0,1,1) -> 0 | D62: =OFFSET(VIXinputData!C$10,CalculationsAndCharts!$A62+$A$11,$B$28,1,1) -> 16.32 | E62: =OFFSET(VIXinputData!D$10,CalculationsAndCharts!$A62+$A$11,$B$28,1,1) -> 16.92 | F62: =OFFSET(VIXinputData!E$10,CalculationsAndCharts!$A62+$A$11,$B$28,1,1) -> 16.01 | G62: =OFFSET(VIXinputData!F$10,CalculationsAndCharts!$A62+$A$11,$B$28,1,1) -> 16.49 | H62: 16.01 | I62: 16.4756 | J62: 0 | K62: 1 | L62: 0 | M62: 12 | N62: 1 | O62: 0 | P62: 1 | Q62: 0 | R62: 0 | S62: 0 | T62: 0 | U62: 0 | V62: =IF(A62>$A$8,"",MATCH(B62,OFFSET(Data4SymbolToTrade!$B$10,1,0,Data4SymbolToTrade!$B$7,1),0)) -> 31 | W62: =IF(A62>$A$8,"",OFFSET(Data4SymbolToTrade!$B$10,CalculationsAndCharts!$V62,0,1,1)) -> 2012-08-28 | X62: =IF(A62>$A$8,"",OFFSET(Data4SymbolToTrade!$C$10,CalculationsAndCharts!$V62,$B$28,1,1)) -> 69.98 | Y62: 0 | Z62: 0 | AA62: 0 | AB62: =IF(A62>$V$22,"",IF(Q62=1,INT(AH63*$V$6/AC62),IF(R63=1,0,AB63))) -> 678 | AC62: =IF(A62>$V$22,"",IF(Q62=1,$X62,0)) -> 0 | AD62: =IF(A62>$V$22,"",IF(R62=1,$X62,0)) -> 0 | AE62: =IF(A62>$V$22,"",IF(Q62=1,AB62*AC62,IF(R63=1,0,AE63))) -> 45087 | AF62: =IF(A62>$V$22,"",IF(R62=1,AB62*AD62,0)) -> 0 | AG62: =IF(A62>$V$22,0,IF(R62=1,AF62-AE62,0)) -> 0 | AH62: =IF(A62>$V$22,0,IF(A62=$V$22,$V$5,AH63-IF(Q62=1,AE62,0)+IF(R62=1,AF62,0))) -> 1933.86 | AI62: =IF(A62>$V$22,0,IF(R62=1,0,AB62*X62)) -> 47446.44 | AJ62: 49380.3
A63: 32 | B63: =OFFSET(VIXinputData!B$10,CalculationsAndCharts!$A63+$A$11,0,1,1) -> 2012-08-27 | C63: =OFFSET(VIXinputData!G$10,CalculationsAndCharts!$A63+$A$11,0,1,1) -> 0 | D63: =OFFSET(VIXinputData!C$10,CalculationsAndCharts!$A63+$A$11,$B$28,1,1) -> 16.15 | E63: =OFFSET(VIXinputData!D$10,CalculationsAndCharts!$A63+$A$11,$B$28,1,1) -> 16.38 | F63: =OFFSET(VIXinputData!E$10,CalculationsAndCharts!$A63+$A$11,$B$28,1,1) -> 15.75 | G63: =OFFSET(VIXinputData!F$10,CalculationsAndCharts!$A63+$A$11,$B$28,1,1) -> 16.35 | H63: 15.75 | I63: 16.5202 | J63: 0 | K63: 1 | L63: 0 | M63: 12 | N63: 1 | O63: 0 | P63: 1 | Q63: 0 | R63: 0 | S63: 0 | T63: 0 | U63: 0 | V63: =IF(A63>$A$8,"",MATCH(B63,OFFSET(Data4SymbolToTrade!$B$10,1,0,Data4SymbolToTrade!$B$7,1),0)) -> 32 | W63: =IF(A63>$A$8,"",OFFSET(Data4SymbolToTrade!$B$10,CalculationsAndCharts!$V63,0,1,1)) -> 2012-08-27 | X63: =IF(A63>$A$8,"",OFFSET(Data4SymbolToTrade!$C$10,CalculationsAndCharts!$V63,$B$28,1,1)) -> 70.72 | Y63: 0 | Z63: 0 | AA63: 0 | AB63: =IF(A63>$V$22,"",IF(Q63=1,INT(AH64*$V$6/AC63),IF(R64=1,0,AB64))) -> 678 | AC63: =IF(A63>$V$22,"",IF(Q63=1,$X63,0)) -> 0 | AD63: =IF(A63>$V$22,"",IF(R63=1,$X63,0)) -> 0 | AE63: =IF(A63>$V$22,"",IF(Q63=1,AB63*AC63,IF(R64=1,0,AE64))) -> 45087 | AF63: =IF(A63>$V$22,"",IF(R63=1,AB63*AD63,0)) -> 0 | AG63: =IF(A63>$V$22,0,IF(R63=1,AF63-AE63,0)) -> 0 | AH63: =IF(A63>$V$22,0,IF(A63=$V$22,$V$5,AH64-IF(Q63=1,AE63,0)+IF(R63=1,AF63,0))) -> 1933.86 | AI63: =IF(A63>$V$22,0,IF(R63=1,0,AB63*X63)) -> 47948.16 | AJ63: 49882.02
A64: 33 | B64: =OFFSET(VIXinputData!B$10,CalculationsAndCharts!$A64+$A$11,0,1,1) -> 2012-08-24 | C64: =OFFSET(VIXinputData!G$10,CalculationsAndCharts!$A64+$A$11,0,1,1) -> 0 | D64: =OFFSET(VIXinputData!C$10,CalculationsAndCharts!$A64+$A$11,$B$28,1,1) -> 15.99 | E64: =OFFSET(VIXinputData!D$10,CalculationsAndCharts!$A64+$A$11,$B$28,1,1) -> 16 | F64: =OFFSET(VIXinputData!E$10,CalculationsAndCharts!$A64+$A$11,$B$28,1,1) -> 15.18 | G64: =OFFSET(VIXinputData!F$10,CalculationsAndCharts!$A64+$A$11,$B$28,1,1) -> 15.18 | H64: 15.18 | I64: 16.6174 | J64: 0 | K64: 1 | L64: 0 | M64: 12 | N64: 1 | O64: 0 | P64: 1 | Q64: 0 | R64: 0 | S64: 0 | T64: 0 | U64: 0 | V64: =IF(A64>$A$8,"",MATCH(B64,OFFSET(Data4SymbolToTrade!$B$10,1,0,Data4SymbolToTrade!$B$7,1),0)) -> 33 | W64: =IF(A64>$A$8,"",OFFSET(Data4SymbolToTrade!$B$10,CalculationsAndCharts!$V64,0,1,1)) -> 2012-08-24 | X64: =IF(A64>$A$8,"",OFFSET(Data4SymbolToTrade!$C$10,CalculationsAndCharts!$V64,$B$28,1,1)) -> 69.48 | Y64: 0 | Z64: 0 | AA64: 0 | AB64: =IF(A64>$V$22,"",IF(Q64=1,INT(AH65*$V$6/AC64),IF(R65=1,0,AB65))) -> 678 | AC64: =IF(A64>$V$22,"",IF(Q64=1,$X64,0)) -> 0 | AD64: =IF(A64>$V$22,"",IF(R64=1,$X64,0)) -> 0 | AE64: =IF(A64>$V$22,"",IF(Q64=1,AB64*AC64,IF(R65=1,0,AE65))) -> 45087 | AF64: =IF(A64>$V$22,"",IF(R64=1,AB64*AD64,0)) -> 0 | AG64: =IF(A64>$V$22,0,IF(R64=1,AF64-AE64,0)) -> 0 | AH64: =IF(A64>$V$22,0,IF(A64=$V$22,$V$5,AH65-IF(Q64=1,AE64,0)+IF(R64=1,AF64,0))) -> 1933.86 | AI64: =IF(A64>$V$22,0,IF(R64=1,0,AB64*X64)) -> 47107.44 | AJ64: 49041.3
A65: 34 | B65: =OFFSET(VIXinputData!B$10,CalculationsAndCharts!$A65+$A$11,0,1,1) -> 2012-08-23 | C65: =OFFSET(VIXinputData!G$10,CalculationsAndCharts!$A65+$A$11,0,1,1) -> 0 | D65: =OFFSET(VIXinputData!C$10,CalculationsAndCharts!$A65+$A$11,$B$28,1,1) -> 15 | E65: =OFFSET(VIXinputData!D$10,CalculationsAndCharts!$A65+$A$11,$B$28,1,1) -> 16.45 | F65: =OFFSET(VIXinputData!E$10,CalculationsAndCharts!$A65+$A$11,$B$28,1,1) -> 15 | G65: =OFFSET(VIXinputData!F$10,CalculationsAndCharts!$A65+$A$11,$B$28,1,1) -> 15.96 | H65: 15 | I65: 16.7448 | J65: 0 | K65: 1 | L65: 0 | M65: 12 | N65: 1 | O65: 0 | P65: 1 | Q65: 0 | R65: 0 | S65: 0 | T65: 0 | U65: 0 | V65: =IF(A65>$A$8,"",MATCH(B65,OFFSET(Data4SymbolToTrade!$B$10,1,0,Data4SymbolToTrade!$B$7,1),0)) -> 34 | W65: =IF(A65>$A$8,"",OFFSET(Data4SymbolToTrade!$B$10,CalculationsAndCharts!$V65,0,1,1)) -> 2012-08-23 | X65: =IF(A65>$A$8,"",OFFSET(Data4SymbolToTrade!$C$10,CalculationsAndCharts!$V65,$B$28,1,1)) -> 70.6 | Y65: 0 | Z65: 0 | AA65: 0 | AB65: =IF(A65>$V$22,"",IF(Q65=1,INT(AH66*$V$6/AC65),IF(R66=1,0,AB66))) -> 678 | AC65: =IF(A65>$V$22,"",IF(Q65=1,$X65,0)) -> 0 | AD65: =IF(A65>$V$22,"",IF(R65=1,$X65,0)) -> 0 | AE65: =IF(A65>$V$22,"",IF(Q65=1,AB65*AC65,IF(R66=1,0,AE66))) -> 45087 | AF65: =IF(A65>$V$22,"",IF(R65=1,AB65*AD65,0)) -> 0 | AG65: =IF(A65>$V$22,0,IF(R65=1,AF65-AE65,0)) -> 0 | AH65: =IF(A65>$V$22,0,IF(A65=$V$22,$V$5,AH66-IF(Q65=1,AE65,0)+IF(R65=1,AF65,0))) -> 1933.86 | AI65: =IF(A65>$V$22,0,IF(R65=1,0,AB65*X65)) -> 47866.8 | AJ65: 49800.66
A66: 35 | B66: =OFFSET(VIXinputData!B$10,CalculationsAndCharts!$A66+$A$11,0,1,1) -> 2012-08-22 | C66: =OFFSET(VIXinputData!G$10,CalculationsAndCharts!$A66+$A$11,0,1,1) -> 0 | D66: =OFFSET(VIXinputData!C$10,CalculationsAndCharts!$A66+$A$11,$B$28,1,1) -> 15.32 | E66: =OFFSET(VIXinputData!D$10,CalculationsAndCharts!$A66+$A$11,$B$28,1,1) -> 15.52 | F66: =OFFSET(VIXinputData!E$10,CalculationsAndCharts!$A66+$A$11,$B$28,1,1) -> 14.75 | G66: =OFFSET(VIXinputData!F$10,CalculationsAndCharts!$A66+$A$11,$B$28,1,1) -> 15.11 | H66: 14.75 | I66: 16.898 | J66: 0 | K66: 1 | L66: 0 | M66: 12 | N66: 1 | O66: 0 | P66: 1 | Q66: 0 | R66: 0 | S66: 0 | T66: 0 | U66: 0 | V66: =IF(A66>$A$8,"",MATCH(B66,OFFSET(Data4SymbolToTrade!$B$10,1,0,Data4SymbolToTrade!$B$7,1),0)) -> 35 | W66: =IF(A66>$A$8,"",OFFSET(Data4SymbolToTrade!$B$10,CalculationsAndCharts!$V66,0,1,1)) -> 2012-08-22 | X66: =IF(A66>$A$8,"",OFFSET(Data4SymbolToTrade!$C$10,CalculationsAndCharts!$V66,$B$28,1,1)) -> 70.9 | Y66: 0 | Z66: 0 | AA66: 0 | AB66: =IF(A66>$V$22,"",IF(Q66=1,INT(AH67*$V$6/AC66),IF(R67=1,0,AB67))) -> 678 | AC66: =IF(A66>$V$22,"",IF(Q66=1,$X66,0)) -> 0 | AD66: =IF(A66>$V$22,"",IF(R66=1,$X66,0)) -> 0 | AE66: =IF(A66>$V$22,"",IF(Q66=1,AB66*AC66,IF(R67=1,0,AE67))) -> 45087 | AF66: =IF(A66>$V$22,"",IF(R66=1,AB66*AD66,0)) -> 0 | AG66: =IF(A66>$V$22,0,IF(R66=1,AF66-AE66,0)) -> 0 | AH66: =IF(A66>$V$22,0,IF(A66=$V$22,$V$5,AH67-IF(Q66=1,AE66,0)+IF(R66=1,AF66,0))) -> 1933.86 | AI66: =IF(A66>$V$22,0,IF(R66=1,0,AB66*X66)) -> 48070.2 | AJ66: 50004.06
A67: 36 | B67: =OFFSET(VIXinputData!B$10,CalculationsAndCharts!$A67+$A$11,0,1,1) -> 2012-08-21 | C67: =OFFSET(VIXinputData!G$10,CalculationsAndCharts!$A67+$A$11,0,1,1) -> 0 | D67: =OFFSET(VIXinputData!C$10,CalculationsAndCharts!$A67+$A$11,$B$28,1,1) -> 14.1 | E67: =OFFSET(VIXinputData!D$10,CalculationsAndCharts!$A67+$A$11,$B$28,1,1) -> 15.44 | F67: =OFFSET(VIXinputData!E$10,CalculationsAndCharts!$A67+$A$11,$B$28,1,1) -> 13.46 | G67: =OFFSET(VIXinputData!F$10,CalculationsAndCharts!$A67+$A$11,$B$28,1,1) -> 15.02 | H67: 13.46 | I67: 17.0448 | J67: 0 | K67: 1 | L67: 0 | M67: 12 | N67: 1 | O67: 0 | P67: 1 | Q67: 0 | R67: 0 | S67: 0 | T67: 0 | U67: 0 | V67: =IF(A67>$A$8,"",MATCH(B67,OFFSET(Data4SymbolToTrade!$B$10,1,0,Data4SymbolToTrade!$B$7,1),0)) -> 36 | W67: =IF(A67>$A$8,"",OFFSET(Data4SymbolToTrade!$B$10,CalculationsAndCharts!$V67,0,1,1)) -> 2012-08-21 | X67: =IF(A67>$A$8,"",OFFSET(Data4SymbolToTrade!$C$10,CalculationsAndCharts!$V67,$B$28,1,1)) -> 72.02 | Y67: 0 | Z67: 0 | AA67: 0 | AB67: =IF(A67>$V$22,"",IF(Q67=1,INT(AH68*$V$6/AC67),IF(R68=1,0,AB68))) -> 678 | AC67: =IF(A67>$V$22,"",IF(Q67=1,$X67,0)) -> 0 | AD67: =IF(A67>$V$22,"",IF(R67=1,$X67,0)) -> 0 | AE67: =IF(A67>$V$22,"",IF(Q67=1,AB67*AC67,IF(R68=1,0,AE68))) -> 45087 | AF67: =IF(A67>$V$22,"",IF(R67=1,AB67*AD67,0)) -> 0 | AG67: =IF(A67>$V$22,0,IF(R67=1,AF67-AE67,0)) -> 0 | AH67: =IF(A67>$V$22,0,IF(A67=$V$22,$V$5,AH68-IF(Q67=1,AE67,0)+IF(R67=1,AF67,0))) -> 1933.86 | AI67: =IF(A67>$V$22,0,IF(R67=1,0,AB67*X67)) -> 48829.56 | AJ67: 50763.42
A68: 37 | B68: =OFFSET(VIXinputData!B$10,CalculationsAndCharts!$A68+$A$11,0,1,1) -> 2012-08-20 | C68: =OFFSET(VIXinputData!G$10,CalculationsAndCharts!$A68+$A$11,0,1,1) -> 0 | D68: =OFFSET(VIXinputData!C$10,CalculationsAndCharts!$A68+$A$11,$B$28,1,1) -> 14.11 | E68: =OFFSET(VIXinputData!D$10,CalculationsAndCharts!$A68+$A$11,$B$28,1,1) -> 14.78 | F68: =OFFSET(VIXinputData!E$10,CalculationsAndCharts!$A68+$A$11,$B$28,1,1) -> 13.38 | G68: =OFFSET(VIXinputData!F$10,CalculationsAndCharts!$A68+$A$11,$B$28,1,1) -> 14.02 | H68: 13.38 | I68: 17.1682 | J68: 0 | K68: 1 | L68: 0 | M68: 12 | N68: 1 | O68: 0 | P68: 1 | Q68: 0 | R68: 0 | S68: 0 | T68: 0 | U68: 0 | V68: =IF(A68>$A$8,"",MATCH(B68,OFFSET(Data4SymbolToTrade!$B$10,1,0,Data4SymbolToTrade!$B$7,1),0)) -> 37 | W68: =IF(A68>$A$8,"",OFFSET(Data4SymbolToTrade!$B$10,CalculationsAndCharts!$V68,0,1,1)) -> 2012-08-20 | X68: =IF(A68>$A$8,"",OFFSET(Data4SymbolToTrade!$C$10,CalculationsAndCharts!$V68,$B$28,1,1)) -> 71.61 | Y68: 0 | Z68: 0 | AA68: 0 | AB68: =IF(A68>$V$22,"",IF(Q68=1,INT(AH69*$V$6/AC68),IF(R69=1,0,AB69))) -> 678 | AC68: =IF(A68>$V$22,"",IF(Q68=1,$X68,0)) -> 0 | AD68: =IF(A68>$V$22,"",IF(R68=1,$X68,0)) -> 0 | AE68: =IF(A68>$V$22,"",IF(Q68=1,AB68*AC68,IF(R69=1,0,AE69))) -> 45087 | AF68: =IF(A68>$V$22,"",IF(R68=1,AB68*AD68,0)) -> 0 | AG68: =IF(A68>$V$22,0,IF(R68=1,AF68-AE68,0)) -> 0 | AH68: =IF(A68>$V$22,0,IF(A68=$V$22,$V$5,AH69-IF(Q68=1,AE68,0)+IF(R68=1,AF68,0))) -> 1933.86 | AI68: =IF(A68>$V$22,0,IF(R68=1,0,AB68*X68)) -> 48551.58 | AJ68: 50485.44
A69: 38 | B69: =OFFSET(VIXinputData!B$10,CalculationsAndCharts!$A69+$A$11,0,1,1) -> 2012-08-17 | C69: =OFFSET(VIXinputData!G$10,CalculationsAndCharts!$A69+$A$11,0,1,1) -> 0 | D69: =OFFSET(VIXinputData!C$10,CalculationsAndCharts!$A69+$A$11,$B$28,1,1) -> 14.23 | E69: =OFFSET(VIXinputData!D$10,CalculationsAndCharts!$A69+$A$11,$B$28,1,1) -> 14.3 | F69: =OFFSET(VIXinputData!E$10,CalculationsAndCharts!$A69+$A$11,$B$28,1,1) -> 13.3 | G69: =OFFSET(VIXinputData!F$10,CalculationsAndCharts!$A69+$A$11,$B$28,1,1) -> 13.45 | H69: 13.3 | I69: 17.3064 | J69: 0 | K69: 1 | L69: 0 | M69: 12 | N69: 1 | O69: 0 | P69: 1 | Q69: 0 | R69: 0 | S69: 0 | T69: 0 | U69: 0 | V69: =IF(A69>$A$8,"",MATCH(B69,OFFSET(Data4SymbolToTrade!$B$10,1,0,Data4SymbolToTrade!$B$7,1),0)) -> 38 | W69: =IF(A69>$A$8,"",OFFSET(Data4SymbolToTrade!$B$10,CalculationsAndCharts!$V69,0,1,1)) -> 2012-08-17 | X69: =IF(A69>$A$8,"",OFFSET(Data4SymbolToTrade!$C$10,CalculationsAndCharts!$V69,$B$28,1,1)) -> 71.65 | Y69: 0 | Z69: 0 | AA69: 0 | AB69: =IF(A69>$V$22,"",IF(Q69=1,INT(AH70*$V$6/AC69),IF(R70=1,0,AB70))) -> 678 | AC69: =IF(A69>$V$22,"",IF(Q69=1,$X69,0)) -> 0 | AD69: =IF(A69>$V$22,"",IF(R69=1,$X69,0)) -> 0 | AE69: =IF(A69>$V$22,"",IF(Q69=1,AB69*AC69,IF(R70=1,0,AE70))) -> 45087 | AF69: =IF(A69>$V$22,"",IF(R69=1,AB69*AD69,0)) -> 0 | AG69: =IF(A69>$V$22,0,IF(R69=1,AF69-AE69,0)) -> 0 | AH69: =IF(A69>$V$22,0,IF(A69=$V$22,$V$5,AH70-IF(Q69=1,AE69,0)+IF(R69=1,AF69,0))) -> 1933.86 | AI69: =IF(A69>$V$22,0,IF(R69=1,0,AB69*X69)) -> 48578.7 | AJ69: 50512.56
A70: 39 | B70: =OFFSET(VIXinputData!B$10,CalculationsAndCharts!$A70+$A$11,0,1,1) -> 2012-08-16 | C70: =OFFSET(VIXinputData!G$10,CalculationsAndCharts!$A70+$A$11,0,1,1) -> 0 | D70: =OFFSET(VIXinputData!C$10,CalculationsAndCharts!$A70+$A$11,$B$28,1,1) -> 14.88 | E70: =OFFSET(VIXinputData!D$10,CalculationsAndCharts!$A70+$A$11,$B$28,1,1) -> 15.15 | F70: =OFFSET(VIXinputData!E$10,CalculationsAndCharts!$A70+$A$11,$B$28,1,1) -> 14.28 | G70: =OFFSET(VIXinputData!F$10,CalculationsAndCharts!$A70+$A$11,$B$28,1,1) -> 14.29 | H70: 14.28 | I70: 17.4552 | J70: 0 | K70: 1 | L70: 0 | M70: 12 | N70: 1 | O70: 0 | P70: 1 | Q70: 0 | R70: 0 | S70: 0 | T70: 0 | U70: 0 | V70: =IF(A70>$A$8,"",MATCH(B70,OFFSET(Data4SymbolToTrade!$B$10,1,0,Data4SymbolToTrade!$B$7,1),0)) -> 39 | W70: =IF(A70>$A$8,"",OFFSET(Data4SymbolToTrade!$B$10,CalculationsAndCharts!$V70,0,1,1)) -> 2012-08-16 | X70: =IF(A70>$A$8,"",OFFSET(Data4SymbolToTrade!$C$10,CalculationsAndCharts!$V70,$B$28,1,1)) -> 70.81 | Y70: 0 | Z70: 0 | AA70: 0 | AB70: =IF(A70>$V$22,"",IF(Q70=1,INT(AH71*$V$6/AC70),IF(R71=1,0,AB71))) -> 678 | AC70: =IF(A70>$V$22,"",IF(Q70=1,$X70,0)) -> 0 | AD70: =IF(A70>$V$22,"",IF(R70=1,$X70,0)) -> 0 | AE70: =IF(A70>$V$22,"",IF(Q70=1,AB70*AC70,IF(R71=1,0,AE71))) -> 45087 | AF70: =IF(A70>$V$22,"",IF(R70=1,AB70*AD70,0)) -> 0 | AG70: =IF(A70>$V$22,0,IF(R70=1,AF70-AE70,0)) -> 0 | AH70: =IF(A70>$V$22,0,IF(A70=$V$22,$V$5,AH71-IF(Q70=1,AE70,0)+IF(R70=1,AF70,0))) -> 1933.86 | AI70: =IF(A70>$V$22,0,IF(R70=1,0,AB70*X70)) -> 48009.18 | AJ70: 49943.04
A71: 40 | B71: =OFFSET(VIXinputData!B$10,CalculationsAndCharts!$A71+$A$11,0,1,1) -> 2012-08-15 | C71: =OFFSET(VIXinputData!G$10,CalculationsAndCharts!$A71+$A$11,0,1,1) -> 0 | D71: =OFFSET(VIXinputData!C$10,CalculationsAndCharts!$A71+$A$11,$B$28,1,1) -> 14.82 | E71: =OFFSET(VIXinputData!D$10,CalculationsAndCharts!$A71+$A$11,$B$28,1,1) -> 14.98 | F71: =OFFSET(VIXinputData!E$10,CalculationsAndCharts!$A71+$A$11,$B$28,1,1) -> 14.36 | G71: =OFFSET(VIXinputData!F$10,CalculationsAndCharts!$A71+$A$11,$B$28,1,1) -> 14.63 | H71: 14.36 | I71: 17.6056 | J71: 0 | K71: 1 | L71: 0 | M71: 12 | N71: 1 | O71: 0 | P71: 1 | Q71: 0 | R71: 0 | S71: 0 | T71: 0 | U71: 0 | V71: =IF(A71>$A$8,"",MATCH(B71,OFFSET(Data4SymbolToTrade!$B$10,1,0,Data4SymbolToTrade!$B$7,1),0)) -> 40 | W71: =IF(A71>$A$8,"",OFFSET(Data4SymbolToTrade!$B$10,CalculationsAndCharts!$V71,0,1,1)) -> 2012-08-15 | X71: =IF(A71>$A$8,"",OFFSET(Data4SymbolToTrade!$C$10,CalculationsAndCharts!$V71,$B$28,1,1)) -> 70.49 | Y71: 0 | Z71: 0 | AA71: 0 | AB71: =IF(A71>$V$22,"",IF(Q71=1,INT(AH72*$V$6/AC71),IF(R72=1,0,AB72))) -> 678 | AC71: =IF(A71>$V$22,"",IF(Q71=1,$X71,0)) -> 0 | AD71: =IF(A71>$V$22,"",IF(R71=1,$X71,0)) -> 0 | AE71: =IF(A71>$V$22,"",IF(Q71=1,AB71*AC71,IF(R72=1,0,AE72))) -> 45087 | AF71: =IF(A71>$V$22,"",IF(R71=1,AB71*AD71,0)) -> 0 | AG71: =IF(A71>$V$22,0,IF(R71=1,AF71-AE71,0)) -> 0 | AH71: =IF(A71>$V$22,0,IF(A71=$V$22,$V$5,AH72-IF(Q71=1,AE71,0)+IF(R71=1,AF71,0))) -> 1933.86 | AI71: =IF(A71>$V$22,0,IF(R71=1,0,AB71*X71)) -> 47792.22 | AJ71: 49726.08
A72: 41 | B72: =OFFSET(VIXinputData!B$10,CalculationsAndCharts!$A72+$A$11,0,1,1) -> 2012-08-14 | C72: =OFFSET(VIXinputData!G$10,CalculationsAndCharts!$A72+$A$11,0,1,1) -> 0 | D72: =OFFSET(VIXinputData!C$10,CalculationsAndCharts!$A72+$A$11,$B$28,1,1) -> 13.91 | E72: =OFFSET(VIXinputData!D$10,CalculationsAndCharts!$A72+$A$11,$B$28,1,1) -> 15.06 | F72: =OFFSET(VIXinputData!E$10,CalculationsAndCharts!$A72+$A$11,$B$28,1,1) -> 13.91 | G72: =OFFSET(VIXinputData!F$10,CalculationsAndCharts!$A72+$A$11,$B$28,1,1) -> 14.85 | H72: 13.91 | I72: 17.8084 | J72: 0 | K72: 1 | L72: 0 | M72: 12 | N72: 1 | O72: 0 | P72: 1 | Q72: 0 | R72: 0 | S72: 0 | T72: 0 | U72: 0 | V72: =IF(A72>$A$8,"",MATCH(B72,OFFSET(Data4SymbolToTrade!$B$10,1,0,Data4SymbolToTrade!$B$7,1),0)) -> 41 | W72: =IF(A72>$A$8,"",OFFSET(Data4SymbolToTrade!$B$10,CalculationsAndCharts!$V72,0,1,1)) -> 2012-08-14 | X72: =IF(A72>$A$8,"",OFFSET(Data4SymbolToTrade!$C$10,CalculationsAndCharts!$V72,$B$28,1,1)) -> 71.07 | Y72: 0 | Z72: 0 | AA72: 0 | AB72: =IF(A72>$V$22,"",IF(Q72=1,INT(AH73*$V$6/AC72),IF(R73=1,0,AB73))) -> 678 | AC72: =IF(A72>$V$22,"",IF(Q72=1,$X72,0)) -> 0 | AD72: =IF(A72>$V$22,"",IF(R72=1,$X72,0)) -> 0 | AE72: =IF(A72>$V$22,"",IF(Q72=1,AB72*AC72,IF(R73=1,0,AE73))) -> 45087 | AF72: =IF(A72>$V$22,"",IF(R72=1,AB72*AD72,0)) -> 0 | AG72: =IF(A72>$V$22,0,IF(R72=1,AF72-AE72,0)) -> 0 | AH72: =IF(A72>$V$22,0,IF(A72=$V$22,$V$5,AH73-IF(Q72=1,AE72,0)+IF(R72=1,AF72,0))) -> 1933.86 | AI72: =IF(A72>$V$22,0,IF(R72=1,0,AB72*X72)) -> 48185.46 | AJ72: 50119.32
A73: 42 | B73: =OFFSET(VIXinputData!B$10,CalculationsAndCharts!$A73+$A$11,0,1,1) -> 2012-08-13 | C73: =OFFSET(VIXinputData!G$10,CalculationsAndCharts!$A73+$A$11,0,1,1) -> 0 | D73: =OFFSET(VIXinputData!C$10,CalculationsAndCharts!$A73+$A$11,$B$28,1,1) -> 14.09 | E73: =OFFSET(VIXinputData!D$10,CalculationsAndCharts!$A73+$A$11,$B$28,1,1) -> 14.67 | F73: =OFFSET(VIXinputData!E$10,CalculationsAndCharts!$A73+$A$11,$B$28,1,1) -> 13.67 | G73: =OFFSET(VIXinputData!F$10,CalculationsAndCharts!$A73+$A$11,$B$28,1,1) -> 13.7 | H73: 13.67 | I73: 18.0446 | J73: 0 | K73: 1 | L73: 0 | M73: 12 | N73: 1 | O73: 0 | P73: 1 | Q73: 0 | R73: 0 | S73: 0 | T73: 0 | U73: 0 | V73: =IF(A73>$A$8,"",MATCH(B73,OFFSET(Data4SymbolToTrade!$B$10,1,0,Data4SymbolToTrade!$B$7,1),0)) -> 42 | W73: =IF(A73>$A$8,"",OFFSET(Data4SymbolToTrade!$B$10,CalculationsAndCharts!$V73,0,1,1)) -> 2012-08-13 | X73: =IF(A73>$A$8,"",OFFSET(Data4SymbolToTrade!$C$10,CalculationsAndCharts!$V73,$B$28,1,1)) -> 70.75 | Y73: 0 | Z73: 0 | AA73: 0 | AB73: =IF(A73>$V$22,"",IF(Q73=1,INT(AH74*$V$6/AC73),IF(R74=1,0,AB74))) -> 678 | AC73: =IF(A73>$V$22,"",IF(Q73=1,$X73,0)) -> 0 | AD73: =IF(A73>$V$22,"",IF(R73=1,$X73,0)) -> 0 | AE73: =IF(A73>$V$22,"",IF(Q73=1,AB73*AC73,IF(R74=1,0,AE74))) -> 45087 | AF73: =IF(A73>$V$22,"",IF(R73=1,AB73*AD73,0)) -> 0 | AG73: =IF(A73>$V$22,0,IF(R73=1,AF73-AE73,0)) -> 0 | AH73: =IF(A73>$V$22,0,IF(A73=$V$22,$V$5,AH74-IF(Q73=1,AE73,0)+IF(R73=1,AF73,0))) -> 1933.86 | AI73: =IF(A73>$V$22,0,IF(R73=1,0,AB73*X73)) -> 47968.5 | AJ73: 49902.36
A74: 43 | B74: =OFFSET(VIXinputData!B$10,CalculationsAndCharts!$A74+$A$11,0,1,1) -> 2012-08-10 | C74: =OFFSET(VIXinputData!G$10,CalculationsAndCharts!$A74+$A$11,0,1,1) -> 0 | D74: =OFFSET(VIXinputData!C$10,CalculationsAndCharts!$A74+$A$11,$B$28,1,1) -> 15.34 | E74: =OFFSET(VIXinputData!D$10,CalculationsAndCharts!$A74+$A$11,$B$28,1,1) -> 15.5 | F74: =OFFSET(VIXinputData!E$10,CalculationsAndCharts!$A74+$A$11,$B$28,1,1) -> 14.73 | G74: =OFFSET(VIXinputData!F$10,CalculationsAndCharts!$A74+$A$11,$B$28,1,1) -> 14.74 | H74: 14.73 | I74: 18.25 | J74: 0 | K74: 1 | L74: 0 | M74: 12 | N74: 1 | O74: 0 | P74: 1 | Q74: 0 | R74: 0 | S74: 0 | T74: 0 | U74: 0 | V74: =IF(A74>$A$8,"",MATCH(B74,OFFSET(Data4SymbolToTrade!$B$10,1,0,Data4SymbolToTrade!$B$7,1),0)) -> 43 | W74: =IF(A74>$A$8,"",OFFSET(Data4SymbolToTrade!$B$10,CalculationsAndCharts!$V74,0,1,1)) -> 2012-08-10 | X74: =IF(A74>$A$8,"",OFFSET(Data4SymbolToTrade!$C$10,CalculationsAndCharts!$V74,$B$28,1,1)) -> 70.12 | Y74: 0 | Z74: 0 | AA74: 0 | AB74: =IF(A74>$V$22,"",IF(Q74=1,INT(AH75*$V$6/AC74),IF(R75=1,0,AB75))) -> 678 | AC74: =IF(A74>$V$22,"",IF(Q74=1,$X74,0)) -> 0 | AD74: =IF(A74>$V$22,"",IF(R74=1,$X74,0)) -> 0 | AE74: =IF(A74>$V$22,"",IF(Q74=1,AB74*AC74,IF(R75=1,0,AE75))) -> 45087 | AF74: =IF(A74>$V$22,"",IF(R74=1,AB74*AD74,0)) -> 0 | AG74: =IF(A74>$V$22,0,IF(R74=1,AF74-AE74,0)) -> 0 | AH74: =IF(A74>$V$22,0,IF(A74=$V$22,$V$5,AH75-IF(Q74=1,AE74,0)+IF(R74=1,AF74,0))) -> 1933.86 | AI74: =IF(A74>$V$22,0,IF(R74=1,0,AB74*X74)) -> 47541.36 | AJ74: 49475.22
A75: 44 | B75: =OFFSET(VIXinputData!B$10,CalculationsAndCharts!$A75+$A$11,0,1,1) -> 2012-08-09 | C75: =OFFSET(VIXinputData!G$10,CalculationsAndCharts!$A75+$A$11,0,1,1) -> 0 | D75: =OFFSET(VIXinputData!C$10,CalculationsAndCharts!$A75+$A$11,$B$28,1,1) -> 15.39 | E75: =OFFSET(VIXinputData!D$10,CalculationsAndCharts!$A75+$A$11,$B$28,1,1) -> 15.67 | F75: =OFFSET(VIXinputData!E$10,CalculationsAndCharts!$A75+$A$11,$B$28,1,1) -> 15.28 | G75: =OFFSET(VIXinputData!F$10,CalculationsAndCharts!$A75+$A$11,$B$28,1,1) -> 15.28 | H75: 15.28 | I75: 18.411 | J75: 0 | K75: 1 | L75: 0 | M75: 12 | N75: 1 | O75: 0 | P75: 1 | Q75: 0 | R75: 0 | S75: 0 | T75: 0 | U75: 0 | V75: =IF(A75>$A$8,"",MATCH(B75,OFFSET(Data4SymbolToTrade!$B$10,1,0,Data4SymbolToTrade!$B$7,1),0)) -> 44 | W75: =IF(A75>$A$8,"",OFFSET(Data4SymbolToTrade!$B$10,CalculationsAndCharts!$V75,0,1,1)) -> 2012-08-09 | X75: =IF(A75>$A$8,"",OFFSET(Data4SymbolToTrade!$C$10,CalculationsAndCharts!$V75,$B$28,1,1)) -> 70.49 | Y75: 0 | Z75: 0 | AA75: 0 | AB75: =IF(A75>$V$22,"",IF(Q75=1,INT(AH76*$V$6/AC75),IF(R76=1,0,AB76))) -> 678 | AC75: =IF(A75>$V$22,"",IF(Q75=1,$X75,0)) -> 0 | AD75: =IF(A75>$V$22,"",IF(R75=1,$X75,0)) -> 0 | AE75: =IF(A75>$V$22,"",IF(Q75=1,AB75*AC75,IF(R76=1,0,AE76))) -> 45087 | AF75: =IF(A75>$V$22,"",IF(R75=1,AB75*AD75,0)) -> 0 | AG75: =IF(A75>$V$22,0,IF(R75=1,AF75-AE75,0)) -> 0 | AH75: =IF(A75>$V$22,0,IF(A75=$V$22,$V$5,AH76-IF(Q75=1,AE75,0)+IF(R75=1,AF75,0))) -> 1933.86 | AI75: =IF(A75>$V$22,0,IF(R75=1,0,AB75*X75)) -> 47792.22 | AJ75: 49726.08
A76: 45 | B76: =OFFSET(VIXinputData!B$10,CalculationsAndCharts!$A76+$A$11,0,1,1) -> 2012-08-08 | C76: =OFFSET(VIXinputData!G$10,CalculationsAndCharts!$A76+$A$11,0,1,1) -> 0 | D76: =OFFSET(VIXinputData!C$10,CalculationsAndCharts!$A76+$A$11,$B$28,1,1) -> 16.46 | E76: =OFFSET(VIXinputData!D$10,CalculationsAndCharts!$A76+$A$11,$B$28,1,1) -> 16.47 | F76: =OFFSET(VIXinputData!E$10,CalculationsAndCharts!$A76+$A$11,$B$28,1,1) -> 15.27 | G76: =OFFSET(VIXinputData!F$10,CalculationsAndCharts!$A76+$A$11,$B$28,1,1) -> 15.32 | H76: 15.27 | I76: 18.5586 | J76: 0 | K76: 1 | L76: 0 | M76: 12 | N76: 1 | O76: 0 | P76: 1 | Q76: 0 | R76: 0 | S76: 0 | T76: 0 | U76: 0 | V76: =IF(A76>$A$8,"",MATCH(B76,OFFSET(Data4SymbolToTrade!$B$10,1,0,Data4SymbolToTrade!$B$7,1),0)) -> 45 | W76: =IF(A76>$A$8,"",OFFSET(Data4SymbolToTrade!$B$10,CalculationsAndCharts!$V76,0,1,1)) -> 2012-08-08 | X76: =IF(A76>$A$8,"",OFFSET(Data4SymbolToTrade!$C$10,CalculationsAndCharts!$V76,$B$28,1,1)) -> 69.88 | Y76: 0 | Z76: 0 | AA76: 0 | AB76: =IF(A76>$V$22,"",IF(Q76=1,INT(AH77*$V$6/AC76),IF(R77=1,0,AB77))) -> 678 | AC76: =IF(A76>$V$22,"",IF(Q76=1,$X76,0)) -> 0 | AD76: =IF(A76>$V$22,"",IF(R76=1,$X76,0)) -> 0 | AE76: =IF(A76>$V$22,"",IF(Q76=1,AB76*AC76,IF(R77=1,0,AE77))) -> 45087 | AF76: =IF(A76>$V$22,"",IF(R76=1,AB76*AD76,0)) -> 0 | AG76: =IF(A76>$V$22,0,IF(R76=1,AF76-AE76,0)) -> 0 | AH76: =IF(A76>$V$22,0,IF(A76=$V$22,$V$5,AH77-IF(Q76=1,AE76,0)+IF(R76=1,AF76,0))) -> 1933.86 | AI76: =IF(A76>$V$22,0,IF(R76=1,0,AB76*X76)) -> 47378.64 | AJ76: 49312.5
A77: 46 | B77: =OFFSET(VIXinputData!B$10,CalculationsAndCharts!$A77+$A$11,0,1,1) -> 2012-08-07 | C77: =OFFSET(VIXinputData!G$10,CalculationsAndCharts!$A77+$A$11,0,1,1) -> 0 | D77: =OFFSET(VIXinputData!C$10,CalculationsAndCharts!$A77+$A$11,$B$28,1,1) -> 15.55 | E77: =OFFSET(VIXinputData!D$10,CalculationsAndCharts!$A77+$A$11,$B$28,1,1) -> 16.03 | F77: =OFFSET(VIXinputData!E$10,CalculationsAndCharts!$A77+$A$11,$B$28,1,1) -> 15.48 | G77: =OFFSET(VIXinputData!F$10,CalculationsAndCharts!$A77+$A$11,$B$28,1,1) -> 15.99 | H77: 15.48 | I77: 18.673 | J77: 0 | K77: 1 | L77: 0 | M77: 12 | N77: 1 | O77: 0 | P77: 1 | Q77: 0 | R77: 0 | S77: 0 | T77: 0 | U77: 0 | V77: =IF(A77>$A$8,"",MATCH(B77,OFFSET(Data4SymbolToTrade!$B$10,1,0,Data4SymbolToTrade!$B$7,1),0)) -> 46 | W77: =IF(A77>$A$8,"",OFFSET(Data4SymbolToTrade!$B$10,CalculationsAndCharts!$V77,0,1,1)) -> 2012-08-07 | X77: =IF(A77>$A$8,"",OFFSET(Data4SymbolToTrade!$C$10,CalculationsAndCharts!$V77,$B$28,1,1)) -> 70.31 | Y77: 0 | Z77: 0 | AA77: 0 | AB77: =IF(A77>$V$22,"",IF(Q77=1,INT(AH78*$V$6/AC77),IF(R78=1,0,AB78))) -> 678 | AC77: =IF(A77>$V$22,"",IF(Q77=1,$X77,0)) -> 0 | AD77: =IF(A77>$V$22,"",IF(R77=1,$X77,0)) -> 0 | AE77: =IF(A77>$V$22,"",IF(Q77=1,AB77*AC77,IF(R78=1,0,AE78))) -> 45087 | AF77: =IF(A77>$V$22,"",IF(R77=1,AB77*AD77,0)) -> 0 | AG77: =IF(A77>$V$22,0,IF(R77=1,AF77-AE77,0)) -> 0 | AH77: =IF(A77>$V$22,0,IF(A77=$V$22,$V$5,AH78-IF(Q77=1,AE77,0)+IF(R77=1,AF77,0))) -> 1933.86 | AI77: =IF(A77>$V$22,0,IF(R77=1,0,AB77*X77)) -> 47670.18 | AJ77: 49604.04
A78: 47 | B78: =OFFSET(VIXinputData!B$10,CalculationsAndCharts!$A78+$A$11,0,1,1) -> 2012-08-06 | C78: =OFFSET(VIXinputData!G$10,CalculationsAndCharts!$A78+$A$11,0,1,1) -> 0 | D78: =OFFSET(VIXinputData!C$10,CalculationsAndCharts!$A78+$A$11,$B$28,1,1) -> 15.85 | E78: =OFFSET(VIXinputData!D$10,CalculationsAndCharts!$A78+$A$11,$B$28,1,1) -> 16.27 | F78: =OFFSET(VIXinputData!E$10,CalculationsAndCharts!$A78+$A$11,$B$28,1,1) -> 15.82 | G78: =OFFSET(VIXinputData!F$10,CalculationsAndCharts!$A78+$A$11,$B$28,1,1) -> 15.95 | H78: 15.82 | I78: 18.7894 | J78: 0 | K78: 1 | L78: 0 | M78: 12 | N78: 1 | O78: 0 | P78: 1 | Q78: 0 | R78: 0 | S78: 0 | T78: 0 | U78: 0 | V78: =IF(A78>$A$8,"",MATCH(B78,OFFSET(Data4SymbolToTrade!$B$10,1,0,Data4SymbolToTrade!$B$7,1),0)) -> 47 | W78: =IF(A78>$A$8,"",OFFSET(Data4SymbolToTrade!$B$10,CalculationsAndCharts!$V78,0,1,1)) -> 2012-08-06 | X78: =IF(A78>$A$8,"",OFFSET(Data4SymbolToTrade!$C$10,CalculationsAndCharts!$V78,$B$28,1,1)) -> 69.9 | Y78: 0 | Z78: 0 | AA78: 0 | AB78: =IF(A78>$V$22,"",IF(Q78=1,INT(AH79*$V$6/AC78),IF(R79=1,0,AB79))) -> 678 | AC78: =IF(A78>$V$22,"",IF(Q78=1,$X78,0)) -> 0 | AD78: =IF(A78>$V$22,"",IF(R78=1,$X78,0)) -> 0 | AE78: =IF(A78>$V$22,"",IF(Q78=1,AB78*AC78,IF(R79=1,0,AE79))) -> 45087 | AF78: =IF(A78>$V$22,"",IF(R78=1,AB78*AD78,0)) -> 0 | AG78: =IF(A78>$V$22,0,IF(R78=1,AF78-AE78,0)) -> 0 | AH78: =IF(A78>$V$22,0,IF(A78=$V$22,$V$5,AH79-IF(Q78=1,AE78,0)+IF(R78=1,AF78,0))) -> 1933.86 | AI78: =IF(A78>$V$22,0,IF(R78=1,0,AB78*X78)) -> 47392.2 | AJ78: 49326.06
A79: 48 | B79: =OFFSET(VIXinputData!B$10,CalculationsAndCharts!$A79+$A$11,0,1,1) -> 2012-08-03 | C79: =OFFSET(VIXinputData!G$10,CalculationsAndCharts!$A79+$A$11,0,1,1) -> 0 | D79: =OFFSET(VIXinputData!C$10,CalculationsAndCharts!$A79+$A$11,$B$28,1,1) -> 16.05 | E79: =OFFSET(VIXinputData!D$10,CalculationsAndCharts!$A79+$A$11,$B$28,1,1) -> 16.45 | F79: =OFFSET(VIXinputData!E$10,CalculationsAndCharts!$A79+$A$11,$B$28,1,1) -> 15.64 | G79: =OFFSET(VIXinputData!F$10,CalculationsAndCharts!$A79+$A$11,$B$28,1,1) -> 15.64 | H79: 15.64 | I79: 18.9026 | J79: 0 | K79: 1 | L79: 0 | M79: 12 | N79: 1 | O79: 0 | P79: 1 | Q79: 0 | R79: 0 | S79: 0 | T79: 0 | U79: 0 | V79: =IF(A79>$A$8,"",MATCH(B79,OFFSET(Data4SymbolToTrade!$B$10,1,0,Data4SymbolToTrade!$B$7,1),0)) -> 48 | W79: =IF(A79>$A$8,"",OFFSET(Data4SymbolToTrade!$B$10,CalculationsAndCharts!$V79,0,1,1)) -> 2012-08-03 | X79: =IF(A79>$A$8,"",OFFSET(Data4SymbolToTrade!$C$10,CalculationsAndCharts!$V79,$B$28,1,1)) -> 68.96 | Y79: 0 | Z79: 0 | AA79: 0 | AB79: =IF(A79>$V$22,"",IF(Q79=1,INT(AH80*$V$6/AC79),IF(R80=1,0,AB80))) -> 678 | AC79: =IF(A79>$V$22,"",IF(Q79=1,$X79,0)) -> 0 | AD79: =IF(A79>$V$22,"",IF(R79=1,$X79,0)) -> 0 | AE79: =IF(A79>$V$22,"",IF(Q79=1,AB79*AC79,IF(R80=1,0,AE80))) -> 45087 | AF79: =IF(A79>$V$22,"",IF(R79=1,AB79*AD79,0)) -> 0 | AG79: =IF(A79>$V$22,0,IF(R79=1,AF79-AE79,0)) -> 0 | AH79: =IF(A79>$V$22,0,IF(A79=$V$22,$V$5,AH80-IF(Q79=1,AE79,0)+IF(R79=1,AF79,0))) -> 1933.86 | AI79: =IF(A79>$V$22,0,IF(R79=1,0,AB79*X79)) -> 46754.88 | AJ79: 48688.74
A80: 49 | B80: =OFFSET(VIXinputData!B$10,CalculationsAndCharts!$A80+$A$11,0,1,1) -> 2012-08-02 | C80: =OFFSET(VIXinputData!G$10,CalculationsAndCharts!$A80+$A$11,0,1,1) -> 0 | D80: =OFFSET(VIXinputData!C$10,CalculationsAndCharts!$A80+$A$11,$B$28,1,1) -> 19.05 | E80: =OFFSET(VIXinputData!D$10,CalculationsAndCharts!$A80+$A$11,$B$28,1,1) -> 19.25 | F80: =OFFSET(VIXinputData!E$10,CalculationsAndCharts!$A80+$A$11,$B$28,1,1) -> 17.56 | G80: =OFFSET(VIXinputData!F$10,CalculationsAndCharts!$A80+$A$11,$B$28,1,1) -> 17.57 | H80: 17.56 | I80: 19.0296 | J80: 0 | K80: 1 | L80: 0 | M80: 12 | N80: 1 | O80: 0 | P80: 1 | Q80: 0 | R80: 0 | S80: 0 | T80: 0 | U80: 0 | V80: =IF(A80>$A$8,"",MATCH(B80,OFFSET(Data4SymbolToTrade!$B$10,1,0,Data4SymbolToTrade!$B$7,1),0)) -> 49 | W80: =IF(A80>$A$8,"",OFFSET(Data4SymbolToTrade!$B$10,CalculationsAndCharts!$V80,0,1,1)) -> 2012-08-02 | X80: =IF(A80>$A$8,"",OFFSET(Data4SymbolToTrade!$C$10,CalculationsAndCharts!$V80,$B$28,1,1)) -> 67.45 | Y80: 0 | Z80: 0 | AA80: 0 | AB80: =IF(A80>$V$22,"",IF(Q80=1,INT(AH81*$V$6/AC80),IF(R81=1,0,AB81))) -> 678 | AC80: =IF(A80>$V$22,"",IF(Q80=1,$X80,0)) -> 0 | AD80: =IF(A80>$V$22,"",IF(R80=1,$X80,0)) -> 0 | AE80: =IF(A80>$V$22,"",IF(Q80=1,AB80*AC80,IF(R81=1,0,AE81))) -> 45087 | AF80: =IF(A80>$V$22,"",IF(R80=1,AB80*AD80,0)) -> 0 | AG80: =IF(A80>$V$22,0,IF(R80=1,AF80-AE80,0)) -> 0 | AH80: =IF(A80>$V$22,0,IF(A80=$V$22,$V$5,AH81-IF(Q80=1,AE80,0)+IF(R80=1,AF80,0))) -> 1933.86 | AI80: =IF(A80>$V$22,0,IF(R80=1,0,AB80*X80)) -> 45731.1 | AJ80: 47664.96
A81: 50 | B81: =OFFSET(VIXinputData!B$10,CalculationsAndCharts!$A81+$A$11,0,1,1) -> 2012-08-01 | C81: =OFFSET(VIXinputData!G$10,CalculationsAndCharts!$A81+$A$11,0,1,1) -> 0 | D81: =OFFSET(VIXinputData!C$10,CalculationsAndCharts!$A81+$A$11,$B$28,1,1) -> 18.8 | E81: =OFFSET(VIXinputData!D$10,CalculationsAndCharts!$A81+$A$11,$B$28,1,1) -> 19.18 | F81: =OFFSET(VIXinputData!E$10,CalculationsAndCharts!$A81+$A$11,$B$28,1,1) -> 18.2 | G81: =OFFSET(VIXinputData!F$10,CalculationsAndCharts!$A81+$A$11,$B$28,1,1) -> 18.96 | H81: 18.2 | I81: 19.078 | J81: 0 | K81: 1 | L81: 0 | M81: 12 | N81: 1 | O81: 0 | P81: 1 | Q81: 0 | R81: 0 | S81: 0 | T81: 0 | U81: 0 | V81: =IF(A81>$A$8,"",MATCH(B81,OFFSET(Data4SymbolToTrade!$B$10,1,0,Data4SymbolToTrade!$B$7,1),0)) -> 50 | W81: =IF(A81>$A$8,"",OFFSET(Data4SymbolToTrade!$B$10,CalculationsAndCharts!$V81,0,1,1)) -> 2012-08-01 | X81: =IF(A81>$A$8,"",OFFSET(Data4SymbolToTrade!$C$10,CalculationsAndCharts!$V81,$B$28,1,1)) -> 69.4 | Y81: 0 | Z81: 0 | AA81: 0 | AB81: =IF(A81>$V$22,"",IF(Q81=1,INT(AH82*$V$6/AC81),IF(R82=1,0,AB82))) -> 678 | AC81: =IF(A81>$V$22,"",IF(Q81=1,$X81,0)) -> 0 | AD81: =IF(A81>$V$22,"",IF(R81=1,$X81,0)) -> 0 | AE81: =IF(A81>$V$22,"",IF(Q81=1,AB81*AC81,IF(R82=1,0,AE82))) -> 45087 | AF81: =IF(A81>$V$22,"",IF(R81=1,AB81*AD81,0)) -> 0 | AG81: =IF(A81>$V$22,0,IF(R81=1,AF81-AE81,0)) -> 0 | AH81: =IF(A81>$V$22,0,IF(A81=$V$22,$V$5,AH82-IF(Q81=1,AE81,0)+IF(R81=1,AF81,0))) -> 1933.86 | AI81: =IF(A81>$V$22,0,IF(R81=1,0,AB81*X81)) -> 47053.2 | AJ81: 48987.06
A82: 51 | B82: =OFFSET(VIXinputData!B$10,CalculationsAndCharts!$A82+$A$11,0,1,1) -> 2012-07-31 | C82: =OFFSET(VIXinputData!G$10,CalculationsAndCharts!$A82+$A$11,0,1,1) -> 0 | D82: =OFFSET(VIXinputData!C$10,CalculationsAndCharts!$A82+$A$11,$B$28,1,1) -> 18.4 | E82: =OFFSET(VIXinputData!D$10,CalculationsAndCharts!$A82+$A$11,$B$28,1,1) -> 19.09 | F82: =OFFSET(VIXinputData!E$10,CalculationsAndCharts!$A82+$A$11,$B$28,1,1) -> 18.26 | G82: =OFFSET(VIXinputData!F$10,CalculationsAndCharts!$A82+$A$11,$B$28,1,1) -> 18.93 | H82: 18.26 | I82: 19.1542 | J82: 0 | K82: 1 | L82: 0 | M82: 12 | N82: 1 | O82: 0 | P82: 1 | Q82: 0 | R82: 0 | S82: 0 | T82: 0 | U82: 0 | V82: =IF(A82>$A$8,"",MATCH(B82,OFFSET(Data4SymbolToTrade!$B$10,1,0,Data4SymbolToTrade!$B$7,1),0)) -> 51 | W82: =IF(A82>$A$8,"",OFFSET(Data4SymbolToTrade!$B$10,CalculationsAndCharts!$V82,0,1,1)) -> 2012-07-31 | X82: =IF(A82>$A$8,"",OFFSET(Data4SymbolToTrade!$C$10,CalculationsAndCharts!$V82,$B$28,1,1)) -> 69.23 | Y82: 0 | Z82: 0 | AA82: 0 | AB82: =IF(A82>$V$22,"",IF(Q82=1,INT(AH83*$V$6/AC82),IF(R83=1,0,AB83))) -> 678 | AC82: =IF(A82>$V$22,"",IF(Q82=1,$X82,0)) -> 0 | AD82: =IF(A82>$V$22,"",IF(R82=1,$X82,0)) -> 0 | AE82: =IF(A82>$V$22,"",IF(Q82=1,AB82*AC82,IF(R83=1,0,AE83))) -> 45087 | AF82: =IF(A82>$V$22,"",IF(R82=1,AB82*AD82,0)) -> 0 | AG82: =IF(A82>$V$22,0,IF(R82=1,AF82-AE82,0)) -> 0 | AH82: =IF(A82>$V$22,0,IF(A82=$V$22,$V$5,AH83-IF(Q82=1,AE82,0)+IF(R82=1,AF82,0))) -> 1933.86 | AI82: =IF(A82>$V$22,0,IF(R82=1,0,AB82*X82)) -> 46937.94 | AJ82: 48871.8
A83: 52 | B83: =OFFSET(VIXinputData!B$10,CalculationsAndCharts!$A83+$A$11,0,1,1) -> 2012-07-30 | C83: =OFFSET(VIXinputData!G$10,CalculationsAndCharts!$A83+$A$11,0,1,1) -> 0 | D83: =OFFSET(VIXinputData!C$10,CalculationsAndCharts!$A83+$A$11,$B$28,1,1) -> 17.55 | E83: =OFFSET(VIXinputData!D$10,CalculationsAndCharts!$A83+$A$11,$B$28,1,1) -> 18.08 | F83: =OFFSET(VIXinputData!E$10,CalculationsAndCharts!$A83+$A$11,$B$28,1,1) -> 17.23 | G83: =OFFSET(VIXinputData!F$10,CalculationsAndCharts!$A83+$A$11,$B$28,1,1) -> 18.03 | H83: 17.23 | I83: 19.2504 | J83: 0 | K83: 1 | L83: 0 | M83: 12 | N83: 1 | O83: 0 | P83: 1 | Q83: 0 | R83: 0 | S83: 0 | T83: 0 | U83: 0 | V83: =IF(A83>$A$8,"",MATCH(B83,OFFSET(Data4SymbolToTrade!$B$10,1,0,Data4SymbolToTrade!$B$7,1),0)) -> 52 | W83: =IF(A83>$A$8,"",OFFSET(Data4SymbolToTrade!$B$10,CalculationsAndCharts!$V83,0,1,1)) -> 2012-07-30 | X83: =IF(A83>$A$8,"",OFFSET(Data4SymbolToTrade!$C$10,CalculationsAndCharts!$V83,$B$28,1,1)) -> 69.27 | Y83: 0 | Z83: 0 | AA83: 0 | AB83: =IF(A83>$V$22,"",IF(Q83=1,INT(AH84*$V$6/AC83),IF(R84=1,0,AB84))) -> 678 | AC83: =IF(A83>$V$22,"",IF(Q83=1,$X83,0)) -> 0 | AD83: =IF(A83>$V$22,"",IF(R83=1,$X83,0)) -> 0 | AE83: =IF(A83>$V$22,"",IF(Q83=1,AB83*AC83,IF(R84=1,0,AE84))) -> 45087 | AF83: =IF(A83>$V$22,"",IF(R83=1,AB83*AD83,0)) -> 0 | AG83: =IF(A83>$V$22,0,IF(R83=1,AF83-AE83,0)) -> 0 | AH83: =IF(A83>$V$22,0,IF(A83=$V$22,$V$5,AH84-IF(Q83=1,AE83,0)+IF(R83=1,AF83,0))) -> 1933.86 | AI83: =IF(A83>$V$22,0,IF(R83=1,0,AB83*X83)) -> 46965.06 | AJ83: 48898.92
A84: 53 | B84: =OFFSET(VIXinputData!B$10,CalculationsAndCharts!$A84+$A$11,0,1,1) -> 2012-07-27 | C84: =OFFSET(VIXinputData!G$10,CalculationsAndCharts!$A84+$A$11,0,1,1) -> 0 | D84: =OFFSET(VIXinputData!C$10,CalculationsAndCharts!$A84+$A$11,$B$28,1,1) -> 17.11 | E84: =OFFSET(VIXinputData!D$10,CalculationsAndCharts!$A84+$A$11,$B$28,1,1) -> 17.3 | F84: =OFFSET(VIXinputData!E$10,CalculationsAndCharts!$A84+$A$11,$B$28,1,1) -> 16.52 | G84: =OFFSET(VIXinputData!F$10,CalculationsAndCharts!$A84+$A$11,$B$28,1,1) -> 16.7 | H84: 16.52 | I84: 19.3432 | J84: 0 | K84: 1 | L84: 0 | M84: 12 | N84: 1 | O84: 0 | P84: 1 | Q84: 0 | R84: 0 | S84: 0 | T84: 0 | U84: 0 | V84: =IF(A84>$A$8,"",MATCH(B84,OFFSET(Data4SymbolToTrade!$B$10,1,0,Data4SymbolToTrade!$B$7,1),0)) -> 53 | W84: =IF(A84>$A$8,"",OFFSET(Data4SymbolToTrade!$B$10,CalculationsAndCharts!$V84,0,1,1)) -> 2012-07-27 | X84: =IF(A84>$A$8,"",OFFSET(Data4SymbolToTrade!$C$10,CalculationsAndCharts!$V84,$B$28,1,1)) -> 67.92 | Y84: 0 | Z84: 0 | AA84: 0 | AB84: =IF(A84>$V$22,"",IF(Q84=1,INT(AH85*$V$6/AC84),IF(R85=1,0,AB85))) -> 678 | AC84: =IF(A84>$V$22,"",IF(Q84=1,$X84,0)) -> 0 | AD84: =IF(A84>$V$22,"",IF(R84=1,$X84,0)) -> 0 | AE84: =IF(A84>$V$22,"",IF(Q84=1,AB84*AC84,IF(R85=1,0,AE85))) -> 45087 | AF84: =IF(A84>$V$22,"",IF(R84=1,AB84*AD84,0)) -> 0 | AG84: =IF(A84>$V$22,0,IF(R84=1,AF84-AE84,0)) -> 0 | AH84: =IF(A84>$V$22,0,IF(A84=$V$22,$V$5,AH85-IF(Q84=1,AE84,0)+IF(R84=1,AF84,0))) -> 1933.86 | AI84: =IF(A84>$V$22,0,IF(R84=1,0,AB84*X84)) -> 46049.76 | AJ84: 47983.62
A85: 54 | B85: =OFFSET(VIXinputData!B$10,CalculationsAndCharts!$A85+$A$11,0,1,1) -> 2012-07-26 | C85: =OFFSET(VIXinputData!G$10,CalculationsAndCharts!$A85+$A$11,0,1,1) -> 0 | D85: =OFFSET(VIXinputData!C$10,CalculationsAndCharts!$A85+$A$11,$B$28,1,1) -> 17.68 | E85: =OFFSET(VIXinputData!D$10,CalculationsAndCharts!$A85+$A$11,$B$28,1,1) -> 18.47 | F85: =OFFSET(VIXinputData!E$10,CalculationsAndCharts!$A85+$A$11,$B$28,1,1) -> 17.07 | G85: =OFFSET(VIXinputData!F$10,CalculationsAndCharts!$A85+$A$11,$B$28,1,1) -> 17.53 | H85: 17.07 | I85: 19.4294 | J85: 0 | K85: 1 | L85: 0 | M85: 12 | N85: 1 | O85: 0 | P85: 1 | Q85: 0 | R85: 0 | S85: 0 | T85: 0 | U85: 0 | V85: =IF(A85>$A$8,"",MATCH(B85,OFFSET(Data4SymbolToTrade!$B$10,1,0,Data4SymbolToTrade!$B$7,1),0)) -> 54 | W85: =IF(A85>$A$8,"",OFFSET(Data4SymbolToTrade!$B$10,CalculationsAndCharts!$V85,0,1,1)) -> 2012-07-26 | X85: =IF(A85>$A$8,"",OFFSET(Data4SymbolToTrade!$C$10,CalculationsAndCharts!$V85,$B$28,1,1)) -> 67.06 | Y85: 0 | Z85: 0 | AA85: 0 | AB85: =IF(A85>$V$22,"",IF(Q85=1,INT(AH86*$V$6/AC85),IF(R86=1,0,AB86))) -> 678 | AC85: =IF(A85>$V$22,"",IF(Q85=1,$X85,0)) -> 0 | AD85: =IF(A85>$V$22,"",IF(R85=1,$X85,0)) -> 0 | AE85: =IF(A85>$V$22,"",IF(Q85=1,AB85*AC85,IF(R86=1,0,AE86))) -> 45087 | AF85: =IF(A85>$V$22,"",IF(R85=1,AB85*AD85,0)) -> 0 | AG85: =IF(A85>$V$22,0,IF(R85=1,AF85-AE85,0)) -> 0 | AH85: =IF(A85>$V$22,0,IF(A85=$V$22,$V$5,AH86-IF(Q85=1,AE85,0)+IF(R85=1,AF85,0))) -> 1933.86 | AI85: =IF(A85>$V$22,0,IF(R85=1,0,AB85*X85)) -> 45466.68 | AJ85: 47400.54
A86: 55 | B86: =OFFSET(VIXinputData!B$10,CalculationsAndCharts!$A86+$A$11,0,1,1) -> 2012-07-25 | C86: =OFFSET(VIXinputData!G$10,CalculationsAndCharts!$A86+$A$11,0,1,1) -> 0 | D86: =OFFSET(VIXinputData!C$10,CalculationsAndCharts!$A86+$A$11,$B$28,1,1) -> 19.79 | E86: =OFFSET(VIXinputData!D$10,CalculationsAndCharts!$A86+$A$11,$B$28,1,1) -> 20.67 | F86: =OFFSET(VIXinputData!E$10,CalculationsAndCharts!$A86+$A$11,$B$28,1,1) -> 18.99 | G86: =OFFSET(VIXinputData!F$10,CalculationsAndCharts!$A86+$A$11,$B$28,1,1) -> 19.34 | H86: 18.99 | I86: 19.5032 | J86: 0 | K86: 1 | L86: 0 | M86: 12 | N86: 1 | O86: 0 | P86: 1 | Q86: 0 | R86: 0 | S86: 0 | T86: 0 | U86: 0 | V86: =IF(A86>$A$8,"",MATCH(B86,OFFSET(Data4SymbolToTrade!$B$10,1,0,Data4SymbolToTrade!$B$7,1),0)) -> 55 | W86: =IF(A86>$A$8,"",OFFSET(Data4SymbolToTrade!$B$10,CalculationsAndCharts!$V86,0,1,1)) -> 2012-07-25 | X86: =IF(A86>$A$8,"",OFFSET(Data4SymbolToTrade!$C$10,CalculationsAndCharts!$V86,$B$28,1,1)) -> 65.47 | Y86: 0 | Z86: 0 | AA86: 0 | AB86: =IF(A86>$V$22,"",IF(Q86=1,INT(AH87*$V$6/AC86),IF(R87=1,0,AB87))) -> 678 | AC86: =IF(A86>$V$22,"",IF(Q86=1,$X86,0)) -> 0 | AD86: =IF(A86>$V$22,"",IF(R86=1,$X86,0)) -> 0 | AE86: =IF(A86>$V$22,"",IF(Q86=1,AB86*AC86,IF(R87=1,0,AE87))) -> 45087 | AF86: =IF(A86>$V$22,"",IF(R86=1,AB86*AD86,0)) -> 0 | AG86: =IF(A86>$V$22,0,IF(R86=1,AF86-AE86,0)) -> 0 | AH86: =IF(A86>$V$22,0,IF(A86=$V$22,$V$5,AH87-IF(Q86=1,AE86,0)+IF(R86=1,AF86,0))) -> 1933.86 | AI86: =IF(A86>$V$22,0,IF(R86=1,0,AB86*X86)) -> 44388.66 | AJ86: 46322.52
A87: 56 | B87: =OFFSET(VIXinputData!B$10,CalculationsAndCharts!$A87+$A$11,0,1,1) -> 2012-07-24 | C87: =OFFSET(VIXinputData!G$10,CalculationsAndCharts!$A87+$A$11,0,1,1) -> 0 | D87: =OFFSET(VIXinputData!C$10,CalculationsAndCharts!$A87+$A$11,$B$28,1,1) -> 18.38 | E87: =OFFSET(VIXinputData!D$10,CalculationsAndCharts!$A87+$A$11,$B$28,1,1) -> 21 | F87: =OFFSET(VIXinputData!E$10,CalculationsAndCharts!$A87+$A$11,$B$28,1,1) -> 18.37 | G87: =OFFSET(VIXinputData!F$10,CalculationsAndCharts!$A87+$A$11,$B$28,1,1) -> 20.47 | H87: 18.37 | I87: 19.5422 | J87: 0 | K87: 1 | L87: 0 | M87: 12 | N87: 1 | O87: 0 | P87: 1 | Q87: 0 | R87: 0 | S87: 0 | T87: 0 | U87: 0 | V87: =IF(A87>$A$8,"",MATCH(B87,OFFSET(Data4SymbolToTrade!$B$10,1,0,Data4SymbolToTrade!$B$7,1),0)) -> 56 | W87: =IF(A87>$A$8,"",OFFSET(Data4SymbolToTrade!$B$10,CalculationsAndCharts!$V87,0,1,1)) -> 2012-07-24 | X87: =IF(A87>$A$8,"",OFFSET(Data4SymbolToTrade!$C$10,CalculationsAndCharts!$V87,$B$28,1,1)) -> 65.67 | Y87: 0 | Z87: 0 | AA87: 0 | AB87: =IF(A87>$V$22,"",IF(Q87=1,INT(AH88*$V$6/AC87),IF(R88=1,0,AB88))) -> 678 | AC87: =IF(A87>$V$22,"",IF(Q87=1,$X87,0)) -> 0 | AD87: =IF(A87>$V$22,"",IF(R87=1,$X87,0)) -> 0 | AE87: =IF(A87>$V$22,"",IF(Q87=1,AB87*AC87,IF(R88=1,0,AE88))) -> 45087 | AF87: =IF(A87>$V$22,"",IF(R87=1,AB87*AD87,0)) -> 0 | AG87: =IF(A87>$V$22,0,IF(R87=1,AF87-AE87,0)) -> 0 | AH87: =IF(A87>$V$22,0,IF(A87=$V$22,$V$5,AH88-IF(Q87=1,AE87,0)+IF(R87=1,AF87,0))) -> 1933.86 | AI87: =IF(A87>$V$22,0,IF(R87=1,0,AB87*X87)) -> 44524.26 | AJ87: 46458.12
A88: 57 | B88: =OFFSET(VIXinputData!B$10,CalculationsAndCharts!$A88+$A$11,0,1,1) -> 2012-07-23 | C88: =OFFSET(VIXinputData!G$10,CalculationsAndCharts!$A88+$A$11,0,1,1) -> 0 | D88: =OFFSET(VIXinputData!C$10,CalculationsAndCharts!$A88+$A$11,$B$28,1,1) -> 20.41 | E88: =OFFSET(VIXinputData!D$10,CalculationsAndCharts!$A88+$A$11,$B$28,1,1) -> 20.49 | F88: =OFFSET(VIXinputData!E$10,CalculationsAndCharts!$A88+$A$11,$B$28,1,1) -> 18.34 | G88: =OFFSET(VIXinputData!F$10,CalculationsAndCharts!$A88+$A$11,$B$28,1,1) -> 18.62 | H88: 18.34 | I88: 19.5472 | J88: 0 | K88: 1 | L88: 0 | M88: 12 | N88: 1 | O88: 0 | P88: 1 | Q88: 0 | R88: 0 | S88: 0 | T88: 0 | U88: 0 | V88: =IF(A88>$A$8,"",MATCH(B88,OFFSET(Data4SymbolToTrade!$B$10,1,0,Data4SymbolToTrade!$B$7,1),0)) -> 57 | W88: =IF(A88>$A$8,"",OFFSET(Data4SymbolToTrade!$B$10,CalculationsAndCharts!$V88,0,1,1)) -> 2012-07-23 | X88: =IF(A88>$A$8,"",OFFSET(Data4SymbolToTrade!$C$10,CalculationsAndCharts!$V88,$B$28,1,1)) -> 64.74 | Y88: 0 | Z88: 0 | AA88: 0 | AB88: =IF(A88>$V$22,"",IF(Q88=1,INT(AH89*$V$6/AC88),IF(R89=1,0,AB89))) -> 678 | AC88: =IF(A88>$V$22,"",IF(Q88=1,$X88,0)) -> 0 | AD88: =IF(A88>$V$22,"",IF(R88=1,$X88,0)) -> 0 | AE88: =IF(A88>$V$22,"",IF(Q88=1,AB88*AC88,IF(R89=1,0,AE89))) -> 45087 | AF88: =IF(A88>$V$22,"",IF(R88=1,AB88*AD88,0)) -> 0 | AG88: =IF(A88>$V$22,0,IF(R88=1,AF88-AE88,0)) -> 0 | AH88: =IF(A88>$V$22,0,IF(A88=$V$22,$V$5,AH89-IF(Q88=1,AE88,0)+IF(R88=1,AF88,0))) -> 1933.86 | AI88: =IF(A88>$V$22,0,IF(R88=1,0,AB88*X88)) -> 43893.72 | AJ88: 45827.58
A89: 58 | B89: =OFFSET(VIXinputData!B$10,CalculationsAndCharts!$A89+$A$11,0,1,1) -> 2012-07-20 | C89: =OFFSET(VIXinputData!G$10,CalculationsAndCharts!$A89+$A$11,0,1,1) -> 0 | D89: =OFFSET(VIXinputData!C$10,CalculationsAndCharts!$A89+$A$11,$B$28,1,1) -> 16.65 | E89: =OFFSET(VIXinputData!D$10,CalculationsAndCharts!$A89+$A$11,$B$28,1,1) -> 17.05 | F89: =OFFSET(VIXinputData!E$10,CalculationsAndCharts!$A89+$A$11,$B$28,1,1) -> 15.97 | G89: =OFFSET(VIXinputData!F$10,CalculationsAndCharts!$A89+$A$11,$B$28,1,1) -> 16.27 | H89: 15.97 | I89: 19.5558 | J89: 0 | K89: 1 | L89: 0 | M89: 12 | N89: 1 | O89: 0 | P89: 1 | Q89: 0 | R89: 0 | S89: 0 | T89: 0 | U89: 0 | V89: =IF(A89>$A$8,"",MATCH(B89,OFFSET(Data4SymbolToTrade!$B$10,1,0,Data4SymbolToTrade!$B$7,1),0)) -> 58 | W89: =IF(A89>$A$8,"",OFFSET(Data4SymbolToTrade!$B$10,CalculationsAndCharts!$V89,0,1,1)) -> 2012-07-20 | X89: =IF(A89>$A$8,"",OFFSET(Data4SymbolToTrade!$C$10,CalculationsAndCharts!$V89,$B$28,1,1)) -> 67.21 | Y89: 0 | Z89: 0 | AA89: 0 | AB89: =IF(A89>$V$22,"",IF(Q89=1,INT(AH90*$V$6/AC89),IF(R90=1,0,AB90))) -> 678 | AC89: =IF(A89>$V$22,"",IF(Q89=1,$X89,0)) -> 0 | AD89: =IF(A89>$V$22,"",IF(R89=1,$X89,0)) -> 0 | AE89: =IF(A89>$V$22,"",IF(Q89=1,AB89*AC89,IF(R90=1,0,AE90))) -> 45087 | AF89: =IF(A89>$V$22,"",IF(R89=1,AB89*AD89,0)) -> 0 | AG89: =IF(A89>$V$22,0,IF(R89=1,AF89-AE89,0)) -> 0 | AH89: =IF(A89>$V$22,0,IF(A89=$V$22,$V$5,AH90-IF(Q89=1,AE89,0)+IF(R89=1,AF89,0))) -> 1933.86 | AI89: =IF(A89>$V$22,0,IF(R89=1,0,AB89*X89)) -> 45568.38 | AJ89: 47502.24
A90: 59 | B90: =OFFSET(VIXinputData!B$10,CalculationsAndCharts!$A90+$A$11,0,1,1) -> 2012-07-19 | C90: =OFFSET(VIXinputData!G$10,CalculationsAndCharts!$A90+$A$11,0,1,1) -> 0 | D90: =OFFSET(VIXinputData!C$10,CalculationsAndCharts!$A90+$A$11,$B$28,1,1) -> 16.06 | E90: =OFFSET(VIXinputData!D$10,CalculationsAndCharts!$A90+$A$11,$B$28,1,1) -> 16.7 | F90: =OFFSET(VIXinputData!E$10,CalculationsAndCharts!$A90+$A$11,$B$28,1,1) -> 15.45 | G90: =OFFSET(VIXinputData!F$10,CalculationsAndCharts!$A90+$A$11,$B$28,1,1) -> 15.45 | H90: 15.45 | I90: 19.624 | J90: 0 | K90: 1 | L90: 0 | M90: 12 | N90: 1 | O90: 0 | P90: 1 | Q90: 0 | R90: 0 | S90: 0 | T90: 0 | U90: 0 | V90: =IF(A90>$A$8,"",MATCH(B90,OFFSET(Data4SymbolToTrade!$B$10,1,0,Data4SymbolToTrade!$B$7,1),0)) -> 59 | W90: =IF(A90>$A$8,"",OFFSET(Data4SymbolToTrade!$B$10,CalculationsAndCharts!$V90,0,1,1)) -> 2012-07-19 | X90: =IF(A90>$A$8,"",OFFSET(Data4SymbolToTrade!$C$10,CalculationsAndCharts!$V90,$B$28,1,1)) -> 68.02 | Y90: 0 | Z90: 0 | AA90: 0 | AB90: =IF(A90>$V$22,"",IF(Q90=1,INT(AH91*$V$6/AC90),IF(R91=1,0,AB91))) -> 678 | AC90: =IF(A90>$V$22,"",IF(Q90=1,$X90,0)) -> 0 | AD90: =IF(A90>$V$22,"",IF(R90=1,$X90,0)) -> 0 | AE90: =IF(A90>$V$22,"",IF(Q90=1,AB90*AC90,IF(R91=1,0,AE91))) -> 45087 | AF90: =IF(A90>$V$22,"",IF(R90=1,AB90*AD90,0)) -> 0 | AG90: =IF(A90>$V$22,0,IF(R90=1,AF90-AE90,0)) -> 0 | AH90: =IF(A90>$V$22,0,IF(A90=$V$22,$V$5,AH91-IF(Q90=1,AE90,0)+IF(R90=1,AF90,0))) -> 1933.86 | AI90: =IF(A90>$V$22,0,IF(R90=1,0,AB90*X90)) -> 46117.56 | AJ90: 48051.42
A91: 60 | B91: =OFFSET(VIXinputData!B$10,CalculationsAndCharts!$A91+$A$11,0,1,1) -> 2012-07-18 | C91: =OFFSET(VIXinputData!G$10,CalculationsAndCharts!$A91+$A$11,0,1,1) -> 0 | D91: =OFFSET(VIXinputData!C$10,CalculationsAndCharts!$A91+$A$11,$B$28,1,1) -> 16.81 | E91: =OFFSET(VIXinputData!D$10,CalculationsAndCharts!$A91+$A$11,$B$28,1,1) -> 16.81 | F91: =OFFSET(VIXinputData!E$10,CalculationsAndCharts!$A91+$A$11,$B$28,1,1) -> 15.69 | G91: =OFFSET(VIXinputData!F$10,CalculationsAndCharts!$A91+$A$11,$B$28,1,1) -> 16.16 | H91: 15.69 | I91: 19.674 | J91: 0 | K91: 1 | L91: 0 | M91: 12 | N91: 1 | O91: 0 | P91: 1 | Q91: 0 | R91: 0 | S91: 0 | T91: 0 | U91: 0 | V91: =IF(A91>$A$8,"",MATCH(B91,OFFSET(Data4SymbolToTrade!$B$10,1,0,Data4SymbolToTrade!$B$7,1),0)) -> 60 | W91: =IF(A91>$A$8,"",OFFSET(Data4SymbolToTrade!$B$10,CalculationsAndCharts!$V91,0,1,1)) -> 2012-07-18 | X91: =IF(A91>$A$8,"",OFFSET(Data4SymbolToTrade!$C$10,CalculationsAndCharts!$V91,$B$28,1,1)) -> 66.2 | Y91: 0 | Z91: 0 | AA91: 0 | AB91: =IF(A91>$V$22,"",IF(Q91=1,INT(AH92*$V$6/AC91),IF(R92=1,0,AB92))) -> 678 | AC91: =IF(A91>$V$22,"",IF(Q91=1,$X91,0)) -> 0 | AD91: =IF(A91>$V$22,"",IF(R91=1,$X91,0)) -> 0 | AE91: =IF(A91>$V$22,"",IF(Q91=1,AB91*AC91,IF(R92=1,0,AE92))) -> 45087 | AF91: =IF(A91>$V$22,"",IF(R91=1,AB91*AD91,0)) -> 0 | AG91: =IF(A91>$V$22,0,IF(R91=1,AF91-AE91,0)) -> 0 | AH91: =IF(A91>$V$22,0,IF(A91=$V$22,$V$5,AH92-IF(Q91=1,AE91,0)+IF(R91=1,AF91,0))) -> 1933.86 | AI91: =IF(A91>$V$22,0,IF(R91=1,0,AB91*X91)) -> 44883.6 | AJ91: 46817.46
A92: 61 | B92: =OFFSET(VIXinputData!B$10,CalculationsAndCharts!$A92+$A$11,0,1,1) -> 2012-07-17 | C92: =OFFSET(VIXinputData!G$10,CalculationsAndCharts!$A92+$A$11,0,1,1) -> 0 | D92: =OFFSET(VIXinputData!C$10,CalculationsAndCharts!$A92+$A$11,$B$28,1,1) -> 16.72 | E92: =OFFSET(VIXinputData!D$10,CalculationsAndCharts!$A92+$A$11,$B$28,1,1) -> 17.46 | F92: =OFFSET(VIXinputData!E$10,CalculationsAndCharts!$A92+$A$11,$B$28,1,1) -> 16.09 | G92: =OFFSET(VIXinputData!F$10,CalculationsAndCharts!$A92+$A$11,$B$28,1,1) -> 16.48 | H92: 16.09 | I92: 19.7284 | J92: 0 | K92: 1 | L92: 0 | M92: 12 | N92: 1 | O92: 0 | P92: 1 | Q92: 0 | R92: 0 | S92: 0 | T92: 0 | U92: 0 | V92: =IF(A92>$A$8,"",MATCH(B92,OFFSET(Data4SymbolToTrade!$B$10,1,0,Data4SymbolToTrade!$B$7,1),0)) -> 61 | W92: =IF(A92>$A$8,"",OFFSET(Data4SymbolToTrade!$B$10,CalculationsAndCharts!$V92,0,1,1)) -> 2012-07-17 | X92: =IF(A92>$A$8,"",OFFSET(Data4SymbolToTrade!$C$10,CalculationsAndCharts!$V92,$B$28,1,1)) -> 66.26 | Y92: 0 | Z92: 0 | AA92: 0 | AB92: =IF(A92>$V$22,"",IF(Q92=1,INT(AH93*$V$6/AC92),IF(R93=1,0,AB93))) -> 678 | AC92: =IF(A92>$V$22,"",IF(Q92=1,$X92,0)) -> 0 | AD92: =IF(A92>$V$22,"",IF(R92=1,$X92,0)) -> 0 | AE92: =IF(A92>$V$22,"",IF(Q92=1,AB92*AC92,IF(R93=1,0,AE93))) -> 45087 | AF92: =IF(A92>$V$22,"",IF(R92=1,AB92*AD92,0)) -> 0 | AG92: =IF(A92>$V$22,0,IF(R92=1,AF92-AE92,0)) -> 0 | AH92: =IF(A92>$V$22,0,IF(A92=$V$22,$V$5,AH93-IF(Q92=1,AE92,0)+IF(R92=1,AF92,0))) -> 1933.86 | AI92: =IF(A92>$V$22,0,IF(R92=1,0,AB92*X92)) -> 44924.28 | AJ92: 46858.14
A93: 62 | B93: =OFFSET(VIXinputData!B$10,CalculationsAndCharts!$A93+$A$11,0,1,1) -> 2012-07-16 | C93: =OFFSET(VIXinputData!G$10,CalculationsAndCharts!$A93+$A$11,0,1,1) -> 0 | D93: =OFFSET(VIXinputData!C$10,CalculationsAndCharts!$A93+$A$11,$B$28,1,1) -> 17.31 | E93: =OFFSET(VIXinputData!D$10,CalculationsAndCharts!$A93+$A$11,$B$28,1,1) -> 17.32 | F93: =OFFSET(VIXinputData!E$10,CalculationsAndCharts!$A93+$A$11,$B$28,1,1) -> 16.46 | G93: =OFFSET(VIXinputData!F$10,CalculationsAndCharts!$A93+$A$11,$B$28,1,1) -> 17.11 | H93: 16.46 | I93: 19.7628 | J93: 0 | K93: 1 | L93: 0 | M93: 12 | N93: 1 | O93: 0 | P93: 1 | Q93: 0 | R93: 0 | S93: 0 | T93: 0 | U93: 0 | V93: =IF(A93>$A$8,"",MATCH(B93,OFFSET(Data4SymbolToTrade!$B$10,1,0,Data4SymbolToTrade!$B$7,1),0)) -> 62 | W93: =IF(A93>$A$8,"",OFFSET(Data4SymbolToTrade!$B$10,CalculationsAndCharts!$V93,0,1,1)) -> 2012-07-16 | X93: =IF(A93>$A$8,"",OFFSET(Data4SymbolToTrade!$C$10,CalculationsAndCharts!$V93,$B$28,1,1)) -> 65.89 | Y93: 0 | Z93: 0 | AA93: 0 | AB93: =IF(A93>$V$22,"",IF(Q93=1,INT(AH94*$V$6/AC93),IF(R94=1,0,AB94))) -> 678 | AC93: =IF(A93>$V$22,"",IF(Q93=1,$X93,0)) -> 0 | AD93: =IF(A93>$V$22,"",IF(R93=1,$X93,0)) -> 0 | AE93: =IF(A93>$V$22,"",IF(Q93=1,AB93*AC93,IF(R94=1,0,AE94))) -> 45087 | AF93: =IF(A93>$V$22,"",IF(R93=1,AB93*AD93,0)) -> 0 | AG93: =IF(A93>$V$22,0,IF(R93=1,AF93-AE93,0)) -> 0 | AH93: =IF(A93>$V$22,0,IF(A93=$V$22,$V$5,AH94-IF(Q93=1,AE93,0)+IF(R93=1,AF93,0))) -> 1933.86 | AI93: =IF(A93>$V$22,0,IF(R93=1,0,AB93*X93)) -> 44673.42 | AJ93: 46607.28
A94: 63 | B94: =OFFSET(VIXinputData!B$10,CalculationsAndCharts!$A94+$A$11,0,1,1) -> 2012-07-13 | C94: =OFFSET(VIXinputData!G$10,CalculationsAndCharts!$A94+$A$11,0,1,1) -> 0 | D94: =OFFSET(VIXinputData!C$10,CalculationsAndCharts!$A94+$A$11,$B$28,1,1) -> 17.78 | E94: =OFFSET(VIXinputData!D$10,CalculationsAndCharts!$A94+$A$11,$B$28,1,1) -> 17.82 | F94: =OFFSET(VIXinputData!E$10,CalculationsAndCharts!$A94+$A$11,$B$28,1,1) -> 16.36 | G94: =OFFSET(VIXinputData!F$10,CalculationsAndCharts!$A94+$A$11,$B$28,1,1) -> 16.74 | H94: 16.36 | I94: 19.7682 | J94: 0 | K94: 1 | L94: 0 | M94: 12 | N94: 1 | O94: 0 | P94: 1 | Q94: 0 | R94: 0 | S94: 0 | T94: 0 | U94: 0 | V94: =IF(A94>$A$8,"",MATCH(B94,OFFSET(Data4SymbolToTrade!$B$10,1,0,Data4SymbolToTrade!$B$7,1),0)) -> 63 | W94: =IF(A94>$A$8,"",OFFSET(Data4SymbolToTrade!$B$10,CalculationsAndCharts!$V94,0,1,1)) -> 2012-07-13 | X94: =IF(A94>$A$8,"",OFFSET(Data4SymbolToTrade!$C$10,CalculationsAndCharts!$V94,$B$28,1,1)) -> 64.57 | Y94: 0 | Z94: 0 | AA94: 0 | AB94: =IF(A94>$V$22,"",IF(Q94=1,INT(AH95*$V$6/AC94),IF(R95=1,0,AB95))) -> 678 | AC94: =IF(A94>$V$22,"",IF(Q94=1,$X94,0)) -> 0 | AD94: =IF(A94>$V$22,"",IF(R94=1,$X94,0)) -> 0 | AE94: =IF(A94>$V$22,"",IF(Q94=1,AB94*AC94,IF(R95=1,0,AE95))) -> 45087 | AF94: =IF(A94>$V$22,"",IF(R94=1,AB94*AD94,0)) -> 0 | AG94: =IF(A94>$V$22,0,IF(R94=1,AF94-AE94,0)) -> 0 | AH94: =IF(A94>$V$22,0,IF(A94=$V$22,$V$5,AH95-IF(Q94=1,AE94,0)+IF(R94=1,AF94,0))) -> 1933.86 | AI94: =IF(A94>$V$22,0,IF(R94=1,0,AB94*X94)) -> 43778.46 | AJ94: 45712.32
A95: 64 | B95: =OFFSET(VIXinputData!B$10,CalculationsAndCharts!$A95+$A$11,0,1,1) -> 2012-07-12 | C95: =OFFSET(VIXinputData!G$10,CalculationsAndCharts!$A95+$A$11,0,1,1) -> 0 | D95: =OFFSET(VIXinputData!C$10,CalculationsAndCharts!$A95+$A$11,$B$28,1,1) -> 18.82 | E95: =OFFSET(VIXinputData!D$10,CalculationsAndCharts!$A95+$A$11,$B$28,1,1) -> 19.51 | F95: =OFFSET(VIXinputData!E$10,CalculationsAndCharts!$A95+$A$11,$B$28,1,1) -> 17.75 | G95: =OFFSET(VIXinputData!F$10,CalculationsAndCharts!$A95+$A$11,$B$28,1,1) -> 18.36 | H95: 17.75 | I95: 19.7766 | J95: 0 | K95: 1 | L95: 0 | M95: 12 | N95: 1 | O95: 0 | P95: 1 | Q95: 0 | R95: 0 | S95: 0 | T95: 0 | U95: 0 | V95: =IF(A95>$A$8,"",MATCH(B95,OFFSET(Data4SymbolToTrade!$B$10,1,0,Data4SymbolToTrade!$B$7,1),0)) -> 64 | W95: =IF(A95>$A$8,"",OFFSET(Data4SymbolToTrade!$B$10,CalculationsAndCharts!$V95,0,1,1)) -> 2012-07-12 | X95: =IF(A95>$A$8,"",OFFSET(Data4SymbolToTrade!$C$10,CalculationsAndCharts!$V95,$B$28,1,1)) -> 63.84 | Y95: 0 | Z95: 0 | AA95: 0 | AB95: =IF(A95>$V$22,"",IF(Q95=1,INT(AH96*$V$6/AC95),IF(R96=1,0,AB96))) -> 678 | AC95: =IF(A95>$V$22,"",IF(Q95=1,$X95,0)) -> 0 | AD95: =IF(A95>$V$22,"",IF(R95=1,$X95,0)) -> 0 | AE95: =IF(A95>$V$22,"",IF(Q95=1,AB95*AC95,IF(R96=1,0,AE96))) -> 45087 | AF95: =IF(A95>$V$22,"",IF(R95=1,AB95*AD95,0)) -> 0 | AG95: =IF(A95>$V$22,0,IF(R95=1,AF95-AE95,0)) -> 0 | AH95: =IF(A95>$V$22,0,IF(A95=$V$22,$V$5,AH96-IF(Q95=1,AE95,0)+IF(R95=1,AF95,0))) -> 1933.86 | AI95: =IF(A95>$V$22,0,IF(R95=1,0,AB95*X95)) -> 43283.52 | AJ95: 45217.38
A96: 65 | B96: =OFFSET(VIXinputData!B$10,CalculationsAndCharts!$A96+$A$11,0,1,1) -> 2012-07-11 | C96: =OFFSET(VIXinputData!G$10,CalculationsAndCharts!$A96+$A$11,0,1,1) -> 0 | D96: =OFFSET(VIXinputData!C$10,CalculationsAndCharts!$A96+$A$11,$B$28,1,1) -> 17.98 | E96: =OFFSET(VIXinputData!D$10,CalculationsAndCharts!$A96+$A$11,$B$28,1,1) -> 19.17 | F96: =OFFSET(VIXinputData!E$10,CalculationsAndCharts!$A96+$A$11,$B$28,1,1) -> 17.84 | G96: =OFFSET(VIXinputData!F$10,CalculationsAndCharts!$A96+$A$11,$B$28,1,1) -> 17.95 | H96: 17.84 | I96: =AVERAGE(OFFSET(C96,0,$K$29,$A$17,1)) -> 19.7418 | J96: =IF(INDEX(D96:G96,1,$K$29)>I96,1,0) -> 0 | K96: =IF(INDEX(D96:G96,1,$K$29)<I96,1,0) -> 1 | L96: =SUM(OFFSET(J96,0,0,$A$18,1)) -> 1 | M96: =SUM(OFFSET(K96,0,0,$A$18,1)) -> 11 | N96: =IF(M97>=$A$19,1,0) -> 1 | O96: =IF(L97=$A$19,1,0) -> 0 | P96: 1 | Q96: =IF(AND(P96=1,P97=0),1,0) -> 0 | R96: 0 | S96: 0 | T96: 0 | U96: =IF($A96=$B$27,U$29,0) -> 0 | V96: =IF(A96>$A$8,"",MATCH(B96,OFFSET(Data4SymbolToTrade!$B$10,1,0,Data4SymbolToTrade!$B$7,1),0)) -> 65 | W96: =IF(A96>$A$8,"",OFFSET(Data4SymbolToTrade!$B$10,CalculationsAndCharts!$V96,0,1,1)) -> 2012-07-11 | X96: =IF(A96>$A$8,"",OFFSET(Data4SymbolToTrade!$C$10,CalculationsAndCharts!$V96,$B$28,1,1)) -> 65.15 | Y96: =IF($Q96=1,$Y$29,0) -> 0 | Z96: =IF($R96=1,$Z$29,0) -> 0 | AA96: =IF($A96=$B$27,AA$29,0) -> 0 | AB96: =IF(A96>$V$22,"",IF(Q96=1,INT(AH97*$V$6/AC96),IF(R97=1,0,AB97))) -> 678 | AC96: =IF(A96>$V$22,"",IF(Q96=1,$X96,0)) -> 0 | AD96: =IF(A96>$V$22,"",IF(R96=1,$X96,0)) -> 0 | AE96: =IF(A96>$V$22,"",IF(Q96=1,AB96*AC96,IF(R97=1,0,AE97))) -> 45087 | AF96: =IF(A96>$V$22,"",IF(R96=1,AB96*AD96,0)) -> 0 | AG96: =IF(A96>$V$22,0,IF(R96=1,AF96-AE96,0)) -> 0 | AH96: =IF(A96>$V$22,0,IF(A96=$V$22,$V$5,AH97-IF(Q96=1,AE96,0)+IF(R96=1,AF96,0))) -> 1933.86 | AI96: =IF(A96>$V$22,0,IF(R96=1,0,AB96*X96)) -> 44171.7 | AJ96: 46105.56
A97: 66 | B97: =OFFSET(VIXinputData!B$10,CalculationsAndCharts!$A97+$A$11,0,1,1) -> 2012-07-10 | C97: =OFFSET(VIXinputData!G$10,CalculationsAndCharts!$A97+$A$11,0,1,1) -> 0 | D97: =OFFSET(VIXinputData!C$10,CalculationsAndCharts!$A97+$A$11,$B$28,1,1) -> 17.51 | E97: =OFFSET(VIXinputData!D$10,CalculationsAndCharts!$A97+$A$11,$B$28,1,1) -> 19.19 | F97: =OFFSET(VIXinputData!E$10,CalculationsAndCharts!$A97+$A$11,$B$28,1,1) -> 17.29 | G97: =OFFSET(VIXinputData!F$10,CalculationsAndCharts!$A97+$A$11,$B$28,1,1) -> 18.72 | H97: =INDEX(D97:G97,$K$29) -> 17.29 | I97: 19.7234 | J97: 0 | K97: 1 | L97: 1 | M97: 11 | N97: 1 | O97: 0 | P97: =IF(AND(P98=0,N98=1),1,IF(AND(P98=1,O98=1),0,P98)) -> 1 | Q97: 0 | R97: =IF(AND(P98=1,O98=1),1,IF(AND(A97=1,P97=1),1,0)) -> 0 | S97: =IF(Q97=1,$S$29,0) -> 0 | T97: =IF(R97=1,$T$29,0) -> 0 | U97: 0 | V97: =IF(A97>$A$8,"",MATCH(B97,OFFSET(Data4SymbolToTrade!$B$10,1,0,Data4SymbolToTrade!$B$7,1),0)) -> 66 | W97: =IF(A97>$A$8,"",OFFSET(Data4SymbolToTrade!$B$10,CalculationsAndCharts!$V97,0,1,1)) -> 2012-07-10 | X97: =IF(A97>$A$8,"",OFFSET(Data4SymbolToTrade!$C$10,CalculationsAndCharts!$V97,$B$28,1,1)) -> 66.69 | Y97: 0 | Z97: 0 | AA97: 0 | AB97: =IF(A97>$V$22,"",IF(Q97=1,INT(AH98*$V$6/AC97),IF(R98=1,0,AB98))) -> 678 | AC97: =IF(A97>$V$22,"",IF(Q97=1,$X97,0)) -> 0 | AD97: =IF(A97>$V$22,"",IF(R97=1,$X97,0)) -> 0 | AE97: =IF(A97>$V$22,"",IF(Q97=1,AB97*AC97,IF(R98=1,0,AE98))) -> 45087 | AF97: =IF(A97>$V$22,"",IF(R97=1,AB97*AD97,0)) -> 0 | AG97: =IF(A97>$V$22,0,IF(R97=1,AF97-AE97,0)) -> 0 | AH97: =IF(A97>$V$22,0,IF(A97=$V$22,$V$5,AH98-IF(Q97=1,AE97,0)+IF(R97=1,AF97,0))) -> 1933.86 | AI97: =IF(A97>$V$22,0,IF(R97=1,0,AB97*X97)) -> 45215.82 | AJ97: 47149.68
A98: 67 | B98: =OFFSET(VIXinputData!B$10,CalculationsAndCharts!$A98+$A$11,0,1,1) -> 2012-07-09 | C98: =OFFSET(VIXinputData!G$10,CalculationsAndCharts!$A98+$A$11,0,1,1) -> 0 | D98: =OFFSET(VIXinputData!C$10,CalculationsAndCharts!$A98+$A$11,$B$28,1,1) -> 18.17 | E98: =OFFSET(VIXinputData!D$10,CalculationsAndCharts!$A98+$A$11,$B$28,1,1) -> 18.32 | F98: =OFFSET(VIXinputData!E$10,CalculationsAndCharts!$A98+$A$11,$B$28,1,1) -> 17.73 | G98: =OFFSET(VIXinputData!F$10,CalculationsAndCharts!$A98+$A$11,$B$28,1,1) -> 18.05 | H98: 17.73 | I98: 19.6942 | J98: 0 | K98: 1 | L98: 1 | M98: 11 | N98: 1 | O98: 0 | P98: 1 | Q98: 0 | R98: 0 | S98: 0 | T98: 0 | U98: 0 | V98: =IF(A98>$A$8,"",MATCH(B98,OFFSET(Data4SymbolToTrade!$B$10,1,0,Data4SymbolToTrade!$B$7,1),0)) -> 67 | W98: =IF(A98>$A$8,"",OFFSET(Data4SymbolToTrade!$B$10,CalculationsAndCharts!$V98,0,1,1)) -> 2012-07-09 | X98: =IF(A98>$A$8,"",OFFSET(Data4SymbolToTrade!$C$10,CalculationsAndCharts!$V98,$B$28,1,1)) -> 66.13 | Y98: 0 | Z98: 0 | AA98: 0 | AB98: =IF(A98>$V$22,"",IF(Q98=1,INT(AH99*$V$6/AC98),IF(R99=1,0,AB99))) -> 678 | AC98: =IF(A98>$V$22,"",IF(Q98=1,$X98,0)) -> 0 | AD98: =IF(A98>$V$22,"",IF(R98=1,$X98,0)) -> 0 | AE98: =IF(A98>$V$22,"",IF(Q98=1,AB98*AC98,IF(R99=1,0,AE99))) -> 45087 | AF98: =IF(A98>$V$22,"",IF(R98=1,AB98*AD98,0)) -> 0 | AG98: =IF(A98>$V$22,0,IF(R98=1,AF98-AE98,0)) -> 0 | AH98: =IF(A98>$V$22,0,IF(A98=$V$22,$V$5,AH99-IF(Q98=1,AE98,0)+IF(R98=1,AF98,0))) -> 1933.86 | AI98: =IF(A98>$V$22,0,IF(R98=1,0,AB98*X98)) -> 44836.14 | AJ98: 46770
A99: 68 | B99: =OFFSET(VIXinputData!B$10,CalculationsAndCharts!$A99+$A$11,0,1,1) -> 2012-07-06 | C99: =OFFSET(VIXinputData!G$10,CalculationsAndCharts!$A99+$A$11,0,1,1) -> 0 | D99: =OFFSET(VIXinputData!C$10,CalculationsAndCharts!$A99+$A$11,$B$28,1,1) -> 18.2 | E99: =OFFSET(VIXinputData!D$10,CalculationsAndCharts!$A99+$A$11,$B$28,1,1) -> 18.25 | F99: =OFFSET(VIXinputData!E$10,CalculationsAndCharts!$A99+$A$11,$B$28,1,1) -> 16.95 | G99: =OFFSET(VIXinputData!F$10,CalculationsAndCharts!$A99+$A$11,$B$28,1,1) -> 17.1 | H99: 16.95 | I99: 19.6546 | J99: 0 | K99: 1 | L99: 1 | M99: 11 | N99: 1 | O99: 0 | P99: 1 | Q99: 1 | R99: 0 | S99: 75 | T99: 0 | U99: 0 | V99: =IF(A99>$A$8,"",MATCH(B99,OFFSET(Data4SymbolToTrade!$B$10,1,0,Data4SymbolToTrade!$B$7,1),0)) -> 68 | W99: =IF(A99>$A$8,"",OFFSET(Data4SymbolToTrade!$B$10,CalculationsAndCharts!$V99,0,1,1)) -> 2012-07-06 | X99: =IF(A99>$A$8,"",OFFSET(Data4SymbolToTrade!$C$10,CalculationsAndCharts!$V99,$B$28,1,1)) -> 66.5 | Y99: 106 | Z99: 0 | AA99: 0 | AB99: =IF(A99>$V$22,"",IF(Q99=1,INT(AH100*$V$6/AC99),IF(R100=1,0,AB100))) -> 678 | AC99: =IF(A99>$V$22,"",IF(Q99=1,$X99,0)) -> 66.5 | AD99: =IF(A99>$V$22,"",IF(R99=1,$X99,0)) -> 0 | AE99: =IF(A99>$V$22,"",IF(Q99=1,AB99*AC99,IF(R100=1,0,AE100))) -> 45087 | AF99: =IF(A99>$V$22,"",IF(R99=1,AB99*AD99,0)) -> 0 | AG99: =IF(A99>$V$22,0,IF(R99=1,AF99-AE99,0)) -> 0 | AH99: =IF(A99>$V$22,0,IF(A99=$V$22,$V$5,AH100-IF(Q99=1,AE99,0)+IF(R99=1,AF99,0))) -> 1933.86 | AI99: =IF(A99>$V$22,0,IF(R99=1,0,AB99*X99)) -> 45087 | AJ99: 47020.86
A100: 69 | B100: =OFFSET(VIXinputData!B$10,CalculationsAndCharts!$A100+$A$11,0,1,1) -> 2012-07-05 | C100: =OFFSET(VIXinputData!G$10,CalculationsAndCharts!$A100+$A$11,0,1,1) -> 0 | D100: =OFFSET(VIXinputData!C$10,CalculationsAndCharts!$A100+$A$11,$B$28,1,1) -> 17.61 | E100: =OFFSET(VIXinputData!D$10,CalculationsAndCharts!$A100+$A$11,$B$28,1,1) -> 18.22 | F100: =OFFSET(VIXinputData!E$10,CalculationsAndCharts!$A100+$A$11,$B$28,1,1) -> 17.18 | G100: =OFFSET(VIXinputData!F$10,CalculationsAndCharts!$A100+$A$11,$B$28,1,1) -> 17.5 | H100: 17.18 | I100: 19.652 | J100: 0 | K100: 1 | L100: 1 | M100: 11 | N100: 1 | O100: 0 | P100: 0 | Q100: 0 | R100: 0 | S100: 0 | T100: 0 | U100: 0 | V100: =IF(A100>$A$8,"",MATCH(B100,OFFSET(Data4SymbolToTrade!$B$10,1,0,Data4SymbolToTrade!$B$7,1),0)) -> 69 | W100: =IF(A100>$A$8,"",OFFSET(Data4SymbolToTrade!$B$10,CalculationsAndCharts!$V100,0,1,1)) -> 2012-07-05 | X100: =IF(A100>$A$8,"",OFFSET(Data4SymbolToTrade!$C$10,CalculationsAndCharts!$V100,$B$28,1,1)) -> 67.44 | Y100: 0 | Z100: 0 | AA100: 0 | AB100: =IF(A100>$V$22,"",IF(Q100=1,INT(AH101*$V$6/AC100),IF(R101=1,0,AB101))) -> 0 | AC100: =IF(A100>$V$22,"",IF(Q100=1,$X100,0)) -> 0 | AD100: =IF(A100>$V$22,"",IF(R100=1,$X100,0)) -> 0 | AE100: =IF(A100>$V$22,"",IF(Q100=1,AB100*AC100,IF(R101=1,0,AE101))) -> 0 | AF100: =IF(A100>$V$22,"",IF(R100=1,AB100*AD100,0)) -> 0 | AG100: =IF(A100>$V$22,0,IF(R100=1,AF100-AE100,0)) -> 0 | AH100: =IF(A100>$V$22,0,IF(A100=$V$22,$V$5,AH101-IF(Q100=1,AE100,0)+IF(R100=1,AF100,0))) -> 47020.86 | AI100: =IF(A100>$V$22,0,IF(R100=1,0,AB100*X100)) -> 0 | AJ100: 47020.86
A101: 70 | B101: =OFFSET(VIXinputData!B$10,CalculationsAndCharts!$A101+$A$11,0,1,1) -> 2012-07-03 | C101: =OFFSET(VIXinputData!G$10,CalculationsAndCharts!$A101+$A$11,0,1,1) -> 0 | D101: =OFFSET(VIXinputData!C$10,CalculationsAndCharts!$A101+$A$11,$B$28,1,1) -> 16.67 | E101: =OFFSET(VIXinputData!D$10,CalculationsAndCharts!$A101+$A$11,$B$28,1,1) -> 16.92 | F101: =OFFSET(VIXinputData!E$10,CalculationsAndCharts!$A101+$A$11,$B$28,1,1) -> 16.27 | G101: =OFFSET(VIXinputData!F$10,CalculationsAndCharts!$A101+$A$11,$B$28,1,1) -> 16.66 | H101: 16.27 | I101: 19.6702 | J101: 0 | K101: 1 | L101: 1 | M101: 11 | N101: 0 | O101: 0 | P101: 0 | Q101: 0 | R101: 0 | S101: 0 | T101: 0 | U101: 0 | V101: =IF(A101>$A$8,"",MATCH(B101,OFFSET(Data4SymbolToTrade!$B$10,1,0,Data4SymbolToTrade!$B$7,1),0)) -> 70 | W101: =IF(A101>$A$8,"",OFFSET(Data4SymbolToTrade!$B$10,CalculationsAndCharts!$V101,0,1,1)) -> 2012-07-03 | X101: =IF(A101>$A$8,"",OFFSET(Data4SymbolToTrade!$C$10,CalculationsAndCharts!$V101,$B$28,1,1)) -> 67.14 | Y101: 0 | Z101: 0 | AA101: 0 | AB101: =IF(A101>$V$22,"",IF(Q101=1,INT(AH102*$V$6/AC101),IF(R102=1,0,AB102))) -> 0 | AC101: =IF(A101>$V$22,"",IF(Q101=1,$X101,0)) -> 0 | AD101: =IF(A101>$V$22,"",IF(R101=1,$X101,0)) -> 0 | AE101: =IF(A101>$V$22,"",IF(Q101=1,AB101*AC101,IF(R102=1,0,AE102))) -> 0 | AF101: =IF(A101>$V$22,"",IF(R101=1,AB101*AD101,0)) -> 0 | AG101: =IF(A101>$V$22,0,IF(R101=1,AF101-AE101,0)) -> 0 | AH101: =IF(A101>$V$22,0,IF(A101=$V$22,$V$5,AH102-IF(Q101=1,AE101,0)+IF(R101=1,AF101,0))) -> 47020.86 | AI101: =IF(A101>$V$22,0,IF(R101=1,0,AB101*X101)) -> 0 | AJ101: 47020.86
A102: 71 | B102: =OFFSET(VIXinputData!B$10,CalculationsAndCharts!$A102+$A$11,0,1,1) -> 2012-07-02 | C102: =OFFSET(VIXinputData!G$10,CalculationsAndCharts!$A102+$A$11,0,1,1) -> 0 | D102: =OFFSET(VIXinputData!C$10,CalculationsAndCharts!$A102+$A$11,$B$28,1,1) -> 17.62 | E102: =OFFSET(VIXinputData!D$10,CalculationsAndCharts!$A102+$A$11,$B$28,1,1) -> 18.19 | F102: =OFFSET(VIXinputData!E$10,CalculationsAndCharts!$A102+$A$11,$B$28,1,1) -> 16.66 | G102: =OFFSET(VIXinputData!F$10,CalculationsAndCharts!$A102+$A$11,$B$28,1,1) -> 16.8 | H102: 16.66 | I102: 19.7238 | J102: 0 | K102: 1 | L102: 2 | M102: 10 | N102: 0 | O102: 0 | P102: 0 | Q102: 0 | R102: 0 | S102: 0 | T102: 0 | U102: 0 | V102: =IF(A102>$A$8,"",MATCH(B102,OFFSET(Data4SymbolToTrade!$B$10,1,0,Data4SymbolToTrade!$B$7,1),0)) -> 71 | W102: =IF(A102>$A$8,"",OFFSET(Data4SymbolToTrade!$B$10,CalculationsAndCharts!$V102,0,1,1)) -> 2012-07-02 | X102: =IF(A102>$A$8,"",OFFSET(Data4SymbolToTrade!$C$10,CalculationsAndCharts!$V102,$B$28,1,1)) -> 67.45 | Y102: 0 | Z102: 0 | AA102: 0 | AB102: =IF(A102>$V$22,"",IF(Q102=1,INT(AH103*$V$6/AC102),IF(R103=1,0,AB103))) -> 0 | AC102: =IF(A102>$V$22,"",IF(Q102=1,$X102,0)) -> 0 | AD102: =IF(A102>$V$22,"",IF(R102=1,$X102,0)) -> 0 | AE102: =IF(A102>$V$22,"",IF(Q102=1,AB102*AC102,IF(R103=1,0,AE103))) -> 0 | AF102: =IF(A102>$V$22,"",IF(R102=1,AB102*AD102,0)) -> 0 | AG102: =IF(A102>$V$22,0,IF(R102=1,AF102-AE102,0)) -> 0 | AH102: =IF(A102>$V$22,0,IF(A102=$V$22,$V$5,AH103-IF(Q102=1,AE102,0)+IF(R102=1,AF102,0))) -> 47020.86 | AI102: =IF(A102>$V$22,0,IF(R102=1,0,AB102*X102)) -> 0 | AJ102: 47020.86
A103: 72 | B103: =OFFSET(VIXinputData!B$10,CalculationsAndCharts!$A103+$A$11,0,1,1) -> 2012-06-29 | C103: =OFFSET(VIXinputData!G$10,CalculationsAndCharts!$A103+$A$11,0,1,1) -> 0 | D103: =OFFSET(VIXinputData!C$10,CalculationsAndCharts!$A103+$A$11,$B$28,1,1) -> 17.52 | E103: =OFFSET(VIXinputData!D$10,CalculationsAndCharts!$A103+$A$11,$B$28,1,1) -> 18.31 | F103: =OFFSET(VIXinputData!E$10,CalculationsAndCharts!$A103+$A$11,$B$28,1,1) -> 16.87 | G103: =OFFSET(VIXinputData!F$10,CalculationsAndCharts!$A103+$A$11,$B$28,1,1) -> 17.08 | H103: 16.87 | I103: 19.73 | J103: 0 | K103: 1 | L103: 3 | M103: 9 | N103: 0 | O103: 0 | P103: 0 | Q103: 0 | R103: 0 | S103: 0 | T103: 0 | U103: 0 | V103: =IF(A103>$A$8,"",MATCH(B103,OFFSET(Data4SymbolToTrade!$B$10,1,0,Data4SymbolToTrade!$B$7,1),0)) -> 72 | W103: =IF(A103>$A$8,"",OFFSET(Data4SymbolToTrade!$B$10,CalculationsAndCharts!$V103,0,1,1)) -> 2012-06-29 | X103: =IF(A103>$A$8,"",OFFSET(Data4SymbolToTrade!$C$10,CalculationsAndCharts!$V103,$B$28,1,1)) -> 66.52 | Y103: 0 | Z103: 0 | AA103: 0 | AB103: =IF(A103>$V$22,"",IF(Q103=1,INT(AH104*$V$6/AC103),IF(R104=1,0,AB104))) -> 0 | AC103: =IF(A103>$V$22,"",IF(Q103=1,$X103,0)) -> 0 | AD103: =IF(A103>$V$22,"",IF(R103=1,$X103,0)) -> 0 | AE103: =IF(A103>$V$22,"",IF(Q103=1,AB103*AC103,IF(R104=1,0,AE104))) -> 0 | AF103: =IF(A103>$V$22,"",IF(R103=1,AB103*AD103,0)) -> 0 | AG103: =IF(A103>$V$22,0,IF(R103=1,AF103-AE103,0)) -> 0 | AH103: =IF(A103>$V$22,0,IF(A103=$V$22,$V$5,AH104-IF(Q103=1,AE103,0)+IF(R103=1,AF103,0))) -> 47020.86 | AI103: =IF(A103>$V$22,0,IF(R103=1,0,AB103*X103)) -> 0 | AJ103: =AH103+AI103 -> 47020.86
A104: 73 | B104: =OFFSET(VIXinputData!B$10,CalculationsAndCharts!$A104+$A$11,0,1,1) -> 2012-06-28 | C104: =OFFSET(VIXinputData!G$10,CalculationsAndCharts!$A104+$A$11,0,1,1) -> 0 | D104: =OFFSET(VIXinputData!C$10,CalculationsAndCharts!$A104+$A$11,$B$28,1,1) -> 20.33 | E104: =OFFSET(VIXinputData!D$10,CalculationsAndCharts!$A104+$A$11,$B$28,1,1) -> 21.19 | F104: =OFFSET(VIXinputData!E$10,CalculationsAndCharts!$A104+$A$11,$B$28,1,1) -> 19.6 | G104: =OFFSET(VIXinputData!F$10,CalculationsAndCharts!$A104+$A$11,$B$28,1,1) -> 19.71 | H104: 19.6 | I104: 19.7464 | J104: 0 | K104: 1 | L104: 4 | M104: 8 | N104: 0 | O104: 0 | P104: 0 | Q104: 0 | R104: 0 | S104: 0 | T104: 0 | U104: 0 | V104: =IF(A104>$A$8,"",MATCH(B104,OFFSET(Data4SymbolToTrade!$B$10,1,0,Data4SymbolToTrade!$B$7,1),0)) -> 73 | W104: =IF(A104>$A$8,"",OFFSET(Data4SymbolToTrade!$B$10,CalculationsAndCharts!$V104,0,1,1)) -> 2012-06-28 | X104: =IF(A104>$A$8,"",OFFSET(Data4SymbolToTrade!$C$10,CalculationsAndCharts!$V104,$B$28,1,1)) -> 63.66 | Y104: 0 | Z104: 0 | AA104: 0 | AB104: =IF(A104>$V$22,"",IF(Q104=1,INT(AH105*$V$6/AC104),IF(R105=1,0,AB105))) -> 0 | AC104: =IF(A104>$V$22,"",IF(Q104=1,$X104,0)) -> 0 | AD104: =IF(A104>$V$22,"",IF(R104=1,$X104,0)) -> 0 | AE104: =IF(A104>$V$22,"",IF(Q104=1,AB104*AC104,IF(R105=1,0,AE105))) -> 0 | AF104: =IF(A104>$V$22,"",IF(R104=1,AB104*AD104,0)) -> 0 | AG104: =IF(A104>$V$22,0,IF(R104=1,AF104-AE104,0)) -> 0 | AH104: =IF(A104>$V$22,0,IF(A104=$V$22,$V$5,AH105-IF(Q104=1,AE104,0)+IF(R104=1,AF104,0))) -> 47020.86 | AI104: =IF(A104>$V$22,0,IF(R104=1,0,AB104*X104)) -> 0 | AJ104: 47020.86
A105: 74 | B105: =OFFSET(VIXinputData!B$10,CalculationsAndCharts!$A105+$A$11,0,1,1) -> 2012-06-27 | C105: =OFFSET(VIXinputData!G$10,CalculationsAndCharts!$A105+$A$11,0,1,1) -> 0 | D105: =OFFSET(VIXinputData!C$10,CalculationsAndCharts!$A105+$A$11,$B$28,1,1) -> 19.55 | E105: =OFFSET(VIXinputData!D$10,CalculationsAndCharts!$A105+$A$11,$B$28,1,1) -> 20.12 | F105: =OFFSET(VIXinputData!E$10,CalculationsAndCharts!$A105+$A$11,$B$28,1,1) -> 19.38 | G105: =OFFSET(VIXinputData!F$10,CalculationsAndCharts!$A105+$A$11,$B$28,1,1) -> 19.45 | H105: 19.38 | I105: 19.7084 | J105: 0 | K105: 1 | L105: 5 | M105: 7 | N105: 0 | O105: 0 | P105: 0 | Q105: 0 | R105: 0 | S105: 0 | T105: 0 | U105: 0 | V105: =IF(A105>$A$8,"",MATCH(B105,OFFSET(Data4SymbolToTrade!$B$10,1,0,Data4SymbolToTrade!$B$7,1),0)) -> 74 | W105: =IF(A105>$A$8,"",OFFSET(Data4SymbolToTrade!$B$10,CalculationsAndCharts!$V105,0,1,1)) -> 2012-06-27 | X105: =IF(A105>$A$8,"",OFFSET(Data4SymbolToTrade!$C$10,CalculationsAndCharts!$V105,$B$28,1,1)) -> 64.14 | Y105: 0 | Z105: 0 | AA105: 0 | AB105: =IF(A105>$V$22,"",IF(Q105=1,INT(AH106*$V$6/AC105),IF(R106=1,0,AB106))) -> 0 | AC105: =IF(A105>$V$22,"",IF(Q105=1,$X105,0)) -> 0 | AD105: =IF(A105>$V$22,"",IF(R105=1,$X105,0)) -> 0 | AE105: =IF(A105>$V$22,"",IF(Q105=1,AB105*AC105,IF(R106=1,0,AE106))) -> 0 | AF105: =IF(A105>$V$22,"",IF(R105=1,AB105*AD105,0)) -> 0 | AG105: =IF(A105>$V$22,0,IF(R105=1,AF105-AE105,0)) -> 0 | AH105: =IF(A105>$V$22,0,IF(A105=$V$22,$V$5,AH106-IF(Q105=1,AE105,0)+IF(R105=1,AF105,0))) -> 47020.86 | AI105: =IF(A105>$V$22,0,IF(R105=1,0,AB105*X105)) -> 0 | AJ105: 47020.86
A106: 75 | B106: =OFFSET(VIXinputData!B$10,CalculationsAndCharts!$A106+$A$11,0,1,1) -> 2012-06-26 | C106: =OFFSET(VIXinputData!G$10,CalculationsAndCharts!$A106+$A$11,0,1,1) -> 0 | D106: =OFFSET(VIXinputData!C$10,CalculationsAndCharts!$A106+$A$11,$B$28,1,1) -> 20.01 | E106: =OFFSET(VIXinputData!D$10,CalculationsAndCharts!$A106+$A$11,$B$28,1,1) -> 20.57 | F106: =OFFSET(VIXinputData!E$10,CalculationsAndCharts!$A106+$A$11,$B$28,1,1) -> 19.42 | G106: =OFFSET(VIXinputData!F$10,CalculationsAndCharts!$A106+$A$11,$B$28,1,1) -> 19.72 | H106: 19.42 | I106: 19.6724 | J106: 0 | K106: 1 | L106: 6 | M106: 6 | N106: 0 | O106: 0 | P106: 0 | Q106: 0 | R106: 0 | S106: 0 | T106: 0 | U106: 0 | V106: =IF(A106>$A$8,"",MATCH(B106,OFFSET(Data4SymbolToTrade!$B$10,1,0,Data4SymbolToTrade!$B$7,1),0)) -> 75 | W106: =IF(A106>$A$8,"",OFFSET(Data4SymbolToTrade!$B$10,CalculationsAndCharts!$V106,0,1,1)) -> 2012-06-26 | X106: =IF(A106>$A$8,"",OFFSET(Data4SymbolToTrade!$C$10,CalculationsAndCharts!$V106,$B$28,1,1)) -> 63.77 | Y106: 0 | Z106: 0 | AA106: 0 | AB106: =IF(A106>$V$22,"",IF(Q106=1,INT(AH107*$V$6/AC106),IF(R107=1,0,AB107))) -> 0 | AC106: =IF(A106>$V$22,"",IF(Q106=1,$X106,0)) -> 0 | AD106: =IF(A106>$V$22,"",IF(R106=1,$X106,0)) -> 0 | AE106: =IF(A106>$V$22,"",IF(Q106=1,AB106*AC106,IF(R107=1,0,AE107))) -> 0 | AF106: =IF(A106>$V$22,"",IF(R106=1,AB106*AD106,0)) -> 0 | AG106: =IF(A106>$V$22,0,IF(R106=1,AF106-AE106,0)) -> 0 | AH106: =IF(A106>$V$22,0,IF(A106=$V$22,$V$5,AH107-IF(Q106=1,AE106,0)+IF(R106=1,AF106,0))) -> 47020.86 | AI106: =IF(A106>$V$22,0,IF(R106=1,0,AB106*X106)) -> 0 | AJ106: 47020.86
A107: 76 | B107: =OFFSET(VIXinputData!B$10,CalculationsAndCharts!$A107+$A$11,0,1,1) -> 2012-06-25 | C107: =OFFSET(VIXinputData!G$10,CalculationsAndCharts!$A107+$A$11,0,1,1) -> 0 | D107: =OFFSET(VIXinputData!C$10,CalculationsAndCharts!$A107+$A$11,$B$28,1,1) -> 20.47 | E107: =OFFSET(VIXinputData!D$10,CalculationsAndCharts!$A107+$A$11,$B$28,1,1) -> 21.36 | F107: =OFFSET(VIXinputData!E$10,CalculationsAndCharts!$A107+$A$11,$B$28,1,1) -> 19.89 | G107: =OFFSET(VIXinputData!F$10,CalculationsAndCharts!$A107+$A$11,$B$28,1,1) -> 20.38 | H107: 19.89 | I107: 19.656 | J107: 1 | K107: 0 | L107: 7 | M107: 5 | N107: 0 | O107: 0 | P107: 0 | Q107: 0 | R107: 0 | S107: 0 | T107: 0 | U107: 0 | V107: =IF(A107>$A$8,"",MATCH(B107,OFFSET(Data4SymbolToTrade!$B$10,1,0,Data4SymbolToTrade!$B$7,1),0)) -> 76 | W107: =IF(A107>$A$8,"",OFFSET(Data4SymbolToTrade!$B$10,CalculationsAndCharts!$V107,0,1,1)) -> 2012-06-25 | X107: =IF(A107>$A$8,"",OFFSET(Data4SymbolToTrade!$C$10,CalculationsAndCharts!$V107,$B$28,1,1)) -> 63.77 | Y107: 0 | Z107: 0 | AA107: 0 | AB107: =IF(A107>$V$22,"",IF(Q107=1,INT(AH108*$V$6/AC107),IF(R108=1,0,AB108))) -> 0 | AC107: =IF(A107>$V$22,"",IF(Q107=1,$X107,0)) -> 0 | AD107: =IF(A107>$V$22,"",IF(R107=1,$X107,0)) -> 0 | AE107: =IF(A107>$V$22,"",IF(Q107=1,AB107*AC107,IF(R108=1,0,AE108))) -> 0 | AF107: =IF(A107>$V$22,"",IF(R107=1,AB107*AD107,0)) -> 0 | AG107: =IF(A107>$V$22,0,IF(R107=1,AF107-AE107,0)) -> 0 | AH107: =IF(A107>$V$22,0,IF(A107=$V$22,$V$5,AH108-IF(Q107=1,AE107,0)+IF(R107=1,AF107,0))) -> 47020.86 | AI107: =IF(A107>$V$22,0,IF(R107=1,0,AB107*X107)) -> 0 | AJ107: 47020.86
A108: 77 | B108: =OFFSET(VIXinputData!B$10,CalculationsAndCharts!$A108+$A$11,0,1,1) -> 2012-06-22 | C108: =OFFSET(VIXinputData!G$10,CalculationsAndCharts!$A108+$A$11,0,1,1) -> 0 | D108: =OFFSET(VIXinputData!C$10,CalculationsAndCharts!$A108+$A$11,$B$28,1,1) -> 18.65 | E108: =OFFSET(VIXinputData!D$10,CalculationsAndCharts!$A108+$A$11,$B$28,1,1) -> 19.37 | F108: =OFFSET(VIXinputData!E$10,CalculationsAndCharts!$A108+$A$11,$B$28,1,1) -> 17.9 | G108: =OFFSET(VIXinputData!F$10,CalculationsAndCharts!$A108+$A$11,$B$28,1,1) -> 18.11 | H108: 17.9 | I108: 19.6152 | J108: 0 | K108: 1 | L108: 7 | M108: 5 | N108: 0 | O108: 0 | P108: 0 | Q108: 0 | R108: 0 | S108: 0 | T108: 0 | U108: 0 | V108: =IF(A108>$A$8,"",MATCH(B108,OFFSET(Data4SymbolToTrade!$B$10,1,0,Data4SymbolToTrade!$B$7,1),0)) -> 77 | W108: =IF(A108>$A$8,"",OFFSET(Data4SymbolToTrade!$B$10,CalculationsAndCharts!$V108,0,1,1)) -> 2012-06-22 | X108: =IF(A108>$A$8,"",OFFSET(Data4SymbolToTrade!$C$10,CalculationsAndCharts!$V108,$B$28,1,1)) -> 64.89 | Y108: 0 | Z108: 0 | AA108: 0 | AB108: =IF(A108>$V$22,"",IF(Q108=1,INT(AH109*$V$6/AC108),IF(R109=1,0,AB109))) -> 0 | AC108: =IF(A108>$V$22,"",IF(Q108=1,$X108,0)) -> 0 | AD108: =IF(A108>$V$22,"",IF(R108=1,$X108,0)) -> 0 | AE108: =IF(A108>$V$22,"",IF(Q108=1,AB108*AC108,IF(R109=1,0,AE109))) -> 0 | AF108: =IF(A108>$V$22,"",IF(R108=1,AB108*AD108,0)) -> 0 | AG108: =IF(A108>$V$22,0,IF(R108=1,AF108-AE108,0)) -> 0 | AH108: =IF(A108>$V$22,0,IF(A108=$V$22,$V$5,AH109-IF(Q108=1,AE108,0)+IF(R108=1,AF108,0))) -> 47020.86 | AI108: =IF(A108>$V$22,0,IF(R108=1,0,AB108*X108)) -> 0 | AJ108: 47020.86
A109: 78 | B109: =OFFSET(VIXinputData!B$10,CalculationsAndCharts!$A109+$A$11,0,1,1) -> 2012-06-21 | C109: =OFFSET(VIXinputData!G$10,CalculationsAndCharts!$A109+$A$11,0,1,1) -> 0 | D109: =OFFSET(VIXinputData!C$10,CalculationsAndCharts!$A109+$A$11,$B$28,1,1) -> 16.89 | E109: =OFFSET(VIXinputData!D$10,CalculationsAndCharts!$A109+$A$11,$B$28,1,1) -> 20.48 | F109: =OFFSET(VIXinputData!E$10,CalculationsAndCharts!$A109+$A$11,$B$28,1,1) -> 16.77 | G109: =OFFSET(VIXinputData!F$10,CalculationsAndCharts!$A109+$A$11,$B$28,1,1) -> 20.08 | H109: 16.77 | I109: 19.6012 | J109: 0 | K109: 1 | L109: 8 | M109: 4 | N109: 0 | O109: 0 | P109: 0 | Q109: 0 | R109: 0 | S109: 0 | T109: 0 | U109: 0 | V109: =IF(A109>$A$8,"",MATCH(B109,OFFSET(Data4SymbolToTrade!$B$10,1,0,Data4SymbolToTrade!$B$7,1),0)) -> 78 | W109: =IF(A109>$A$8,"",OFFSET(Data4SymbolToTrade!$B$10,CalculationsAndCharts!$V109,0,1,1)) -> 2012-06-21 | X109: =IF(A109>$A$8,"",OFFSET(Data4SymbolToTrade!$C$10,CalculationsAndCharts!$V109,$B$28,1,1)) -> 67.02 | Y109: 0 | Z109: 0 | AA109: 0 | AB109: =IF(A109>$V$22,"",IF(Q109=1,INT(AH110*$V$6/AC109),IF(R110=1,0,AB110))) -> 0 | AC109: =IF(A109>$V$22,"",IF(Q109=1,$X109,0)) -> 0 | AD109: =IF(A109>$V$22,"",IF(R109=1,$X109,0)) -> 0 | AE109: =IF(A109>$V$22,"",IF(Q109=1,AB109*AC109,IF(R110=1,0,AE110))) -> 0 | AF109: =IF(A109>$V$22,"",IF(R109=1,AB109*AD109,0)) -> 0 | AG109: =IF(A109>$V$22,0,IF(R109=1,AF109-AE109,0)) -> 0 | AH109: =IF(A109>$V$22,0,IF(A109=$V$22,$V$5,AH110-IF(Q109=1,AE109,0)+IF(R109=1,AF109,0))) -> 47020.86 | AI109: =IF(A109>$V$22,0,IF(R109=1,0,AB109*X109)) -> 0 | AJ109: 47020.86
A110: 79 | B110: =OFFSET(VIXinputData!B$10,CalculationsAndCharts!$A110+$A$11,0,1,1) -> 2012-06-20 | C110: =OFFSET(VIXinputData!G$10,CalculationsAndCharts!$A110+$A$11,0,1,1) -> 0 | D110: =OFFSET(VIXinputData!C$10,CalculationsAndCharts!$A110+$A$11,$B$28,1,1) -> 17.96 | E110: =OFFSET(VIXinputData!D$10,CalculationsAndCharts!$A110+$A$11,$B$28,1,1) -> 20.05 | F110: =OFFSET(VIXinputData!E$10,CalculationsAndCharts!$A110+$A$11,$B$28,1,1) -> 17.09 | G110: =OFFSET(VIXinputData!F$10,CalculationsAndCharts!$A110+$A$11,$B$28,1,1) -> 17.24 | H110: 17.09 | I110: 19.6404 | J110: 0 | K110: 1 | L110: 9 | M110: 3 | N110: 0 | O110: 0 | P110: 0 | Q110: 0 | R110: 0 | S110: 0 | T110: 0 | U110: 0 | V110: =IF(A110>$A$8,"",MATCH(B110,OFFSET(Data4SymbolToTrade!$B$10,1,0,Data4SymbolToTrade!$B$7,1),0)) -> 79 | W110: =IF(A110>$A$8,"",OFFSET(Data4SymbolToTrade!$B$10,CalculationsAndCharts!$V110,0,1,1)) -> 2012-06-20 | X110: =IF(A110>$A$8,"",OFFSET(Data4SymbolToTrade!$C$10,CalculationsAndCharts!$V110,$B$28,1,1)) -> 67 | Y110: 0 | Z110: 0 | AA110: 0 | AB110: =IF(A110>$V$22,"",IF(Q110=1,INT(AH111*$V$6/AC110),IF(R111=1,0,AB111))) -> 0 | AC110: =IF(A110>$V$22,"",IF(Q110=1,$X110,0)) -> 0 | AD110: =IF(A110>$V$22,"",IF(R110=1,$X110,0)) -> 0 | AE110: =IF(A110>$V$22,"",IF(Q110=1,AB110*AC110,IF(R111=1,0,AE111))) -> 0 | AF110: =IF(A110>$V$22,"",IF(R110=1,AB110*AD110,0)) -> 0 | AG110: =IF(A110>$V$22,0,IF(R110=1,AF110-AE110,0)) -> 0 | AH110: =IF(A110>$V$22,0,IF(A110=$V$22,$V$5,AH111-IF(Q110=1,AE110,0)+IF(R110=1,AF110,0))) -> 47020.86 | AI110: =IF(A110>$V$22,0,IF(R110=1,0,AB110*X110)) -> 0 | AJ110: 47020.86
A111: 80 | B111: =OFFSET(VIXinputData!B$10,CalculationsAndCharts!$A111+$A$11,0,1,1) -> 2012-06-19 | C111: =OFFSET(VIXinputData!G$10,CalculationsAndCharts!$A111+$A$11,0,1,1) -> 0 | D111: =OFFSET(VIXinputData!C$10,CalculationsAndCharts!$A111+$A$11,$B$28,1,1) -> 17.66 | E111: =OFFSET(VIXinputData!D$10,CalculationsAndCharts!$A111+$A$11,$B$28,1,1) -> 18.62 | F111: =OFFSET(VIXinputData!E$10,CalculationsAndCharts!$A111+$A$11,$B$28,1,1) -> 17.36 | G111: =OFFSET(VIXinputData!F$10,CalculationsAndCharts!$A111+$A$11,$B$28,1,1) -> 18.38 | H111: 17.36 | I111: 19.671 | J111: 0 | K111: 1 | L111: 10 | M111: 2 | N111: 0 | O111: 1 | P111: 0 | Q111: 0 | R111: 0 | S111: 0 | T111: 0 | U111: 0 | V111: =IF(A111>$A$8,"",MATCH(B111,OFFSET(Data4SymbolToTrade!$B$10,1,0,Data4SymbolToTrade!$B$7,1),0)) -> 80 | W111: =IF(A111>$A$8,"",OFFSET(Data4SymbolToTrade!$B$10,CalculationsAndCharts!$V111,0,1,1)) -> 2012-06-19 | X111: =IF(A111>$A$8,"",OFFSET(Data4SymbolToTrade!$C$10,CalculationsAndCharts!$V111,$B$28,1,1)) -> 66.6 | Y111: 0 | Z111: 0 | AA111: 0 | AB111: =IF(A111>$V$22,"",IF(Q111=1,INT(AH112*$V$6/AC111),IF(R112=1,0,AB112))) -> 0 | AC111: =IF(A111>$V$22,"",IF(Q111=1,$X111,0)) -> 0 | AD111: =IF(A111>$V$22,"",IF(R111=1,$X111,0)) -> 0 | AE111: =IF(A111>$V$22,"",IF(Q111=1,AB111*AC111,IF(R112=1,0,AE112))) -> 0 | AF111: =IF(A111>$V$22,"",IF(R111=1,AB111*AD111,0)) -> 0 | AG111: =IF(A111>$V$22,0,IF(R111=1,AF111-AE111,0)) -> 0 | AH111: =IF(A111>$V$22,0,IF(A111=$V$22,$V$5,AH112-IF(Q111=1,AE111,0)+IF(R111=1,AF111,0))) -> 47020.86 | AI111: =IF(A111>$V$22,0,IF(R111=1,0,AB111*X111)) -> 0 | AJ111: 47020.86
A112: 81 | B112: =OFFSET(VIXinputData!B$10,CalculationsAndCharts!$A112+$A$11,0,1,1) -> 2012-06-18 | C112: =OFFSET(VIXinputData!G$10,CalculationsAndCharts!$A112+$A$11,0,1,1) -> 0 | D112: =OFFSET(VIXinputData!C$10,CalculationsAndCharts!$A112+$A$11,$B$28,1,1) -> 21.76 | E112: =OFFSET(VIXinputData!D$10,CalculationsAndCharts!$A112+$A$11,$B$28,1,1) -> 21.98 | F112: =OFFSET(VIXinputData!E$10,CalculationsAndCharts!$A112+$A$11,$B$28,1,1) -> 18.24 | G112: =OFFSET(VIXinputData!F$10,CalculationsAndCharts!$A112+$A$11,$B$28,1,1) -> 18.32 | H112: 18.24 | I112: 19.6824 | J112: 0 | K112: 1 | L112: 11 | M112: 1 | N112: 0 | O112: 0 | P112: 0 | Q112: 0 | R112: 0 | S112: 0 | T112: 0 | U112: 0 | V112: =IF(A112>$A$8,"",MATCH(B112,OFFSET(Data4SymbolToTrade!$B$10,1,0,Data4SymbolToTrade!$B$7,1),0)) -> 81 | W112: =IF(A112>$A$8,"",OFFSET(Data4SymbolToTrade!$B$10,CalculationsAndCharts!$V112,0,1,1)) -> 2012-06-18 | X112: =IF(A112>$A$8,"",OFFSET(Data4SymbolToTrade!$C$10,CalculationsAndCharts!$V112,$B$28,1,1)) -> 65.63 | Y112: 0 | Z112: 0 | AA112: 0 | AB112: =IF(A112>$V$22,"",IF(Q112=1,INT(AH113*$V$6/AC112),IF(R113=1,0,AB113))) -> 0 | AC112: =IF(A112>$V$22,"",IF(Q112=1,$X112,0)) -> 0 | AD112: =IF(A112>$V$22,"",IF(R112=1,$X112,0)) -> 0 | AE112: =IF(A112>$V$22,"",IF(Q112=1,AB112*AC112,IF(R113=1,0,AE113))) -> 0 | AF112: =IF(A112>$V$22,"",IF(R112=1,AB112*AD112,0)) -> 0 | AG112: =IF(A112>$V$22,0,IF(R112=1,AF112-AE112,0)) -> 0 | AH112: =IF(A112>$V$22,0,IF(A112=$V$22,$V$5,AH113-IF(Q112=1,AE112,0)+IF(R112=1,AF112,0))) -> 47020.86 | AI112: =IF(A112>$V$22,0,IF(R112=1,0,AB112*X112)) -> 0 | AJ112: 47020.86
A113: 82 | B113: =OFFSET(VIXinputData!B$10,CalculationsAndCharts!$A113+$A$11,0,1,1) -> 2012-06-15 | C113: =OFFSET(VIXinputData!G$10,CalculationsAndCharts!$A113+$A$11,0,1,1) -> 0 | D113: =OFFSET(VIXinputData!C$10,CalculationsAndCharts!$A113+$A$11,$B$28,1,1) -> 22.47 | E113: =OFFSET(VIXinputData!D$10,CalculationsAndCharts!$A113+$A$11,$B$28,1,1) -> 23.09 | F113: =OFFSET(VIXinputData!E$10,CalculationsAndCharts!$A113+$A$11,$B$28,1,1) -> 20.61 | G113: =OFFSET(VIXinputData!F$10,CalculationsAndCharts!$A113+$A$11,$B$28,1,1) -> 21.11 | H113: 20.61 | I113: 19.6434 | J113: 1 | K113: 0 | L113: 12 | M113: 0 | N113: 0 | O113: 0 | P113: 0 | Q113: 0 | R113: 0 | S113: 0 | T113: 0 | U113: 0 | V113: =IF(A113>$A$8,"",MATCH(B113,OFFSET(Data4SymbolToTrade!$B$10,1,0,Data4SymbolToTrade!$B$7,1),0)) -> 82 | W113: =IF(A113>$A$8,"",OFFSET(Data4SymbolToTrade!$B$10,CalculationsAndCharts!$V113,0,1,1)) -> 2012-06-15 | X113: =IF(A113>$A$8,"",OFFSET(Data4SymbolToTrade!$C$10,CalculationsAndCharts!$V113,$B$28,1,1)) -> 65.61 | Y113: 0 | Z113: 0 | AA113: 0 | AB113: =IF(A113>$V$22,"",IF(Q113=1,INT(AH114*$V$6/AC113),IF(R114=1,0,AB114))) -> 0 | AC113: =IF(A113>$V$22,"",IF(Q113=1,$X113,0)) -> 0 | AD113: =IF(A113>$V$22,"",IF(R113=1,$X113,0)) -> 0 | AE113: =IF(A113>$V$22,"",IF(Q113=1,AB113*AC113,IF(R114=1,0,AE114))) -> 0 | AF113: =IF(A113>$V$22,"",IF(R113=1,AB113*AD113,0)) -> 0 | AG113: =IF(A113>$V$22,0,IF(R113=1,AF113-AE113,0)) -> 0 | AH113: =IF(A113>$V$22,0,IF(A113=$V$22,$V$5,AH114-IF(Q113=1,AE113,0)+IF(R113=1,AF113,0))) -> 47020.86 | AI113: =IF(A113>$V$22,0,IF(R113=1,0,AB113*X113)) -> 0 | AJ113: 47020.86
A114: 83 | B114: =OFFSET(VIXinputData!B$10,CalculationsAndCharts!$A114+$A$11,0,1,1) -> 2012-06-14 | C114: =OFFSET(VIXinputData!G$10,CalculationsAndCharts!$A114+$A$11,0,1,1) -> 0 | D114: =OFFSET(VIXinputData!C$10,CalculationsAndCharts!$A114+$A$11,$B$28,1,1) -> 24.19 | E114: =OFFSET(VIXinputData!D$10,CalculationsAndCharts!$A114+$A$11,$B$28,1,1) -> 24.81 | F114: =OFFSET(VIXinputData!E$10,CalculationsAndCharts!$A114+$A$11,$B$28,1,1) -> 21.55 | G114: =OFFSET(VIXinputData!F$10,CalculationsAndCharts!$A114+$A$11,$B$28,1,1) -> 21.68 | H114: 21.55 | I114: 19.5574 | J114: 1 | K114: 0 | L114: 12 | M114: 0 | N114: 0 | O114: 0 | P114: 0 | Q114: 0 | R114: 0 | S114: 0 | T114: 0 | U114: 0 | V114: =IF(A114>$A$8,"",MATCH(B114,OFFSET(Data4SymbolToTrade!$B$10,1,0,Data4SymbolToTrade!$B$7,1),0)) -> 83 | W114: =IF(A114>$A$8,"",OFFSET(Data4SymbolToTrade!$B$10,CalculationsAndCharts!$V114,0,1,1)) -> 2012-06-14 | X114: =IF(A114>$A$8,"",OFFSET(Data4SymbolToTrade!$C$10,CalculationsAndCharts!$V114,$B$28,1,1)) -> 63.73 | Y114: 0 | Z114: 0 | AA114: 0 | AB114: =IF(A114>$V$22,"",IF(Q114=1,INT(AH115*$V$6/AC114),IF(R115=1,0,AB115))) -> 0 | AC114: =IF(A114>$V$22,"",IF(Q114=1,$X114,0)) -> 0 | AD114: =IF(A114>$V$22,"",IF(R114=1,$X114,0)) -> 0 | AE114: =IF(A114>$V$22,"",IF(Q114=1,AB114*AC114,IF(R115=1,0,AE115))) -> 0 | AF114: =IF(A114>$V$22,"",IF(R114=1,AB114*AD114,0)) -> 0 | AG114: =IF(A114>$V$22,0,IF(R114=1,AF114-AE114,0)) -> 0 | AH114: =IF(A114>$V$22,0,IF(A114=$V$22,$V$5,AH115-IF(Q114=1,AE114,0)+IF(R114=1,AF114,0))) -> 47020.86 | AI114: =IF(A114>$V$22,0,IF(R114=1,0,AB114*X114)) -> 0 | AJ114: 47020.86
A115: 84 | B115: =OFFSET(VIXinputData!B$10,CalculationsAndCharts!$A115+$A$11,0,1,1) -> 2012-06-13 | C115: =OFFSET(VIXinputData!G$10,CalculationsAndCharts!$A115+$A$11,0,1,1) -> 0 | D115: =OFFSET(VIXinputData!C$10,CalculationsAndCharts!$A115+$A$11,$B$28,1,1) -> 22.93 | E115: =OFFSET(VIXinputData!D$10,CalculationsAndCharts!$A115+$A$11,$B$28,1,1) -> 24.93 | F115: =OFFSET(VIXinputData!E$10,CalculationsAndCharts!$A115+$A$11,$B$28,1,1) -> 22.66 | G115: =OFFSET(VIXinputData!F$10,CalculationsAndCharts!$A115+$A$11,$B$28,1,1) -> 24.27 | H115: 22.66 | I115: 19.4376 | J115: 1 | K115: 0 | L115: 12 | M115: 0 | N115: 0 | O115: 0 | P115: 0 | Q115: 0 | R115: 0 | S115: 0 | T115: 0 | U115: 0 | V115: =IF(A115>$A$8,"",MATCH(B115,OFFSET(Data4SymbolToTrade!$B$10,1,0,Data4SymbolToTrade!$B$7,1),0)) -> 84 | W115: =IF(A115>$A$8,"",OFFSET(Data4SymbolToTrade!$B$10,CalculationsAndCharts!$V115,0,1,1)) -> 2012-06-13 | X115: =IF(A115>$A$8,"",OFFSET(Data4SymbolToTrade!$C$10,CalculationsAndCharts!$V115,$B$28,1,1)) -> 63.97 | Y115: 0 | Z115: 0 | AA115: 0 | AB115: =IF(A115>$V$22,"",IF(Q115=1,INT(AH116*$V$6/AC115),IF(R116=1,0,AB116))) -> 0 | AC115: =IF(A115>$V$22,"",IF(Q115=1,$X115,0)) -> 0 | AD115: =IF(A115>$V$22,"",IF(R115=1,$X115,0)) -> 0 | AE115: =IF(A115>$V$22,"",IF(Q115=1,AB115*AC115,IF(R116=1,0,AE116))) -> 0 | AF115: =IF(A115>$V$22,"",IF(R115=1,AB115*AD115,0)) -> 0 | AG115: =IF(A115>$V$22,0,IF(R115=1,AF115-AE115,0)) -> 0 | AH115: =IF(A115>$V$22,0,IF(A115=$V$22,$V$5,AH116-IF(Q115=1,AE115,0)+IF(R115=1,AF115,0))) -> 47020.86 | AI115: =IF(A115>$V$22,0,IF(R115=1,0,AB115*X115)) -> 0 | AJ115: 47020.86
A116: 85 | B116: =OFFSET(VIXinputData!B$10,CalculationsAndCharts!$A116+$A$11,0,1,1) -> 2012-06-12 | C116: =OFFSET(VIXinputData!G$10,CalculationsAndCharts!$A116+$A$11,0,1,1) -> 0 | D116: =OFFSET(VIXinputData!C$10,CalculationsAndCharts!$A116+$A$11,$B$28,1,1) -> 23.15 | E116: =OFFSET(VIXinputData!D$10,CalculationsAndCharts!$A116+$A$11,$B$28,1,1) -> 23.9 | F116: =OFFSET(VIXinputData!E$10,CalculationsAndCharts!$A116+$A$11,$B$28,1,1) -> 22.09 | G116: =OFFSET(VIXinputData!F$10,CalculationsAndCharts!$A116+$A$11,$B$28,1,1) -> 22.09 | H116: 22.09 | I116: 19.2848 | J116: 1 | K116: 0 | L116: 12 | M116: 0 | N116: 0 | O116: 0 | P116: 0 | Q116: 0 | R116: 0 | S116: 0 | T116: 0 | U116: 0 | V116: =IF(A116>$A$8,"",MATCH(B116,OFFSET(Data4SymbolToTrade!$B$10,1,0,Data4SymbolToTrade!$B$7,1),0)) -> 85 | W116: =IF(A116>$A$8,"",OFFSET(Data4SymbolToTrade!$B$10,CalculationsAndCharts!$V116,0,1,1)) -> 2012-06-12 | X116: =IF(A116>$A$8,"",OFFSET(Data4SymbolToTrade!$C$10,CalculationsAndCharts!$V116,$B$28,1,1)) -> 63.01 | Y116: 0 | Z116: 0 | AA116: 0 | AB116: =IF(A116>$V$22,"",IF(Q116=1,INT(AH117*$V$6/AC116),IF(R117=1,0,AB117))) -> 0 | AC116: =IF(A116>$V$22,"",IF(Q116=1,$X116,0)) -> 0 | AD116: =IF(A116>$V$22,"",IF(R116=1,$X116,0)) -> 0 | AE116: =IF(A116>$V$22,"",IF(Q116=1,AB116*AC116,IF(R117=1,0,AE117))) -> 0 | AF116: =IF(A116>$V$22,"",IF(R116=1,AB116*AD116,0)) -> 0 | AG116: =IF(A116>$V$22,0,IF(R116=1,AF116-AE116,0)) -> 0 | AH116: =IF(A116>$V$22,0,IF(A116=$V$22,$V$5,AH117-IF(Q116=1,AE116,0)+IF(R116=1,AF116,0))) -> 47020.86 | AI116: =IF(A116>$V$22,0,IF(R116=1,0,AB116*X116)) -> 0 | AJ116: 47020.86
A117: 86 | B117: =OFFSET(VIXinputData!B$10,CalculationsAndCharts!$A117+$A$11,0,1,1) -> 2012-06-11 | C117: =OFFSET(VIXinputData!G$10,CalculationsAndCharts!$A117+$A$11,0,1,1) -> 0 | D117: =OFFSET(VIXinputData!C$10,CalculationsAndCharts!$A117+$A$11,$B$28,1,1) -> 19.87 | E117: =OFFSET(VIXinputData!D$10,CalculationsAndCharts!$A117+$A$11,$B$28,1,1) -> 23.56 | F117: =OFFSET(VIXinputData!E$10,CalculationsAndCharts!$A117+$A$11,$B$28,1,1) -> 19.63 | G117: =OFFSET(VIXinputData!F$10,CalculationsAndCharts!$A117+$A$11,$B$28,1,1) -> 23.56 | H117: 19.63 | I117: 19.1364 | J117: 1 | K117: 0 | L117: 12 | M117: 0 | N117: 0 | O117: 0 | P117: 0 | Q117: 0 | R117: 0 | S117: 0 | T117: 0 | U117: 0 | V117: =IF(A117>$A$8,"",MATCH(B117,OFFSET(Data4SymbolToTrade!$B$10,1,0,Data4SymbolToTrade!$B$7,1),0)) -> 86 | W117: =IF(A117>$A$8,"",OFFSET(Data4SymbolToTrade!$B$10,CalculationsAndCharts!$V117,0,1,1)) -> 2012-06-11 | X117: =IF(A117>$A$8,"",OFFSET(Data4SymbolToTrade!$C$10,CalculationsAndCharts!$V117,$B$28,1,1)) -> 64.97 | Y117: 0 | Z117: 0 | AA117: 0 | AB117: =IF(A117>$V$22,"",IF(Q117=1,INT(AH118*$V$6/AC117),IF(R118=1,0,AB118))) -> 0 | AC117: =IF(A117>$V$22,"",IF(Q117=1,$X117,0)) -> 0 | AD117: =IF(A117>$V$22,"",IF(R117=1,$X117,0)) -> 0 | AE117: =IF(A117>$V$22,"",IF(Q117=1,AB117*AC117,IF(R118=1,0,AE118))) -> 0 | AF117: =IF(A117>$V$22,"",IF(R117=1,AB117*AD117,0)) -> 0 | AG117: =IF(A117>$V$22,0,IF(R117=1,AF117-AE117,0)) -> 0 | AH117: =IF(A117>$V$22,0,IF(A117=$V$22,$V$5,AH118-IF(Q117=1,AE117,0)+IF(R117=1,AF117,0))) -> 47020.86 | AI117: =IF(A117>$V$22,0,IF(R117=1,0,AB117*X117)) -> 0 | AJ117: 47020.86
A118: 87 | B118: =OFFSET(VIXinputData!B$10,CalculationsAndCharts!$A118+$A$11,0,1,1) -> 2012-06-08 | C118: =OFFSET(VIXinputData!G$10,CalculationsAndCharts!$A118+$A$11,0,1,1) -> 0 | D118: =OFFSET(VIXinputData!C$10,CalculationsAndCharts!$A118+$A$11,$B$28,1,1) -> 22.54 | E118: =OFFSET(VIXinputData!D$10,CalculationsAndCharts!$A118+$A$11,$B$28,1,1) -> 23.1 | F118: =OFFSET(VIXinputData!E$10,CalculationsAndCharts!$A118+$A$11,$B$28,1,1) -> 20.29 | G118: =OFFSET(VIXinputData!F$10,CalculationsAndCharts!$A118+$A$11,$B$28,1,1) -> 21.23 | H118: 20.29 | I118: 19.0516 | J118: 1 | K118: 0 | L118: 12 | M118: 0 | N118: 0 | O118: 0 | P118: 0 | Q118: 0 | R118: 0 | S118: 0 | T118: 0 | U118: 0 | V118: =IF(A118>$A$8,"",MATCH(B118,OFFSET(Data4SymbolToTrade!$B$10,1,0,Data4SymbolToTrade!$B$7,1),0)) -> 87 | W118: =IF(A118>$A$8,"",OFFSET(Data4SymbolToTrade!$B$10,CalculationsAndCharts!$V118,0,1,1)) -> 2012-06-08 | X118: =IF(A118>$A$8,"",OFFSET(Data4SymbolToTrade!$C$10,CalculationsAndCharts!$V118,$B$28,1,1)) -> 62.71 | Y118: 0 | Z118: 0 | AA118: 0 | AB118: =IF(A118>$V$22,"",IF(Q118=1,INT(AH119*$V$6/AC118),IF(R119=1,0,AB119))) -> 0 | AC118: =IF(A118>$V$22,"",IF(Q118=1,$X118,0)) -> 0 | AD118: =IF(A118>$V$22,"",IF(R118=1,$X118,0)) -> 0 | AE118: =IF(A118>$V$22,"",IF(Q118=1,AB118*AC118,IF(R119=1,0,AE119))) -> 0 | AF118: =IF(A118>$V$22,"",IF(R118=1,AB118*AD118,0)) -> 0 | AG118: =IF(A118>$V$22,0,IF(R118=1,AF118-AE118,0)) -> 0 | AH118: =IF(A118>$V$22,0,IF(A118=$V$22,$V$5,AH119-IF(Q118=1,AE118,0)+IF(R118=1,AF118,0))) -> 47020.86 | AI118: =IF(A118>$V$22,0,IF(R118=1,0,AB118*X118)) -> 0 | AJ118: 47020.86
A119: 88 | B119: =OFFSET(VIXinputData!B$10,CalculationsAndCharts!$A119+$A$11,0,1,1) -> 2012-06-07 | C119: =OFFSET(VIXinputData!G$10,CalculationsAndCharts!$A119+$A$11,0,1,1) -> 0 | D119: =OFFSET(VIXinputData!C$10,CalculationsAndCharts!$A119+$A$11,$B$28,1,1) -> 21 | E119: =OFFSET(VIXinputData!D$10,CalculationsAndCharts!$A119+$A$11,$B$28,1,1) -> 22.48 | F119: =OFFSET(VIXinputData!E$10,CalculationsAndCharts!$A119+$A$11,$B$28,1,1) -> 20.74 | G119: =OFFSET(VIXinputData!F$10,CalculationsAndCharts!$A119+$A$11,$B$28,1,1) -> 21.72 | H119: 20.74 | I119: 18.9538 | J119: 1 | K119: 0 | L119: 12 | M119: 0 | N119: 0 | O119: 0 | P119: 0 | Q119: 0 | R119: 0 | S119: 0 | T119: 0 | U119: 0 | V119: =IF(A119>$A$8,"",MATCH(B119,OFFSET(Data4SymbolToTrade!$B$10,1,0,Data4SymbolToTrade!$B$7,1),0)) -> 88 | W119: =IF(A119>$A$8,"",OFFSET(Data4SymbolToTrade!$B$10,CalculationsAndCharts!$V119,0,1,1)) -> 2012-06-07 | X119: =IF(A119>$A$8,"",OFFSET(Data4SymbolToTrade!$C$10,CalculationsAndCharts!$V119,$B$28,1,1)) -> 63.79 | Y119: 0 | Z119: 0 | AA119: 0 | AB119: =IF(A119>$V$22,"",IF(Q119=1,INT(AH120*$V$6/AC119),IF(R120=1,0,AB120))) -> 0 | AC119: =IF(A119>$V$22,"",IF(Q119=1,$X119,0)) -> 0 | AD119: =IF(A119>$V$22,"",IF(R119=1,$X119,0)) -> 0 | AE119: =IF(A119>$V$22,"",IF(Q119=1,AB119*AC119,IF(R120=1,0,AE120))) -> 0 | AF119: =IF(A119>$V$22,"",IF(R119=1,AB119*AD119,0)) -> 0 | AG119: =IF(A119>$V$22,0,IF(R119=1,AF119-AE119,0)) -> 0 | AH119: =IF(A119>$V$22,0,IF(A119=$V$22,$V$5,AH120-IF(Q119=1,AE119,0)+IF(R119=1,AF119,0))) -> 47020.86 | AI119: =IF(A119>$V$22,0,IF(R119=1,0,AB119*X119)) -> 0 | AJ119: 47020.86
A120: 89 | B120: =OFFSET(VIXinputData!B$10,CalculationsAndCharts!$A120+$A$11,0,1,1) -> 2012-06-06 | C120: =OFFSET(VIXinputData!G$10,CalculationsAndCharts!$A120+$A$11,0,1,1) -> 0 | D120: =OFFSET(VIXinputData!C$10,CalculationsAndCharts!$A120+$A$11,$B$28,1,1) -> 23.76 | E120: =OFFSET(VIXinputData!D$10,CalculationsAndCharts!$A120+$A$11,$B$28,1,1) -> 23.89 | F120: =OFFSET(VIXinputData!E$10,CalculationsAndCharts!$A120+$A$11,$B$28,1,1) -> 21.8 | G120: =OFFSET(VIXinputData!F$10,CalculationsAndCharts!$A120+$A$11,$B$28,1,1) -> 22.16 | H120: 21.8 | I120: 18.8218 | J120: 1 | K120: 0 | L120: 12 | M120: 0 | N120: 0 | O120: 0 | P120: 0 | Q120: 0 | R120: 0 | S120: 0 | T120: 0 | U120: 0 | V120: =IF(A120>$A$8,"",MATCH(B120,OFFSET(Data4SymbolToTrade!$B$10,1,0,Data4SymbolToTrade!$B$7,1),0)) -> 89 | W120: =IF(A120>$A$8,"",OFFSET(Data4SymbolToTrade!$B$10,CalculationsAndCharts!$V120,0,1,1)) -> 2012-06-06 | X120: =IF(A120>$A$8,"",OFFSET(Data4SymbolToTrade!$C$10,CalculationsAndCharts!$V120,$B$28,1,1)) -> 60.59 | Y120: 0 | Z120: 0 | AA120: 0 | AB120: =IF(A120>$V$22,"",IF(Q120=1,INT(AH121*$V$6/AC120),IF(R121=1,0,AB121))) -> 0 | AC120: =IF(A120>$V$22,"",IF(Q120=1,$X120,0)) -> 0 | AD120: =IF(A120>$V$22,"",IF(R120=1,$X120,0)) -> 0 | AE120: =IF(A120>$V$22,"",IF(Q120=1,AB120*AC120,IF(R121=1,0,AE121))) -> 0 | AF120: =IF(A120>$V$22,"",IF(R120=1,AB120*AD120,0)) -> 0 | AG120: =IF(A120>$V$22,0,IF(R120=1,AF120-AE120,0)) -> 0 | AH120: =IF(A120>$V$22,0,IF(A120=$V$22,$V$5,AH121-IF(Q120=1,AE120,0)+IF(R120=1,AF120,0))) -> 47020.86 | AI120: =IF(A120>$V$22,0,IF(R120=1,0,AB120*X120)) -> 0 | AJ120: 47020.86
A121: 90 | B121: =OFFSET(VIXinputData!B$10,CalculationsAndCharts!$A121+$A$11,0,1,1) -> 2012-06-05 | C121: =OFFSET(VIXinputData!G$10,CalculationsAndCharts!$A121+$A$11,0,1,1) -> 0 | D121: =OFFSET(VIXinputData!C$10,CalculationsAndCharts!$A121+$A$11,$B$28,1,1) -> 25.9 | E121: =OFFSET(VIXinputData!D$10,CalculationsAndCharts!$A121+$A$11,$B$28,1,1) -> 25.9 | F121: =OFFSET(VIXinputData!E$10,CalculationsAndCharts!$A121+$A$11,$B$28,1,1) -> 24.5 | G121: =OFFSET(VIXinputData!F$10,CalculationsAndCharts!$A121+$A$11,$B$28,1,1) -> 24.68 | H121: 24.5 | I121: 18.671 | J121: 1 | K121: 0 | L121: 12 | M121: 0 | N121: 0 | O121: 0 | P121: 0 | Q121: 0 | R121: 0 | S121: 0 | T121: 0 | U121: 0 | V121: =IF(A121>$A$8,"",MATCH(B121,OFFSET(Data4SymbolToTrade!$B$10,1,0,Data4SymbolToTrade!$B$7,1),0)) -> 90 | W121: =IF(A121>$A$8,"",OFFSET(Data4SymbolToTrade!$B$10,CalculationsAndCharts!$V121,0,1,1)) -> 2012-06-05 | X121: =IF(A121>$A$8,"",OFFSET(Data4SymbolToTrade!$C$10,CalculationsAndCharts!$V121,$B$28,1,1)) -> 59.32 | Y121: 0 | Z121: 0 | AA121: 0 | AB121: =IF(A121>$V$22,"",IF(Q121=1,INT(AH122*$V$6/AC121),IF(R122=1,0,AB122))) -> 0 | AC121: =IF(A121>$V$22,"",IF(Q121=1,$X121,0)) -> 0 | AD121: =IF(A121>$V$22,"",IF(R121=1,$X121,0)) -> 0 | AE121: =IF(A121>$V$22,"",IF(Q121=1,AB121*AC121,IF(R122=1,0,AE122))) -> 0 | AF121: =IF(A121>$V$22,"",IF(R121=1,AB121*AD121,0)) -> 0 | AG121: =IF(A121>$V$22,0,IF(R121=1,AF121-AE121,0)) -> 0 | AH121: =IF(A121>$V$22,0,IF(A121=$V$22,$V$5,AH122-IF(Q121=1,AE121,0)+IF(R121=1,AF121,0))) -> 47020.86 | AI121: =IF(A121>$V$22,0,IF(R121=1,0,AB121*X121)) -> 0 | AJ121: 47020.86
A122: 91 | B122: =OFFSET(VIXinputData!B$10,CalculationsAndCharts!$A122+$A$11,0,1,1) -> 2012-06-04 | C122: =OFFSET(VIXinputData!G$10,CalculationsAndCharts!$A122+$A$11,0,1,1) -> 0 | D122: =OFFSET(VIXinputData!C$10,CalculationsAndCharts!$A122+$A$11,$B$28,1,1) -> 26.35 | E122: =OFFSET(VIXinputData!D$10,CalculationsAndCharts!$A122+$A$11,$B$28,1,1) -> 27.73 | F122: =OFFSET(VIXinputData!E$10,CalculationsAndCharts!$A122+$A$11,$B$28,1,1) -> 25.72 | G122: =OFFSET(VIXinputData!F$10,CalculationsAndCharts!$A122+$A$11,$B$28,1,1) -> 26.12 | H122: 25.72 | I122: 18.4748 | J122: 1 | K122: 0 | L122: 12 | M122: 0 | N122: 0 | O122: 0 | P122: 0 | Q122: 0 | R122: 0 | S122: 0 | T122: 0 | U122: 0 | V122: =IF(A122>$A$8,"",MATCH(B122,OFFSET(Data4SymbolToTrade!$B$10,1,0,Data4SymbolToTrade!$B$7,1),0)) -> 91 | W122: =IF(A122>$A$8,"",OFFSET(Data4SymbolToTrade!$B$10,CalculationsAndCharts!$V122,0,1,1)) -> 2012-06-04 | X122: =IF(A122>$A$8,"",OFFSET(Data4SymbolToTrade!$C$10,CalculationsAndCharts!$V122,$B$28,1,1)) -> 59.74 | Y122: 0 | Z122: 0 | AA122: 0 | AB122: =IF(A122>$V$22,"",IF(Q122=1,INT(AH123*$V$6/AC122),IF(R123=1,0,AB123))) -> 0 | AC122: =IF(A122>$V$22,"",IF(Q122=1,$X122,0)) -> 0 | AD122: =IF(A122>$V$22,"",IF(R122=1,$X122,0)) -> 0 | AE122: =IF(A122>$V$22,"",IF(Q122=1,AB122*AC122,IF(R123=1,0,AE123))) -> 0 | AF122: =IF(A122>$V$22,"",IF(R122=1,AB122*AD122,0)) -> 0 | AG122: =IF(A122>$V$22,0,IF(R122=1,AF122-AE122,0)) -> 0 | AH122: =IF(A122>$V$22,0,IF(A122=$V$22,$V$5,AH123-IF(Q122=1,AE122,0)+IF(R122=1,AF122,0))) -> 47020.86 | AI122: =IF(A122>$V$22,0,IF(R122=1,0,AB122*X122)) -> 0 | AJ122: 47020.86
A123: 92 | B123: =OFFSET(VIXinputData!B$10,CalculationsAndCharts!$A123+$A$11,0,1,1) -> 2012-06-01 | C123: =OFFSET(VIXinputData!G$10,CalculationsAndCharts!$A123+$A$11,0,1,1) -> 0 | D123: =OFFSET(VIXinputData!C$10,CalculationsAndCharts!$A123+$A$11,$B$28,1,1) -> 25.87 | E123: =OFFSET(VIXinputData!D$10,CalculationsAndCharts!$A123+$A$11,$B$28,1,1) -> 26.71 | F123: =OFFSET(VIXinputData!E$10,CalculationsAndCharts!$A123+$A$11,$B$28,1,1) -> 23.94 | G123: =OFFSET(VIXinputData!F$10,CalculationsAndCharts!$A123+$A$11,$B$28,1,1) -> 26.66 | H123: 23.94 | I123: 18.274 | J123: 1 | K123: 0 | L123: 12 | M123: 0 | N123: 0 | O123: 0 | P123: 0 | Q123: 0 | R123: 0 | S123: 0 | T123: 0 | U123: 0 | V123: =IF(A123>$A$8,"",MATCH(B123,OFFSET(Data4SymbolToTrade!$B$10,1,0,Data4SymbolToTrade!$B$7,1),0)) -> 92 | W123: =IF(A123>$A$8,"",OFFSET(Data4SymbolToTrade!$B$10,CalculationsAndCharts!$V123,0,1,1)) -> 2012-06-01 | X123: =IF(A123>$A$8,"",OFFSET(Data4SymbolToTrade!$C$10,CalculationsAndCharts!$V123,$B$28,1,1)) -> 60.84 | Y123: 0 | Z123: 0 | AA123: 0 | AB123: =IF(A123>$V$22,"",IF(Q123=1,INT(AH124*$V$6/AC123),IF(R124=1,0,AB124))) -> 0 | AC123: =IF(A123>$V$22,"",IF(Q123=1,$X123,0)) -> 0 | AD123: =IF(A123>$V$22,"",IF(R123=1,$X123,0)) -> 0 | AE123: =IF(A123>$V$22,"",IF(Q123=1,AB123*AC123,IF(R124=1,0,AE124))) -> 0 | AF123: =IF(A123>$V$22,"",IF(R123=1,AB123*AD123,0)) -> 0 | AG123: =IF(A123>$V$22,0,IF(R123=1,AF123-AE123,0)) -> 0 | AH123: =IF(A123>$V$22,0,IF(A123=$V$22,$V$5,AH124-IF(Q123=1,AE123,0)+IF(R123=1,AF123,0))) -> 47020.86 | AI123: =IF(A123>$V$22,0,IF(R123=1,0,AB123*X123)) -> 0 | AJ123: 47020.86
A124: 93 | B124: =OFFSET(VIXinputData!B$10,CalculationsAndCharts!$A124+$A$11,0,1,1) -> 2012-05-31 | C124: =OFFSET(VIXinputData!G$10,CalculationsAndCharts!$A124+$A$11,0,1,1) -> 0 | D124: =OFFSET(VIXinputData!C$10,CalculationsAndCharts!$A124+$A$11,$B$28,1,1) -> 23.83 | E124: =OFFSET(VIXinputData!D$10,CalculationsAndCharts!$A124+$A$11,$B$28,1,1) -> 25.46 | F124: =OFFSET(VIXinputData!E$10,CalculationsAndCharts!$A124+$A$11,$B$28,1,1) -> 22.78 | G124: =OFFSET(VIXinputData!F$10,CalculationsAndCharts!$A124+$A$11,$B$28,1,1) -> 24.06 | H124: 22.78 | I124: 18.079 | J124: 1 | K124: 0 | L124: 12 | M124: 0 | N124: 0 | O124: 0 | P124: 0 | Q124: 0 | R124: 0 | S124: 0 | T124: 0 | U124: 0 | V124: =IF(A124>$A$8,"",MATCH(B124,OFFSET(Data4SymbolToTrade!$B$10,1,0,Data4SymbolToTrade!$B$7,1),0)) -> 93 | W124: =IF(A124>$A$8,"",OFFSET(Data4SymbolToTrade!$B$10,CalculationsAndCharts!$V124,0,1,1)) -> 2012-05-31 | X124: =IF(A124>$A$8,"",OFFSET(Data4SymbolToTrade!$C$10,CalculationsAndCharts!$V124,$B$28,1,1)) -> 62.68 | Y124: 0 | Z124: 0 | AA124: 0 | AB124: =IF(A124>$V$22,"",IF(Q124=1,INT(AH125*$V$6/AC124),IF(R125=1,0,AB125))) -> 0 | AC124: =IF(A124>$V$22,"",IF(Q124=1,$X124,0)) -> 0 | AD124: =IF(A124>$V$22,"",IF(R124=1,$X124,0)) -> 0 | AE124: =IF(A124>$V$22,"",IF(Q124=1,AB124*AC124,IF(R125=1,0,AE125))) -> 0 | AF124: =IF(A124>$V$22,"",IF(R124=1,AB124*AD124,0)) -> 0 | AG124: =IF(A124>$V$22,0,IF(R124=1,AF124-AE124,0)) -> 0 | AH124: =IF(A124>$V$22,0,IF(A124=$V$22,$V$5,AH125-IF(Q124=1,AE124,0)+IF(R124=1,AF124,0))) -> 47020.86 | AI124: =IF(A124>$V$22,0,IF(R124=1,0,AB124*X124)) -> 0 | AJ124: 47020.86
A125: 94 | B125: =OFFSET(VIXinputData!B$10,CalculationsAndCharts!$A125+$A$11,0,1,1) -> 2012-05-30 | C125: =OFFSET(VIXinputData!G$10,CalculationsAndCharts!$A125+$A$11,0,1,1) -> 0 | D125: =OFFSET(VIXinputData!C$10,CalculationsAndCharts!$A125+$A$11,$B$28,1,1) -> 22.68 | E125: =OFFSET(VIXinputData!D$10,CalculationsAndCharts!$A125+$A$11,$B$28,1,1) -> 24.14 | F125: =OFFSET(VIXinputData!E$10,CalculationsAndCharts!$A125+$A$11,$B$28,1,1) -> 22.66 | G125: =OFFSET(VIXinputData!F$10,CalculationsAndCharts!$A125+$A$11,$B$28,1,1) -> 24.14 | H125: 22.66 | I125: 17.9256 | J125: 1 | K125: 0 | L125: 12 | M125: 0 | N125: 0 | O125: 0 | P125: 0 | Q125: 0 | R125: 0 | S125: 0 | T125: 0 | U125: 0 | V125: =IF(A125>$A$8,"",MATCH(B125,OFFSET(Data4SymbolToTrade!$B$10,1,0,Data4SymbolToTrade!$B$7,1),0)) -> 94 | W125: =IF(A125>$A$8,"",OFFSET(Data4SymbolToTrade!$B$10,CalculationsAndCharts!$V125,0,1,1)) -> 2012-05-30 | X125: =IF(A125>$A$8,"",OFFSET(Data4SymbolToTrade!$C$10,CalculationsAndCharts!$V125,$B$28,1,1)) -> 63.21 | Y125: 0 | Z125: 0 | AA125: 0 | AB125: =IF(A125>$V$22,"",IF(Q125=1,INT(AH126*$V$6/AC125),IF(R126=1,0,AB126))) -> 0 | AC125: =IF(A125>$V$22,"",IF(Q125=1,$X125,0)) -> 0 | AD125: =IF(A125>$V$22,"",IF(R125=1,$X125,0)) -> 0 | AE125: =IF(A125>$V$22,"",IF(Q125=1,AB125*AC125,IF(R126=1,0,AE126))) -> 0 | AF125: =IF(A125>$V$22,"",IF(R125=1,AB125*AD125,0)) -> 0 | AG125: =IF(A125>$V$22,0,IF(R125=1,AF125-AE125,0)) -> 0 | AH125: =IF(A125>$V$22,0,IF(A125=$V$22,$V$5,AH126-IF(Q125=1,AE125,0)+IF(R125=1,AF125,0))) -> 47020.86 | AI125: =IF(A125>$V$22,0,IF(R125=1,0,AB125*X125)) -> 0 | AJ125: 47020.86
A126: 95 | B126: =OFFSET(VIXinputData!B$10,CalculationsAndCharts!$A126+$A$11,0,1,1) -> 2012-05-29 | C126: =OFFSET(VIXinputData!G$10,CalculationsAndCharts!$A126+$A$11,0,1,1) -> 0 | D126: =OFFSET(VIXinputData!C$10,CalculationsAndCharts!$A126+$A$11,$B$28,1,1) -> 21.7 | E126: =OFFSET(VIXinputData!D$10,CalculationsAndCharts!$A126+$A$11,$B$28,1,1) -> 22.47 | F126: =OFFSET(VIXinputData!E$10,CalculationsAndCharts!$A126+$A$11,$B$28,1,1) -> 20.99 | G126: =OFFSET(VIXinputData!F$10,CalculationsAndCharts!$A126+$A$11,$B$28,1,1) -> 21.03 | H126: 20.99 | I126: 17.7632 | J126: 1 | K126: 0 | L126: 12 | M126: 0 | N126: 0 | O126: 0 | P126: 0 | Q126: 0 | R126: 0 | S126: 0 | T126: 0 | U126: 0 | V126: =IF(A126>$A$8,"",MATCH(B126,OFFSET(Data4SymbolToTrade!$B$10,1,0,Data4SymbolToTrade!$B$7,1),0)) -> 95 | W126: =IF(A126>$A$8,"",OFFSET(Data4SymbolToTrade!$B$10,CalculationsAndCharts!$V126,0,1,1)) -> 2012-05-29 | X126: =IF(A126>$A$8,"",OFFSET(Data4SymbolToTrade!$C$10,CalculationsAndCharts!$V126,$B$28,1,1)) -> 63.96 | Y126: 0 | Z126: 0 | AA126: 0 | AB126: =IF(A126>$V$22,"",IF(Q126=1,INT(AH127*$V$6/AC126),IF(R127=1,0,AB127))) -> 0 | AC126: =IF(A126>$V$22,"",IF(Q126=1,$X126,0)) -> 0 | AD126: =IF(A126>$V$22,"",IF(R126=1,$X126,0)) -> 0 | AE126: =IF(A126>$V$22,"",IF(Q126=1,AB126*AC126,IF(R127=1,0,AE127))) -> 0 | AF126: =IF(A126>$V$22,"",IF(R126=1,AB126*AD126,0)) -> 0 | AG126: =IF(A126>$V$22,0,IF(R126=1,AF126-AE126,0)) -> 0 | AH126: =IF(A126>$V$22,0,IF(A126=$V$22,$V$5,AH127-IF(Q126=1,AE126,0)+IF(R126=1,AF126,0))) -> 47020.86 | AI126: =IF(A126>$V$22,0,IF(R126=1,0,AB126*X126)) -> 0 | AJ126: 47020.86
A127: 96 | B127: =OFFSET(VIXinputData!B$10,CalculationsAndCharts!$A127+$A$11,0,1,1) -> 2012-05-25 | C127: =OFFSET(VIXinputData!G$10,CalculationsAndCharts!$A127+$A$11,0,1,1) -> 0 | D127: =OFFSET(VIXinputData!C$10,CalculationsAndCharts!$A127+$A$11,$B$28,1,1) -> 22.05 | E127: =OFFSET(VIXinputData!D$10,CalculationsAndCharts!$A127+$A$11,$B$28,1,1) -> 22.29 | F127: =OFFSET(VIXinputData!E$10,CalculationsAndCharts!$A127+$A$11,$B$28,1,1) -> 21.3 | G127: =OFFSET(VIXinputData!F$10,CalculationsAndCharts!$A127+$A$11,$B$28,1,1) -> 21.76 | H127: 21.3 | I127: 17.6166 | J127: 1 | K127: 0 | L127: 12 | M127: 0 | N127: 0 | O127: 0 | P127: 0 | Q127: 0 | R127: 0 | S127: 0 | T127: 0 | U127: 0 | V127: =IF(A127>$A$8,"",MATCH(B127,OFFSET(Data4SymbolToTrade!$B$10,1,0,Data4SymbolToTrade!$B$7,1),0)) -> 96 | W127: =IF(A127>$A$8,"",OFFSET(Data4SymbolToTrade!$B$10,CalculationsAndCharts!$V127,0,1,1)) -> 2012-05-25 | X127: =IF(A127>$A$8,"",OFFSET(Data4SymbolToTrade!$C$10,CalculationsAndCharts!$V127,$B$28,1,1)) -> 63.61 | Y127: 0 | Z127: 0 | AA127: 0 | AB127: =IF(A127>$V$22,"",IF(Q127=1,INT(AH128*$V$6/AC127),IF(R128=1,0,AB128))) -> 0 | AC127: =IF(A127>$V$22,"",IF(Q127=1,$X127,0)) -> 0 | AD127: =IF(A127>$V$22,"",IF(R127=1,$X127,0)) -> 0 | AE127: =IF(A127>$V$22,"",IF(Q127=1,AB127*AC127,IF(R128=1,0,AE128))) -> 0 | AF127: =IF(A127>$V$22,"",IF(R127=1,AB127*AD127,0)) -> 0 | AG127: =IF(A127>$V$22,0,IF(R127=1,AF127-AE127,0)) -> 0 | AH127: =IF(A127>$V$22,0,IF(A127=$V$22,$V$5,AH128-IF(Q127=1,AE127,0)+IF(R127=1,AF127,0))) -> 47020.86 | AI127: =IF(A127>$V$22,0,IF(R127=1,0,AB127*X127)) -> 0 | AJ127: 47020.86
A128: 97 | B128: =OFFSET(VIXinputData!B$10,CalculationsAndCharts!$A128+$A$11,0,1,1) -> 2012-05-24 | C128: =OFFSET(VIXinputData!G$10,CalculationsAndCharts!$A128+$A$11,0,1,1) -> 0 | D128: =OFFSET(VIXinputData!C$10,CalculationsAndCharts!$A128+$A$11,$B$28,1,1) -> 22 | E128: =OFFSET(VIXinputData!D$10,CalculationsAndCharts!$A128+$A$11,$B$28,1,1) -> 23.22 | F128: =OFFSET(VIXinputData!E$10,CalculationsAndCharts!$A128+$A$11,$B$28,1,1) -> 21.48 | G128: =OFFSET(VIXinputData!F$10,CalculationsAndCharts!$A128+$A$11,$B$28,1,1) -> 21.54 | H128: 21.48 | I128: 17.4822 | J128: 1 | K128: 0 | L128: 12 | M128: 0 | N128: 0 | O128: 0 | P128: 0 | Q128: 0 | R128: 0 | S128: 0 | T128: 0 | U128: 0 | V128: =IF(A128>$A$8,"",MATCH(B128,OFFSET(Data4SymbolToTrade!$B$10,1,0,Data4SymbolToTrade!$B$7,1),0)) -> 97 | W128: =IF(A128>$A$8,"",OFFSET(Data4SymbolToTrade!$B$10,CalculationsAndCharts!$V128,0,1,1)) -> 2012-05-24 | X128: =IF(A128>$A$8,"",OFFSET(Data4SymbolToTrade!$C$10,CalculationsAndCharts!$V128,$B$28,1,1)) -> 63.68 | Y128: 0 | Z128: 0 | AA128: 0 | AB128: =IF(A128>$V$22,"",IF(Q128=1,INT(AH129*$V$6/AC128),IF(R129=1,0,AB129))) -> 0 | AC128: =IF(A128>$V$22,"",IF(Q128=1,$X128,0)) -> 0 | AD128: =IF(A128>$V$22,"",IF(R128=1,$X128,0)) -> 0 | AE128: =IF(A128>$V$22,"",IF(Q128=1,AB128*AC128,IF(R129=1,0,AE129))) -> 0 | AF128: =IF(A128>$V$22,"",IF(R128=1,AB128*AD128,0)) -> 0 | AG128: =IF(A128>$V$22,0,IF(R128=1,AF128-AE128,0)) -> 0 | AH128: =IF(A128>$V$22,0,IF(A128=$V$22,$V$5,AH129-IF(Q128=1,AE128,0)+IF(R128=1,AF128,0))) -> 47020.86 | AI128: =IF(A128>$V$22,0,IF(R128=1,0,AB128*X128)) -> 0 | AJ128: 47020.86
A129: 98 | B129: =OFFSET(VIXinputData!B$10,CalculationsAndCharts!$A129+$A$11,0,1,1) -> 2012-05-23 | C129: =OFFSET(VIXinputData!G$10,CalculationsAndCharts!$A129+$A$11,0,1,1) -> 0 | D129: =OFFSET(VIXinputData!C$10,CalculationsAndCharts!$A129+$A$11,$B$28,1,1) -> 23.32 | E129: =OFFSET(VIXinputData!D$10,CalculationsAndCharts!$A129+$A$11,$B$28,1,1) -> 24.62 | F129: =OFFSET(VIXinputData!E$10,CalculationsAndCharts!$A129+$A$11,$B$28,1,1) -> 21.99 | G129: =OFFSET(VIXinputData!F$10,CalculationsAndCharts!$A129+$A$11,$B$28,1,1) -> 22.33 | H129: 21.99 | I129: 17.3404 | J129: 1 | K129: 0 | L129: 12 | M129: 0 | N129: 0 | O129: 0 | P129: 0 | Q129: 0 | R129: 0 | S129: 0 | T129: 0 | U129: 0 | V129: =IF(A129>$A$8,"",MATCH(B129,OFFSET(Data4SymbolToTrade!$B$10,1,0,Data4SymbolToTrade!$B$7,1),0)) -> 98 | W129: =IF(A129>$A$8,"",OFFSET(Data4SymbolToTrade!$B$10,CalculationsAndCharts!$V129,0,1,1)) -> 2012-05-23 | X129: =IF(A129>$A$8,"",OFFSET(Data4SymbolToTrade!$C$10,CalculationsAndCharts!$V129,$B$28,1,1)) -> 62.66 | Y129: 0 | Z129: 0 | AA129: 0 | AB129: =IF(A129>$V$22,"",IF(Q129=1,INT(AH130*$V$6/AC129),IF(R130=1,0,AB130))) -> 0 | AC129: =IF(A129>$V$22,"",IF(Q129=1,$X129,0)) -> 0 | AD129: =IF(A129>$V$22,"",IF(R129=1,$X129,0)) -> 0 | AE129: =IF(A129>$V$22,"",IF(Q129=1,AB129*AC129,IF(R130=1,0,AE130))) -> 0 | AF129: =IF(A129>$V$22,"",IF(R129=1,AB129*AD129,0)) -> 0 | AG129: =IF(A129>$V$22,0,IF(R129=1,AF129-AE129,0)) -> 0 | AH129: =IF(A129>$V$22,0,IF(A129=$V$22,$V$5,AH130-IF(Q129=1,AE129,0)+IF(R129=1,AF129,0))) -> 47020.86 | AI129: =IF(A129>$V$22,0,IF(R129=1,0,AB129*X129)) -> 0 | AJ129: 47020.86
A130: 99 | B130: =OFFSET(VIXinputData!B$10,CalculationsAndCharts!$A130+$A$11,0,1,1) -> 2012-05-22 | C130: =OFFSET(VIXinputData!G$10,CalculationsAndCharts!$A130+$A$11,0,1,1) -> 0 | D130: =OFFSET(VIXinputData!C$10,CalculationsAndCharts!$A130+$A$11,$B$28,1,1) -> 21.76 | E130: =OFFSET(VIXinputData!D$10,CalculationsAndCharts!$A130+$A$11,$B$28,1,1) -> 23.19 | F130: =OFFSET(VIXinputData!E$10,CalculationsAndCharts!$A130+$A$11,$B$28,1,1) -> 19.98 | G130: =OFFSET(VIXinputData!F$10,CalculationsAndCharts!$A130+$A$11,$B$28,1,1) -> 22.48 | H130: 19.98 | I130: 17.1804 | J130: 1 | K130: 0 | L130: 12 | M130: 0 | N130: 0 | O130: 0 | P130: 0 | Q130: 0 | R130: 0 | S130: 0 | T130: 0 | U130: 0 | V130: =IF(A130>$A$8,"",MATCH(B130,OFFSET(Data4SymbolToTrade!$B$10,1,0,Data4SymbolToTrade!$B$7,1),0)) -> 99 | W130: =IF(A130>$A$8,"",OFFSET(Data4SymbolToTrade!$B$10,CalculationsAndCharts!$V130,0,1,1)) -> 2012-05-22 | X130: =IF(A130>$A$8,"",OFFSET(Data4SymbolToTrade!$C$10,CalculationsAndCharts!$V130,$B$28,1,1)) -> 63.63 | Y130: 0 | Z130: 0 | AA130: 0 | AB130: =IF(A130>$V$22,"",IF(Q130=1,INT(AH131*$V$6/AC130),IF(R131=1,0,AB131))) -> 0 | AC130: =IF(A130>$V$22,"",IF(Q130=1,$X130,0)) -> 0 | AD130: =IF(A130>$V$22,"",IF(R130=1,$X130,0)) -> 0 | AE130: =IF(A130>$V$22,"",IF(Q130=1,AB130*AC130,IF(R131=1,0,AE131))) -> 0 | AF130: =IF(A130>$V$22,"",IF(R130=1,AB130*AD130,0)) -> 0 | AG130: =IF(A130>$V$22,0,IF(R130=1,AF130-AE130,0)) -> 0 | AH130: =IF(A130>$V$22,0,IF(A130=$V$22,$V$5,AH131-IF(Q130=1,AE130,0)+IF(R130=1,AF130,0))) -> 47020.86 | AI130: =IF(A130>$V$22,0,IF(R130=1,0,AB130*X130)) -> 0 | AJ130: 47020.86
A131: 100 | B131: =OFFSET(VIXinputData!B$10,CalculationsAndCharts!$A131+$A$11,0,1,1) -> 2012-05-21 | C131: =OFFSET(VIXinputData!G$10,CalculationsAndCharts!$A131+$A$11,0,1,1) -> 0 | D131: =OFFSET(VIXinputData!C$10,CalculationsAndCharts!$A131+$A$11,$B$28,1,1) -> 24.88 | E131: =OFFSET(VIXinputData!D$10,CalculationsAndCharts!$A131+$A$11,$B$28,1,1) -> 24.88 | F131: =OFFSET(VIXinputData!E$10,CalculationsAndCharts!$A131+$A$11,$B$28,1,1) -> 22.01 | G131: =OFFSET(VIXinputData!F$10,CalculationsAndCharts!$A131+$A$11,$B$28,1,1) -> 22.01 | H131: 22.01 | I131: 17.0854 | J131: 1 | K131: 0 | L131: 12 | M131: 0 | N131: 0 | O131: 0 | P131: 0 | Q131: 0 | R131: 0 | S131: 0 | T131: 0 | U131: 0 | V131: =IF(A131>$A$8,"",MATCH(B131,OFFSET(Data4SymbolToTrade!$B$10,1,0,Data4SymbolToTrade!$B$7,1),0)) -> 100 | W131: =IF(A131>$A$8,"",OFFSET(Data4SymbolToTrade!$B$10,CalculationsAndCharts!$V131,0,1,1)) -> 2012-05-21 | X131: =IF(A131>$A$8,"",OFFSET(Data4SymbolToTrade!$C$10,CalculationsAndCharts!$V131,$B$28,1,1)) -> 62.43 | Y131: 0 | Z131: 0 | AA131: 0 | AB131: =IF(A131>$V$22,"",IF(Q131=1,INT(AH132*$V$6/AC131),IF(R132=1,0,AB132))) -> 0 | AC131: =IF(A131>$V$22,"",IF(Q131=1,$X131,0)) -> 0 | AD131: =IF(A131>$V$22,"",IF(R131=1,$X131,0)) -> 0 | AE131: =IF(A131>$V$22,"",IF(Q131=1,AB131*AC131,IF(R132=1,0,AE132))) -> 0 | AF131: =IF(A131>$V$22,"",IF(R131=1,AB131*AD131,0)) -> 0 | AG131: =IF(A131>$V$22,0,IF(R131=1,AF131-AE131,0)) -> 0 | AH131: =IF(A131>$V$22,0,IF(A131=$V$22,$V$5,AH132-IF(Q131=1,AE131,0)+IF(R131=1,AF131,0))) -> 47020.86 | AI131: =IF(A131>$V$22,0,IF(R131=1,0,AB131*X131)) -> 0 | AJ131: 47020.86
A132: 101 | B132: =OFFSET(VIXinputData!B$10,CalculationsAndCharts!$A132+$A$11,0,1,1) -> 2012-05-18 | C132: =OFFSET(VIXinputData!G$10,CalculationsAndCharts!$A132+$A$11,0,1,1) -> 0 | D132: =OFFSET(VIXinputData!C$10,CalculationsAndCharts!$A132+$A$11,$B$28,1,1) -> 23.27 | E132: =OFFSET(VIXinputData!D$10,CalculationsAndCharts!$A132+$A$11,$B$28,1,1) -> 25.14 | F132: =OFFSET(VIXinputData!E$10,CalculationsAndCharts!$A132+$A$11,$B$28,1,1) -> 23.07 | G132: =OFFSET(VIXinputData!F$10,CalculationsAndCharts!$A132+$A$11,$B$28,1,1) -> 25.1 | H132: 23.07 | I132: 16.9778 | J132: 1 | K132: 0 | L132: 12 | M132: 0 | N132: 0 | O132: 0 | P132: 0 | Q132: 0 | R132: 0 | S132: 0 | T132: 0 | U132: 0 | V132: =IF(A132>$A$8,"",MATCH(B132,OFFSET(Data4SymbolToTrade!$B$10,1,0,Data4SymbolToTrade!$B$7,1),0)) -> 101 | W132: =IF(A132>$A$8,"",OFFSET(Data4SymbolToTrade!$B$10,CalculationsAndCharts!$V132,0,1,1)) -> 2012-05-18 | X132: =IF(A132>$A$8,"",OFFSET(Data4SymbolToTrade!$C$10,CalculationsAndCharts!$V132,$B$28,1,1)) -> 63.3 | Y132: 0 | Z132: 0 | AA132: 0 | AB132: =IF(A132>$V$22,"",IF(Q132=1,INT(AH133*$V$6/AC132),IF(R133=1,0,AB133))) -> 0 | AC132: =IF(A132>$V$22,"",IF(Q132=1,$X132,0)) -> 0 | AD132: =IF(A132>$V$22,"",IF(R132=1,$X132,0)) -> 0 | AE132: =IF(A132>$V$22,"",IF(Q132=1,AB132*AC132,IF(R133=1,0,AE133))) -> 0 | AF132: =IF(A132>$V$22,"",IF(R132=1,AB132*AD132,0)) -> 0 | AG132: =IF(A132>$V$22,0,IF(R132=1,AF132-AE132,0)) -> 0 | AH132: =IF(A132>$V$22,0,IF(A132=$V$22,$V$5,AH133-IF(Q132=1,AE132,0)+IF(R132=1,AF132,0))) -> 47020.86 | AI132: =IF(A132>$V$22,0,IF(R132=1,0,AB132*X132)) -> 0 | AJ132: 47020.86
A133: 102 | B133: =OFFSET(VIXinputData!B$10,CalculationsAndCharts!$A133+$A$11,0,1,1) -> 2012-05-17 | C133: =OFFSET(VIXinputData!G$10,CalculationsAndCharts!$A133+$A$11,0,1,1) -> 0 | D133: =OFFSET(VIXinputData!C$10,CalculationsAndCharts!$A133+$A$11,$B$28,1,1) -> 21.99 | E133: =OFFSET(VIXinputData!D$10,CalculationsAndCharts!$A133+$A$11,$B$28,1,1) -> 24.51 | F133: =OFFSET(VIXinputData!E$10,CalculationsAndCharts!$A133+$A$11,$B$28,1,1) -> 21.87 | G133: =OFFSET(VIXinputData!F$10,CalculationsAndCharts!$A133+$A$11,$B$28,1,1) -> 24.49 | H133: 21.87 | I133: 16.8716 | J133: 1 | K133: 0 | L133: 12 | M133: 0 | N133: 0 | O133: 1 | P133: 0 | Q133: 0 | R133: 0 | S133: 0 | T133: 0 | U133: 0 | V133: =IF(A133>$A$8,"",MATCH(B133,OFFSET(Data4SymbolToTrade!$B$10,1,0,Data4SymbolToTrade!$B$7,1),0)) -> 102 | W133: =IF(A133>$A$8,"",OFFSET(Data4SymbolToTrade!$B$10,CalculationsAndCharts!$V133,0,1,1)) -> 2012-05-17 | X133: =IF(A133>$A$8,"",OFFSET(Data4SymbolToTrade!$C$10,CalculationsAndCharts!$V133,$B$28,1,1)) -> 64.58 | Y133: 0 | Z133: 0 | AA133: 0 | AB133: =IF(A133>$V$22,"",IF(Q133=1,INT(AH134*$V$6/AC133),IF(R134=1,0,AB134))) -> 0 | AC133: =IF(A133>$V$22,"",IF(Q133=1,$X133,0)) -> 0 | AD133: =IF(A133>$V$22,"",IF(R133=1,$X133,0)) -> 0 | AE133: =IF(A133>$V$22,"",IF(Q133=1,AB133*AC133,IF(R134=1,0,AE134))) -> 0 | AF133: =IF(A133>$V$22,"",IF(R133=1,AB133*AD133,0)) -> 0 | AG133: =IF(A133>$V$22,0,IF(R133=1,AF133-AE133,0)) -> 0 | AH133: =IF(A133>$V$22,0,IF(A133=$V$22,$V$5,AH134-IF(Q133=1,AE133,0)+IF(R133=1,AF133,0))) -> 47020.86 | AI133: =IF(A133>$V$22,0,IF(R133=1,0,AB133*X133)) -> 0 | AJ133: 47020.86
A134: 103 | B134: =OFFSET(VIXinputData!B$10,CalculationsAndCharts!$A134+$A$11,0,1,1) -> 2012-05-16 | C134: =OFFSET(VIXinputData!G$10,CalculationsAndCharts!$A134+$A$11,0,1,1) -> 0 | D134: =OFFSET(VIXinputData!C$10,CalculationsAndCharts!$A134+$A$11,$B$28,1,1) -> 21.54 | E134: =OFFSET(VIXinputData!D$10,CalculationsAndCharts!$A134+$A$11,$B$28,1,1) -> 22.69 | F134: =OFFSET(VIXinputData!E$10,CalculationsAndCharts!$A134+$A$11,$B$28,1,1) -> 20.83 | G134: =OFFSET(VIXinputData!F$10,CalculationsAndCharts!$A134+$A$11,$B$28,1,1) -> 22.27 | H134: 20.83 | I134: 16.8156 | J134: 1 | K134: 0 | L134: 11 | M134: 1 | N134: 0 | O134: 1 | P134: 0 | Q134: 0 | R134: 0 | S134: 0 | T134: 0 | U134: 0 | V134: =IF(A134>$A$8,"",MATCH(B134,OFFSET(Data4SymbolToTrade!$B$10,1,0,Data4SymbolToTrade!$B$7,1),0)) -> 103 | W134: =IF(A134>$A$8,"",OFFSET(Data4SymbolToTrade!$B$10,CalculationsAndCharts!$V134,0,1,1)) -> 2012-05-16 | X134: =IF(A134>$A$8,"",OFFSET(Data4SymbolToTrade!$C$10,CalculationsAndCharts!$V134,$B$28,1,1)) -> 65.16 | Y134: 0 | Z134: 0 | AA134: 0 | AB134: =IF(A134>$V$22,"",IF(Q134=1,INT(AH135*$V$6/AC134),IF(R135=1,0,AB135))) -> 0 | AC134: =IF(A134>$V$22,"",IF(Q134=1,$X134,0)) -> 0 | AD134: =IF(A134>$V$22,"",IF(R134=1,$X134,0)) -> 0 | AE134: =IF(A134>$V$22,"",IF(Q134=1,AB134*AC134,IF(R135=1,0,AE135))) -> 0 | AF134: =IF(A134>$V$22,"",IF(R134=1,AB134*AD134,0)) -> 0 | AG134: =IF(A134>$V$22,0,IF(R134=1,AF134-AE134,0)) -> 0 | AH134: =IF(A134>$V$22,0,IF(A134=$V$22,$V$5,AH135-IF(Q134=1,AE134,0)+IF(R134=1,AF134,0))) -> 47020.86 | AI134: =IF(A134>$V$22,0,IF(R134=1,0,AB134*X134)) -> 0 | AJ134: 47020.86
A135: 104 | B135: =OFFSET(VIXinputData!B$10,CalculationsAndCharts!$A135+$A$11,0,1,1) -> 2012-05-15 | C135: =OFFSET(VIXinputData!G$10,CalculationsAndCharts!$A135+$A$11,0,1,1) -> 0 | D135: =OFFSET(VIXinputData!C$10,CalculationsAndCharts!$A135+$A$11,$B$28,1,1) -> 21.43 | E135: =OFFSET(VIXinputData!D$10,CalculationsAndCharts!$A135+$A$11,$B$28,1,1) -> 22.7 | F135: =OFFSET(VIXinputData!E$10,CalculationsAndCharts!$A135+$A$11,$B$28,1,1) -> 20.76 | G135: =OFFSET(VIXinputData!F$10,CalculationsAndCharts!$A135+$A$11,$B$28,1,1) -> 21.97 | H135: 20.76 | I135: 16.805 | J135: 1 | K135: 0 | L135: 11 | M135: 1 | N135: 0 | O135: 0 | P135: 0 | Q135: 0 | R135: 0 | S135: 0 | T135: 0 | U135: 0 | V135: =IF(A135>$A$8,"",MATCH(B135,OFFSET(Data4SymbolToTrade!$B$10,1,0,Data4SymbolToTrade!$B$7,1),0)) -> 104 | W135: =IF(A135>$A$8,"",OFFSET(Data4SymbolToTrade!$B$10,CalculationsAndCharts!$V135,0,1,1)) -> 2012-05-15 | X135: =IF(A135>$A$8,"",OFFSET(Data4SymbolToTrade!$C$10,CalculationsAndCharts!$V135,$B$28,1,1)) -> 65.21 | Y135: 0 | Z135: 0 | AA135: 0 | AB135: =IF(A135>$V$22,"",IF(Q135=1,INT(AH136*$V$6/AC135),IF(R136=1,0,AB136))) -> 0 | AC135: =IF(A135>$V$22,"",IF(Q135=1,$X135,0)) -> 0 | AD135: =IF(A135>$V$22,"",IF(R135=1,$X135,0)) -> 0 | AE135: =IF(A135>$V$22,"",IF(Q135=1,AB135*AC135,IF(R136=1,0,AE136))) -> 0 | AF135: =IF(A135>$V$22,"",IF(R135=1,AB135*AD135,0)) -> 0 | AG135: =IF(A135>$V$22,0,IF(R135=1,AF135-AE135,0)) -> 0 | AH135: =IF(A135>$V$22,0,IF(A135=$V$22,$V$5,AH136-IF(Q135=1,AE135,0)+IF(R135=1,AF135,0))) -> 47020.86 | AI135: =IF(A135>$V$22,0,IF(R135=1,0,AB135*X135)) -> 0 | AJ135: 47020.86
A136: 105 | B136: =OFFSET(VIXinputData!B$10,CalculationsAndCharts!$A136+$A$11,0,1,1) -> 2012-05-14 | C136: =OFFSET(VIXinputData!G$10,CalculationsAndCharts!$A136+$A$11,0,1,1) -> 0 | D136: =OFFSET(VIXinputData!C$10,CalculationsAndCharts!$A136+$A$11,$B$28,1,1) -> 21.47 | E136: =OFFSET(VIXinputData!D$10,CalculationsAndCharts!$A136+$A$11,$B$28,1,1) -> 21.87 | F136: =OFFSET(VIXinputData!E$10,CalculationsAndCharts!$A136+$A$11,$B$28,1,1) -> 20.94 | G136: =OFFSET(VIXinputData!F$10,CalculationsAndCharts!$A136+$A$11,$B$28,1,1) -> 21.87 | H136: 20.94 | I136: 16.7502 | J136: 1 | K136: 0 | L136: 10 | M136: 2 | N136: 0 | O136: 0 | P136: 0 | Q136: 0 | R136: 0 | S136: 0 | T136: 0 | U136: 0 | V136: =IF(A136>$A$8,"",MATCH(B136,OFFSET(Data4SymbolToTrade!$B$10,1,0,Data4SymbolToTrade!$B$7,1),0)) -> 105 | W136: =IF(A136>$A$8,"",OFFSET(Data4SymbolToTrade!$B$10,CalculationsAndCharts!$V136,0,1,1)) -> 2012-05-14 | X136: =IF(A136>$A$8,"",OFFSET(Data4SymbolToTrade!$C$10,CalculationsAndCharts!$V136,$B$28,1,1)) -> 65.59 | Y136: 0 | Z136: 0 | AA136: 0 | AB136: =IF(A136>$V$22,"",IF(Q136=1,INT(AH137*$V$6/AC136),IF(R137=1,0,AB137))) -> 0 | AC136: =IF(A136>$V$22,"",IF(Q136=1,$X136,0)) -> 0 | AD136: =IF(A136>$V$22,"",IF(R136=1,$X136,0)) -> 0 | AE136: =IF(A136>$V$22,"",IF(Q136=1,AB136*AC136,IF(R137=1,0,AE137))) -> 0 | AF136: =IF(A136>$V$22,"",IF(R136=1,AB136*AD136,0)) -> 0 | AG136: =IF(A136>$V$22,0,IF(R136=1,AF136-AE136,0)) -> 0 | AH136: =IF(A136>$V$22,0,IF(A136=$V$22,$V$5,AH137-IF(Q136=1,AE136,0)+IF(R136=1,AF136,0))) -> 47020.86 | AI136: =IF(A136>$V$22,0,IF(R136=1,0,AB136*X136)) -> 0 | AJ136: 47020.86
A137: 106 | B137: =OFFSET(VIXinputData!B$10,CalculationsAndCharts!$A137+$A$11,0,1,1) -> 2012-05-11 | C137: =OFFSET(VIXinputData!G$10,CalculationsAndCharts!$A137+$A$11,0,1,1) -> 0 | D137: =OFFSET(VIXinputData!C$10,CalculationsAndCharts!$A137+$A$11,$B$28,1,1) -> 19.93 | E137: =OFFSET(VIXinputData!D$10,CalculationsAndCharts!$A137+$A$11,$B$28,1,1) -> 19.94 | F137: =OFFSET(VIXinputData!E$10,CalculationsAndCharts!$A137+$A$11,$B$28,1,1) -> 18.62 | G137: =OFFSET(VIXinputData!F$10,CalculationsAndCharts!$A137+$A$11,$B$28,1,1) -> 19.89 | H137: 18.62 | I137: 16.6742 | J137: 1 | K137: 0 | L137: 9 | M137: 3 | N137: 0 | O137: 0 | P137: 0 | Q137: 0 | R137: 0 | S137: 0 | T137: 0 | U137: 0 | V137: =IF(A137>$A$8,"",MATCH(B137,OFFSET(Data4SymbolToTrade!$B$10,1,0,Data4SymbolToTrade!$B$7,1),0)) -> 106 | W137: =IF(A137>$A$8,"",OFFSET(Data4SymbolToTrade!$B$10,CalculationsAndCharts!$V137,0,1,1)) -> 2012-05-11 | X137: =IF(A137>$A$8,"",OFFSET(Data4SymbolToTrade!$C$10,CalculationsAndCharts!$V137,$B$28,1,1)) -> 66.2 | Y137: 0 | Z137: 0 | AA137: 0 | AB137: =IF(A137>$V$22,"",IF(Q137=1,INT(AH138*$V$6/AC137),IF(R138=1,0,AB138))) -> 0 | AC137: =IF(A137>$V$22,"",IF(Q137=1,$X137,0)) -> 0 | AD137: =IF(A137>$V$22,"",IF(R137=1,$X137,0)) -> 0 | AE137: =IF(A137>$V$22,"",IF(Q137=1,AB137*AC137,IF(R138=1,0,AE138))) -> 0 | AF137: =IF(A137>$V$22,"",IF(R137=1,AB137*AD137,0)) -> 0 | AG137: =IF(A137>$V$22,0,IF(R137=1,AF137-AE137,0)) -> 0 | AH137: =IF(A137>$V$22,0,IF(A137=$V$22,$V$5,AH138-IF(Q137=1,AE137,0)+IF(R137=1,AF137,0))) -> 47020.86 | AI137: =IF(A137>$V$22,0,IF(R137=1,0,AB137*X137)) -> 0 | AJ137: 47020.86
A138: 107 | B138: =OFFSET(VIXinputData!B$10,CalculationsAndCharts!$A138+$A$11,0,1,1) -> 2012-05-10 | C138: =OFFSET(VIXinputData!G$10,CalculationsAndCharts!$A138+$A$11,0,1,1) -> 0 | D138: =OFFSET(VIXinputData!C$10,CalculationsAndCharts!$A138+$A$11,$B$28,1,1) -> 19.25 | E138: =OFFSET(VIXinputData!D$10,CalculationsAndCharts!$A138+$A$11,$B$28,1,1) -> 19.88 | F138: =OFFSET(VIXinputData!E$10,CalculationsAndCharts!$A138+$A$11,$B$28,1,1) -> 18.77 | G138: =OFFSET(VIXinputData!F$10,CalculationsAndCharts!$A138+$A$11,$B$28,1,1) -> 18.83 | H138: 18.77 | I138: 16.647 | J138: 1 | K138: 0 | L138: 9 | M138: 3 | N138: 0 | O138: 0 | P138: 0 | Q138: 0 | R138: 0 | S138: 0 | T138: 0 | U138: 0 | V138: =IF(A138>$A$8,"",MATCH(B138,OFFSET(Data4SymbolToTrade!$B$10,1,0,Data4SymbolToTrade!$B$7,1),0)) -> 107 | W138: =IF(A138>$A$8,"",OFFSET(Data4SymbolToTrade!$B$10,CalculationsAndCharts!$V138,0,1,1)) -> 2012-05-10 | X138: =IF(A138>$A$8,"",OFFSET(Data4SymbolToTrade!$C$10,CalculationsAndCharts!$V138,$B$28,1,1)) -> 67.33 | Y138: 0 | Z138: 0 | AA138: 0 | AB138: =IF(A138>$V$22,"",IF(Q138=1,INT(AH139*$V$6/AC138),IF(R139=1,0,AB139))) -> 0 | AC138: =IF(A138>$V$22,"",IF(Q138=1,$X138,0)) -> 0 | AD138: =IF(A138>$V$22,"",IF(R138=1,$X138,0)) -> 0 | AE138: =IF(A138>$V$22,"",IF(Q138=1,AB138*AC138,IF(R139=1,0,AE139))) -> 0 | AF138: =IF(A138>$V$22,"",IF(R138=1,AB138*AD138,0)) -> 0 | AG138: =IF(A138>$V$22,0,IF(R138=1,AF138-AE138,0)) -> 0 | AH138: =IF(A138>$V$22,0,IF(A138=$V$22,$V$5,AH139-IF(Q138=1,AE138,0)+IF(R138=1,AF138,0))) -> 47020.86 | AI138: =IF(A138>$V$22,0,IF(R138=1,0,AB138*X138)) -> 0 | AJ138: 47020.86
A139: 108 | B139: =OFFSET(VIXinputData!B$10,CalculationsAndCharts!$A139+$A$11,0,1,1) -> 2012-05-09 | C139: =OFFSET(VIXinputData!G$10,CalculationsAndCharts!$A139+$A$11,0,1,1) -> 0 | D139: =OFFSET(VIXinputData!C$10,CalculationsAndCharts!$A139+$A$11,$B$28,1,1) -> 20.65 | E139: =OFFSET(VIXinputData!D$10,CalculationsAndCharts!$A139+$A$11,$B$28,1,1) -> 21.59 | F139: =OFFSET(VIXinputData!E$10,CalculationsAndCharts!$A139+$A$11,$B$28,1,1) -> 19.38 | G139: =OFFSET(VIXinputData!F$10,CalculationsAndCharts!$A139+$A$11,$B$28,1,1) -> 20.08 | H139: 19.38 | I139: 16.6222 | J139: 1 | K139: 0 | L139: 9 | M139: 3 | N139: 0 | O139: 0 | P139: 0 | Q139: 0 | R139: 0 | S139: 0 | T139: 0 | U139: 0 | V139: =IF(A139>$A$8,"",MATCH(B139,OFFSET(Data4SymbolToTrade!$B$10,1,0,Data4SymbolToTrade!$B$7,1),0)) -> 108 | W139: =IF(A139>$A$8,"",OFFSET(Data4SymbolToTrade!$B$10,CalculationsAndCharts!$V139,0,1,1)) -> 2012-05-09 | X139: =IF(A139>$A$8,"",OFFSET(Data4SymbolToTrade!$C$10,CalculationsAndCharts!$V139,$B$28,1,1)) -> 66.42 | Y139: 0 | Z139: 0 | AA139: 0 | AB139: =IF(A139>$V$22,"",IF(Q139=1,INT(AH140*$V$6/AC139),IF(R140=1,0,AB140))) -> 0 | AC139: =IF(A139>$V$22,"",IF(Q139=1,$X139,0)) -> 0 | AD139: =IF(A139>$V$22,"",IF(R139=1,$X139,0)) -> 0 | AE139: =IF(A139>$V$22,"",IF(Q139=1,AB139*AC139,IF(R140=1,0,AE140))) -> 0 | AF139: =IF(A139>$V$22,"",IF(R139=1,AB139*AD139,0)) -> 0 | AG139: =IF(A139>$V$22,0,IF(R139=1,AF139-AE139,0)) -> 0 | AH139: =IF(A139>$V$22,0,IF(A139=$V$22,$V$5,AH140-IF(Q139=1,AE139,0)+IF(R139=1,AF139,0))) -> 47020.86 | AI139: =IF(A139>$V$22,0,IF(R139=1,0,AB139*X139)) -> 0 | AJ139: 47020.86
A140: 109 | B140: =OFFSET(VIXinputData!B$10,CalculationsAndCharts!$A140+$A$11,0,1,1) -> 2012-05-08 | C140: =OFFSET(VIXinputData!G$10,CalculationsAndCharts!$A140+$A$11,0,1,1) -> 0 | D140: =OFFSET(VIXinputData!C$10,CalculationsAndCharts!$A140+$A$11,$B$28,1,1) -> 19.44 | E140: =OFFSET(VIXinputData!D$10,CalculationsAndCharts!$A140+$A$11,$B$28,1,1) -> 20.91 | F140: =OFFSET(VIXinputData!E$10,CalculationsAndCharts!$A140+$A$11,$B$28,1,1) -> 17.95 | G140: =OFFSET(VIXinputData!F$10,CalculationsAndCharts!$A140+$A$11,$B$28,1,1) -> 19.05 | H140: 17.95 | I140: 16.5922 | J140: 1 | K140: 0 | L140: 9 | M140: 3 | N140: 0 | O140: 0 | P140: 0 | Q140: 0 | R140: 0 | S140: 0 | T140: 0 | U140: 0 | V140: =IF(A140>$A$8,"",MATCH(B140,OFFSET(Data4SymbolToTrade!$B$10,1,0,Data4SymbolToTrade!$B$7,1),0)) -> 109 | W140: =IF(A140>$A$8,"",OFFSET(Data4SymbolToTrade!$B$10,CalculationsAndCharts!$V140,0,1,1)) -> 2012-05-08 | X140: =IF(A140>$A$8,"",OFFSET(Data4SymbolToTrade!$C$10,CalculationsAndCharts!$V140,$B$28,1,1)) -> 67.65 | Y140: 0 | Z140: 0 | AA140: 0 | AB140: =IF(A140>$V$22,"",IF(Q140=1,INT(AH141*$V$6/AC140),IF(R141=1,0,AB141))) -> 0 | AC140: =IF(A140>$V$22,"",IF(Q140=1,$X140,0)) -> 0 | AD140: =IF(A140>$V$22,"",IF(R140=1,$X140,0)) -> 0 | AE140: =IF(A140>$V$22,"",IF(Q140=1,AB140*AC140,IF(R141=1,0,AE141))) -> 0 | AF140: =IF(A140>$V$22,"",IF(R140=1,AB140*AD140,0)) -> 0 | AG140: =IF(A140>$V$22,0,IF(R140=1,AF140-AE140,0)) -> 0 | AH140: =IF(A140>$V$22,0,IF(A140=$V$22,$V$5,AH141-IF(Q140=1,AE140,0)+IF(R140=1,AF140,0))) -> 47020.86 | AI140: =IF(A140>$V$22,0,IF(R140=1,0,AB140*X140)) -> 0 | AJ140: 47020.86
A141: 110 | B141: =OFFSET(VIXinputData!B$10,CalculationsAndCharts!$A141+$A$11,0,1,1) -> 2012-05-07 | C141: =OFFSET(VIXinputData!G$10,CalculationsAndCharts!$A141+$A$11,0,1,1) -> 0 | D141: =OFFSET(VIXinputData!C$10,CalculationsAndCharts!$A141+$A$11,$B$28,1,1) -> 19.8 | E141: =OFFSET(VIXinputData!D$10,CalculationsAndCharts!$A141+$A$11,$B$28,1,1) -> 19.87 | F141: =OFFSET(VIXinputData!E$10,CalculationsAndCharts!$A141+$A$11,$B$28,1,1) -> 18.41 | G141: =OFFSET(VIXinputData!F$10,CalculationsAndCharts!$A141+$A$11,$B$28,1,1) -> 18.94 | H141: 18.41 | I141: 16.5848 | J141: 1 | K141: 0 | L141: 9 | M141: 3 | N141: 0 | O141: 0 | P141: 0 | Q141: 0 | R141: 0 | S141: 0 | T141: 0 | U141: 0 | V141: =IF(A141>$A$8,"",MATCH(B141,OFFSET(Data4SymbolToTrade!$B$10,1,0,Data4SymbolToTrade!$B$7,1),0)) -> 110 | W141: =IF(A141>$A$8,"",OFFSET(Data4SymbolToTrade!$B$10,CalculationsAndCharts!$V141,0,1,1)) -> 2012-05-07 | X141: =IF(A141>$A$8,"",OFFSET(Data4SymbolToTrade!$C$10,CalculationsAndCharts!$V141,$B$28,1,1)) -> 68.04 | Y141: 0 | Z141: 0 | AA141: 0 | AB141: =IF(A141>$V$22,"",IF(Q141=1,INT(AH142*$V$6/AC141),IF(R142=1,0,AB142))) -> 0 | AC141: =IF(A141>$V$22,"",IF(Q141=1,$X141,0)) -> 0 | AD141: =IF(A141>$V$22,"",IF(R141=1,$X141,0)) -> 0 | AE141: =IF(A141>$V$22,"",IF(Q141=1,AB141*AC141,IF(R142=1,0,AE142))) -> 0 | AF141: =IF(A141>$V$22,"",IF(R141=1,AB141*AD141,0)) -> 0 | AG141: =IF(A141>$V$22,0,IF(R141=1,AF141-AE141,0)) -> 0 | AH141: =IF(A141>$V$22,0,IF(A141=$V$22,$V$5,AH142-IF(Q141=1,AE141,0)+IF(R141=1,AF141,0))) -> 47020.86 | AI141: =IF(A141>$V$22,0,IF(R141=1,0,AB141*X141)) -> 0 | AJ141: 47020.86
A142: 111 | B142: =OFFSET(VIXinputData!B$10,CalculationsAndCharts!$A142+$A$11,0,1,1) -> 2012-05-04 | C142: =OFFSET(VIXinputData!G$10,CalculationsAndCharts!$A142+$A$11,0,1,1) -> 0 | D142: =OFFSET(VIXinputData!C$10,CalculationsAndCharts!$A142+$A$11,$B$28,1,1) -> 18.03 | E142: =OFFSET(VIXinputData!D$10,CalculationsAndCharts!$A142+$A$11,$B$28,1,1) -> 19.28 | F142: =OFFSET(VIXinputData!E$10,CalculationsAndCharts!$A142+$A$11,$B$28,1,1) -> 17.81 | G142: =OFFSET(VIXinputData!F$10,CalculationsAndCharts!$A142+$A$11,$B$28,1,1) -> 19.16 | H142: 17.81 | I142: 16.545 | J142: 1 | K142: 0 | L142: 9 | M142: 3 | N142: 0 | O142: 0 | P142: 0 | Q142: 0 | R142: 0 | S142: 0 | T142: 0 | U142: 0 | V142: =IF(A142>$A$8,"",MATCH(B142,OFFSET(Data4SymbolToTrade!$B$10,1,0,Data4SymbolToTrade!$B$7,1),0)) -> 111 | W142: =IF(A142>$A$8,"",OFFSET(Data4SymbolToTrade!$B$10,CalculationsAndCharts!$V142,0,1,1)) -> 2012-05-04 | X142: =IF(A142>$A$8,"",OFFSET(Data4SymbolToTrade!$C$10,CalculationsAndCharts!$V142,$B$28,1,1)) -> 69.83 | Y142: 0 | Z142: 0 | AA142: 0 | AB142: =IF(A142>$V$22,"",IF(Q142=1,INT(AH143*$V$6/AC142),IF(R143=1,0,AB143))) -> 0 | AC142: =IF(A142>$V$22,"",IF(Q142=1,$X142,0)) -> 0 | AD142: =IF(A142>$V$22,"",IF(R142=1,$X142,0)) -> 0 | AE142: =IF(A142>$V$22,"",IF(Q142=1,AB142*AC142,IF(R143=1,0,AE143))) -> 0 | AF142: =IF(A142>$V$22,"",IF(R142=1,AB142*AD142,0)) -> 0 | AG142: =IF(A142>$V$22,0,IF(R142=1,AF142-AE142,0)) -> 0 | AH142: =IF(A142>$V$22,0,IF(A142=$V$22,$V$5,AH143-IF(Q142=1,AE142,0)+IF(R142=1,AF142,0))) -> 47020.86 | AI142: =IF(A142>$V$22,0,IF(R142=1,0,AB142*X142)) -> 0 | AJ142: 47020.86
A143: 112 | B143: =OFFSET(VIXinputData!B$10,CalculationsAndCharts!$A143+$A$11,0,1,1) -> 2012-05-03 | C143: =OFFSET(VIXinputData!G$10,CalculationsAndCharts!$A143+$A$11,0,1,1) -> 0 | D143: =OFFSET(VIXinputData!C$10,CalculationsAndCharts!$A143+$A$11,$B$28,1,1) -> 16.9 | E143: =OFFSET(VIXinputData!D$10,CalculationsAndCharts!$A143+$A$11,$B$28,1,1) -> 17.92 | F143: =OFFSET(VIXinputData!E$10,CalculationsAndCharts!$A143+$A$11,$B$28,1,1) -> 16.73 | G143: =OFFSET(VIXinputData!F$10,CalculationsAndCharts!$A143+$A$11,$B$28,1,1) -> 17.56 | H143: 16.73 | I143: 16.5246 | J143: 1 | K143: 0 | L143: 9 | M143: 3 | N143: 0 | O143: 0 | P143: 0 | Q143: 0 | R143: 0 | S143: 0 | T143: 0 | U143: 0 | V143: =IF(A143>$A$8,"",MATCH(B143,OFFSET(Data4SymbolToTrade!$B$10,1,0,Data4SymbolToTrade!$B$7,1),0)) -> 112 | W143: =IF(A143>$A$8,"",OFFSET(Data4SymbolToTrade!$B$10,CalculationsAndCharts!$V143,0,1,1)) -> 2012-05-03 | X143: =IF(A143>$A$8,"",OFFSET(Data4SymbolToTrade!$C$10,CalculationsAndCharts!$V143,$B$28,1,1)) -> 71.15 | Y143: 0 | Z143: 0 | AA143: 0 | AB143: =IF(A143>$V$22,"",IF(Q143=1,INT(AH144*$V$6/AC143),IF(R144=1,0,AB144))) -> 0 | AC143: =IF(A143>$V$22,"",IF(Q143=1,$X143,0)) -> 0 | AD143: =IF(A143>$V$22,"",IF(R143=1,$X143,0)) -> 0 | AE143: =IF(A143>$V$22,"",IF(Q143=1,AB143*AC143,IF(R144=1,0,AE144))) -> 0 | AF143: =IF(A143>$V$22,"",IF(R143=1,AB143*AD143,0)) -> 0 | AG143: =IF(A143>$V$22,0,IF(R143=1,AF143-AE143,0)) -> 0 | AH143: =IF(A143>$V$22,0,IF(A143=$V$22,$V$5,AH144-IF(Q143=1,AE143,0)+IF(R143=1,AF143,0))) -> 47020.86 | AI143: =IF(A143>$V$22,0,IF(R143=1,0,AB143*X143)) -> 0 | AJ143: 47020.86
A144: 113 | B144: =OFFSET(VIXinputData!B$10,CalculationsAndCharts!$A144+$A$11,0,1,1) -> 2012-05-02 | C144: =OFFSET(VIXinputData!G$10,CalculationsAndCharts!$A144+$A$11,0,1,1) -> 0 | D144: =OFFSET(VIXinputData!C$10,CalculationsAndCharts!$A144+$A$11,$B$28,1,1) -> 17.25 | E144: =OFFSET(VIXinputData!D$10,CalculationsAndCharts!$A144+$A$11,$B$28,1,1) -> 17.63 | F144: =OFFSET(VIXinputData!E$10,CalculationsAndCharts!$A144+$A$11,$B$28,1,1) -> 16.78 | G144: =OFFSET(VIXinputData!F$10,CalculationsAndCharts!$A144+$A$11,$B$28,1,1) -> 16.88 | H144: 16.78 | I144: 16.5448 | J144: 1 | K144: 0 | L144: 9 | M144: 3 | N144: 0 | O144: 0 | P144: 0 | Q144: 0 | R144: 0 | S144: 0 | T144: 0 | U144: 0 | V144: =IF(A144>$A$8,"",MATCH(B144,OFFSET(Data4SymbolToTrade!$B$10,1,0,Data4SymbolToTrade!$B$7,1),0)) -> 113 | W144: =IF(A144>$A$8,"",OFFSET(Data4SymbolToTrade!$B$10,CalculationsAndCharts!$V144,0,1,1)) -> 2012-05-02 | X144: =IF(A144>$A$8,"",OFFSET(Data4SymbolToTrade!$C$10,CalculationsAndCharts!$V144,$B$28,1,1)) -> 70.78 | Y144: 0 | Z144: 0 | AA144: 0 | AB144: =IF(A144>$V$22,"",IF(Q144=1,INT(AH145*$V$6/AC144),IF(R145=1,0,AB145))) -> 0 | AC144: =IF(A144>$V$22,"",IF(Q144=1,$X144,0)) -> 0 | AD144: =IF(A144>$V$22,"",IF(R144=1,$X144,0)) -> 0 | AE144: =IF(A144>$V$22,"",IF(Q144=1,AB144*AC144,IF(R145=1,0,AE145))) -> 0 | AF144: =IF(A144>$V$22,"",IF(R144=1,AB144*AD144,0)) -> 0 | AG144: =IF(A144>$V$22,0,IF(R144=1,AF144-AE144,0)) -> 0 | AH144: =IF(A144>$V$22,0,IF(A144=$V$22,$V$5,AH145-IF(Q144=1,AE144,0)+IF(R144=1,AF144,0))) -> 47020.86 | AI144: =IF(A144>$V$22,0,IF(R144=1,0,AB144*X144)) -> 0 | AJ144: 47020.86
A145: 114 | B145: =OFFSET(VIXinputData!B$10,CalculationsAndCharts!$A145+$A$11,0,1,1) -> 2012-05-01 | C145: =OFFSET(VIXinputData!G$10,CalculationsAndCharts!$A145+$A$11,0,1,1) -> 0 | D145: =OFFSET(VIXinputData!C$10,CalculationsAndCharts!$A145+$A$11,$B$28,1,1) -> 17.27 | E145: =OFFSET(VIXinputData!D$10,CalculationsAndCharts!$A145+$A$11,$B$28,1,1) -> 17.49 | F145: =OFFSET(VIXinputData!E$10,CalculationsAndCharts!$A145+$A$11,$B$28,1,1) -> 16.01 | G145: =OFFSET(VIXinputData!F$10,CalculationsAndCharts!$A145+$A$11,$B$28,1,1) -> 16.6 | H145: 16.01 | I145: 16.5622 | J145: 0 | K145: 1 | L145: 9 | M145: 3 | N145: 0 | O145: 0 | P145: 0 | Q145: 0 | R145: 0 | S145: 0 | T145: 0 | U145: 0 | V145: =IF(A145>$A$8,"",MATCH(B145,OFFSET(Data4SymbolToTrade!$B$10,1,0,Data4SymbolToTrade!$B$7,1),0)) -> 114 | W145: =IF(A145>$A$8,"",OFFSET(Data4SymbolToTrade!$B$10,CalculationsAndCharts!$V145,0,1,1)) -> 2012-05-01 | X145: =IF(A145>$A$8,"",OFFSET(Data4SymbolToTrade!$C$10,CalculationsAndCharts!$V145,$B$28,1,1)) -> 70.62 | Y145: 0 | Z145: 0 | AA145: 0 | AB145: =IF(A145>$V$22,"",IF(Q145=1,INT(AH146*$V$6/AC145),IF(R146=1,0,AB146))) -> 0 | AC145: =IF(A145>$V$22,"",IF(Q145=1,$X145,0)) -> 0 | AD145: =IF(A145>$V$22,"",IF(R145=1,$X145,0)) -> 0 | AE145: =IF(A145>$V$22,"",IF(Q145=1,AB145*AC145,IF(R146=1,0,AE146))) -> 0 | AF145: =IF(A145>$V$22,"",IF(R145=1,AB145*AD145,0)) -> 0 | AG145: =IF(A145>$V$22,0,IF(R145=1,AF145-AE145,0)) -> 0 | AH145: =IF(A145>$V$22,0,IF(A145=$V$22,$V$5,AH146-IF(Q145=1,AE145,0)+IF(R145=1,AF145,0))) -> 47020.86 | AI145: =IF(A145>$V$22,0,IF(R145=1,0,AB145*X145)) -> 0 | AJ145: 47020.86
A146: 115 | B146: =OFFSET(VIXinputData!B$10,CalculationsAndCharts!$A146+$A$11,0,1,1) -> 2012-04-30 | C146: =OFFSET(VIXinputData!G$10,CalculationsAndCharts!$A146+$A$11,0,1,1) -> 0 | D146: =OFFSET(VIXinputData!C$10,CalculationsAndCharts!$A146+$A$11,$B$28,1,1) -> 17.04 | E146: =OFFSET(VIXinputData!D$10,CalculationsAndCharts!$A146+$A$11,$B$28,1,1) -> 17.41 | F146: =OFFSET(VIXinputData!E$10,CalculationsAndCharts!$A146+$A$11,$B$28,1,1) -> 16.92 | G146: =OFFSET(VIXinputData!F$10,CalculationsAndCharts!$A146+$A$11,$B$28,1,1) -> 17.15 | H146: 16.92 | I146: 16.5928 | J146: 1 | K146: 0 | L146: 10 | M146: 2 | N146: 0 | O146: 0 | P146: 0 | Q146: 0 | R146: 0 | S146: 0 | T146: 0 | U146: 0 | V146: =IF(A146>$A$8,"",MATCH(B146,OFFSET(Data4SymbolToTrade!$B$10,1,0,Data4SymbolToTrade!$B$7,1),0)) -> 115 | W146: =IF(A146>$A$8,"",OFFSET(Data4SymbolToTrade!$B$10,CalculationsAndCharts!$V146,0,1,1)) -> 2012-04-30 | X146: =IF(A146>$A$8,"",OFFSET(Data4SymbolToTrade!$C$10,CalculationsAndCharts!$V146,$B$28,1,1)) -> 70.54 | Y146: 0 | Z146: 0 | AA146: 0 | AB146: =IF(A146>$V$22,"",IF(Q146=1,INT(AH147*$V$6/AC146),IF(R147=1,0,AB147))) -> 0 | AC146: =IF(A146>$V$22,"",IF(Q146=1,$X146,0)) -> 0 | AD146: =IF(A146>$V$22,"",IF(R146=1,$X146,0)) -> 0 | AE146: =IF(A146>$V$22,"",IF(Q146=1,AB146*AC146,IF(R147=1,0,AE147))) -> 0 | AF146: =IF(A146>$V$22,"",IF(R146=1,AB146*AD146,0)) -> 0 | AG146: =IF(A146>$V$22,0,IF(R146=1,AF146-AE146,0)) -> 0 | AH146: =IF(A146>$V$22,0,IF(A146=$V$22,$V$5,AH147-IF(Q146=1,AE146,0)+IF(R146=1,AF146,0))) -> 47020.86 | AI146: =IF(A146>$V$22,0,IF(R146=1,0,AB146*X146)) -> 0 | AJ146: 47020.86
A147: 116 | B147: =OFFSET(VIXinputData!B$10,CalculationsAndCharts!$A147+$A$11,0,1,1) -> 2012-04-27 | C147: =OFFSET(VIXinputData!G$10,CalculationsAndCharts!$A147+$A$11,0,1,1) -> 0 | D147: =OFFSET(VIXinputData!C$10,CalculationsAndCharts!$A147+$A$11,$B$28,1,1) -> 15.83 | E147: =OFFSET(VIXinputData!D$10,CalculationsAndCharts!$A147+$A$11,$B$28,1,1) -> 16.47 | F147: =OFFSET(VIXinputData!E$10,CalculationsAndCharts!$A147+$A$11,$B$28,1,1) -> 15.83 | G147: =OFFSET(VIXinputData!F$10,CalculationsAndCharts!$A147+$A$11,$B$28,1,1) -> 16.32 | H147: 15.83 | I147: 16.6388 | J147: 0 | K147: 1 | L147: 10 | M147: 2 | N147: 0 | O147: 1 | P147: 0 | Q147: 0 | R147: 0 | S147: 0 | T147: 0 | U147: 0 | V147: =IF(A147>$A$8,"",MATCH(B147,OFFSET(Data4SymbolToTrade!$B$10,1,0,Data4SymbolToTrade!$B$7,1),0)) -> 116 | W147: =IF(A147>$A$8,"",OFFSET(Data4SymbolToTrade!$B$10,CalculationsAndCharts!$V147,0,1,1)) -> 2012-04-27 | X147: =IF(A147>$A$8,"",OFFSET(Data4SymbolToTrade!$C$10,CalculationsAndCharts!$V147,$B$28,1,1)) -> 70.85 | Y147: 0 | Z147: 0 | AA147: 0 | AB147: =IF(A147>$V$22,"",IF(Q147=1,INT(AH148*$V$6/AC147),IF(R148=1,0,AB148))) -> 0 | AC147: =IF(A147>$V$22,"",IF(Q147=1,$X147,0)) -> 0 | AD147: =IF(A147>$V$22,"",IF(R147=1,$X147,0)) -> 0 | AE147: =IF(A147>$V$22,"",IF(Q147=1,AB147*AC147,IF(R148=1,0,AE148))) -> 0 | AF147: =IF(A147>$V$22,"",IF(R147=1,AB147*AD147,0)) -> 0 | AG147: =IF(A147>$V$22,0,IF(R147=1,AF147-AE147,0)) -> 0 | AH147: =IF(A147>$V$22,0,IF(A147=$V$22,$V$5,AH148-IF(Q147=1,AE147,0)+IF(R147=1,AF147,0))) -> 47020.86 | AI147: =IF(A147>$V$22,0,IF(R147=1,0,AB147*X147)) -> 0 | AJ147: 47020.86
A148: 117 | B148: =OFFSET(VIXinputData!B$10,CalculationsAndCharts!$A148+$A$11,0,1,1) -> 2012-04-26 | C148: =OFFSET(VIXinputData!G$10,CalculationsAndCharts!$A148+$A$11,0,1,1) -> 0 | D148: =OFFSET(VIXinputData!C$10,CalculationsAndCharts!$A148+$A$11,$B$28,1,1) -> 16.97 | E148: =OFFSET(VIXinputData!D$10,CalculationsAndCharts!$A148+$A$11,$B$28,1,1) -> 17.04 | F148: =OFFSET(VIXinputData!E$10,CalculationsAndCharts!$A148+$A$11,$B$28,1,1) -> 15.75 | G148: =OFFSET(VIXinputData!F$10,CalculationsAndCharts!$A148+$A$11,$B$28,1,1) -> 16.24 | H148: 15.75 | I148: 16.711 | J148: 0 | K148: 1 | L148: 11 | M148: 1 | N148: 0 | O148: 0 | P148: 0 | Q148: 0 | R148: 0 | S148: 0 | T148: 0 | U148: 0 | V148: =IF(A148>$A$8,"",MATCH(B148,OFFSET(Data4SymbolToTrade!$B$10,1,0,Data4SymbolToTrade!$B$7,1),0)) -> 117 | W148: =IF(A148>$A$8,"",OFFSET(Data4SymbolToTrade!$B$10,CalculationsAndCharts!$V148,0,1,1)) -> 2012-04-26 | X148: =IF(A148>$A$8,"",OFFSET(Data4SymbolToTrade!$C$10,CalculationsAndCharts!$V148,$B$28,1,1)) -> 69.16 | Y148: 0 | Z148: 0 | AA148: 0 | AB148: =IF(A148>$V$22,"",IF(Q148=1,INT(AH149*$V$6/AC148),IF(R149=1,0,AB149))) -> 0 | AC148: =IF(A148>$V$22,"",IF(Q148=1,$X148,0)) -> 0 | AD148: =IF(A148>$V$22,"",IF(R148=1,$X148,0)) -> 0 | AE148: =IF(A148>$V$22,"",IF(Q148=1,AB148*AC148,IF(R149=1,0,AE149))) -> 0 | AF148: =IF(A148>$V$22,"",IF(R148=1,AB148*AD148,0)) -> 0 | AG148: =IF(A148>$V$22,0,IF(R148=1,AF148-AE148,0)) -> 0 | AH148: =IF(A148>$V$22,0,IF(A148=$V$22,$V$5,AH149-IF(Q148=1,AE148,0)+IF(R148=1,AF148,0))) -> 47020.86 | AI148: =IF(A148>$V$22,0,IF(R148=1,0,AB148*X148)) -> 0 | AJ148: 47020.86
A149: 118 | B149: =OFFSET(VIXinputData!B$10,CalculationsAndCharts!$A149+$A$11,0,1,1) -> 2012-04-25 | C149: =OFFSET(VIXinputData!G$10,CalculationsAndCharts!$A149+$A$11,0,1,1) -> 0 | D149: =OFFSET(VIXinputData!C$10,CalculationsAndCharts!$A149+$A$11,$B$28,1,1) -> 17.05 | E149: =OFFSET(VIXinputData!D$10,CalculationsAndCharts!$A149+$A$11,$B$28,1,1) -> 17.38 | F149: =OFFSET(VIXinputData!E$10,CalculationsAndCharts!$A149+$A$11,$B$28,1,1) -> 16.82 | G149: =OFFSET(VIXinputData!F$10,CalculationsAndCharts!$A149+$A$11,$B$28,1,1) -> 16.82 | H149: 16.82 | I149: 16.775 | J149: 1 | K149: 0 | L149: 12 | M149: 0 | N149: 0 | O149: 0 | P149: 0 | Q149: 0 | R149: 1 | S149: 0 | T149: 75 | U149: 0 | V149: =IF(A149>$A$8,"",MATCH(B149,OFFSET(Data4SymbolToTrade!$B$10,1,0,Data4SymbolToTrade!$B$7,1),0)) -> 118 | W149: =IF(A149>$A$8,"",OFFSET(Data4SymbolToTrade!$B$10,CalculationsAndCharts!$V149,0,1,1)) -> 2012-04-25 | X149: =IF(A149>$A$8,"",OFFSET(Data4SymbolToTrade!$C$10,CalculationsAndCharts!$V149,$B$28,1,1)) -> 69.08 | Y149: 0 | Z149: 106 | AA149: 0 | AB149: =IF(A149>$V$22,"",IF(Q149=1,INT(AH150*$V$6/AC149),IF(R150=1,0,AB150))) -> 658 | AC149: =IF(A149>$V$22,"",IF(Q149=1,$X149,0)) -> 0 | AD149: =IF(A149>$V$22,"",IF(R149=1,$X149,0)) -> 69.08 | AE149: =IF(A149>$V$22,"",IF(Q149=1,AB149*AC149,IF(R150=1,0,AE150))) -> 37341.5 | AF149: =IF(A149>$V$22,"",IF(R149=1,AB149*AD149,0)) -> 45454.64 | AG149: =IF(A149>$V$22,0,IF(R149=1,AF149-AE149,0)) -> 8113.14 | AH149: =IF(A149>$V$22,0,IF(A149=$V$22,$V$5,AH150-IF(Q149=1,AE149,0)+IF(R149=1,AF149,0))) -> 47020.86 | AI149: =IF(A149>$V$22,0,IF(R149=1,0,AB149*X149)) -> 0 | AJ149: 47020.86
A150: 119 | B150: =OFFSET(VIXinputData!B$10,CalculationsAndCharts!$A150+$A$11,0,1,1) -> 2012-04-24 | C150: =OFFSET(VIXinputData!G$10,CalculationsAndCharts!$A150+$A$11,0,1,1) -> 0 | D150: =OFFSET(VIXinputData!C$10,CalculationsAndCharts!$A150+$A$11,$B$28,1,1) -> 19.22 | E150: =OFFSET(VIXinputData!D$10,CalculationsAndCharts!$A150+$A$11,$B$28,1,1) -> 19.22 | F150: =OFFSET(VIXinputData!E$10,CalculationsAndCharts!$A150+$A$11,$B$28,1,1) -> 18.09 | G150: =OFFSET(VIXinputData!F$10,CalculationsAndCharts!$A150+$A$11,$B$28,1,1) -> 18.1 | H150: 18.09 | I150: 16.797 | J150: 1 | K150: 0 | L150: 12 | M150: 0 | N150: 0 | O150: 1 | P150: 1 | Q150: 0 | R150: 0 | S150: 0 | T150: 0 | U150: 0 | V150: =IF(A150>$A$8,"",MATCH(B150,OFFSET(Data4SymbolToTrade!$B$10,1,0,Data4SymbolToTrade!$B$7,1),0)) -> 119 | W150: =IF(A150>$A$8,"",OFFSET(Data4SymbolToTrade!$B$10,CalculationsAndCharts!$V150,0,1,1)) -> 2012-04-24 | X150: =IF(A150>$A$8,"",OFFSET(Data4SymbolToTrade!$C$10,CalculationsAndCharts!$V150,$B$28,1,1)) -> 67.83 | Y150: 0 | Z150: 0 | AA150: 0 | AB150: =IF(A150>$V$22,"",IF(Q150=1,INT(AH151*$V$6/AC150),IF(R151=1,0,AB151))) -> 658 | AC150: =IF(A150>$V$22,"",IF(Q150=1,$X150,0)) -> 0 | AD150: =IF(A150>$V$22,"",IF(R150=1,$X150,0)) -> 0 | AE150: =IF(A150>$V$22,"",IF(Q150=1,AB150*AC150,IF(R151=1,0,AE151))) -> 37341.5 | AF150: =IF(A150>$V$22,"",IF(R150=1,AB150*AD150,0)) -> 0 | AG150: =IF(A150>$V$22,0,IF(R150=1,AF150-AE150,0)) -> 0 | AH150: =IF(A150>$V$22,0,IF(A150=$V$22,$V$5,AH151-IF(Q150=1,AE150,0)+IF(R150=1,AF150,0))) -> 1566.22 | AI150: =IF(A150>$V$22,0,IF(R150=1,0,AB150*X150)) -> 44632.14 | AJ150: 46198.36
A151: 120 | B151: =OFFSET(VIXinputData!B$10,CalculationsAndCharts!$A151+$A$11,0,1,1) -> 2012-04-23 | C151: =OFFSET(VIXinputData!G$10,CalculationsAndCharts!$A151+$A$11,0,1,1) -> 0 | D151: =OFFSET(VIXinputData!C$10,CalculationsAndCharts!$A151+$A$11,$B$28,1,1) -> 20.22 | E151: =OFFSET(VIXinputData!D$10,CalculationsAndCharts!$A151+$A$11,$B$28,1,1) -> 20.27 | F151: =OFFSET(VIXinputData!E$10,CalculationsAndCharts!$A151+$A$11,$B$28,1,1) -> 18.95 | G151: =OFFSET(VIXinputData!F$10,CalculationsAndCharts!$A151+$A$11,$B$28,1,1) -> 18.97 | H151: 18.95 | I151: 16.8156 | J151: 1 | K151: 0 | L151: 11 | M151: 1 | N151: 0 | O151: 0 | P151: 1 | Q151: 0 | R151: 0 | S151: 0 | T151: 0 | U151: 0 | V151: =IF(A151>$A$8,"",MATCH(B151,OFFSET(Data4SymbolToTrade!$B$10,1,0,Data4SymbolToTrade!$B$7,1),0)) -> 120 | W151: =IF(A151>$A$8,"",OFFSET(Data4SymbolToTrade!$B$10,CalculationsAndCharts!$V151,0,1,1)) -> 2012-04-23 | X151: =IF(A151>$A$8,"",OFFSET(Data4SymbolToTrade!$C$10,CalculationsAndCharts!$V151,$B$28,1,1)) -> 67.24 | Y151: 0 | Z151: 0 | AA151: 0 | AB151: =IF(A151>$V$22,"",IF(Q151=1,INT(AH152*$V$6/AC151),IF(R152=1,0,AB152))) -> 658 | AC151: =IF(A151>$V$22,"",IF(Q151=1,$X151,0)) -> 0 | AD151: =IF(A151>$V$22,"",IF(R151=1,$X151,0)) -> 0 | AE151: =IF(A151>$V$22,"",IF(Q151=1,AB151*AC151,IF(R152=1,0,AE152))) -> 37341.5 | AF151: =IF(A151>$V$22,"",IF(R151=1,AB151*AD151,0)) -> 0 | AG151: =IF(A151>$V$22,0,IF(R151=1,AF151-AE151,0)) -> 0 | AH151: =IF(A151>$V$22,0,IF(A151=$V$22,$V$5,AH152-IF(Q151=1,AE151,0)+IF(R151=1,AF151,0))) -> 1566.22 | AI151: =IF(A151>$V$22,0,IF(R151=1,0,AB151*X151)) -> 44243.92 | AJ151: 45810.14
A152: 121 | B152: =OFFSET(VIXinputData!B$10,CalculationsAndCharts!$A152+$A$11,0,1,1) -> 2012-04-20 | C152: =OFFSET(VIXinputData!G$10,CalculationsAndCharts!$A152+$A$11,0,1,1) -> 0 | D152: =OFFSET(VIXinputData!C$10,CalculationsAndCharts!$A152+$A$11,$B$28,1,1) -> 17.92 | E152: =OFFSET(VIXinputData!D$10,CalculationsAndCharts!$A152+$A$11,$B$28,1,1) -> 18.05 | F152: =OFFSET(VIXinputData!E$10,CalculationsAndCharts!$A152+$A$11,$B$28,1,1) -> 16.97 | G152: =OFFSET(VIXinputData!F$10,CalculationsAndCharts!$A152+$A$11,$B$28,1,1) -> 17.44 | H152: 16.97 | I152: 16.798 | J152: 1 | K152: 0 | L152: 10 | M152: 2 | N152: 0 | O152: 0 | P152: 1 | Q152: 0 | R152: 0 | S152: 0 | T152: 0 | U152: 0 | V152: =IF(A152>$A$8,"",MATCH(B152,OFFSET(Data4SymbolToTrade!$B$10,1,0,Data4SymbolToTrade!$B$7,1),0)) -> 121 | W152: =IF(A152>$A$8,"",OFFSET(Data4SymbolToTrade!$B$10,CalculationsAndCharts!$V152,0,1,1)) -> 2012-04-20 | X152: =IF(A152>$A$8,"",OFFSET(Data4SymbolToTrade!$C$10,CalculationsAndCharts!$V152,$B$28,1,1)) -> 68.61 | Y152: 0 | Z152: 0 | AA152: 0 | AB152: =IF(A152>$V$22,"",IF(Q152=1,INT(AH153*$V$6/AC152),IF(R153=1,0,AB153))) -> 658 | AC152: =IF(A152>$V$22,"",IF(Q152=1,$X152,0)) -> 0 | AD152: =IF(A152>$V$22,"",IF(R152=1,$X152,0)) -> 0 | AE152: =IF(A152>$V$22,"",IF(Q152=1,AB152*AC152,IF(R153=1,0,AE153))) -> 37341.5 | AF152: =IF(A152>$V$22,"",IF(R152=1,AB152*AD152,0)) -> 0 | AG152: =IF(A152>$V$22,0,IF(R152=1,AF152-AE152,0)) -> 0 | AH152: =IF(A152>$V$22,0,IF(A152=$V$22,$V$5,AH153-IF(Q152=1,AE152,0)+IF(R152=1,AF152,0))) -> 1566.22 | AI152: =IF(A152>$V$22,0,IF(R152=1,0,AB152*X152)) -> 45145.38 | AJ152: 46711.6
A153: 122 | B153: =OFFSET(VIXinputData!B$10,CalculationsAndCharts!$A153+$A$11,0,1,1) -> 2012-04-19 | C153: =OFFSET(VIXinputData!G$10,CalculationsAndCharts!$A153+$A$11,0,1,1) -> 0 | D153: =OFFSET(VIXinputData!C$10,CalculationsAndCharts!$A153+$A$11,$B$28,1,1) -> 18.51 | E153: =OFFSET(VIXinputData!D$10,CalculationsAndCharts!$A153+$A$11,$B$28,1,1) -> 19.69 | F153: =OFFSET(VIXinputData!E$10,CalculationsAndCharts!$A153+$A$11,$B$28,1,1) -> 17.69 | G153: =OFFSET(VIXinputData!F$10,CalculationsAndCharts!$A153+$A$11,$B$28,1,1) -> 18.36 | H153: 17.69 | I153: 16.8092 | J153: 1 | K153: 0 | L153: 9 | M153: 3 | N153: 0 | O153: 0 | P153: 1 | Q153: 0 | R153: 0 | S153: 0 | T153: 0 | U153: 0 | V153: =IF(A153>$A$8,"",MATCH(B153,OFFSET(Data4SymbolToTrade!$B$10,1,0,Data4SymbolToTrade!$B$7,1),0)) -> 122 | W153: =IF(A153>$A$8,"",OFFSET(Data4SymbolToTrade!$B$10,CalculationsAndCharts!$V153,0,1,1)) -> 2012-04-19 | X153: =IF(A153>$A$8,"",OFFSET(Data4SymbolToTrade!$C$10,CalculationsAndCharts!$V153,$B$28,1,1)) -> 68.74 | Y153: 0 | Z153: 0 | AA153: 0 | AB153: =IF(A153>$V$22,"",IF(Q153=1,INT(AH154*$V$6/AC153),IF(R154=1,0,AB154))) -> 658 | AC153: =IF(A153>$V$22,"",IF(Q153=1,$X153,0)) -> 0 | AD153: =IF(A153>$V$22,"",IF(R153=1,$X153,0)) -> 0 | AE153: =IF(A153>$V$22,"",IF(Q153=1,AB153*AC153,IF(R154=1,0,AE154))) -> 37341.5 | AF153: =IF(A153>$V$22,"",IF(R153=1,AB153*AD153,0)) -> 0 | AG153: =IF(A153>$V$22,0,IF(R153=1,AF153-AE153,0)) -> 0 | AH153: =IF(A153>$V$22,0,IF(A153=$V$22,$V$5,AH154-IF(Q153=1,AE153,0)+IF(R153=1,AF153,0))) -> 1566.22 | AI153: =IF(A153>$V$22,0,IF(R153=1,0,AB153*X153)) -> 45230.92 | AJ153: 46797.14
A154: 123 | B154: =OFFSET(VIXinputData!B$10,CalculationsAndCharts!$A154+$A$11,0,1,1) -> 2012-04-18 | C154: =OFFSET(VIXinputData!G$10,CalculationsAndCharts!$A154+$A$11,0,1,1) -> 0 | D154: =OFFSET(VIXinputData!C$10,CalculationsAndCharts!$A154+$A$11,$B$28,1,1) -> 19.02 | E154: =OFFSET(VIXinputData!D$10,CalculationsAndCharts!$A154+$A$11,$B$28,1,1) -> 19.17 | F154: =OFFSET(VIXinputData!E$10,CalculationsAndCharts!$A154+$A$11,$B$28,1,1) -> 17.7 | G154: =OFFSET(VIXinputData!F$10,CalculationsAndCharts!$A154+$A$11,$B$28,1,1) -> 18.64 | H154: 17.7 | I154: 16.8054 | J154: 1 | K154: 0 | L154: 8 | M154: 4 | N154: 0 | O154: 0 | P154: 1 | Q154: 0 | R154: 0 | S154: 0 | T154: 0 | U154: 0 | V154: =IF(A154>$A$8,"",MATCH(B154,OFFSET(Data4SymbolToTrade!$B$10,1,0,Data4SymbolToTrade!$B$7,1),0)) -> 123 | W154: =IF(A154>$A$8,"",OFFSET(Data4SymbolToTrade!$B$10,CalculationsAndCharts!$V154,0,1,1)) -> 2012-04-18 | X154: =IF(A154>$A$8,"",OFFSET(Data4SymbolToTrade!$C$10,CalculationsAndCharts!$V154,$B$28,1,1)) -> 68.78 | Y154: 0 | Z154: 0 | AA154: 0 | AB154: =IF(A154>$V$22,"",IF(Q154=1,INT(AH155*$V$6/AC154),IF(R155=1,0,AB155))) -> 658 | AC154: =IF(A154>$V$22,"",IF(Q154=1,$X154,0)) -> 0 | AD154: =IF(A154>$V$22,"",IF(R154=1,$X154,0)) -> 0 | AE154: =IF(A154>$V$22,"",IF(Q154=1,AB154*AC154,IF(R155=1,0,AE155))) -> 37341.5 | AF154: =IF(A154>$V$22,"",IF(R154=1,AB154*AD154,0)) -> 0 | AG154: =IF(A154>$V$22,0,IF(R154=1,AF154-AE154,0)) -> 0 | AH154: =IF(A154>$V$22,0,IF(A154=$V$22,$V$5,AH155-IF(Q154=1,AE154,0)+IF(R154=1,AF154,0))) -> 1566.22 | AI154: =IF(A154>$V$22,0,IF(R154=1,0,AB154*X154)) -> 45257.24 | AJ154: 46823.46
A155: 124 | B155: =OFFSET(VIXinputData!B$10,CalculationsAndCharts!$A155+$A$11,0,1,1) -> 2012-04-17 | C155: =OFFSET(VIXinputData!G$10,CalculationsAndCharts!$A155+$A$11,0,1,1) -> 0 | D155: =OFFSET(VIXinputData!C$10,CalculationsAndCharts!$A155+$A$11,$B$28,1,1) -> 18.66 | E155: =OFFSET(VIXinputData!D$10,CalculationsAndCharts!$A155+$A$11,$B$28,1,1) -> 18.66 | F155: =OFFSET(VIXinputData!E$10,CalculationsAndCharts!$A155+$A$11,$B$28,1,1) -> 17.58 | G155: =OFFSET(VIXinputData!F$10,CalculationsAndCharts!$A155+$A$11,$B$28,1,1) -> 18.46 | H155: 17.58 | I155: 16.7736 | J155: 1 | K155: 0 | L155: 7 | M155: 5 | N155: 0 | O155: 0 | P155: 1 | Q155: 0 | R155: 0 | S155: 0 | T155: 0 | U155: 0 | V155: =IF(A155>$A$8,"",MATCH(B155,OFFSET(Data4SymbolToTrade!$B$10,1,0,Data4SymbolToTrade!$B$7,1),0)) -> 124 | W155: =IF(A155>$A$8,"",OFFSET(Data4SymbolToTrade!$B$10,CalculationsAndCharts!$V155,0,1,1)) -> 2012-04-17 | X155: =IF(A155>$A$8,"",OFFSET(Data4SymbolToTrade!$C$10,CalculationsAndCharts!$V155,$B$28,1,1)) -> 68.29 | Y155: 0 | Z155: 0 | AA155: 0 | AB155: =IF(A155>$V$22,"",IF(Q155=1,INT(AH156*$V$6/AC155),IF(R156=1,0,AB156))) -> 658 | AC155: =IF(A155>$V$22,"",IF(Q155=1,$X155,0)) -> 0 | AD155: =IF(A155>$V$22,"",IF(R155=1,$X155,0)) -> 0 | AE155: =IF(A155>$V$22,"",IF(Q155=1,AB155*AC155,IF(R156=1,0,AE156))) -> 37341.5 | AF155: =IF(A155>$V$22,"",IF(R155=1,AB155*AD155,0)) -> 0 | AG155: =IF(A155>$V$22,0,IF(R155=1,AF155-AE155,0)) -> 0 | AH155: =IF(A155>$V$22,0,IF(A155=$V$22,$V$5,AH156-IF(Q155=1,AE155,0)+IF(R155=1,AF155,0))) -> 1566.22 | AI155: =IF(A155>$V$22,0,IF(R155=1,0,AB155*X155)) -> 44934.82 | AJ155: 46501.04
A156: 125 | B156: =OFFSET(VIXinputData!B$10,CalculationsAndCharts!$A156+$A$11,0,1,1) -> 2012-04-16 | C156: =OFFSET(VIXinputData!G$10,CalculationsAndCharts!$A156+$A$11,0,1,1) -> 0 | D156: =OFFSET(VIXinputData!C$10,CalculationsAndCharts!$A156+$A$11,$B$28,1,1) -> 18.87 | E156: =OFFSET(VIXinputData!D$10,CalculationsAndCharts!$A156+$A$11,$B$28,1,1) -> 20.42 | F156: =OFFSET(VIXinputData!E$10,CalculationsAndCharts!$A156+$A$11,$B$28,1,1) -> 18.6 | G156: =OFFSET(VIXinputData!F$10,CalculationsAndCharts!$A156+$A$11,$B$28,1,1) -> 19.55 | H156: 18.6 | I156: 16.744 | J156: 1 | K156: 0 | L156: 6 | M156: 6 | N156: 0 | O156: 0 | P156: 1 | Q156: 0 | R156: 0 | S156: 0 | T156: 0 | U156: 0 | V156: =IF(A156>$A$8,"",MATCH(B156,OFFSET(Data4SymbolToTrade!$B$10,1,0,Data4SymbolToTrade!$B$7,1),0)) -> 125 | W156: =IF(A156>$A$8,"",OFFSET(Data4SymbolToTrade!$B$10,CalculationsAndCharts!$V156,0,1,1)) -> 2012-04-16 | X156: =IF(A156>$A$8,"",OFFSET(Data4SymbolToTrade!$C$10,CalculationsAndCharts!$V156,$B$28,1,1)) -> 67.7 | Y156: 0 | Z156: 0 | AA156: 0 | AB156: =IF(A156>$V$22,"",IF(Q156=1,INT(AH157*$V$6/AC156),IF(R157=1,0,AB157))) -> 658 | AC156: =IF(A156>$V$22,"",IF(Q156=1,$X156,0)) -> 0 | AD156: =IF(A156>$V$22,"",IF(R156=1,$X156,0)) -> 0 | AE156: =IF(A156>$V$22,"",IF(Q156=1,AB156*AC156,IF(R157=1,0,AE157))) -> 37341.5 | AF156: =IF(A156>$V$22,"",IF(R156=1,AB156*AD156,0)) -> 0 | AG156: =IF(A156>$V$22,0,IF(R156=1,AF156-AE156,0)) -> 0 | AH156: =IF(A156>$V$22,0,IF(A156=$V$22,$V$5,AH157-IF(Q156=1,AE156,0)+IF(R156=1,AF156,0))) -> 1566.22 | AI156: =IF(A156>$V$22,0,IF(R156=1,0,AB156*X156)) -> 44546.6 | AJ156: 46112.82
A157: 126 | B157: =OFFSET(VIXinputData!B$10,CalculationsAndCharts!$A157+$A$11,0,1,1) -> 2012-04-13 | C157: =OFFSET(VIXinputData!G$10,CalculationsAndCharts!$A157+$A$11,0,1,1) -> 0 | D157: =OFFSET(VIXinputData!C$10,CalculationsAndCharts!$A157+$A$11,$B$28,1,1) -> 17.95 | E157: =OFFSET(VIXinputData!D$10,CalculationsAndCharts!$A157+$A$11,$B$28,1,1) -> 19.62 | F157: =OFFSET(VIXinputData!E$10,CalculationsAndCharts!$A157+$A$11,$B$28,1,1) -> 17.85 | G157: =OFFSET(VIXinputData!F$10,CalculationsAndCharts!$A157+$A$11,$B$28,1,1) -> 19.55 | H157: 17.85 | I157: 16.7316 | J157: 1 | K157: 0 | L157: 5 | M157: 7 | N157: 0 | O157: 0 | P157: 1 | Q157: 0 | R157: 0 | S157: 0 | T157: 0 | U157: 0 | V157: =IF(A157>$A$8,"",MATCH(B157,OFFSET(Data4SymbolToTrade!$B$10,1,0,Data4SymbolToTrade!$B$7,1),0)) -> 126 | W157: =IF(A157>$A$8,"",OFFSET(Data4SymbolToTrade!$B$10,CalculationsAndCharts!$V157,0,1,1)) -> 2012-04-13 | X157: =IF(A157>$A$8,"",OFFSET(Data4SymbolToTrade!$C$10,CalculationsAndCharts!$V157,$B$28,1,1)) -> 67.8 | Y157: 0 | Z157: 0 | AA157: 0 | AB157: =IF(A157>$V$22,"",IF(Q157=1,INT(AH158*$V$6/AC157),IF(R158=1,0,AB158))) -> 658 | AC157: =IF(A157>$V$22,"",IF(Q157=1,$X157,0)) -> 0 | AD157: =IF(A157>$V$22,"",IF(R157=1,$X157,0)) -> 0 | AE157: =IF(A157>$V$22,"",IF(Q157=1,AB157*AC157,IF(R158=1,0,AE158))) -> 37341.5 | AF157: =IF(A157>$V$22,"",IF(R157=1,AB157*AD157,0)) -> 0 | AG157: =IF(A157>$V$22,0,IF(R157=1,AF157-AE157,0)) -> 0 | AH157: =IF(A157>$V$22,0,IF(A157=$V$22,$V$5,AH158-IF(Q157=1,AE157,0)+IF(R157=1,AF157,0))) -> 1566.22 | AI157: =IF(A157>$V$22,0,IF(R157=1,0,AB157*X157)) -> 44612.4 | AJ157: 46178.62
A158: 127 | B158: =OFFSET(VIXinputData!B$10,CalculationsAndCharts!$A158+$A$11,0,1,1) -> 2012-04-12 | C158: =OFFSET(VIXinputData!G$10,CalculationsAndCharts!$A158+$A$11,0,1,1) -> 0 | D158: =OFFSET(VIXinputData!C$10,CalculationsAndCharts!$A158+$A$11,$B$28,1,1) -> 19.63 | E158: =OFFSET(VIXinputData!D$10,CalculationsAndCharts!$A158+$A$11,$B$28,1,1) -> 19.74 | F158: =OFFSET(VIXinputData!E$10,CalculationsAndCharts!$A158+$A$11,$B$28,1,1) -> 17.2 | G158: =OFFSET(VIXinputData!F$10,CalculationsAndCharts!$A158+$A$11,$B$28,1,1) -> 17.2 | H158: 17.2 | I158: 16.7344 | J158: 1 | K158: 0 | L158: 4 | M158: 8 | N158: 0 | O158: 0 | P158: 1 | Q158: 0 | R158: 0 | S158: 0 | T158: 0 | U158: 0 | V158: =IF(A158>$A$8,"",MATCH(B158,OFFSET(Data4SymbolToTrade!$B$10,1,0,Data4SymbolToTrade!$B$7,1),0)) -> 127 | W158: =IF(A158>$A$8,"",OFFSET(Data4SymbolToTrade!$B$10,CalculationsAndCharts!$V158,0,1,1)) -> 2012-04-12 | X158: =IF(A158>$A$8,"",OFFSET(Data4SymbolToTrade!$C$10,CalculationsAndCharts!$V158,$B$28,1,1)) -> 66.55 | Y158: 0 | Z158: 0 | AA158: 0 | AB158: =IF(A158>$V$22,"",IF(Q158=1,INT(AH159*$V$6/AC158),IF(R159=1,0,AB159))) -> 658 | AC158: =IF(A158>$V$22,"",IF(Q158=1,$X158,0)) -> 0 | AD158: =IF(A158>$V$22,"",IF(R158=1,$X158,0)) -> 0 | AE158: =IF(A158>$V$22,"",IF(Q158=1,AB158*AC158,IF(R159=1,0,AE159))) -> 37341.5 | AF158: =IF(A158>$V$22,"",IF(R158=1,AB158*AD158,0)) -> 0 | AG158: =IF(A158>$V$22,0,IF(R158=1,AF158-AE158,0)) -> 0 | AH158: =IF(A158>$V$22,0,IF(A158=$V$22,$V$5,AH159-IF(Q158=1,AE158,0)+IF(R158=1,AF158,0))) -> 1566.22 | AI158: =IF(A158>$V$22,0,IF(R158=1,0,AB158*X158)) -> 43789.9 | AJ158: 45356.12
A159: 128 | B159: =OFFSET(VIXinputData!B$10,CalculationsAndCharts!$A159+$A$11,0,1,1) -> 2012-04-11 | C159: =OFFSET(VIXinputData!G$10,CalculationsAndCharts!$A159+$A$11,0,1,1) -> 0 | D159: =OFFSET(VIXinputData!C$10,CalculationsAndCharts!$A159+$A$11,$B$28,1,1) -> 19.22 | E159: =OFFSET(VIXinputData!D$10,CalculationsAndCharts!$A159+$A$11,$B$28,1,1) -> 20.12 | F159: =OFFSET(VIXinputData!E$10,CalculationsAndCharts!$A159+$A$11,$B$28,1,1) -> 18.73 | G159: =OFFSET(VIXinputData!F$10,CalculationsAndCharts!$A159+$A$11,$B$28,1,1) -> 20.02 | H159: 18.73 | I159: 16.753 | J159: 1 | K159: 0 | L159: 3 | M159: 9 | N159: 0 | O159: 0 | P159: 1 | Q159: 0 | R159: 0 | S159: 0 | T159: 0 | U159: 0 | V159: =IF(A159>$A$8,"",MATCH(B159,OFFSET(Data4SymbolToTrade!$B$10,1,0,Data4SymbolToTrade!$B$7,1),0)) -> 128 | W159: =IF(A159>$A$8,"",OFFSET(Data4SymbolToTrade!$B$10,CalculationsAndCharts!$V159,0,1,1)) -> 2012-04-11 | X159: =IF(A159>$A$8,"",OFFSET(Data4SymbolToTrade!$C$10,CalculationsAndCharts!$V159,$B$28,1,1)) -> 66.6 | Y159: 0 | Z159: 0 | AA159: 0 | AB159: =IF(A159>$V$22,"",IF(Q159=1,INT(AH160*$V$6/AC159),IF(R160=1,0,AB160))) -> 658 | AC159: =IF(A159>$V$22,"",IF(Q159=1,$X159,0)) -> 0 | AD159: =IF(A159>$V$22,"",IF(R159=1,$X159,0)) -> 0 | AE159: =IF(A159>$V$22,"",IF(Q159=1,AB159*AC159,IF(R160=1,0,AE160))) -> 37341.5 | AF159: =IF(A159>$V$22,"",IF(R159=1,AB159*AD159,0)) -> 0 | AG159: =IF(A159>$V$22,0,IF(R159=1,AF159-AE159,0)) -> 0 | AH159: =IF(A159>$V$22,0,IF(A159=$V$22,$V$5,AH160-IF(Q159=1,AE159,0)+IF(R159=1,AF159,0))) -> 1566.22 | AI159: =IF(A159>$V$22,0,IF(R159=1,0,AB159*X159)) -> 43822.8 | AJ159: 45389.02
A160: 129 | B160: =OFFSET(VIXinputData!B$10,CalculationsAndCharts!$A160+$A$11,0,1,1) -> 2012-04-10 | C160: =OFFSET(VIXinputData!G$10,CalculationsAndCharts!$A160+$A$11,0,1,1) -> 0 | D160: =OFFSET(VIXinputData!C$10,CalculationsAndCharts!$A160+$A$11,$B$28,1,1) -> 19.1 | E160: =OFFSET(VIXinputData!D$10,CalculationsAndCharts!$A160+$A$11,$B$28,1,1) -> 21.06 | F160: =OFFSET(VIXinputData!E$10,CalculationsAndCharts!$A160+$A$11,$B$28,1,1) -> 18.62 | G160: =OFFSET(VIXinputData!F$10,CalculationsAndCharts!$A160+$A$11,$B$28,1,1) -> 20.39 | H160: 18.62 | I160: =AVERAGE(OFFSET(C160,0,$K$29,$A$17,1)) -> 16.766 | J160: =IF(INDEX(D160:G160,1,$K$29)>I160,1,0) -> 1 | K160: =IF(INDEX(D160:G160,1,$K$29)<I160,1,0) -> 0 | L160: =SUM(OFFSET(J160,0,0,$A$18,1)) -> 2 | M160: =SUM(OFFSET(K160,0,0,$A$18,1)) -> 10 | N160: =IF(M161>=$A$19,1,0) -> 1 | O160: =IF(L161=$A$19,1,0) -> 0 | P160: 1 | Q160: =IF(AND(P160=1,P161=0),1,0) -> 0 | R160: 0 | S160: 0 | T160: 0 | U160: =IF($A160=$B$27,U$29,0) -> 0 | V160: =IF(A160>$A$8,"",MATCH(B160,OFFSET(Data4SymbolToTrade!$B$10,1,0,Data4SymbolToTrade!$B$7,1),0)) -> 129 | W160: =IF(A160>$A$8,"",OFFSET(Data4SymbolToTrade!$B$10,CalculationsAndCharts!$V160,0,1,1)) -> 2012-04-10 | X160: =IF(A160>$A$8,"",OFFSET(Data4SymbolToTrade!$C$10,CalculationsAndCharts!$V160,$B$28,1,1)) -> 67.35 | Y160: =IF($Q160=1,$Y$29,0) -> 0 | Z160: =IF($R160=1,$Z$29,0) -> 0 | AA160: =IF($A160=$B$27,AA$29,0) -> 0 | AB160: =IF(A160>$V$22,"",IF(Q160=1,INT(AH161*$V$6/AC160),IF(R161=1,0,AB161))) -> 658 | AC160: =IF(A160>$V$22,"",IF(Q160=1,$X160,0)) -> 0 | AD160: =IF(A160>$V$22,"",IF(R160=1,$X160,0)) -> 0 | AE160: =IF(A160>$V$22,"",IF(Q160=1,AB160*AC160,IF(R161=1,0,AE161))) -> 37341.5 | AF160: =IF(A160>$V$22,"",IF(R160=1,AB160*AD160,0)) -> 0 | AG160: =IF(A160>$V$22,0,IF(R160=1,AF160-AE160,0)) -> 0 | AH160: =IF(A160>$V$22,0,IF(A160=$V$22,$V$5,AH161-IF(Q160=1,AE160,0)+IF(R160=1,AF160,0))) -> 1566.22 | AI160: =IF(A160>$V$22,0,IF(R160=1,0,AB160*X160)) -> 44316.3 | AJ160: 45882.52
A161: 130 | B161: =OFFSET(VIXinputData!B$10,CalculationsAndCharts!$A161+$A$11,0,1,1) -> 2012-04-09 | C161: =OFFSET(VIXinputData!G$10,CalculationsAndCharts!$A161+$A$11,0,1,1) -> 0 | D161: =OFFSET(VIXinputData!C$10,CalculationsAndCharts!$A161+$A$11,$B$28,1,1) -> 18.94 | E161: =OFFSET(VIXinputData!D$10,CalculationsAndCharts!$A161+$A$11,$B$28,1,1) -> 18.94 | F161: =OFFSET(VIXinputData!E$10,CalculationsAndCharts!$A161+$A$11,$B$28,1,1) -> 17.93 | G161: =OFFSET(VIXinputData!F$10,CalculationsAndCharts!$A161+$A$11,$B$28,1,1) -> 18.81 | H161: =INDEX(D161:G161,$K$29) -> 17.93 | I161: 16.7588 | J161: 1 | K161: 0 | L161: 1 | M161: 11 | N161: 1 | O161: 0 | P161: =IF(AND(P162=0,N162=1),1,IF(AND(P162=1,O162=1),0,P162)) -> 1 | Q161: 0 | R161: =IF(AND(P162=1,O162=1),1,IF(AND(A161=1,P161=1),1,0)) -> 0 | S161: =IF(Q161=1,$S$29,0) -> 0 | T161: =IF(R161=1,$T$29,0) -> 0 | U161: 0 | V161: =IF(A161>$A$8,"",MATCH(B161,OFFSET(Data4SymbolToTrade!$B$10,1,0,Data4SymbolToTrade!$B$7,1),0)) -> 130 | W161: =IF(A161>$A$8,"",OFFSET(Data4SymbolToTrade!$B$10,CalculationsAndCharts!$V161,0,1,1)) -> 2012-04-09 | X161: =IF(A161>$A$8,"",OFFSET(Data4SymbolToTrade!$C$10,CalculationsAndCharts!$V161,$B$28,1,1)) -> 67.41 | Y161: 0 | Z161: 0 | AA161: 0 | AB161: =IF(A161>$V$22,"",IF(Q161=1,INT(AH162*$V$6/AC161),IF(R162=1,0,AB162))) -> 658 | AC161: =IF(A161>$V$22,"",IF(Q161=1,$X161,0)) -> 0 | AD161: =IF(A161>$V$22,"",IF(R161=1,$X161,0)) -> 0 | AE161: =IF(A161>$V$22,"",IF(Q161=1,AB161*AC161,IF(R162=1,0,AE162))) -> 37341.5 | AF161: =IF(A161>$V$22,"",IF(R161=1,AB161*AD161,0)) -> 0 | AG161: =IF(A161>$V$22,0,IF(R161=1,AF161-AE161,0)) -> 0 | AH161: =IF(A161>$V$22,0,IF(A161=$V$22,$V$5,AH162-IF(Q161=1,AE161,0)+IF(R161=1,AF161,0))) -> 1566.22 | AI161: =IF(A161>$V$22,0,IF(R161=1,0,AB161*X161)) -> 44355.78 | AJ161: 45922
A162: 131 | B162: =OFFSET(VIXinputData!B$10,CalculationsAndCharts!$A162+$A$11,0,1,1) -> 2012-04-05 | C162: =OFFSET(VIXinputData!G$10,CalculationsAndCharts!$A162+$A$11,0,1,1) -> 0 | D162: =OFFSET(VIXinputData!C$10,CalculationsAndCharts!$A162+$A$11,$B$28,1,1) -> 17.02 | E162: =OFFSET(VIXinputData!D$10,CalculationsAndCharts!$A162+$A$11,$B$28,1,1) -> 17.13 | F162: =OFFSET(VIXinputData!E$10,CalculationsAndCharts!$A162+$A$11,$B$28,1,1) -> 16.29 | G162: =OFFSET(VIXinputData!F$10,CalculationsAndCharts!$A162+$A$11,$B$28,1,1) -> 16.7 | H162: 16.29 | I162: 16.7362 | J162: 0 | K162: 1 | L162: 0 | M162: 12 | N162: 1 | O162: 0 | P162: 1 | Q162: 0 | R162: 0 | S162: 0 | T162: 0 | U162: 0 | V162: =IF(A162>$A$8,"",MATCH(B162,OFFSET(Data4SymbolToTrade!$B$10,1,0,Data4SymbolToTrade!$B$7,1),0)) -> 131 | W162: =IF(A162>$A$8,"",OFFSET(Data4SymbolToTrade!$B$10,CalculationsAndCharts!$V162,0,1,1)) -> 2012-04-05 | X162: =IF(A162>$A$8,"",OFFSET(Data4SymbolToTrade!$C$10,CalculationsAndCharts!$V162,$B$28,1,1)) -> 68.66 | Y162: 0 | Z162: 0 | AA162: 0 | AB162: =IF(A162>$V$22,"",IF(Q162=1,INT(AH163*$V$6/AC162),IF(R163=1,0,AB163))) -> 658 | AC162: =IF(A162>$V$22,"",IF(Q162=1,$X162,0)) -> 0 | AD162: =IF(A162>$V$22,"",IF(R162=1,$X162,0)) -> 0 | AE162: =IF(A162>$V$22,"",IF(Q162=1,AB162*AC162,IF(R163=1,0,AE163))) -> 37341.5 | AF162: =IF(A162>$V$22,"",IF(R162=1,AB162*AD162,0)) -> 0 | AG162: =IF(A162>$V$22,0,IF(R162=1,AF162-AE162,0)) -> 0 | AH162: =IF(A162>$V$22,0,IF(A162=$V$22,$V$5,AH163-IF(Q162=1,AE162,0)+IF(R162=1,AF162,0))) -> 1566.22 | AI162: =IF(A162>$V$22,0,IF(R162=1,0,AB162*X162)) -> 45178.28 | AJ162: 46744.5
A163: 132 | B163: =OFFSET(VIXinputData!B$10,CalculationsAndCharts!$A163+$A$11,0,1,1) -> 2012-04-04 | C163: =OFFSET(VIXinputData!G$10,CalculationsAndCharts!$A163+$A$11,0,1,1) -> 0 | D163: =OFFSET(VIXinputData!C$10,CalculationsAndCharts!$A163+$A$11,$B$28,1,1) -> 17.07 | E163: =OFFSET(VIXinputData!D$10,CalculationsAndCharts!$A163+$A$11,$B$28,1,1) -> 17.74 | F163: =OFFSET(VIXinputData!E$10,CalculationsAndCharts!$A163+$A$11,$B$28,1,1) -> 16.31 | G163: =OFFSET(VIXinputData!F$10,CalculationsAndCharts!$A163+$A$11,$B$28,1,1) -> 16.42 | H163: 16.31 | I163: 16.7534 | J163: 0 | K163: 1 | L163: 0 | M163: 12 | N163: 1 | O163: 0 | P163: 1 | Q163: 0 | R163: 0 | S163: 0 | T163: 0 | U163: 0 | V163: =IF(A163>$A$8,"",MATCH(B163,OFFSET(Data4SymbolToTrade!$B$10,1,0,Data4SymbolToTrade!$B$7,1),0)) -> 132 | W163: =IF(A163>$A$8,"",OFFSET(Data4SymbolToTrade!$B$10,CalculationsAndCharts!$V163,0,1,1)) -> 2012-04-04 | X163: =IF(A163>$A$8,"",OFFSET(Data4SymbolToTrade!$C$10,CalculationsAndCharts!$V163,$B$28,1,1)) -> 69.21 | Y163: 0 | Z163: 0 | AA163: 0 | AB163: =IF(A163>$V$22,"",IF(Q163=1,INT(AH164*$V$6/AC163),IF(R164=1,0,AB164))) -> 658 | AC163: =IF(A163>$V$22,"",IF(Q163=1,$X163,0)) -> 0 | AD163: =IF(A163>$V$22,"",IF(R163=1,$X163,0)) -> 0 | AE163: =IF(A163>$V$22,"",IF(Q163=1,AB163*AC163,IF(R164=1,0,AE164))) -> 37341.5 | AF163: =IF(A163>$V$22,"",IF(R163=1,AB163*AD163,0)) -> 0 | AG163: =IF(A163>$V$22,0,IF(R163=1,AF163-AE163,0)) -> 0 | AH163: =IF(A163>$V$22,0,IF(A163=$V$22,$V$5,AH164-IF(Q163=1,AE163,0)+IF(R163=1,AF163,0))) -> 1566.22 | AI163: =IF(A163>$V$22,0,IF(R163=1,0,AB163*X163)) -> 45540.18 | AJ163: 47106.4
A164: 133 | B164: =OFFSET(VIXinputData!B$10,CalculationsAndCharts!$A164+$A$11,0,1,1) -> 2012-04-03 | C164: =OFFSET(VIXinputData!G$10,CalculationsAndCharts!$A164+$A$11,0,1,1) -> 0 | D164: =OFFSET(VIXinputData!C$10,CalculationsAndCharts!$A164+$A$11,$B$28,1,1) -> 15.61 | E164: =OFFSET(VIXinputData!D$10,CalculationsAndCharts!$A164+$A$11,$B$28,1,1) -> 16.65 | F164: =OFFSET(VIXinputData!E$10,CalculationsAndCharts!$A164+$A$11,$B$28,1,1) -> 15.56 | G164: =OFFSET(VIXinputData!F$10,CalculationsAndCharts!$A164+$A$11,$B$28,1,1) -> 15.66 | H164: 15.56 | I164: 16.7998 | J164: 0 | K164: 1 | L164: 0 | M164: 12 | N164: 1 | O164: 0 | P164: 1 | Q164: 0 | R164: 0 | S164: 0 | T164: 0 | U164: 0 | V164: =IF(A164>$A$8,"",MATCH(B164,OFFSET(Data4SymbolToTrade!$B$10,1,0,Data4SymbolToTrade!$B$7,1),0)) -> 133 | W164: =IF(A164>$A$8,"",OFFSET(Data4SymbolToTrade!$B$10,CalculationsAndCharts!$V164,0,1,1)) -> 2012-04-03 | X164: =IF(A164>$A$8,"",OFFSET(Data4SymbolToTrade!$C$10,CalculationsAndCharts!$V164,$B$28,1,1)) -> 70.83 | Y164: 0 | Z164: 0 | AA164: 0 | AB164: =IF(A164>$V$22,"",IF(Q164=1,INT(AH165*$V$6/AC164),IF(R165=1,0,AB165))) -> 658 | AC164: =IF(A164>$V$22,"",IF(Q164=1,$X164,0)) -> 0 | AD164: =IF(A164>$V$22,"",IF(R164=1,$X164,0)) -> 0 | AE164: =IF(A164>$V$22,"",IF(Q164=1,AB164*AC164,IF(R165=1,0,AE165))) -> 37341.5 | AF164: =IF(A164>$V$22,"",IF(R164=1,AB164*AD164,0)) -> 0 | AG164: =IF(A164>$V$22,0,IF(R164=1,AF164-AE164,0)) -> 0 | AH164: =IF(A164>$V$22,0,IF(A164=$V$22,$V$5,AH165-IF(Q164=1,AE164,0)+IF(R164=1,AF164,0))) -> 1566.22 | AI164: =IF(A164>$V$22,0,IF(R164=1,0,AB164*X164)) -> 46606.14 | AJ164: 48172.36
A165: 134 | B165: =OFFSET(VIXinputData!B$10,CalculationsAndCharts!$A165+$A$11,0,1,1) -> 2012-04-02 | C165: =OFFSET(VIXinputData!G$10,CalculationsAndCharts!$A165+$A$11,0,1,1) -> 0 | D165: =OFFSET(VIXinputData!C$10,CalculationsAndCharts!$A165+$A$11,$B$28,1,1) -> 16.35 | E165: =OFFSET(VIXinputData!D$10,CalculationsAndCharts!$A165+$A$11,$B$28,1,1) -> 16.58 | F165: =OFFSET(VIXinputData!E$10,CalculationsAndCharts!$A165+$A$11,$B$28,1,1) -> 15.02 | G165: =OFFSET(VIXinputData!F$10,CalculationsAndCharts!$A165+$A$11,$B$28,1,1) -> 15.64 | H165: 15.02 | I165: 16.8596 | J165: 0 | K165: 1 | L165: 0 | M165: 12 | N165: 1 | O165: 0 | P165: 1 | Q165: 0 | R165: 0 | S165: 0 | T165: 0 | U165: 0 | V165: =IF(A165>$A$8,"",MATCH(B165,OFFSET(Data4SymbolToTrade!$B$10,1,0,Data4SymbolToTrade!$B$7,1),0)) -> 134 | W165: =IF(A165>$A$8,"",OFFSET(Data4SymbolToTrade!$B$10,CalculationsAndCharts!$V165,0,1,1)) -> 2012-04-02 | X165: =IF(A165>$A$8,"",OFFSET(Data4SymbolToTrade!$C$10,CalculationsAndCharts!$V165,$B$28,1,1)) -> 70.24 | Y165: 0 | Z165: 0 | AA165: 0 | AB165: =IF(A165>$V$22,"",IF(Q165=1,INT(AH166*$V$6/AC165),IF(R166=1,0,AB166))) -> 658 | AC165: =IF(A165>$V$22,"",IF(Q165=1,$X165,0)) -> 0 | AD165: =IF(A165>$V$22,"",IF(R165=1,$X165,0)) -> 0 | AE165: =IF(A165>$V$22,"",IF(Q165=1,AB165*AC165,IF(R166=1,0,AE166))) -> 37341.5 | AF165: =IF(A165>$V$22,"",IF(R165=1,AB165*AD165,0)) -> 0 | AG165: =IF(A165>$V$22,0,IF(R165=1,AF165-AE165,0)) -> 0 | AH165: =IF(A165>$V$22,0,IF(A165=$V$22,$V$5,AH166-IF(Q165=1,AE165,0)+IF(R165=1,AF165,0))) -> 1566.22 | AI165: =IF(A165>$V$22,0,IF(R165=1,0,AB165*X165)) -> 46217.92 | AJ165: 47784.14
A166: 135 | B166: =OFFSET(VIXinputData!B$10,CalculationsAndCharts!$A166+$A$11,0,1,1) -> 2012-03-30 | C166: =OFFSET(VIXinputData!G$10,CalculationsAndCharts!$A166+$A$11,0,1,1) -> 0 | D166: =OFFSET(VIXinputData!C$10,CalculationsAndCharts!$A166+$A$11,$B$28,1,1) -> 14.88 | E166: =OFFSET(VIXinputData!D$10,CalculationsAndCharts!$A166+$A$11,$B$28,1,1) -> 15.98 | F166: =OFFSET(VIXinputData!E$10,CalculationsAndCharts!$A166+$A$11,$B$28,1,1) -> 14.67 | G166: =OFFSET(VIXinputData!F$10,CalculationsAndCharts!$A166+$A$11,$B$28,1,1) -> 15.5 | H166: 14.67 | I166: 16.9224 | J166: 0 | K166: 1 | L166: 0 | M166: 12 | N166: 1 | O166: 0 | P166: 1 | Q166: 0 | R166: 0 | S166: 0 | T166: 0 | U166: 0 | V166: =IF(A166>$A$8,"",MATCH(B166,OFFSET(Data4SymbolToTrade!$B$10,1,0,Data4SymbolToTrade!$B$7,1),0)) -> 135 | W166: =IF(A166>$A$8,"",OFFSET(Data4SymbolToTrade!$B$10,CalculationsAndCharts!$V166,0,1,1)) -> 2012-03-30 | X166: =IF(A166>$A$8,"",OFFSET(Data4SymbolToTrade!$C$10,CalculationsAndCharts!$V166,$B$28,1,1)) -> 70.37 | Y166: 0 | Z166: 0 | AA166: 0 | AB166: =IF(A166>$V$22,"",IF(Q166=1,INT(AH167*$V$6/AC166),IF(R167=1,0,AB167))) -> 658 | AC166: =IF(A166>$V$22,"",IF(Q166=1,$X166,0)) -> 0 | AD166: =IF(A166>$V$22,"",IF(R166=1,$X166,0)) -> 0 | AE166: =IF(A166>$V$22,"",IF(Q166=1,AB166*AC166,IF(R167=1,0,AE167))) -> 37341.5 | AF166: =IF(A166>$V$22,"",IF(R166=1,AB166*AD166,0)) -> 0 | AG166: =IF(A166>$V$22,0,IF(R166=1,AF166-AE166,0)) -> 0 | AH166: =IF(A166>$V$22,0,IF(A166=$V$22,$V$5,AH167-IF(Q166=1,AE166,0)+IF(R166=1,AF166,0))) -> 1566.22 | AI166: =IF(A166>$V$22,0,IF(R166=1,0,AB166*X166)) -> 46303.46 | AJ166: 47869.68
A167: 136 | B167: =OFFSET(VIXinputData!B$10,CalculationsAndCharts!$A167+$A$11,0,1,1) -> 2012-03-29 | C167: =OFFSET(VIXinputData!G$10,CalculationsAndCharts!$A167+$A$11,0,1,1) -> 0 | D167: =OFFSET(VIXinputData!C$10,CalculationsAndCharts!$A167+$A$11,$B$28,1,1) -> 16.84 | E167: =OFFSET(VIXinputData!D$10,CalculationsAndCharts!$A167+$A$11,$B$28,1,1) -> 17.2 | F167: =OFFSET(VIXinputData!E$10,CalculationsAndCharts!$A167+$A$11,$B$28,1,1) -> 15.39 | G167: =OFFSET(VIXinputData!F$10,CalculationsAndCharts!$A167+$A$11,$B$28,1,1) -> 15.48 | H167: 15.39 | I167: 17.018 | J167: 0 | K167: 1 | L167: 0 | M167: 12 | N167: 1 | O167: 0 | P167: 1 | Q167: 0 | R167: 0 | S167: 0 | T167: 0 | U167: 0 | V167: =IF(A167>$A$8,"",MATCH(B167,OFFSET(Data4SymbolToTrade!$B$10,1,0,Data4SymbolToTrade!$B$7,1),0)) -> 136 | W167: =IF(A167>$A$8,"",OFFSET(Data4SymbolToTrade!$B$10,CalculationsAndCharts!$V167,0,1,1)) -> 2012-03-29 | X167: =IF(A167>$A$8,"",OFFSET(Data4SymbolToTrade!$C$10,CalculationsAndCharts!$V167,$B$28,1,1)) -> 68.89 | Y167: 0 | Z167: 0 | AA167: 0 | AB167: =IF(A167>$V$22,"",IF(Q167=1,INT(AH168*$V$6/AC167),IF(R168=1,0,AB168))) -> 658 | AC167: =IF(A167>$V$22,"",IF(Q167=1,$X167,0)) -> 0 | AD167: =IF(A167>$V$22,"",IF(R167=1,$X167,0)) -> 0 | AE167: =IF(A167>$V$22,"",IF(Q167=1,AB167*AC167,IF(R168=1,0,AE168))) -> 37341.5 | AF167: =IF(A167>$V$22,"",IF(R167=1,AB167*AD167,0)) -> 0 | AG167: =IF(A167>$V$22,0,IF(R167=1,AF167-AE167,0)) -> 0 | AH167: =IF(A167>$V$22,0,IF(A167=$V$22,$V$5,AH168-IF(Q167=1,AE167,0)+IF(R167=1,AF167,0))) -> 1566.22 | AI167: =IF(A167>$V$22,0,IF(R167=1,0,AB167*X167)) -> 45329.62 | AJ167: =AH167+AI167 -> 46895.84
A168: 137 | B168: =OFFSET(VIXinputData!B$10,CalculationsAndCharts!$A168+$A$11,0,1,1) -> 2012-03-28 | C168: =OFFSET(VIXinputData!G$10,CalculationsAndCharts!$A168+$A$11,0,1,1) -> 0 | D168: =OFFSET(VIXinputData!C$10,CalculationsAndCharts!$A168+$A$11,$B$28,1,1) -> 15.58 | E168: =OFFSET(VIXinputData!D$10,CalculationsAndCharts!$A168+$A$11,$B$28,1,1) -> 17.27 | F168: =OFFSET(VIXinputData!E$10,CalculationsAndCharts!$A168+$A$11,$B$28,1,1) -> 15.4 | G168: =OFFSET(VIXinputData!F$10,CalculationsAndCharts!$A168+$A$11,$B$28,1,1) -> 15.47 | H168: 15.4 | I168: 17.1258 | J168: 0 | K168: 1 | L168: 0 | M168: 12 | N168: 1 | O168: 0 | P168: 1 | Q168: 0 | R168: 0 | S168: 0 | T168: 0 | U168: 0 | V168: =IF(A168>$A$8,"",MATCH(B168,OFFSET(Data4SymbolToTrade!$B$10,1,0,Data4SymbolToTrade!$B$7,1),0)) -> 137 | W168: =IF(A168>$A$8,"",OFFSET(Data4SymbolToTrade!$B$10,CalculationsAndCharts!$V168,0,1,1)) -> 2012-03-28 | X168: =IF(A168>$A$8,"",OFFSET(Data4SymbolToTrade!$C$10,CalculationsAndCharts!$V168,$B$28,1,1)) -> 70.45 | Y168: 0 | Z168: 0 | AA168: 0 | AB168: =IF(A168>$V$22,"",IF(Q168=1,INT(AH169*$V$6/AC168),IF(R169=1,0,AB169))) -> 658 | AC168: =IF(A168>$V$22,"",IF(Q168=1,$X168,0)) -> 0 | AD168: =IF(A168>$V$22,"",IF(R168=1,$X168,0)) -> 0 | AE168: =IF(A168>$V$22,"",IF(Q168=1,AB168*AC168,IF(R169=1,0,AE169))) -> 37341.5 | AF168: =IF(A168>$V$22,"",IF(R168=1,AB168*AD168,0)) -> 0 | AG168: =IF(A168>$V$22,0,IF(R168=1,AF168-AE168,0)) -> 0 | AH168: =IF(A168>$V$22,0,IF(A168=$V$22,$V$5,AH169-IF(Q168=1,AE168,0)+IF(R168=1,AF168,0))) -> 1566.22 | AI168: =IF(A168>$V$22,0,IF(R168=1,0,AB168*X168)) -> 46356.1 | AJ168: 47922.32
A169: 138 | B169: =OFFSET(VIXinputData!B$10,CalculationsAndCharts!$A169+$A$11,0,1,1) -> 2012-03-27 | C169: =OFFSET(VIXinputData!G$10,CalculationsAndCharts!$A169+$A$11,0,1,1) -> 0 | D169: =OFFSET(VIXinputData!C$10,CalculationsAndCharts!$A169+$A$11,$B$28,1,1) -> 14.52 | E169: =OFFSET(VIXinputData!D$10,CalculationsAndCharts!$A169+$A$11,$B$28,1,1) -> 15.59 | F169: =OFFSET(VIXinputData!E$10,CalculationsAndCharts!$A169+$A$11,$B$28,1,1) -> 14.14 | G169: =OFFSET(VIXinputData!F$10,CalculationsAndCharts!$A169+$A$11,$B$28,1,1) -> 15.57 | H169: 14.14 | I169: 17.2316 | J169: 0 | K169: 1 | L169: 0 | M169: 12 | N169: 1 | O169: 0 | P169: 1 | Q169: 0 | R169: 0 | S169: 0 | T169: 0 | U169: 0 | V169: =IF(A169>$A$8,"",MATCH(B169,OFFSET(Data4SymbolToTrade!$B$10,1,0,Data4SymbolToTrade!$B$7,1),0)) -> 138 | W169: =IF(A169>$A$8,"",OFFSET(Data4SymbolToTrade!$B$10,CalculationsAndCharts!$V169,0,1,1)) -> 2012-03-27 | X169: =IF(A169>$A$8,"",OFFSET(Data4SymbolToTrade!$C$10,CalculationsAndCharts!$V169,$B$28,1,1)) -> 70.93 | Y169: 0 | Z169: 0 | AA169: 0 | AB169: =IF(A169>$V$22,"",IF(Q169=1,INT(AH170*$V$6/AC169),IF(R170=1,0,AB170))) -> 658 | AC169: =IF(A169>$V$22,"",IF(Q169=1,$X169,0)) -> 0 | AD169: =IF(A169>$V$22,"",IF(R169=1,$X169,0)) -> 0 | AE169: =IF(A169>$V$22,"",IF(Q169=1,AB169*AC169,IF(R170=1,0,AE170))) -> 37341.5 | AF169: =IF(A169>$V$22,"",IF(R169=1,AB169*AD169,0)) -> 0 | AG169: =IF(A169>$V$22,0,IF(R169=1,AF169-AE169,0)) -> 0 | AH169: =IF(A169>$V$22,0,IF(A169=$V$22,$V$5,AH170-IF(Q169=1,AE169,0)+IF(R169=1,AF169,0))) -> 1566.22 | AI169: =IF(A169>$V$22,0,IF(R169=1,0,AB169*X169)) -> 46671.94 | AJ169: 48238.16
A170: 139 | B170: =OFFSET(VIXinputData!B$10,CalculationsAndCharts!$A170+$A$11,0,1,1) -> 2012-03-26 | C170: =OFFSET(VIXinputData!G$10,CalculationsAndCharts!$A170+$A$11,0,1,1) -> 0 | D170: =OFFSET(VIXinputData!C$10,CalculationsAndCharts!$A170+$A$11,$B$28,1,1) -> 14.51 | E170: =OFFSET(VIXinputData!D$10,CalculationsAndCharts!$A170+$A$11,$B$28,1,1) -> 15.03 | F170: =OFFSET(VIXinputData!E$10,CalculationsAndCharts!$A170+$A$11,$B$28,1,1) -> 14.26 | G170: =OFFSET(VIXinputData!F$10,CalculationsAndCharts!$A170+$A$11,$B$28,1,1) -> 14.26 | H170: 14.26 | I170: 17.367 | J170: 0 | K170: 1 | L170: 0 | M170: 12 | N170: 1 | O170: 0 | P170: 1 | Q170: 0 | R170: 0 | S170: 0 | T170: 0 | U170: 0 | V170: =IF(A170>$A$8,"",MATCH(B170,OFFSET(Data4SymbolToTrade!$B$10,1,0,Data4SymbolToTrade!$B$7,1),0)) -> 139 | W170: =IF(A170>$A$8,"",OFFSET(Data4SymbolToTrade!$B$10,CalculationsAndCharts!$V170,0,1,1)) -> 2012-03-26 | X170: =IF(A170>$A$8,"",OFFSET(Data4SymbolToTrade!$C$10,CalculationsAndCharts!$V170,$B$28,1,1)) -> 70.09 | Y170: 0 | Z170: 0 | AA170: 0 | AB170: =IF(A170>$V$22,"",IF(Q170=1,INT(AH171*$V$6/AC170),IF(R171=1,0,AB171))) -> 658 | AC170: =IF(A170>$V$22,"",IF(Q170=1,$X170,0)) -> 0 | AD170: =IF(A170>$V$22,"",IF(R170=1,$X170,0)) -> 0 | AE170: =IF(A170>$V$22,"",IF(Q170=1,AB170*AC170,IF(R171=1,0,AE171))) -> 37341.5 | AF170: =IF(A170>$V$22,"",IF(R170=1,AB170*AD170,0)) -> 0 | AG170: =IF(A170>$V$22,0,IF(R170=1,AF170-AE170,0)) -> 0 | AH170: =IF(A170>$V$22,0,IF(A170=$V$22,$V$5,AH171-IF(Q170=1,AE170,0)+IF(R170=1,AF170,0))) -> 1566.22 | AI170: =IF(A170>$V$22,0,IF(R170=1,0,AB170*X170)) -> 46119.22 | AJ170: 47685.44
A171: 140 | B171: =OFFSET(VIXinputData!B$10,CalculationsAndCharts!$A171+$A$11,0,1,1) -> 2012-03-23 | C171: =OFFSET(VIXinputData!G$10,CalculationsAndCharts!$A171+$A$11,0,1,1) -> 0 | D171: =OFFSET(VIXinputData!C$10,CalculationsAndCharts!$A171+$A$11,$B$28,1,1) -> 15.65 | E171: =OFFSET(VIXinputData!D$10,CalculationsAndCharts!$A171+$A$11,$B$28,1,1) -> 16.39 | F171: =OFFSET(VIXinputData!E$10,CalculationsAndCharts!$A171+$A$11,$B$28,1,1) -> 14.69 | G171: =OFFSET(VIXinputData!F$10,CalculationsAndCharts!$A171+$A$11,$B$28,1,1) -> 14.82 | H171: 14.69 | I171: 17.491 | J171: 0 | K171: 1 | L171: 0 | M171: 12 | N171: 1 | O171: 0 | P171: 1 | Q171: 0 | R171: 0 | S171: 0 | T171: 0 | U171: 0 | V171: =IF(A171>$A$8,"",MATCH(B171,OFFSET(Data4SymbolToTrade!$B$10,1,0,Data4SymbolToTrade!$B$7,1),0)) -> 140 | W171: =IF(A171>$A$8,"",OFFSET(Data4SymbolToTrade!$B$10,CalculationsAndCharts!$V171,0,1,1)) -> 2012-03-23 | X171: =IF(A171>$A$8,"",OFFSET(Data4SymbolToTrade!$C$10,CalculationsAndCharts!$V171,$B$28,1,1)) -> 68.87 | Y171: 0 | Z171: 0 | AA171: 0 | AB171: =IF(A171>$V$22,"",IF(Q171=1,INT(AH172*$V$6/AC171),IF(R172=1,0,AB172))) -> 658 | AC171: =IF(A171>$V$22,"",IF(Q171=1,$X171,0)) -> 0 | AD171: =IF(A171>$V$22,"",IF(R171=1,$X171,0)) -> 0 | AE171: =IF(A171>$V$22,"",IF(Q171=1,AB171*AC171,IF(R172=1,0,AE172))) -> 37341.5 | AF171: =IF(A171>$V$22,"",IF(R171=1,AB171*AD171,0)) -> 0 | AG171: =IF(A171>$V$22,0,IF(R171=1,AF171-AE171,0)) -> 0 | AH171: =IF(A171>$V$22,0,IF(A171=$V$22,$V$5,AH172-IF(Q171=1,AE171,0)+IF(R171=1,AF171,0))) -> 1566.22 | AI171: =IF(A171>$V$22,0,IF(R171=1,0,AB171*X171)) -> 45316.46 | AJ171: 46882.68
A172: 141 | B172: =OFFSET(VIXinputData!B$10,CalculationsAndCharts!$A172+$A$11,0,1,1) -> 2012-03-22 | C172: =OFFSET(VIXinputData!G$10,CalculationsAndCharts!$A172+$A$11,0,1,1) -> 0 | D172: =OFFSET(VIXinputData!C$10,CalculationsAndCharts!$A172+$A$11,$B$28,1,1) -> 16.04 | E172: =OFFSET(VIXinputData!D$10,CalculationsAndCharts!$A172+$A$11,$B$28,1,1) -> 16.58 | F172: =OFFSET(VIXinputData!E$10,CalculationsAndCharts!$A172+$A$11,$B$28,1,1) -> 15.68 | G172: =OFFSET(VIXinputData!F$10,CalculationsAndCharts!$A172+$A$11,$B$28,1,1) -> 15.68 | H172: 15.68 | I172: 17.6168 | J172: 0 | K172: 1 | L172: 1 | M172: 11 | N172: 0 | O172: 0 | P172: 1 | Q172: 0 | R172: 0 | S172: 0 | T172: 0 | U172: 0 | V172: =IF(A172>$A$8,"",MATCH(B172,OFFSET(Data4SymbolToTrade!$B$10,1,0,Data4SymbolToTrade!$B$7,1),0)) -> 141 | W172: =IF(A172>$A$8,"",OFFSET(Data4SymbolToTrade!$B$10,CalculationsAndCharts!$V172,0,1,1)) -> 2012-03-22 | X172: =IF(A172>$A$8,"",OFFSET(Data4SymbolToTrade!$C$10,CalculationsAndCharts!$V172,$B$28,1,1)) -> 68.88 | Y172: 0 | Z172: 0 | AA172: 0 | AB172: =IF(A172>$V$22,"",IF(Q172=1,INT(AH173*$V$6/AC172),IF(R173=1,0,AB173))) -> 658 | AC172: =IF(A172>$V$22,"",IF(Q172=1,$X172,0)) -> 0 | AD172: =IF(A172>$V$22,"",IF(R172=1,$X172,0)) -> 0 | AE172: =IF(A172>$V$22,"",IF(Q172=1,AB172*AC172,IF(R173=1,0,AE173))) -> 37341.5 | AF172: =IF(A172>$V$22,"",IF(R172=1,AB172*AD172,0)) -> 0 | AG172: =IF(A172>$V$22,0,IF(R172=1,AF172-AE172,0)) -> 0 | AH172: =IF(A172>$V$22,0,IF(A172=$V$22,$V$5,AH173-IF(Q172=1,AE172,0)+IF(R172=1,AF172,0))) -> 1566.22 | AI172: =IF(A172>$V$22,0,IF(R172=1,0,AB172*X172)) -> 45323.04 | AJ172: 46889.26
A173: 142 | B173: =OFFSET(VIXinputData!B$10,CalculationsAndCharts!$A173+$A$11,0,1,1) -> 2012-03-21 | C173: =OFFSET(VIXinputData!G$10,CalculationsAndCharts!$A173+$A$11,0,1,1) -> 0 | D173: =OFFSET(VIXinputData!C$10,CalculationsAndCharts!$A173+$A$11,$B$28,1,1) -> 14.72 | E173: =OFFSET(VIXinputData!D$10,CalculationsAndCharts!$A173+$A$11,$B$28,1,1) -> 15.31 | F173: =OFFSET(VIXinputData!E$10,CalculationsAndCharts!$A173+$A$11,$B$28,1,1) -> 14.19 | G173: =OFFSET(VIXinputData!F$10,CalculationsAndCharts!$A173+$A$11,$B$28,1,1) -> 15.13 | H173: 14.19 | I173: 17.7042 | J173: 0 | K173: 1 | L173: 2 | M173: 10 | N173: 0 | O173: 0 | P173: 1 | Q173: 0 | R173: 0 | S173: 0 | T173: 0 | U173: 0 | V173: =IF(A173>$A$8,"",MATCH(B173,OFFSET(Data4SymbolToTrade!$B$10,1,0,Data4SymbolToTrade!$B$7,1),0)) -> 142 | W173: =IF(A173>$A$8,"",OFFSET(Data4SymbolToTrade!$B$10,CalculationsAndCharts!$V173,0,1,1)) -> 2012-03-21 | X173: =IF(A173>$A$8,"",OFFSET(Data4SymbolToTrade!$C$10,CalculationsAndCharts!$V173,$B$28,1,1)) -> 70.26 | Y173: 0 | Z173: 0 | AA173: 0 | AB173: =IF(A173>$V$22,"",IF(Q173=1,INT(AH174*$V$6/AC173),IF(R174=1,0,AB174))) -> 658 | AC173: =IF(A173>$V$22,"",IF(Q173=1,$X173,0)) -> 0 | AD173: =IF(A173>$V$22,"",IF(R173=1,$X173,0)) -> 0 | AE173: =IF(A173>$V$22,"",IF(Q173=1,AB173*AC173,IF(R174=1,0,AE174))) -> 37341.5 | AF173: =IF(A173>$V$22,"",IF(R173=1,AB173*AD173,0)) -> 0 | AG173: =IF(A173>$V$22,0,IF(R173=1,AF173-AE173,0)) -> 0 | AH173: =IF(A173>$V$22,0,IF(A173=$V$22,$V$5,AH174-IF(Q173=1,AE173,0)+IF(R173=1,AF173,0))) -> 1566.22 | AI173: =IF(A173>$V$22,0,IF(R173=1,0,AB173*X173)) -> 46231.08 | AJ173: 47797.3
A174: 143 | B174: =OFFSET(VIXinputData!B$10,CalculationsAndCharts!$A174+$A$11,0,1,1) -> 2012-03-20 | C174: =OFFSET(VIXinputData!G$10,CalculationsAndCharts!$A174+$A$11,0,1,1) -> 0 | D174: =OFFSET(VIXinputData!C$10,CalculationsAndCharts!$A174+$A$11,$B$28,1,1) -> 15.82 | E174: =OFFSET(VIXinputData!D$10,CalculationsAndCharts!$A174+$A$11,$B$28,1,1) -> 15.95 | F174: =OFFSET(VIXinputData!E$10,CalculationsAndCharts!$A174+$A$11,$B$28,1,1) -> 15.11 | G174: =OFFSET(VIXinputData!F$10,CalculationsAndCharts!$A174+$A$11,$B$28,1,1) -> 15.58 | H174: 15.11 | I174: 17.8404 | J174: 0 | K174: 1 | L174: 2 | M174: 10 | N174: 0 | O174: 0 | P174: 1 | Q174: 0 | R174: 0 | S174: 0 | T174: 0 | U174: 0 | V174: =IF(A174>$A$8,"",MATCH(B174,OFFSET(Data4SymbolToTrade!$B$10,1,0,Data4SymbolToTrade!$B$7,1),0)) -> 143 | W174: =IF(A174>$A$8,"",OFFSET(Data4SymbolToTrade!$B$10,CalculationsAndCharts!$V174,0,1,1)) -> 2012-03-20 | X174: =IF(A174>$A$8,"",OFFSET(Data4SymbolToTrade!$C$10,CalculationsAndCharts!$V174,$B$28,1,1)) -> 70.18 | Y174: 0 | Z174: 0 | AA174: 0 | AB174: =IF(A174>$V$22,"",IF(Q174=1,INT(AH175*$V$6/AC174),IF(R175=1,0,AB175))) -> 658 | AC174: =IF(A174>$V$22,"",IF(Q174=1,$X174,0)) -> 0 | AD174: =IF(A174>$V$22,"",IF(R174=1,$X174,0)) -> 0 | AE174: =IF(A174>$V$22,"",IF(Q174=1,AB174*AC174,IF(R175=1,0,AE175))) -> 37341.5 | AF174: =IF(A174>$V$22,"",IF(R174=1,AB174*AD174,0)) -> 0 | AG174: =IF(A174>$V$22,0,IF(R174=1,AF174-AE174,0)) -> 0 | AH174: =IF(A174>$V$22,0,IF(A174=$V$22,$V$5,AH175-IF(Q174=1,AE174,0)+IF(R174=1,AF174,0))) -> 1566.22 | AI174: =IF(A174>$V$22,0,IF(R174=1,0,AB174*X174)) -> 46178.44 | AJ174: 47744.66
A175: 144 | B175: =OFFSET(VIXinputData!B$10,CalculationsAndCharts!$A175+$A$11,0,1,1) -> 2012-03-19 | C175: =OFFSET(VIXinputData!G$10,CalculationsAndCharts!$A175+$A$11,0,1,1) -> 0 | D175: =OFFSET(VIXinputData!C$10,CalculationsAndCharts!$A175+$A$11,$B$28,1,1) -> 15.42 | E175: =OFFSET(VIXinputData!D$10,CalculationsAndCharts!$A175+$A$11,$B$28,1,1) -> 15.43 | F175: =OFFSET(VIXinputData!E$10,CalculationsAndCharts!$A175+$A$11,$B$28,1,1) -> 14.54 | G175: =OFFSET(VIXinputData!F$10,CalculationsAndCharts!$A175+$A$11,$B$28,1,1) -> 15.04 | H175: 14.54 | I175: 17.9498 | J175: 0 | K175: 1 | L175: 2 | M175: 10 | N175: 0 | O175: 0 | P175: 1 | Q175: 0 | R175: 0 | S175: 0 | T175: 0 | U175: 0 | V175: =IF(A175>$A$8,"",MATCH(B175,OFFSET(Data4SymbolToTrade!$B$10,1,0,Data4SymbolToTrade!$B$7,1),0)) -> 144 | W175: =IF(A175>$A$8,"",OFFSET(Data4SymbolToTrade!$B$10,CalculationsAndCharts!$V175,0,1,1)) -> 2012-03-19 | X175: =IF(A175>$A$8,"",OFFSET(Data4SymbolToTrade!$C$10,CalculationsAndCharts!$V175,$B$28,1,1)) -> 70.75 | Y175: 0 | Z175: 0 | AA175: 0 | AB175: =IF(A175>$V$22,"",IF(Q175=1,INT(AH176*$V$6/AC175),IF(R176=1,0,AB176))) -> 658 | AC175: =IF(A175>$V$22,"",IF(Q175=1,$X175,0)) -> 0 | AD175: =IF(A175>$V$22,"",IF(R175=1,$X175,0)) -> 0 | AE175: =IF(A175>$V$22,"",IF(Q175=1,AB175*AC175,IF(R176=1,0,AE176))) -> 37341.5 | AF175: =IF(A175>$V$22,"",IF(R175=1,AB175*AD175,0)) -> 0 | AG175: =IF(A175>$V$22,0,IF(R175=1,AF175-AE175,0)) -> 0 | AH175: =IF(A175>$V$22,0,IF(A175=$V$22,$V$5,AH176-IF(Q175=1,AE175,0)+IF(R175=1,AF175,0))) -> 1566.22 | AI175: =IF(A175>$V$22,0,IF(R175=1,0,AB175*X175)) -> 46553.5 | AJ175: 48119.72
A176: 145 | B176: =OFFSET(VIXinputData!B$10,CalculationsAndCharts!$A176+$A$11,0,1,1) -> 2012-03-16 | C176: =OFFSET(VIXinputData!G$10,CalculationsAndCharts!$A176+$A$11,0,1,1) -> 0 | D176: =OFFSET(VIXinputData!C$10,CalculationsAndCharts!$A176+$A$11,$B$28,1,1) -> 14.43 | E176: =OFFSET(VIXinputData!D$10,CalculationsAndCharts!$A176+$A$11,$B$28,1,1) -> 15.24 | F176: =OFFSET(VIXinputData!E$10,CalculationsAndCharts!$A176+$A$11,$B$28,1,1) -> 13.66 | G176: =OFFSET(VIXinputData!F$10,CalculationsAndCharts!$A176+$A$11,$B$28,1,1) -> 14.43 | H176: 13.66 | I176: 18.0858 | J176: 0 | K176: 1 | L176: 2 | M176: 10 | N176: 0 | O176: 0 | P176: 1 | Q176: 0 | R176: 0 | S176: 0 | T176: 0 | U176: 0 | V176: =IF(A176>$A$8,"",MATCH(B176,OFFSET(Data4SymbolToTrade!$B$10,1,0,Data4SymbolToTrade!$B$7,1),0)) -> 145 | W176: =IF(A176>$A$8,"",OFFSET(Data4SymbolToTrade!$B$10,CalculationsAndCharts!$V176,0,1,1)) -> 2012-03-16 | X176: =IF(A176>$A$8,"",OFFSET(Data4SymbolToTrade!$C$10,CalculationsAndCharts!$V176,$B$28,1,1)) -> 71.43 | Y176: 0 | Z176: 0 | AA176: 0 | AB176: =IF(A176>$V$22,"",IF(Q176=1,INT(AH177*$V$6/AC176),IF(R177=1,0,AB177))) -> 658 | AC176: =IF(A176>$V$22,"",IF(Q176=1,$X176,0)) -> 0 | AD176: =IF(A176>$V$22,"",IF(R176=1,$X176,0)) -> 0 | AE176: =IF(A176>$V$22,"",IF(Q176=1,AB176*AC176,IF(R177=1,0,AE177))) -> 37341.5 | AF176: =IF(A176>$V$22,"",IF(R176=1,AB176*AD176,0)) -> 0 | AG176: =IF(A176>$V$22,0,IF(R176=1,AF176-AE176,0)) -> 0 | AH176: =IF(A176>$V$22,0,IF(A176=$V$22,$V$5,AH177-IF(Q176=1,AE176,0)+IF(R176=1,AF176,0))) -> 1566.22 | AI176: =IF(A176>$V$22,0,IF(R176=1,0,AB176*X176)) -> 47000.94 | AJ176: 48567.16
A177: 146 | B177: =OFFSET(VIXinputData!B$10,CalculationsAndCharts!$A177+$A$11,0,1,1) -> 2012-03-15 | C177: =OFFSET(VIXinputData!G$10,CalculationsAndCharts!$A177+$A$11,0,1,1) -> 0 | D177: =OFFSET(VIXinputData!C$10,CalculationsAndCharts!$A177+$A$11,$B$28,1,1) -> 15.32 | E177: =OFFSET(VIXinputData!D$10,CalculationsAndCharts!$A177+$A$11,$B$28,1,1) -> 16.06 | F177: =OFFSET(VIXinputData!E$10,CalculationsAndCharts!$A177+$A$11,$B$28,1,1) -> 14.58 | G177: =OFFSET(VIXinputData!F$10,CalculationsAndCharts!$A177+$A$11,$B$28,1,1) -> 15.43 | H177: 14.58 | I177: 18.257 | J177: 0 | K177: 1 | L177: 2 | M177: 10 | N177: 0 | O177: 0 | P177: 1 | Q177: 0 | R177: 0 | S177: 0 | T177: 0 | U177: 0 | V177: =IF(A177>$A$8,"",MATCH(B177,OFFSET(Data4SymbolToTrade!$B$10,1,0,Data4SymbolToTrade!$B$7,1),0)) -> 146 | W177: =IF(A177>$A$8,"",OFFSET(Data4SymbolToTrade!$B$10,CalculationsAndCharts!$V177,0,1,1)) -> 2012-03-15 | X177: =IF(A177>$A$8,"",OFFSET(Data4SymbolToTrade!$C$10,CalculationsAndCharts!$V177,$B$28,1,1)) -> 70.63 | Y177: 0 | Z177: 0 | AA177: 0 | AB177: =IF(A177>$V$22,"",IF(Q177=1,INT(AH178*$V$6/AC177),IF(R178=1,0,AB178))) -> 658 | AC177: =IF(A177>$V$22,"",IF(Q177=1,$X177,0)) -> 0 | AD177: =IF(A177>$V$22,"",IF(R177=1,$X177,0)) -> 0 | AE177: =IF(A177>$V$22,"",IF(Q177=1,AB177*AC177,IF(R178=1,0,AE178))) -> 37341.5 | AF177: =IF(A177>$V$22,"",IF(R177=1,AB177*AD177,0)) -> 0 | AG177: =IF(A177>$V$22,0,IF(R177=1,AF177-AE177,0)) -> 0 | AH177: =IF(A177>$V$22,0,IF(A177=$V$22,$V$5,AH178-IF(Q177=1,AE177,0)+IF(R177=1,AF177,0))) -> 1566.22 | AI177: =IF(A177>$V$22,0,IF(R177=1,0,AB177*X177)) -> 46474.54 | AJ177: 48040.76
A178: 147 | B178: =OFFSET(VIXinputData!B$10,CalculationsAndCharts!$A178+$A$11,0,1,1) -> 2012-03-14 | C178: =OFFSET(VIXinputData!G$10,CalculationsAndCharts!$A178+$A$11,0,1,1) -> 0 | D178: =OFFSET(VIXinputData!C$10,CalculationsAndCharts!$A178+$A$11,$B$28,1,1) -> 14.42 | E178: =OFFSET(VIXinputData!D$10,CalculationsAndCharts!$A178+$A$11,$B$28,1,1) -> 16.19 | F178: =OFFSET(VIXinputData!E$10,CalculationsAndCharts!$A178+$A$11,$B$28,1,1) -> 14.39 | G178: =OFFSET(VIXinputData!F$10,CalculationsAndCharts!$A178+$A$11,$B$28,1,1) -> 15.31 | H178: 14.39 | I178: 18.4162 | J178: 0 | K178: 1 | L178: 2 | M178: 10 | N178: 0 | O178: 0 | P178: 1 | Q178: 0 | R178: 0 | S178: 0 | T178: 0 | U178: 0 | V178: =IF(A178>$A$8,"",MATCH(B178,OFFSET(Data4SymbolToTrade!$B$10,1,0,Data4SymbolToTrade!$B$7,1),0)) -> 147 | W178: =IF(A178>$A$8,"",OFFSET(Data4SymbolToTrade!$B$10,CalculationsAndCharts!$V178,0,1,1)) -> 2012-03-14 | X178: =IF(A178>$A$8,"",OFFSET(Data4SymbolToTrade!$C$10,CalculationsAndCharts!$V178,$B$28,1,1)) -> 70.36 | Y178: 0 | Z178: 0 | AA178: 0 | AB178: =IF(A178>$V$22,"",IF(Q178=1,INT(AH179*$V$6/AC178),IF(R179=1,0,AB179))) -> 658 | AC178: =IF(A178>$V$22,"",IF(Q178=1,$X178,0)) -> 0 | AD178: =IF(A178>$V$22,"",IF(R178=1,$X178,0)) -> 0 | AE178: =IF(A178>$V$22,"",IF(Q178=1,AB178*AC178,IF(R179=1,0,AE179))) -> 37341.5 | AF178: =IF(A178>$V$22,"",IF(R178=1,AB178*AD178,0)) -> 0 | AG178: =IF(A178>$V$22,0,IF(R178=1,AF178-AE178,0)) -> 0 | AH178: =IF(A178>$V$22,0,IF(A178=$V$22,$V$5,AH179-IF(Q178=1,AE178,0)+IF(R178=1,AF178,0))) -> 1566.22 | AI178: =IF(A178>$V$22,0,IF(R178=1,0,AB178*X178)) -> 46296.88 | AJ178: 47863.1
A179: 148 | B179: =OFFSET(VIXinputData!B$10,CalculationsAndCharts!$A179+$A$11,0,1,1) -> 2012-03-13 | C179: =OFFSET(VIXinputData!G$10,CalculationsAndCharts!$A179+$A$11,0,1,1) -> 0 | D179: =OFFSET(VIXinputData!C$10,CalculationsAndCharts!$A179+$A$11,$B$28,1,1) -> 14 | E179: =OFFSET(VIXinputData!D$10,CalculationsAndCharts!$A179+$A$11,$B$28,1,1) -> 16.08 | F179: =OFFSET(VIXinputData!E$10,CalculationsAndCharts!$A179+$A$11,$B$28,1,1) -> 13.99 | G179: =OFFSET(VIXinputData!F$10,CalculationsAndCharts!$A179+$A$11,$B$28,1,1) -> 14.73 | H179: 13.99 | I179: 18.5814 | J179: 0 | K179: 1 | L179: 2 | M179: 10 | N179: 0 | O179: 0 | P179: 1 | Q179: 0 | R179: 0 | S179: 0 | T179: 0 | U179: 0 | V179: =IF(A179>$A$8,"",MATCH(B179,OFFSET(Data4SymbolToTrade!$B$10,1,0,Data4SymbolToTrade!$B$7,1),0)) -> 148 | W179: =IF(A179>$A$8,"",OFFSET(Data4SymbolToTrade!$B$10,CalculationsAndCharts!$V179,0,1,1)) -> 2012-03-13 | X179: =IF(A179>$A$8,"",OFFSET(Data4SymbolToTrade!$C$10,CalculationsAndCharts!$V179,$B$28,1,1)) -> 68.57 | Y179: 0 | Z179: 0 | AA179: 0 | AB179: =IF(A179>$V$22,"",IF(Q179=1,INT(AH180*$V$6/AC179),IF(R180=1,0,AB180))) -> 658 | AC179: =IF(A179>$V$22,"",IF(Q179=1,$X179,0)) -> 0 | AD179: =IF(A179>$V$22,"",IF(R179=1,$X179,0)) -> 0 | AE179: =IF(A179>$V$22,"",IF(Q179=1,AB179*AC179,IF(R180=1,0,AE180))) -> 37341.5 | AF179: =IF(A179>$V$22,"",IF(R179=1,AB179*AD179,0)) -> 0 | AG179: =IF(A179>$V$22,0,IF(R179=1,AF179-AE179,0)) -> 0 | AH179: =IF(A179>$V$22,0,IF(A179=$V$22,$V$5,AH180-IF(Q179=1,AE179,0)+IF(R179=1,AF179,0))) -> 1566.22 | AI179: =IF(A179>$V$22,0,IF(R179=1,0,AB179*X179)) -> 45119.06 | AJ179: 46685.28
A180: 149 | B180: =OFFSET(VIXinputData!B$10,CalculationsAndCharts!$A180+$A$11,0,1,1) -> 2012-03-12 | C180: =OFFSET(VIXinputData!G$10,CalculationsAndCharts!$A180+$A$11,0,1,1) -> 0 | D180: =OFFSET(VIXinputData!C$10,CalculationsAndCharts!$A180+$A$11,$B$28,1,1) -> 15.79 | E180: =OFFSET(VIXinputData!D$10,CalculationsAndCharts!$A180+$A$11,$B$28,1,1) -> 16.67 | F180: =OFFSET(VIXinputData!E$10,CalculationsAndCharts!$A180+$A$11,$B$28,1,1) -> 15.23 | G180: =OFFSET(VIXinputData!F$10,CalculationsAndCharts!$A180+$A$11,$B$28,1,1) -> 15.64 | H180: 15.23 | I180: 18.7546 | J180: 0 | K180: 1 | L180: 2 | M180: 10 | N180: 0 | O180: 0 | P180: 1 | Q180: 0 | R180: 0 | S180: 0 | T180: 0 | U180: 0 | V180: =IF(A180>$A$8,"",MATCH(B180,OFFSET(Data4SymbolToTrade!$B$10,1,0,Data4SymbolToTrade!$B$7,1),0)) -> 149 | W180: =IF(A180>$A$8,"",OFFSET(Data4SymbolToTrade!$B$10,CalculationsAndCharts!$V180,0,1,1)) -> 2012-03-12 | X180: =IF(A180>$A$8,"",OFFSET(Data4SymbolToTrade!$C$10,CalculationsAndCharts!$V180,$B$28,1,1)) -> 67.65 | Y180: 0 | Z180: 0 | AA180: 0 | AB180: =IF(A180>$V$22,"",IF(Q180=1,INT(AH181*$V$6/AC180),IF(R181=1,0,AB181))) -> 658 | AC180: =IF(A180>$V$22,"",IF(Q180=1,$X180,0)) -> 0 | AD180: =IF(A180>$V$22,"",IF(R180=1,$X180,0)) -> 0 | AE180: =IF(A180>$V$22,"",IF(Q180=1,AB180*AC180,IF(R181=1,0,AE181))) -> 37341.5 | AF180: =IF(A180>$V$22,"",IF(R180=1,AB180*AD180,0)) -> 0 | AG180: =IF(A180>$V$22,0,IF(R180=1,AF180-AE180,0)) -> 0 | AH180: =IF(A180>$V$22,0,IF(A180=$V$22,$V$5,AH181-IF(Q180=1,AE180,0)+IF(R180=1,AF180,0))) -> 1566.22 | AI180: =IF(A180>$V$22,0,IF(R180=1,0,AB180*X180)) -> 44513.7 | AJ180: 46079.92
A181: 150 | B181: =OFFSET(VIXinputData!B$10,CalculationsAndCharts!$A181+$A$11,0,1,1) -> 2012-03-09 | C181: =OFFSET(VIXinputData!G$10,CalculationsAndCharts!$A181+$A$11,0,1,1) -> 0 | D181: =OFFSET(VIXinputData!C$10,CalculationsAndCharts!$A181+$A$11,$B$28,1,1) -> 17.16 | E181: =OFFSET(VIXinputData!D$10,CalculationsAndCharts!$A181+$A$11,$B$28,1,1) -> 17.54 | F181: =OFFSET(VIXinputData!E$10,CalculationsAndCharts!$A181+$A$11,$B$28,1,1) -> 16.63 | G181: =OFFSET(VIXinputData!F$10,CalculationsAndCharts!$A181+$A$11,$B$28,1,1) -> 17.11 | H181: 16.63 | I181: 18.8922 | J181: 0 | K181: 1 | L181: 2 | M181: 10 | N181: 0 | O181: 0 | P181: 1 | Q181: 0 | R181: 0 | S181: 0 | T181: 0 | U181: 0 | V181: =IF(A181>$A$8,"",MATCH(B181,OFFSET(Data4SymbolToTrade!$B$10,1,0,Data4SymbolToTrade!$B$7,1),0)) -> 150 | W181: =IF(A181>$A$8,"",OFFSET(Data4SymbolToTrade!$B$10,CalculationsAndCharts!$V181,0,1,1)) -> 2012-03-09 | X181: =IF(A181>$A$8,"",OFFSET(Data4SymbolToTrade!$C$10,CalculationsAndCharts!$V181,$B$28,1,1)) -> 67.71 | Y181: 0 | Z181: 0 | AA181: 0 | AB181: =IF(A181>$V$22,"",IF(Q181=1,INT(AH182*$V$6/AC181),IF(R182=1,0,AB182))) -> 658 | AC181: =IF(A181>$V$22,"",IF(Q181=1,$X181,0)) -> 0 | AD181: =IF(A181>$V$22,"",IF(R181=1,$X181,0)) -> 0 | AE181: =IF(A181>$V$22,"",IF(Q181=1,AB181*AC181,IF(R182=1,0,AE182))) -> 37341.5 | AF181: =IF(A181>$V$22,"",IF(R181=1,AB181*AD181,0)) -> 0 | AG181: =IF(A181>$V$22,0,IF(R181=1,AF181-AE181,0)) -> 0 | AH181: =IF(A181>$V$22,0,IF(A181=$V$22,$V$5,AH182-IF(Q181=1,AE181,0)+IF(R181=1,AF181,0))) -> 1566.22 | AI181: =IF(A181>$V$22,0,IF(R181=1,0,AB181*X181)) -> 44553.18 | AJ181: 46119.4
A182: 151 | B182: =OFFSET(VIXinputData!B$10,CalculationsAndCharts!$A182+$A$11,0,1,1) -> 2012-03-08 | C182: =OFFSET(VIXinputData!G$10,CalculationsAndCharts!$A182+$A$11,0,1,1) -> 0 | D182: =OFFSET(VIXinputData!C$10,CalculationsAndCharts!$A182+$A$11,$B$28,1,1) -> 18.08 | E182: =OFFSET(VIXinputData!D$10,CalculationsAndCharts!$A182+$A$11,$B$28,1,1) -> 18.46 | F182: =OFFSET(VIXinputData!E$10,CalculationsAndCharts!$A182+$A$11,$B$28,1,1) -> 17.76 | G182: =OFFSET(VIXinputData!F$10,CalculationsAndCharts!$A182+$A$11,$B$28,1,1) -> 18.02 | H182: 17.76 | I182: 18.9932 | J182: 0 | K182: 1 | L182: 2 | M182: 10 | N182: 0 | O182: 0 | P182: 1 | Q182: 0 | R182: 0 | S182: 0 | T182: 0 | U182: 0 | V182: =IF(A182>$A$8,"",MATCH(B182,OFFSET(Data4SymbolToTrade!$B$10,1,0,Data4SymbolToTrade!$B$7,1),0)) -> 151 | W182: =IF(A182>$A$8,"",OFFSET(Data4SymbolToTrade!$B$10,CalculationsAndCharts!$V182,0,1,1)) -> 2012-03-08 | X182: =IF(A182>$A$8,"",OFFSET(Data4SymbolToTrade!$C$10,CalculationsAndCharts!$V182,$B$28,1,1)) -> 67.28 | Y182: 0 | Z182: 0 | AA182: 0 | AB182: =IF(A182>$V$22,"",IF(Q182=1,INT(AH183*$V$6/AC182),IF(R183=1,0,AB183))) -> 658 | AC182: =IF(A182>$V$22,"",IF(Q182=1,$X182,0)) -> 0 | AD182: =IF(A182>$V$22,"",IF(R182=1,$X182,0)) -> 0 | AE182: =IF(A182>$V$22,"",IF(Q182=1,AB182*AC182,IF(R183=1,0,AE183))) -> 37341.5 | AF182: =IF(A182>$V$22,"",IF(R182=1,AB182*AD182,0)) -> 0 | AG182: =IF(A182>$V$22,0,IF(R182=1,AF182-AE182,0)) -> 0 | AH182: =IF(A182>$V$22,0,IF(A182=$V$22,$V$5,AH183-IF(Q182=1,AE182,0)+IF(R182=1,AF182,0))) -> 1566.22 | AI182: =IF(A182>$V$22,0,IF(R182=1,0,AB182*X182)) -> 44270.24 | AJ182: 45836.46
A183: 152 | B183: =OFFSET(VIXinputData!B$10,CalculationsAndCharts!$A183+$A$11,0,1,1) -> 2012-03-07 | C183: =OFFSET(VIXinputData!G$10,CalculationsAndCharts!$A183+$A$11,0,1,1) -> 0 | D183: =OFFSET(VIXinputData!C$10,CalculationsAndCharts!$A183+$A$11,$B$28,1,1) -> 20.43 | E183: =OFFSET(VIXinputData!D$10,CalculationsAndCharts!$A183+$A$11,$B$28,1,1) -> 20.44 | F183: =OFFSET(VIXinputData!E$10,CalculationsAndCharts!$A183+$A$11,$B$28,1,1) -> 19.07 | G183: =OFFSET(VIXinputData!F$10,CalculationsAndCharts!$A183+$A$11,$B$28,1,1) -> 19.07 | H183: 19.07 | I183: 19.0524 | J183: 1 | K183: 0 | L183: 2 | M183: 10 | N183: 1 | O183: 0 | P183: 1 | Q183: 0 | R183: 0 | S183: 0 | T183: 0 | U183: 0 | V183: =IF(A183>$A$8,"",MATCH(B183,OFFSET(Data4SymbolToTrade!$B$10,1,0,Data4SymbolToTrade!$B$7,1),0)) -> 152 | W183: =IF(A183>$A$8,"",OFFSET(Data4SymbolToTrade!$B$10,CalculationsAndCharts!$V183,0,1,1)) -> 2012-03-07 | X183: =IF(A183>$A$8,"",OFFSET(Data4SymbolToTrade!$C$10,CalculationsAndCharts!$V183,$B$28,1,1)) -> 66.03 | Y183: 0 | Z183: 0 | AA183: 0 | AB183: =IF(A183>$V$22,"",IF(Q183=1,INT(AH184*$V$6/AC183),IF(R184=1,0,AB184))) -> 658 | AC183: =IF(A183>$V$22,"",IF(Q183=1,$X183,0)) -> 0 | AD183: =IF(A183>$V$22,"",IF(R183=1,$X183,0)) -> 0 | AE183: =IF(A183>$V$22,"",IF(Q183=1,AB183*AC183,IF(R184=1,0,AE184))) -> 37341.5 | AF183: =IF(A183>$V$22,"",IF(R183=1,AB183*AD183,0)) -> 0 | AG183: =IF(A183>$V$22,0,IF(R183=1,AF183-AE183,0)) -> 0 | AH183: =IF(A183>$V$22,0,IF(A183=$V$22,$V$5,AH184-IF(Q183=1,AE183,0)+IF(R183=1,AF183,0))) -> 1566.22 | AI183: =IF(A183>$V$22,0,IF(R183=1,0,AB183*X183)) -> 43447.74 | AJ183: 45013.96
A184: 153 | B184: =OFFSET(VIXinputData!B$10,CalculationsAndCharts!$A184+$A$11,0,1,1) -> 2012-03-06 | C184: =OFFSET(VIXinputData!G$10,CalculationsAndCharts!$A184+$A$11,0,1,1) -> 0 | D184: =OFFSET(VIXinputData!C$10,CalculationsAndCharts!$A184+$A$11,$B$28,1,1) -> 20.57 | E184: =OFFSET(VIXinputData!D$10,CalculationsAndCharts!$A184+$A$11,$B$28,1,1) -> 21.24 | F184: =OFFSET(VIXinputData!E$10,CalculationsAndCharts!$A184+$A$11,$B$28,1,1) -> 20.3 | G184: =OFFSET(VIXinputData!F$10,CalculationsAndCharts!$A184+$A$11,$B$28,1,1) -> 20.84 | H184: 20.3 | I184: 19.0778 | J184: 1 | K184: 0 | L184: 1 | M184: 11 | N184: 1 | O184: 0 | P184: 1 | Q184: 0 | R184: 0 | S184: 0 | T184: 0 | U184: 0 | V184: =IF(A184>$A$8,"",MATCH(B184,OFFSET(Data4SymbolToTrade!$B$10,1,0,Data4SymbolToTrade!$B$7,1),0)) -> 153 | W184: =IF(A184>$A$8,"",OFFSET(Data4SymbolToTrade!$B$10,CalculationsAndCharts!$V184,0,1,1)) -> 2012-03-06 | X184: =IF(A184>$A$8,"",OFFSET(Data4SymbolToTrade!$C$10,CalculationsAndCharts!$V184,$B$28,1,1)) -> 66.39 | Y184: 0 | Z184: 0 | AA184: 0 | AB184: =IF(A184>$V$22,"",IF(Q184=1,INT(AH185*$V$6/AC184),IF(R185=1,0,AB185))) -> 658 | AC184: =IF(A184>$V$22,"",IF(Q184=1,$X184,0)) -> 0 | AD184: =IF(A184>$V$22,"",IF(R184=1,$X184,0)) -> 0 | AE184: =IF(A184>$V$22,"",IF(Q184=1,AB184*AC184,IF(R185=1,0,AE185))) -> 37341.5 | AF184: =IF(A184>$V$22,"",IF(R184=1,AB184*AD184,0)) -> 0 | AG184: =IF(A184>$V$22,0,IF(R184=1,AF184-AE184,0)) -> 0 | AH184: =IF(A184>$V$22,0,IF(A184=$V$22,$V$5,AH185-IF(Q184=1,AE184,0)+IF(R184=1,AF184,0))) -> 1566.22 | AI184: =IF(A184>$V$22,0,IF(R184=1,0,AB184*X184)) -> 43684.62 | AJ184: 45250.84
A185: 154 | B185: =OFFSET(VIXinputData!B$10,CalculationsAndCharts!$A185+$A$11,0,1,1) -> 2012-03-05 | C185: =OFFSET(VIXinputData!G$10,CalculationsAndCharts!$A185+$A$11,0,1,1) -> 0 | D185: =OFFSET(VIXinputData!C$10,CalculationsAndCharts!$A185+$A$11,$B$28,1,1) -> 18.27 | E185: =OFFSET(VIXinputData!D$10,CalculationsAndCharts!$A185+$A$11,$B$28,1,1) -> 18.9 | F185: =OFFSET(VIXinputData!E$10,CalculationsAndCharts!$A185+$A$11,$B$28,1,1) -> 18.02 | G185: =OFFSET(VIXinputData!F$10,CalculationsAndCharts!$A185+$A$11,$B$28,1,1) -> 18.05 | H185: 18.02 | I185: 19.0942 | J185: 0 | K185: 1 | L185: 0 | M185: 12 | N185: 1 | O185: 0 | P185: 1 | Q185: 0 | R185: 0 | S185: 0 | T185: 0 | U185: 0 | V185: =IF(A185>$A$8,"",MATCH(B185,OFFSET(Data4SymbolToTrade!$B$10,1,0,Data4SymbolToTrade!$B$7,1),0)) -> 154 | W185: =IF(A185>$A$8,"",OFFSET(Data4SymbolToTrade!$B$10,CalculationsAndCharts!$V185,0,1,1)) -> 2012-03-05 | X185: =IF(A185>$A$8,"",OFFSET(Data4SymbolToTrade!$C$10,CalculationsAndCharts!$V185,$B$28,1,1)) -> 67.89 | Y185: 0 | Z185: 0 | AA185: 0 | AB185: =IF(A185>$V$22,"",IF(Q185=1,INT(AH186*$V$6/AC185),IF(R186=1,0,AB186))) -> 658 | AC185: =IF(A185>$V$22,"",IF(Q185=1,$X185,0)) -> 0 | AD185: =IF(A185>$V$22,"",IF(R185=1,$X185,0)) -> 0 | AE185: =IF(A185>$V$22,"",IF(Q185=1,AB185*AC185,IF(R186=1,0,AE186))) -> 37341.5 | AF185: =IF(A185>$V$22,"",IF(R185=1,AB185*AD185,0)) -> 0 | AG185: =IF(A185>$V$22,0,IF(R185=1,AF185-AE185,0)) -> 0 | AH185: =IF(A185>$V$22,0,IF(A185=$V$22,$V$5,AH186-IF(Q185=1,AE185,0)+IF(R185=1,AF185,0))) -> 1566.22 | AI185: =IF(A185>$V$22,0,IF(R185=1,0,AB185*X185)) -> 44671.62 | AJ185: 46237.84
A186: 155 | B186: =OFFSET(VIXinputData!B$10,CalculationsAndCharts!$A186+$A$11,0,1,1) -> 2012-03-02 | C186: =OFFSET(VIXinputData!G$10,CalculationsAndCharts!$A186+$A$11,0,1,1) -> 0 | D186: =OFFSET(VIXinputData!C$10,CalculationsAndCharts!$A186+$A$11,$B$28,1,1) -> 17.65 | E186: =OFFSET(VIXinputData!D$10,CalculationsAndCharts!$A186+$A$11,$B$28,1,1) -> 17.65 | F186: =OFFSET(VIXinputData!E$10,CalculationsAndCharts!$A186+$A$11,$B$28,1,1) -> 17.14 | G186: =OFFSET(VIXinputData!F$10,CalculationsAndCharts!$A186+$A$11,$B$28,1,1) -> 17.29 | H186: 17.14 | I186: 19.1846 | J186: 0 | K186: 1 | L186: 0 | M186: 12 | N186: 1 | O186: 0 | P186: 1 | Q186: 0 | R186: 0 | S186: 0 | T186: 0 | U186: 0 | V186: =IF(A186>$A$8,"",MATCH(B186,OFFSET(Data4SymbolToTrade!$B$10,1,0,Data4SymbolToTrade!$B$7,1),0)) -> 155 | W186: =IF(A186>$A$8,"",OFFSET(Data4SymbolToTrade!$B$10,CalculationsAndCharts!$V186,0,1,1)) -> 2012-03-02 | X186: =IF(A186>$A$8,"",OFFSET(Data4SymbolToTrade!$C$10,CalculationsAndCharts!$V186,$B$28,1,1)) -> 68.05 | Y186: 0 | Z186: 0 | AA186: 0 | AB186: =IF(A186>$V$22,"",IF(Q186=1,INT(AH187*$V$6/AC186),IF(R187=1,0,AB187))) -> 658 | AC186: =IF(A186>$V$22,"",IF(Q186=1,$X186,0)) -> 0 | AD186: =IF(A186>$V$22,"",IF(R186=1,$X186,0)) -> 0 | AE186: =IF(A186>$V$22,"",IF(Q186=1,AB186*AC186,IF(R187=1,0,AE187))) -> 37341.5 | AF186: =IF(A186>$V$22,"",IF(R186=1,AB186*AD186,0)) -> 0 | AG186: =IF(A186>$V$22,0,IF(R186=1,AF186-AE186,0)) -> 0 | AH186: =IF(A186>$V$22,0,IF(A186=$V$22,$V$5,AH187-IF(Q186=1,AE186,0)+IF(R186=1,AF186,0))) -> 1566.22 | AI186: =IF(A186>$V$22,0,IF(R186=1,0,AB186*X186)) -> 44776.9 | AJ186: 46343.12
A187: 156 | B187: =OFFSET(VIXinputData!B$10,CalculationsAndCharts!$A187+$A$11,0,1,1) -> 2012-03-01 | C187: =OFFSET(VIXinputData!G$10,CalculationsAndCharts!$A187+$A$11,0,1,1) -> 0 | D187: =OFFSET(VIXinputData!C$10,CalculationsAndCharts!$A187+$A$11,$B$28,1,1) -> 18.02 | E187: =OFFSET(VIXinputData!D$10,CalculationsAndCharts!$A187+$A$11,$B$28,1,1) -> 18.03 | F187: =OFFSET(VIXinputData!E$10,CalculationsAndCharts!$A187+$A$11,$B$28,1,1) -> 17.26 | G187: =OFFSET(VIXinputData!F$10,CalculationsAndCharts!$A187+$A$11,$B$28,1,1) -> 17.26 | H187: 17.26 | I187: 19.3294 | J187: 0 | K187: 1 | L187: 0 | M187: 12 | N187: 1 | O187: 0 | P187: 1 | Q187: 0 | R187: 0 | S187: 0 | T187: 0 | U187: 0 | V187: =IF(A187>$A$8,"",MATCH(B187,OFFSET(Data4SymbolToTrade!$B$10,1,0,Data4SymbolToTrade!$B$7,1),0)) -> 156 | W187: =IF(A187>$A$8,"",OFFSET(Data4SymbolToTrade!$B$10,CalculationsAndCharts!$V187,0,1,1)) -> 2012-03-01 | X187: =IF(A187>$A$8,"",OFFSET(Data4SymbolToTrade!$C$10,CalculationsAndCharts!$V187,$B$28,1,1)) -> 68.1 | Y187: 0 | Z187: 0 | AA187: 0 | AB187: =IF(A187>$V$22,"",IF(Q187=1,INT(AH188*$V$6/AC187),IF(R188=1,0,AB188))) -> 658 | AC187: =IF(A187>$V$22,"",IF(Q187=1,$X187,0)) -> 0 | AD187: =IF(A187>$V$22,"",IF(R187=1,$X187,0)) -> 0 | AE187: =IF(A187>$V$22,"",IF(Q187=1,AB187*AC187,IF(R188=1,0,AE188))) -> 37341.5 | AF187: =IF(A187>$V$22,"",IF(R187=1,AB187*AD187,0)) -> 0 | AG187: =IF(A187>$V$22,0,IF(R187=1,AF187-AE187,0)) -> 0 | AH187: =IF(A187>$V$22,0,IF(A187=$V$22,$V$5,AH188-IF(Q187=1,AE187,0)+IF(R187=1,AF187,0))) -> 1566.22 | AI187: =IF(A187>$V$22,0,IF(R187=1,0,AB187*X187)) -> 44809.8 | AJ187: 46376.02
A188: 157 | B188: =OFFSET(VIXinputData!B$10,CalculationsAndCharts!$A188+$A$11,0,1,1) -> 2012-02-29 | C188: =OFFSET(VIXinputData!G$10,CalculationsAndCharts!$A188+$A$11,0,1,1) -> 0 | D188: =OFFSET(VIXinputData!C$10,CalculationsAndCharts!$A188+$A$11,$B$28,1,1) -> 17.8 | E188: =OFFSET(VIXinputData!D$10,CalculationsAndCharts!$A188+$A$11,$B$28,1,1) -> 18.75 | F188: =OFFSET(VIXinputData!E$10,CalculationsAndCharts!$A188+$A$11,$B$28,1,1) -> 17.53 | G188: =OFFSET(VIXinputData!F$10,CalculationsAndCharts!$A188+$A$11,$B$28,1,1) -> 18.43 | H188: 17.53 | I188: 19.4544 | J188: 0 | K188: 1 | L188: 0 | M188: 12 | N188: 1 | O188: 0 | P188: 1 | Q188: 0 | R188: 0 | S188: 0 | T188: 0 | U188: 0 | V188: =IF(A188>$A$8,"",MATCH(B188,OFFSET(Data4SymbolToTrade!$B$10,1,0,Data4SymbolToTrade!$B$7,1),0)) -> 157 | W188: =IF(A188>$A$8,"",OFFSET(Data4SymbolToTrade!$B$10,CalculationsAndCharts!$V188,0,1,1)) -> 2012-02-29 | X188: =IF(A188>$A$8,"",OFFSET(Data4SymbolToTrade!$C$10,CalculationsAndCharts!$V188,$B$28,1,1)) -> 68.55 | Y188: 0 | Z188: 0 | AA188: 0 | AB188: =IF(A188>$V$22,"",IF(Q188=1,INT(AH189*$V$6/AC188),IF(R189=1,0,AB189))) -> 658 | AC188: =IF(A188>$V$22,"",IF(Q188=1,$X188,0)) -> 0 | AD188: =IF(A188>$V$22,"",IF(R188=1,$X188,0)) -> 0 | AE188: =IF(A188>$V$22,"",IF(Q188=1,AB188*AC188,IF(R189=1,0,AE189))) -> 37341.5 | AF188: =IF(A188>$V$22,"",IF(R188=1,AB188*AD188,0)) -> 0 | AG188: =IF(A188>$V$22,0,IF(R188=1,AF188-AE188,0)) -> 0 | AH188: =IF(A188>$V$22,0,IF(A188=$V$22,$V$5,AH189-IF(Q188=1,AE188,0)+IF(R188=1,AF188,0))) -> 1566.22 | AI188: =IF(A188>$V$22,0,IF(R188=1,0,AB188*X188)) -> 45105.9 | AJ188: 46672.12
A189: 158 | B189: =OFFSET(VIXinputData!B$10,CalculationsAndCharts!$A189+$A$11,0,1,1) -> 2012-02-28 | C189: =OFFSET(VIXinputData!G$10,CalculationsAndCharts!$A189+$A$11,0,1,1) -> 0 | D189: =OFFSET(VIXinputData!C$10,CalculationsAndCharts!$A189+$A$11,$B$28,1,1) -> 18.67 | E189: =OFFSET(VIXinputData!D$10,CalculationsAndCharts!$A189+$A$11,$B$28,1,1) -> 18.67 | F189: =OFFSET(VIXinputData!E$10,CalculationsAndCharts!$A189+$A$11,$B$28,1,1) -> 17.88 | G189: =OFFSET(VIXinputData!F$10,CalculationsAndCharts!$A189+$A$11,$B$28,1,1) -> 17.95 | H189: 17.88 | I189: 19.5814 | J189: 0 | K189: 1 | L189: 0 | M189: 12 | N189: 1 | O189: 0 | P189: 1 | Q189: 0 | R189: 0 | S189: 0 | T189: 0 | U189: 0 | V189: =IF(A189>$A$8,"",MATCH(B189,OFFSET(Data4SymbolToTrade!$B$10,1,0,Data4SymbolToTrade!$B$7,1),0)) -> 158 | W189: =IF(A189>$A$8,"",OFFSET(Data4SymbolToTrade!$B$10,CalculationsAndCharts!$V189,0,1,1)) -> 2012-02-28 | X189: =IF(A189>$A$8,"",OFFSET(Data4SymbolToTrade!$C$10,CalculationsAndCharts!$V189,$B$28,1,1)) -> 68.14 | Y189: 0 | Z189: 0 | AA189: 0 | AB189: =IF(A189>$V$22,"",IF(Q189=1,INT(AH190*$V$6/AC189),IF(R190=1,0,AB190))) -> 658 | AC189: =IF(A189>$V$22,"",IF(Q189=1,$X189,0)) -> 0 | AD189: =IF(A189>$V$22,"",IF(R189=1,$X189,0)) -> 0 | AE189: =IF(A189>$V$22,"",IF(Q189=1,AB189*AC189,IF(R190=1,0,AE190))) -> 37341.5 | AF189: =IF(A189>$V$22,"",IF(R189=1,AB189*AD189,0)) -> 0 | AG189: =IF(A189>$V$22,0,IF(R189=1,AF189-AE189,0)) -> 0 | AH189: =IF(A189>$V$22,0,IF(A189=$V$22,$V$5,AH190-IF(Q189=1,AE189,0)+IF(R189=1,AF189,0))) -> 1566.22 | AI189: =IF(A189>$V$22,0,IF(R189=1,0,AB189*X189)) -> 44836.12 | AJ189: 46402.34
A190: 159 | B190: =OFFSET(VIXinputData!B$10,CalculationsAndCharts!$A190+$A$11,0,1,1) -> 2012-02-27 | C190: =OFFSET(VIXinputData!G$10,CalculationsAndCharts!$A190+$A$11,0,1,1) -> 0 | D190: =OFFSET(VIXinputData!C$10,CalculationsAndCharts!$A190+$A$11,$B$28,1,1) -> 19.1 | E190: =OFFSET(VIXinputData!D$10,CalculationsAndCharts!$A190+$A$11,$B$28,1,1) -> 19.25 | F190: =OFFSET(VIXinputData!E$10,CalculationsAndCharts!$A190+$A$11,$B$28,1,1) -> 17.58 | G190: =OFFSET(VIXinputData!F$10,CalculationsAndCharts!$A190+$A$11,$B$28,1,1) -> 18.18 | H190: 17.58 | I190: 19.739 | J190: 0 | K190: 1 | L190: 0 | M190: 12 | N190: 1 | O190: 0 | P190: 1 | Q190: 0 | R190: 0 | S190: 0 | T190: 0 | U190: 0 | V190: =IF(A190>$A$8,"",MATCH(B190,OFFSET(Data4SymbolToTrade!$B$10,1,0,Data4SymbolToTrade!$B$7,1),0)) -> 159 | W190: =IF(A190>$A$8,"",OFFSET(Data4SymbolToTrade!$B$10,CalculationsAndCharts!$V190,0,1,1)) -> 2012-02-27 | X190: =IF(A190>$A$8,"",OFFSET(Data4SymbolToTrade!$C$10,CalculationsAndCharts!$V190,$B$28,1,1)) -> 67.44 | Y190: 0 | Z190: 0 | AA190: 0 | AB190: =IF(A190>$V$22,"",IF(Q190=1,INT(AH191*$V$6/AC190),IF(R191=1,0,AB191))) -> 658 | AC190: =IF(A190>$V$22,"",IF(Q190=1,$X190,0)) -> 0 | AD190: =IF(A190>$V$22,"",IF(R190=1,$X190,0)) -> 0 | AE190: =IF(A190>$V$22,"",IF(Q190=1,AB190*AC190,IF(R191=1,0,AE191))) -> 37341.5 | AF190: =IF(A190>$V$22,"",IF(R190=1,AB190*AD190,0)) -> 0 | AG190: =IF(A190>$V$22,0,IF(R190=1,AF190-AE190,0)) -> 0 | AH190: =IF(A190>$V$22,0,IF(A190=$V$22,$V$5,AH191-IF(Q190=1,AE190,0)+IF(R190=1,AF190,0))) -> 1566.22 | AI190: =IF(A190>$V$22,0,IF(R190=1,0,AB190*X190)) -> 44375.52 | AJ190: 45941.74
A191: 160 | B191: =OFFSET(VIXinputData!B$10,CalculationsAndCharts!$A191+$A$11,0,1,1) -> 2012-02-24 | C191: =OFFSET(VIXinputData!G$10,CalculationsAndCharts!$A191+$A$11,0,1,1) -> 0 | D191: =OFFSET(VIXinputData!C$10,CalculationsAndCharts!$A191+$A$11,$B$28,1,1) -> 16.68 | E191: =OFFSET(VIXinputData!D$10,CalculationsAndCharts!$A191+$A$11,$B$28,1,1) -> 17.62 | F191: =OFFSET(VIXinputData!E$10,CalculationsAndCharts!$A191+$A$11,$B$28,1,1) -> 16.42 | G191: =OFFSET(VIXinputData!F$10,CalculationsAndCharts!$A191+$A$11,$B$28,1,1) -> 17.31 | H191: 16.42 | I191: 19.8528 | J191: 0 | K191: 1 | L191: 0 | M191: 12 | N191: 1 | O191: 0 | P191: 1 | Q191: 0 | R191: 0 | S191: 0 | T191: 0 | U191: 0 | V191: =IF(A191>$A$8,"",MATCH(B191,OFFSET(Data4SymbolToTrade!$B$10,1,0,Data4SymbolToTrade!$B$7,1),0)) -> 160 | W191: =IF(A191>$A$8,"",OFFSET(Data4SymbolToTrade!$B$10,CalculationsAndCharts!$V191,0,1,1)) -> 2012-02-24 | X191: =IF(A191>$A$8,"",OFFSET(Data4SymbolToTrade!$C$10,CalculationsAndCharts!$V191,$B$28,1,1)) -> 68.3 | Y191: 0 | Z191: 0 | AA191: 0 | AB191: =IF(A191>$V$22,"",IF(Q191=1,INT(AH192*$V$6/AC191),IF(R192=1,0,AB192))) -> 658 | AC191: =IF(A191>$V$22,"",IF(Q191=1,$X191,0)) -> 0 | AD191: =IF(A191>$V$22,"",IF(R191=1,$X191,0)) -> 0 | AE191: =IF(A191>$V$22,"",IF(Q191=1,AB191*AC191,IF(R192=1,0,AE192))) -> 37341.5 | AF191: =IF(A191>$V$22,"",IF(R191=1,AB191*AD191,0)) -> 0 | AG191: =IF(A191>$V$22,0,IF(R191=1,AF191-AE191,0)) -> 0 | AH191: =IF(A191>$V$22,0,IF(A191=$V$22,$V$5,AH192-IF(Q191=1,AE191,0)+IF(R191=1,AF191,0))) -> 1566.22 | AI191: =IF(A191>$V$22,0,IF(R191=1,0,AB191*X191)) -> 44941.4 | AJ191: 46507.62
A192: 161 | B192: =OFFSET(VIXinputData!B$10,CalculationsAndCharts!$A192+$A$11,0,1,1) -> 2012-02-23 | C192: =OFFSET(VIXinputData!G$10,CalculationsAndCharts!$A192+$A$11,0,1,1) -> 0 | D192: =OFFSET(VIXinputData!C$10,CalculationsAndCharts!$A192+$A$11,$B$28,1,1) -> 18.73 | E192: =OFFSET(VIXinputData!D$10,CalculationsAndCharts!$A192+$A$11,$B$28,1,1) -> 18.97 | F192: =OFFSET(VIXinputData!E$10,CalculationsAndCharts!$A192+$A$11,$B$28,1,1) -> 16.79 | G192: =OFFSET(VIXinputData!F$10,CalculationsAndCharts!$A192+$A$11,$B$28,1,1) -> 16.83 | H192: 16.79 | I192: 20.0372 | J192: 0 | K192: 1 | L192: 0 | M192: 12 | N192: 1 | O192: 0 | P192: 1 | Q192: 0 | R192: 0 | S192: 0 | T192: 0 | U192: 0 | V192: =IF(A192>$A$8,"",MATCH(B192,OFFSET(Data4SymbolToTrade!$B$10,1,0,Data4SymbolToTrade!$B$7,1),0)) -> 161 | W192: =IF(A192>$A$8,"",OFFSET(Data4SymbolToTrade!$B$10,CalculationsAndCharts!$V192,0,1,1)) -> 2012-02-23 | X192: =IF(A192>$A$8,"",OFFSET(Data4SymbolToTrade!$C$10,CalculationsAndCharts!$V192,$B$28,1,1)) -> 67.46 | Y192: 0 | Z192: 0 | AA192: 0 | AB192: =IF(A192>$V$22,"",IF(Q192=1,INT(AH193*$V$6/AC192),IF(R193=1,0,AB193))) -> 658 | AC192: =IF(A192>$V$22,"",IF(Q192=1,$X192,0)) -> 0 | AD192: =IF(A192>$V$22,"",IF(R192=1,$X192,0)) -> 0 | AE192: =IF(A192>$V$22,"",IF(Q192=1,AB192*AC192,IF(R193=1,0,AE193))) -> 37341.5 | AF192: =IF(A192>$V$22,"",IF(R192=1,AB192*AD192,0)) -> 0 | AG192: =IF(A192>$V$22,0,IF(R192=1,AF192-AE192,0)) -> 0 | AH192: =IF(A192>$V$22,0,IF(A192=$V$22,$V$5,AH193-IF(Q192=1,AE192,0)+IF(R192=1,AF192,0))) -> 1566.22 | AI192: =IF(A192>$V$22,0,IF(R192=1,0,AB192*X192)) -> 44388.68 | AJ192: 45954.9
A193: 162 | B193: =OFFSET(VIXinputData!B$10,CalculationsAndCharts!$A193+$A$11,0,1,1) -> 2012-02-22 | C193: =OFFSET(VIXinputData!G$10,CalculationsAndCharts!$A193+$A$11,0,1,1) -> 0 | D193: =OFFSET(VIXinputData!C$10,CalculationsAndCharts!$A193+$A$11,$B$28,1,1) -> 18.85 | E193: =OFFSET(VIXinputData!D$10,CalculationsAndCharts!$A193+$A$11,$B$28,1,1) -> 18.94 | F193: =OFFSET(VIXinputData!E$10,CalculationsAndCharts!$A193+$A$11,$B$28,1,1) -> 17.74 | G193: =OFFSET(VIXinputData!F$10,CalculationsAndCharts!$A193+$A$11,$B$28,1,1) -> 18.19 | H193: 17.74 | I193: 20.2272 | J193: 0 | K193: 1 | L193: 0 | M193: 12 | N193: 1 | O193: 0 | P193: 1 | Q193: 0 | R193: 0 | S193: 0 | T193: 0 | U193: 0 | V193: =IF(A193>$A$8,"",MATCH(B193,OFFSET(Data4SymbolToTrade!$B$10,1,0,Data4SymbolToTrade!$B$7,1),0)) -> 162 | W193: =IF(A193>$A$8,"",OFFSET(Data4SymbolToTrade!$B$10,CalculationsAndCharts!$V193,0,1,1)) -> 2012-02-22 | X193: =IF(A193>$A$8,"",OFFSET(Data4SymbolToTrade!$C$10,CalculationsAndCharts!$V193,$B$28,1,1)) -> 67.76 | Y193: 0 | Z193: 0 | AA193: 0 | AB193: =IF(A193>$V$22,"",IF(Q193=1,INT(AH194*$V$6/AC193),IF(R194=1,0,AB194))) -> 658 | AC193: =IF(A193>$V$22,"",IF(Q193=1,$X193,0)) -> 0 | AD193: =IF(A193>$V$22,"",IF(R193=1,$X193,0)) -> 0 | AE193: =IF(A193>$V$22,"",IF(Q193=1,AB193*AC193,IF(R194=1,0,AE194))) -> 37341.5 | AF193: =IF(A193>$V$22,"",IF(R193=1,AB193*AD193,0)) -> 0 | AG193: =IF(A193>$V$22,0,IF(R193=1,AF193-AE193,0)) -> 0 | AH193: =IF(A193>$V$22,0,IF(A193=$V$22,$V$5,AH194-IF(Q193=1,AE193,0)+IF(R193=1,AF193,0))) -> 1566.22 | AI193: =IF(A193>$V$22,0,IF(R193=1,0,AB193*X193)) -> 44586.08 | AJ193: 46152.3
A194: 163 | B194: =OFFSET(VIXinputData!B$10,CalculationsAndCharts!$A194+$A$11,0,1,1) -> 2012-02-21 | C194: =OFFSET(VIXinputData!G$10,CalculationsAndCharts!$A194+$A$11,0,1,1) -> 0 | D194: =OFFSET(VIXinputData!C$10,CalculationsAndCharts!$A194+$A$11,$B$28,1,1) -> 18.41 | E194: =OFFSET(VIXinputData!D$10,CalculationsAndCharts!$A194+$A$11,$B$28,1,1) -> 18.94 | F194: =OFFSET(VIXinputData!E$10,CalculationsAndCharts!$A194+$A$11,$B$28,1,1) -> 17.65 | G194: =OFFSET(VIXinputData!F$10,CalculationsAndCharts!$A194+$A$11,$B$28,1,1) -> 18.19 | H194: 17.65 | I194: 20.4528 | J194: 0 | K194: 1 | L194: 0 | M194: 12 | N194: 1 | O194: 0 | P194: 1 | Q194: 0 | R194: 0 | S194: 0 | T194: 0 | U194: 0 | V194: =IF(A194>$A$8,"",MATCH(B194,OFFSET(Data4SymbolToTrade!$B$10,1,0,Data4SymbolToTrade!$B$7,1),0)) -> 163 | W194: =IF(A194>$A$8,"",OFFSET(Data4SymbolToTrade!$B$10,CalculationsAndCharts!$V194,0,1,1)) -> 2012-02-21 | X194: =IF(A194>$A$8,"",OFFSET(Data4SymbolToTrade!$C$10,CalculationsAndCharts!$V194,$B$28,1,1)) -> 68.12 | Y194: 0 | Z194: 0 | AA194: 0 | AB194: =IF(A194>$V$22,"",IF(Q194=1,INT(AH195*$V$6/AC194),IF(R195=1,0,AB195))) -> 658 | AC194: =IF(A194>$V$22,"",IF(Q194=1,$X194,0)) -> 0 | AD194: =IF(A194>$V$22,"",IF(R194=1,$X194,0)) -> 0 | AE194: =IF(A194>$V$22,"",IF(Q194=1,AB194*AC194,IF(R195=1,0,AE195))) -> 37341.5 | AF194: =IF(A194>$V$22,"",IF(R194=1,AB194*AD194,0)) -> 0 | AG194: =IF(A194>$V$22,0,IF(R194=1,AF194-AE194,0)) -> 0 | AH194: =IF(A194>$V$22,0,IF(A194=$V$22,$V$5,AH195-IF(Q194=1,AE194,0)+IF(R194=1,AF194,0))) -> 1566.22 | AI194: =IF(A194>$V$22,0,IF(R194=1,0,AB194*X194)) -> 44822.96 | AJ194: 46389.18
A195: 164 | B195: =OFFSET(VIXinputData!B$10,CalculationsAndCharts!$A195+$A$11,0,1,1) -> 2012-02-17 | C195: =OFFSET(VIXinputData!G$10,CalculationsAndCharts!$A195+$A$11,0,1,1) -> 0 | D195: =OFFSET(VIXinputData!C$10,CalculationsAndCharts!$A195+$A$11,$B$28,1,1) -> 18.73 | E195: =OFFSET(VIXinputData!D$10,CalculationsAndCharts!$A195+$A$11,$B$28,1,1) -> 18.79 | F195: =OFFSET(VIXinputData!E$10,CalculationsAndCharts!$A195+$A$11,$B$28,1,1) -> 17.54 | G195: =OFFSET(VIXinputData!F$10,CalculationsAndCharts!$A195+$A$11,$B$28,1,1) -> 17.78 | H195: 17.54 | I195: 20.6686 | J195: 0 | K195: 1 | L195: 0 | M195: 12 | N195: 1 | O195: 0 | P195: 1 | Q195: 0 | R195: 0 | S195: 0 | T195: 0 | U195: 0 | V195: =IF(A195>$A$8,"",MATCH(B195,OFFSET(Data4SymbolToTrade!$B$10,1,0,Data4SymbolToTrade!$B$7,1),0)) -> 164 | W195: =IF(A195>$A$8,"",OFFSET(Data4SymbolToTrade!$B$10,CalculationsAndCharts!$V195,0,1,1)) -> 2012-02-17 | X195: =IF(A195>$A$8,"",OFFSET(Data4SymbolToTrade!$C$10,CalculationsAndCharts!$V195,$B$28,1,1)) -> 67.84 | Y195: 0 | Z195: 0 | AA195: 0 | AB195: =IF(A195>$V$22,"",IF(Q195=1,INT(AH196*$V$6/AC195),IF(R196=1,0,AB196))) -> 658 | AC195: =IF(A195>$V$22,"",IF(Q195=1,$X195,0)) -> 0 | AD195: =IF(A195>$V$22,"",IF(R195=1,$X195,0)) -> 0 | AE195: =IF(A195>$V$22,"",IF(Q195=1,AB195*AC195,IF(R196=1,0,AE196))) -> 37341.5 | AF195: =IF(A195>$V$22,"",IF(R195=1,AB195*AD195,0)) -> 0 | AG195: =IF(A195>$V$22,0,IF(R195=1,AF195-AE195,0)) -> 0 | AH195: =IF(A195>$V$22,0,IF(A195=$V$22,$V$5,AH196-IF(Q195=1,AE195,0)+IF(R195=1,AF195,0))) -> 1566.22 | AI195: =IF(A195>$V$22,0,IF(R195=1,0,AB195*X195)) -> 44638.72 | AJ195: 46204.94
A196: 165 | B196: =OFFSET(VIXinputData!B$10,CalculationsAndCharts!$A196+$A$11,0,1,1) -> 2012-02-16 | C196: =OFFSET(VIXinputData!G$10,CalculationsAndCharts!$A196+$A$11,0,1,1) -> 0 | D196: =OFFSET(VIXinputData!C$10,CalculationsAndCharts!$A196+$A$11,$B$28,1,1) -> 21.59 | E196: =OFFSET(VIXinputData!D$10,CalculationsAndCharts!$A196+$A$11,$B$28,1,1) -> 21.76 | F196: =OFFSET(VIXinputData!E$10,CalculationsAndCharts!$A196+$A$11,$B$28,1,1) -> 19.22 | G196: =OFFSET(VIXinputData!F$10,CalculationsAndCharts!$A196+$A$11,$B$28,1,1) -> 19.22 | H196: 19.22 | I196: 20.866 | J196: 0 | K196: 1 | L196: 0 | M196: 12 | N196: 1 | O196: 0 | P196: 1 | Q196: 0 | R196: 0 | S196: 0 | T196: 0 | U196: 0 | V196: =IF(A196>$A$8,"",MATCH(B196,OFFSET(Data4SymbolToTrade!$B$10,1,0,Data4SymbolToTrade!$B$7,1),0)) -> 165 | W196: =IF(A196>$A$8,"",OFFSET(Data4SymbolToTrade!$B$10,CalculationsAndCharts!$V196,0,1,1)) -> 2012-02-16 | X196: =IF(A196>$A$8,"",OFFSET(Data4SymbolToTrade!$C$10,CalculationsAndCharts!$V196,$B$28,1,1)) -> 66.11 | Y196: 0 | Z196: 0 | AA196: 0 | AB196: =IF(A196>$V$22,"",IF(Q196=1,INT(AH197*$V$6/AC196),IF(R197=1,0,AB197))) -> 658 | AC196: =IF(A196>$V$22,"",IF(Q196=1,$X196,0)) -> 0 | AD196: =IF(A196>$V$22,"",IF(R196=1,$X196,0)) -> 0 | AE196: =IF(A196>$V$22,"",IF(Q196=1,AB196*AC196,IF(R197=1,0,AE197))) -> 37341.5 | AF196: =IF(A196>$V$22,"",IF(R196=1,AB196*AD196,0)) -> 0 | AG196: =IF(A196>$V$22,0,IF(R196=1,AF196-AE196,0)) -> 0 | AH196: =IF(A196>$V$22,0,IF(A196=$V$22,$V$5,AH197-IF(Q196=1,AE196,0)+IF(R196=1,AF196,0))) -> 1566.22 | AI196: =IF(A196>$V$22,0,IF(R196=1,0,AB196*X196)) -> 43500.38 | AJ196: 45066.6
A197: 166 | B197: =OFFSET(VIXinputData!B$10,CalculationsAndCharts!$A197+$A$11,0,1,1) -> 2012-02-15 | C197: =OFFSET(VIXinputData!G$10,CalculationsAndCharts!$A197+$A$11,0,1,1) -> 0 | D197: =OFFSET(VIXinputData!C$10,CalculationsAndCharts!$A197+$A$11,$B$28,1,1) -> 19.74 | E197: =OFFSET(VIXinputData!D$10,CalculationsAndCharts!$A197+$A$11,$B$28,1,1) -> 21.77 | F197: =OFFSET(VIXinputData!E$10,CalculationsAndCharts!$A197+$A$11,$B$28,1,1) -> 19.44 | G197: =OFFSET(VIXinputData!F$10,CalculationsAndCharts!$A197+$A$11,$B$28,1,1) -> 21.14 | H197: 19.44 | I197: 21.0016 | J197: 0 | K197: 1 | L197: 0 | M197: 12 | N197: 1 | O197: 0 | P197: 1 | Q197: 0 | R197: 0 | S197: 0 | T197: 0 | U197: 0 | V197: =IF(A197>$A$8,"",MATCH(B197,OFFSET(Data4SymbolToTrade!$B$10,1,0,Data4SymbolToTrade!$B$7,1),0)) -> 166 | W197: =IF(A197>$A$8,"",OFFSET(Data4SymbolToTrade!$B$10,CalculationsAndCharts!$V197,0,1,1)) -> 2012-02-15 | X197: =IF(A197>$A$8,"",OFFSET(Data4SymbolToTrade!$C$10,CalculationsAndCharts!$V197,$B$28,1,1)) -> 67.2 | Y197: 0 | Z197: 0 | AA197: 0 | AB197: =IF(A197>$V$22,"",IF(Q197=1,INT(AH198*$V$6/AC197),IF(R198=1,0,AB198))) -> 658 | AC197: =IF(A197>$V$22,"",IF(Q197=1,$X197,0)) -> 0 | AD197: =IF(A197>$V$22,"",IF(R197=1,$X197,0)) -> 0 | AE197: =IF(A197>$V$22,"",IF(Q197=1,AB197*AC197,IF(R198=1,0,AE198))) -> 37341.5 | AF197: =IF(A197>$V$22,"",IF(R197=1,AB197*AD197,0)) -> 0 | AG197: =IF(A197>$V$22,0,IF(R197=1,AF197-AE197,0)) -> 0 | AH197: =IF(A197>$V$22,0,IF(A197=$V$22,$V$5,AH198-IF(Q197=1,AE197,0)+IF(R197=1,AF197,0))) -> 1566.22 | AI197: =IF(A197>$V$22,0,IF(R197=1,0,AB197*X197)) -> 44217.6 | AJ197: 45783.82
A198: 167 | B198: =OFFSET(VIXinputData!B$10,CalculationsAndCharts!$A198+$A$11,0,1,1) -> 2012-02-14 | C198: =OFFSET(VIXinputData!G$10,CalculationsAndCharts!$A198+$A$11,0,1,1) -> 0 | D198: =OFFSET(VIXinputData!C$10,CalculationsAndCharts!$A198+$A$11,$B$28,1,1) -> 19.45 | E198: =OFFSET(VIXinputData!D$10,CalculationsAndCharts!$A198+$A$11,$B$28,1,1) -> 20.76 | F198: =OFFSET(VIXinputData!E$10,CalculationsAndCharts!$A198+$A$11,$B$28,1,1) -> 18.95 | G198: =OFFSET(VIXinputData!F$10,CalculationsAndCharts!$A198+$A$11,$B$28,1,1) -> 19.54 | H198: 18.95 | I198: 21.1186 | J198: 0 | K198: 1 | L198: 0 | M198: 12 | N198: 1 | O198: 0 | P198: 1 | Q198: 0 | R198: 0 | S198: 0 | T198: 0 | U198: 0 | V198: =IF(A198>$A$8,"",MATCH(B198,OFFSET(Data4SymbolToTrade!$B$10,1,0,Data4SymbolToTrade!$B$7,1),0)) -> 167 | W198: =IF(A198>$A$8,"",OFFSET(Data4SymbolToTrade!$B$10,CalculationsAndCharts!$V198,0,1,1)) -> 2012-02-14 | X198: =IF(A198>$A$8,"",OFFSET(Data4SymbolToTrade!$C$10,CalculationsAndCharts!$V198,$B$28,1,1)) -> 66.52 | Y198: 0 | Z198: 0 | AA198: 0 | AB198: =IF(A198>$V$22,"",IF(Q198=1,INT(AH199*$V$6/AC198),IF(R199=1,0,AB199))) -> 658 | AC198: =IF(A198>$V$22,"",IF(Q198=1,$X198,0)) -> 0 | AD198: =IF(A198>$V$22,"",IF(R198=1,$X198,0)) -> 0 | AE198: =IF(A198>$V$22,"",IF(Q198=1,AB198*AC198,IF(R199=1,0,AE199))) -> 37341.5 | AF198: =IF(A198>$V$22,"",IF(R198=1,AB198*AD198,0)) -> 0 | AG198: =IF(A198>$V$22,0,IF(R198=1,AF198-AE198,0)) -> 0 | AH198: =IF(A198>$V$22,0,IF(A198=$V$22,$V$5,AH199-IF(Q198=1,AE198,0)+IF(R198=1,AF198,0))) -> 1566.22 | AI198: =IF(A198>$V$22,0,IF(R198=1,0,AB198*X198)) -> 43770.16 | AJ198: 45336.38
A199: 168 | B199: =OFFSET(VIXinputData!B$10,CalculationsAndCharts!$A199+$A$11,0,1,1) -> 2012-02-13 | C199: =OFFSET(VIXinputData!G$10,CalculationsAndCharts!$A199+$A$11,0,1,1) -> 0 | D199: =OFFSET(VIXinputData!C$10,CalculationsAndCharts!$A199+$A$11,$B$28,1,1) -> 19.64 | E199: =OFFSET(VIXinputData!D$10,CalculationsAndCharts!$A199+$A$11,$B$28,1,1) -> 19.68 | F199: =OFFSET(VIXinputData!E$10,CalculationsAndCharts!$A199+$A$11,$B$28,1,1) -> 17.92 | G199: =OFFSET(VIXinputData!F$10,CalculationsAndCharts!$A199+$A$11,$B$28,1,1) -> 19.04 | H199: 17.92 | I199: 21.2724 | J199: 0 | K199: 1 | L199: 0 | M199: 12 | N199: 1 | O199: 0 | P199: 1 | Q199: 0 | R199: 0 | S199: 0 | T199: 0 | U199: 0 | V199: =IF(A199>$A$8,"",MATCH(B199,OFFSET(Data4SymbolToTrade!$B$10,1,0,Data4SymbolToTrade!$B$7,1),0)) -> 168 | W199: =IF(A199>$A$8,"",OFFSET(Data4SymbolToTrade!$B$10,CalculationsAndCharts!$V199,0,1,1)) -> 2012-02-13 | X199: =IF(A199>$A$8,"",OFFSET(Data4SymbolToTrade!$C$10,CalculationsAndCharts!$V199,$B$28,1,1)) -> 66.85 | Y199: 0 | Z199: 0 | AA199: 0 | AB199: =IF(A199>$V$22,"",IF(Q199=1,INT(AH200*$V$6/AC199),IF(R200=1,0,AB200))) -> 658 | AC199: =IF(A199>$V$22,"",IF(Q199=1,$X199,0)) -> 0 | AD199: =IF(A199>$V$22,"",IF(R199=1,$X199,0)) -> 0 | AE199: =IF(A199>$V$22,"",IF(Q199=1,AB199*AC199,IF(R200=1,0,AE200))) -> 37341.5 | AF199: =IF(A199>$V$22,"",IF(R199=1,AB199*AD199,0)) -> 0 | AG199: =IF(A199>$V$22,0,IF(R199=1,AF199-AE199,0)) -> 0 | AH199: =IF(A199>$V$22,0,IF(A199=$V$22,$V$5,AH200-IF(Q199=1,AE199,0)+IF(R199=1,AF199,0))) -> 1566.22 | AI199: =IF(A199>$V$22,0,IF(R199=1,0,AB199*X199)) -> 43987.3 | AJ199: 45553.52
A200: 169 | B200: =OFFSET(VIXinputData!B$10,CalculationsAndCharts!$A200+$A$11,0,1,1) -> 2012-02-10 | C200: =OFFSET(VIXinputData!G$10,CalculationsAndCharts!$A200+$A$11,0,1,1) -> 0 | D200: =OFFSET(VIXinputData!C$10,CalculationsAndCharts!$A200+$A$11,$B$28,1,1) -> 20.1 | E200: =OFFSET(VIXinputData!D$10,CalculationsAndCharts!$A200+$A$11,$B$28,1,1) -> 21.98 | F200: =OFFSET(VIXinputData!E$10,CalculationsAndCharts!$A200+$A$11,$B$28,1,1) -> 19.02 | G200: =OFFSET(VIXinputData!F$10,CalculationsAndCharts!$A200+$A$11,$B$28,1,1) -> 20.77 | H200: 19.02 | I200: 21.4546 | J200: 0 | K200: 1 | L200: 0 | M200: 12 | N200: 1 | O200: 0 | P200: 1 | Q200: 0 | R200: 0 | S200: 0 | T200: 0 | U200: 0 | V200: =IF(A200>$A$8,"",MATCH(B200,OFFSET(Data4SymbolToTrade!$B$10,1,0,Data4SymbolToTrade!$B$7,1),0)) -> 169 | W200: =IF(A200>$A$8,"",OFFSET(Data4SymbolToTrade!$B$10,CalculationsAndCharts!$V200,0,1,1)) -> 2012-02-10 | X200: =IF(A200>$A$8,"",OFFSET(Data4SymbolToTrade!$C$10,CalculationsAndCharts!$V200,$B$28,1,1)) -> 65.92 | Y200: 0 | Z200: 0 | AA200: 0 | AB200: =IF(A200>$V$22,"",IF(Q200=1,INT(AH201*$V$6/AC200),IF(R201=1,0,AB201))) -> 658 | AC200: =IF(A200>$V$22,"",IF(Q200=1,$X200,0)) -> 0 | AD200: =IF(A200>$V$22,"",IF(R200=1,$X200,0)) -> 0 | AE200: =IF(A200>$V$22,"",IF(Q200=1,AB200*AC200,IF(R201=1,0,AE201))) -> 37341.5 | AF200: =IF(A200>$V$22,"",IF(R200=1,AB200*AD200,0)) -> 0 | AG200: =IF(A200>$V$22,0,IF(R200=1,AF200-AE200,0)) -> 0 | AH200: =IF(A200>$V$22,0,IF(A200=$V$22,$V$5,AH201-IF(Q200=1,AE200,0)+IF(R200=1,AF200,0))) -> 1566.22 | AI200: =IF(A200>$V$22,0,IF(R200=1,0,AB200*X200)) -> 43375.36 | AJ200: 44941.58
A201: 170 | B201: =OFFSET(VIXinputData!B$10,CalculationsAndCharts!$A201+$A$11,0,1,1) -> 2012-02-09 | C201: =OFFSET(VIXinputData!G$10,CalculationsAndCharts!$A201+$A$11,0,1,1) -> 0 | D201: =OFFSET(VIXinputData!C$10,CalculationsAndCharts!$A201+$A$11,$B$28,1,1) -> 18.12 | E201: =OFFSET(VIXinputData!D$10,CalculationsAndCharts!$A201+$A$11,$B$28,1,1) -> 18.72 | F201: =OFFSET(VIXinputData!E$10,CalculationsAndCharts!$A201+$A$11,$B$28,1,1) -> 18.07 | G201: =OFFSET(VIXinputData!F$10,CalculationsAndCharts!$A201+$A$11,$B$28,1,1) -> 18.63 | H201: 18.07 | I201: 21.6854 | J201: 0 | K201: 1 | L201: 0 | M201: 12 | N201: 1 | O201: 0 | P201: 1 | Q201: 0 | R201: 0 | S201: 0 | T201: 0 | U201: 0 | V201: =IF(A201>$A$8,"",MATCH(B201,OFFSET(Data4SymbolToTrade!$B$10,1,0,Data4SymbolToTrade!$B$7,1),0)) -> 170 | W201: =IF(A201>$A$8,"",OFFSET(Data4SymbolToTrade!$B$10,CalculationsAndCharts!$V201,0,1,1)) -> 2012-02-09 | X201: =IF(A201>$A$8,"",OFFSET(Data4SymbolToTrade!$C$10,CalculationsAndCharts!$V201,$B$28,1,1)) -> 67.16 | Y201: 0 | Z201: 0 | AA201: 0 | AB201: =IF(A201>$V$22,"",IF(Q201=1,INT(AH202*$V$6/AC201),IF(R202=1,0,AB202))) -> 658 | AC201: =IF(A201>$V$22,"",IF(Q201=1,$X201,0)) -> 0 | AD201: =IF(A201>$V$22,"",IF(R201=1,$X201,0)) -> 0 | AE201: =IF(A201>$V$22,"",IF(Q201=1,AB201*AC201,IF(R202=1,0,AE202))) -> 37341.5 | AF201: =IF(A201>$V$22,"",IF(R201=1,AB201*AD201,0)) -> 0 | AG201: =IF(A201>$V$22,0,IF(R201=1,AF201-AE201,0)) -> 0 | AH201: =IF(A201>$V$22,0,IF(A201=$V$22,$V$5,AH202-IF(Q201=1,AE201,0)+IF(R201=1,AF201,0))) -> 1566.22 | AI201: =IF(A201>$V$22,0,IF(R201=1,0,AB201*X201)) -> 44191.28 | AJ201: 45757.5
A202: 171 | B202: =OFFSET(VIXinputData!B$10,CalculationsAndCharts!$A202+$A$11,0,1,1) -> 2012-02-08 | C202: =OFFSET(VIXinputData!G$10,CalculationsAndCharts!$A202+$A$11,0,1,1) -> 0 | D202: =OFFSET(VIXinputData!C$10,CalculationsAndCharts!$A202+$A$11,$B$28,1,1) -> 17.79 | E202: =OFFSET(VIXinputData!D$10,CalculationsAndCharts!$A202+$A$11,$B$28,1,1) -> 18.46 | F202: =OFFSET(VIXinputData!E$10,CalculationsAndCharts!$A202+$A$11,$B$28,1,1) -> 17.53 | G202: =OFFSET(VIXinputData!F$10,CalculationsAndCharts!$A202+$A$11,$B$28,1,1) -> 18.16 | H202: 17.53 | I202: 21.9134 | J202: 0 | K202: 1 | L202: 0 | M202: 12 | N202: 1 | O202: 0 | P202: 1 | Q202: 0 | R202: 0 | S202: 0 | T202: 0 | U202: 0 | V202: =IF(A202>$A$8,"",MATCH(B202,OFFSET(Data4SymbolToTrade!$B$10,1,0,Data4SymbolToTrade!$B$7,1),0)) -> 171 | W202: =IF(A202>$A$8,"",OFFSET(Data4SymbolToTrade!$B$10,CalculationsAndCharts!$V202,0,1,1)) -> 2012-02-08 | X202: =IF(A202>$A$8,"",OFFSET(Data4SymbolToTrade!$C$10,CalculationsAndCharts!$V202,$B$28,1,1)) -> 66.79 | Y202: 0 | Z202: 0 | AA202: 0 | AB202: =IF(A202>$V$22,"",IF(Q202=1,INT(AH203*$V$6/AC202),IF(R203=1,0,AB203))) -> 658 | AC202: =IF(A202>$V$22,"",IF(Q202=1,$X202,0)) -> 0 | AD202: =IF(A202>$V$22,"",IF(R202=1,$X202,0)) -> 0 | AE202: =IF(A202>$V$22,"",IF(Q202=1,AB202*AC202,IF(R203=1,0,AE203))) -> 37341.5 | AF202: =IF(A202>$V$22,"",IF(R202=1,AB202*AD202,0)) -> 0 | AG202: =IF(A202>$V$22,0,IF(R202=1,AF202-AE202,0)) -> 0 | AH202: =IF(A202>$V$22,0,IF(A202=$V$22,$V$5,AH203-IF(Q202=1,AE202,0)+IF(R202=1,AF202,0))) -> 1566.22 | AI202: =IF(A202>$V$22,0,IF(R202=1,0,AB202*X202)) -> 43947.82 | AJ202: 45514.04
... 2400 more rows

Sheet VIXinputData
A1: VOLATILITYS&P500 (^VIX)
B6: Available Input Data Rows | F6: Available Date Range:
B7: =COUNTA(B11:B65000) -> 5743 | F7: From | G7: =OFFSET(B10,B7,0,1,1) -> 1990-01-02
F8: To | G8: =OFFSET(B10,1,0,1,1) -> 2012-10-10
B9: Raw Data Values | H9: Adjusted | I9: Adjustment | J9: Adjusted Values
A10: RelRow | B10: Date | C10: Open | D10: High | E10: Low | F10: Close | G10: Volume | H10: Close | I10: Factor | J10: Open | K10: High | L10: Low | M10: Close
A11: 1 | B11: 2012-10-10 | C11: 16.52 | D11: 16.79 | E11: 16.13 | F11: 16.29 | G11: 0 | H11: 16.29 | I11: 1 | J11: 16.52 | K11: 16.79 | L11: 16.13 | M11: 16.29
A12: 2 | B12: 2012-10-09 | C12: 15.28 | D12: 16.4 | E12: 15.18 | F12: 16.37 | G12: 0 | H12: 16.37 | I12: 1 | J12: 15.28 | K12: 16.4 | L12: 15.18 | M12: 16.37
A13: 3 | B13: 2012-10-08 | C13: 15.19 | D13: 15.46 | E13: 15.04 | F13: 15.11 | G13: 0 | H13: 15.11 | I13: 1 | J13: 15.19 | K13: 15.46 | L13: 15.04 | M13: 15.11
A14: 4 | B14: 2012-10-05 | C14: 13.68 | D14: 14.78 | E14: 13.67 | F14: 14.33 | G14: 0 | H14: 14.33 | I14: 1 | J14: 13.68 | K14: 14.78 | L14: 13.67 | M14: 14.33
A15: 5 | B15: 2012-10-04 | C15: 15.23 | D15: 15.33 | E15: 14.53 | F15: 14.55 | G15: 0 | H15: 14.55 | I15: 1 | J15: 15.23 | K15: 15.33 | L15: 14.53 | M15: 14.55
A16: 6 | B16: 2012-10-03 | C16: 15.63 | D16: 16.02 | E16: 15.13 | F16: 15.43 | G16: 0 | H16: 15.43 | I16: 1 | J16: 15.63 | K16: 16.02 | L16: 15.13 | M16: 15.43
A17: 7 | B17: 2012-10-02 | C17: 15.85 | D17: 16.5 | E17: 15.7 | F17: 15.71 | G17: 0 | H17: 15.71 | I17: 1 | J17: 15.85 | K17: 16.5 | L17: 15.7 | M17: 15.71
A18: 8 | B18: 2012-10-01 | C18: 16.03 | D18: 16.53 | E18: 15.13 | F18: 16.32 | G18: 0 | H18: 16.32 | I18: 1 | J18: 16.03 | K18: 16.53 | L18: 15.13 | M18: 16.32
A19: 9 | B19: 2012-09-28 | C19: 15.23 | D19: 15.77 | E19: 14.95 | F19: 15.73 | G19: 0 | H19: 15.73 | I19: 1 | J19: 15.23 | K19: 15.77 | L19: 14.95 | M19: 15.73
A20: 10 | B20: 2012-09-27 | C20: 16.38 | D20: 16.5 | E20: 14.83 | F20: 14.84 | G20: 0 | H20: 14.84 | I20: 1 | J20: 16.38 | K20: 16.5 | L20: 14.83 | M20: 14.84
A21: 11 | B21: 2012-09-26 | C21: 15.83 | D21: 17.08 | E21: 15.83 | F21: 16.81 | G21: 0 | H21: 16.81 | I21: 1 | J21: 15.83 | K21: 17.08 | L21: 15.83 | M21: 16.81
A22: 12 | B22: 2012-09-25 | C22: 14.19 | D22: 15.72 | E22: 14.03 | F22: 15.43 | G22: 0 | H22: 15.43 | I22: 1 | J22: 14.19 | K22: 15.72 | L22: 14.03 | M22: 15.43
A23: 13 | B23: 2012-09-24 | C23: 15.06 | D23: 15.06 | E23: 13.87 | F23: 14.15 | G23: 0 | H23: 14.15 | I23: 1 | J23: 15.06 | K23: 15.06 | L23: 13.87 | M23: 14.15
A24: 14 | B24: 2012-09-21 | C24: 13.94 | D24: 14.18 | E24: 13.69 | F24: 13.98 | G24: 0 | H24: 13.98 | I24: 1 | J24: 13.94 | K24: 14.18 | L24: 13.69 | M24: 13.98
A25: 15 | B25: 2012-09-20 | C25: 14.63 | D25: 14.67 | E25: 14.07 | F25: 14.07 | G25: 0 | H25: 14.07 | I25: 1 | J25: 14.63 | K25: 14.67 | L25: 14.07 | M25: 14.07
A26: 16 | B26: 2012-09-19 | C26: 13.95 | D26: 14.08 | E26: 13.61 | F26: 13.88 | G26: 0 | H26: 13.88 | I26: 1 | J26: 13.95 | K26: 14.08 | L26: 13.61 | M26: 13.88
A27: 17 | B27: 2012-09-18 | C27: 14.51 | D27: 14.88 | E27: 14.17 | F27: 14.18 | G27: 0 | H27: 14.18 | I27: 1 | J27: 14.51 | K27: 14.88 | L27: 14.17 | M27: 14.18
A28: 18 | B28: 2012-09-17 | C28: 14.67 | D28: 14.92 | E28: 14.54 | F28: 14.59 | G28: 0 | H28: 14.59 | I28: 1 | J28: 14.67 | K28: 14.92 | L28: 14.54 | M28: 14.59
A29: 19 | B29: 2012-09-14 | C29: 13.82 | D29: 14.71 | E29: 13.51 | F29: 14.51 | G29: 0 | H29: 14.51 | I29: 1 | J29: 13.82 | K29: 14.71 | L29: 13.51 | M29: 14.51
A30: 20 | B30: 2012-09-13 | C30: 15.6 | D30: 16.54 | E30: 13.91 | F30: 14.05 | G30: 0 | H30: 14.05 | I30: 1 | J30: 15.6 | K30: 16.54 | L30: 13.91 | M30: 14.05
A31: 21 | B31: 2012-09-12 | C31: 15.59 | D31: 16.31 | E31: 15.43 | F31: 15.8 | G31: 0 | H31: 15.8 | I31: 1 | J31: 15.59 | K31: 16.31 | L31: 15.43 | M31: 15.8
A32: 22 | B32: 2012-09-11 | C32: 16.11 | D32: 16.41 | E32: 15.46 | F32: 16.41 | G32: 0 | H32: 16.41 | I32: 1 | J32: 16.11 | K32: 16.41 | L32: 15.46 | M32: 16.41
A33: 23 | B33: 2012-09-10 | C33: 14.27 | D33: 16.28 | E33: 13.97 | F33: 16.28 | G33: 0 | H33: 16.28 | I33: 1 | J33: 14.27 | K33: 16.28 | L33: 13.97 | M33: 16.28
A34: 24 | B34: 2012-09-07 | C34: 15.6 | D34: 15.6 | E34: 14.33 | F34: 14.38 | G34: 0 | H34: 14.38 | I34: 1 | J34: 15.6 | K34: 15.6 | L34: 14.33 | M34: 14.38
A35: 25 | B35: 2012-09-06 | C35: 17.3 | D35: 17.3 | E35: 15.63 | F35: 15.63 | G35: 0 | H35: 15.63 | I35: 1 | J35: 17.3 | K35: 17.3 | L35: 15.63 | M35: 15.63
A36: 26 | B36: 2012-09-05 | C36: 17.38 | D36: 17.84 | E36: 16.99 | F36: 17.74 | G36: 0 | H36: 17.74 | I36: 1 | J36: 17.38 | K36: 17.84 | L36: 16.99 | M36: 17.74
A37: 27 | B37: 2012-09-04 | C37: 18.65 | D37: 18.96 | E37: 17.85 | F37: 17.98 | G37: 0 | H37: 17.98 | I37: 1 | J37: 18.65 | K37: 18.96 | L37: 17.85 | M37: 17.98
A38: 28 | B38: 2012-08-31 | C38: 17.25 | D38: 18.04 | E38: 16.56 | F38: 17.47 | G38: 0 | H38: 17.47 | I38: 1 | J38: 17.25 | K38: 18.04 | L38: 16.56 | M38: 17.47
A39: 29 | B39: 2012-08-30 | C39: 17.48 | D39: 18.05 | E39: 17.44 | F39: 17.83 | G39: 0 | H39: 17.83 | I39: 1 | J39: 17.48 | K39: 18.05 | L39: 17.44 | M39: 17.83
A40: 30 | B40: 2012-08-29 | C40: 16.61 | D40: 17.06 | E40: 16.5 | F40: 17.06 | G40: 0 | H40: 17.06 | I40: 1 | J40: 16.61 | K40: 17.06 | L40: 16.5 | M40: 17.06
A41: 31 | B41: 2012-08-28 | C41: 16.32 | D41: 16.92 | E41: 16.01 | F41: 16.49 | G41: 0 | H41: 16.49 | I41: 1 | J41: 16.32 | K41: 16.92 | L41: 16.01 | M41: 16.49
A42: 32 | B42: 2012-08-27 | C42: 16.15 | D42: 16.38 | E42: 15.75 | F42: 16.35 | G42: 0 | H42: 16.35 | I42: 1 | J42: 16.15 | K42: 16.38 | L42: 15.75 | M42: 16.35
A43: 33 | B43: 2012-08-24 | C43: 15.99 | D43: 16 | E43: 15.18 | F43: 15.18 | G43: 0 | H43: 15.18 | I43: 1 | J43: 15.99 | K43: 16 | L43: 15.18 | M43: 15.18
A44: 34 | B44: 2012-08-23 | C44: 15 | D44: 16.45 | E44: 15 | F44: 15.96 | G44: 0 | H44: 15.96 | I44: 1 | J44: 15 | K44: 16.45 | L44: 15 | M44: 15.96
A45: 35 | B45: 2012-08-22 | C45: 15.32 | D45: 15.52 | E45: 14.75 | F45: 15.11 | G45: 0 | H45: 15.11 | I45: 1 | J45: 15.32 | K45: 15.52 | L45: 14.75 | M45: 15.11
A46: 36 | B46: 2012-08-21 | C46: 14.1 | D46: 15.44 | E46: 13.46 | F46: 15.02 | G46: 0 | H46: 15.02 | I46: 1 | J46: 14.1 | K46: 15.44 | L46: 13.46 | M46: 15.02
A47: 37 | B47: 2012-08-20 | C47: 14.11 | D47: 14.78 | E47: 13.38 | F47: 14.02 | G47: 0 | H47: 14.02 | I47: 1 | J47: 14.11 | K47: 14.78 | L47: 13.38 | M47: 14.02
A48: 38 | B48: 2012-08-17 | C48: 14.23 | D48: 14.3 | E48: 13.3 | F48: 13.45 | G48: 0 | H48: 13.45 | I48: 1 | J48: 14.23 | K48: 14.3 | L48: 13.3 | M48: 13.45
A49: 39 | B49: 2012-08-16 | C49: 14.88 | D49: 15.15 | E49: 14.28 | F49: 14.29 | G49: 0 | H49: 14.29 | I49: 1 | J49: 14.88 | K49: 15.15 | L49: 14.28 | M49: 14.29
A50: 40 | B50: 2012-08-15 | C50: 14.82 | D50: 14.98 | E50: 14.36 | F50: 14.63 | G50: 0 | H50: 14.63 | I50: 1 | J50: 14.82 | K50: 14.98 | L50: 14.36 | M50: 14.63
A51: 41 | B51: 2012-08-14 | C51: 13.91 | D51: 15.06 | E51: 13.91 | F51: 14.85 | G51: 0 | H51: 14.85 | I51: 1 | J51: 13.91 | K51: 15.06 | L51: 13.91 | M51: 14.85
A52: 42 | B52: 2012-08-13 | C52: 14.09 | D52: 14.67 | E52: 13.67 | F52: 13.7 | G52: 0 | H52: 13.7 | I52: 1 | J52: 14.09 | K52: 14.67 | L52: 13.67 | M52: 13.7
A53: 43 | B53: 2012-08-10 | C53: 15.34 | D53: 15.5 | E53: 14.73 | F53: 14.74 | G53: 0 | H53: 14.74 | I53: 1 | J53: 15.34 | K53: 15.5 | L53: 14.73 | M53: 14.74
A54: 44 | B54: 2012-08-09 | C54: 15.39 | D54: 15.67 | E54: 15.28 | F54: 15.28 | G54: 0 | H54: 15.28 | I54: 1 | J54: 15.39 | K54: 15.67 | L54: 15.28 | M54: 15.28
A55: 45 | B55: 2012-08-08 | C55: 16.46 | D55: 16.47 | E55: 15.27 | F55: 15.32 | G55: 0 | H55: 15.32 | I55: 1 | J55: 16.46 | K55: 16.47 | L55: 15.27 | M55: 15.32
A56: 46 | B56: 2012-08-07 | C56: 15.55 | D56: 16.03 | E56: 15.48 | F56: 15.99 | G56: 0 | H56: 15.99 | I56: 1 | J56: 15.55 | K56: 16.03 | L56: 15.48 | M56: 15.99
A57: 47 | B57: 2012-08-06 | C57: 15.85 | D57: 16.27 | E57: 15.82 | F57: 15.95 | G57: 0 | H57: 15.95 | I57: 1 | J57: 15.85 | K57: 16.27 | L57: 15.82 | M57: 15.95
A58: 48 | B58: 2012-08-03 | C58: 16.05 | D58: 16.45 | E58: 15.64 | F58: 15.64 | G58: 0 | H58: 15.64 | I58: 1 | J58: 16.05 | K58: 16.45 | L58: 15.64 | M58: 15.64
A59: 49 | B59: 2012-08-02 | C59: 19.05 | D59: 19.25 | E59: 17.56 | F59: 17.57 | G59: 0 | H59: 17.57 | I59: 1 | J59: 19.05 | K59: 19.25 | L59: 17.56 | M59: 17.57
A60: 50 | B60: 2012-08-01 | C60: 18.8 | D60: 19.18 | E60: 18.2 | F60: 18.96 | G60: 0 | H60: 18.96 | I60: 1 | J60: 18.8 | K60: 19.18 | L60: 18.2 | M60: 18.96
A61: 51 | B61: 2012-07-31 | C61: 18.4 | D61: 19.09 | E61: 18.26 | F61: 18.93 | G61: 0 | H61: 18.93 | I61: 1 | J61: 18.4 | K61: 19.09 | L61: 18.26 | M61: 18.93
A62: 52 | B62: 2012-07-30 | C62: 17.55 | D62: 18.08 | E62: 17.23 | F62: 18.03 | G62: 0 | H62: 18.03 | I62: 1 | J62: 17.55 | K62: 18.08 | L62: 17.23 | M62: 18.03
A63: 53 | B63: 2012-07-27 | C63: 17.11 | D63: 17.3 | E63: 16.52 | F63: 16.7 | G63: 0 | H63: 16.7 | I63: 1 | J63: 17.11 | K63: 17.3 | L63: 16.52 | M63: 16.7
A64: 54 | B64: 2012-07-26 | C64: 17.68 | D64: 18.47 | E64: 17.07 | F64: 17.53 | G64: 0 | H64: 17.53 | I64: 1 | J64: 17.68 | K64: 18.47 | L64: 17.07 | M64: 17.53
A65: 55 | B65: 2012-07-25 | C65: 19.79 | D65: 20.67 | E65: 18.99 | F65: 19.34 | G65: 0 | H65: 19.34 | I65: 1 | J65: 19.79 | K65: 20.67 | L65: 18.99 | M65: 19.34
A66: 56 | B66: 2012-07-24 | C66: 18.38 | D66: 21 | E66: 18.37 | F66: 20.47 | G66: 0 | H66: 20.47 | I66: 1 | J66: 18.38 | K66: 21 | L66: 18.37 | M66: 20.47
A67: 57 | B67: 2012-07-23 | C67: 20.41 | D67: 20.49 | E67: 18.34 | F67: 18.62 | G67: 0 | H67: 18.62 | I67: 1 | J67: 20.41 | K67: 20.49 | L67: 18.34 | M67: 18.62
A68: 58 | B68: 2012-07-20 | C68: 16.65 | D68: 17.05 | E68: 15.97 | F68: 16.27 | G68: 0 | H68: 16.27 | I68: 1 | J68: 16.65 | K68: 17.05 | L68: 15.97 | M68: 16.27
A69: 59 | B69: 2012-07-19 | C69: 16.06 | D69: 16.7 | E69: 15.45 | F69: 15.45 | G69: 0 | H69: 15.45 | I69: 1 | J69: 16.06 | K69: 16.7 | L69: 15.45 | M69: 15.45
A70: 60 | B70: 2012-07-18 | C70: 16.81 | D70: 16.81 | E70: 15.69 | F70: 16.16 | G70: 0 | H70: 16.16 | I70: 1 | J70: 16.81 | K70: 16.81 | L70: 15.69 | M70: 16.16
A71: 61 | B71: 2012-07-17 | C71: 16.72 | D71: 17.46 | E71: 16.09 | F71: 16.48 | G71: 0 | H71: 16.48 | I71: 1 | J71: 16.72 | K71: 17.46 | L71: 16.09 | M71: 16.48
A72: 62 | B72: 2012-07-16 | C72: 17.31 | D72: 17.32 | E72: 16.46 | F72: 17.11 | G72: 0 | H72: 17.11 | I72: 1 | J72: 17.31 | K72: 17.32 | L72: 16.46 | M72: 17.11
A73: 63 | B73: 2012-07-13 | C73: 17.78 | D73: 17.82 | E73: 16.36 | F73: 16.74 | G73: 0 | H73: 16.74 | I73: 1 | J73: 17.78 | K73: 17.82 | L73: 16.36 | M73: 16.74
A74: 64 | B74: 2012-07-12 | C74: 18.82 | D74: 19.51 | E74: 17.75 | F74: 18.36 | G74: 0 | H74: 18.36 | I74: 1 | J74: 18.82 | K74: 19.51 | L74: 17.75 | M74: 18.36
A75: 65 | B75: 2012-07-11 | C75: 17.98 | D75: 19.17 | E75: 17.84 | F75: 17.95 | G75: 0 | H75: 17.95 | I75: 1 | J75: 17.98 | K75: 19.17 | L75: 17.84 | M75: 17.95
A76: 66 | B76: 2012-07-10 | C76: 17.51 | D76: 19.19 | E76: 17.29 | F76: 18.72 | G76: 0 | H76: 18.72 | I76: 1 | J76: 17.51 | K76: 19.19 | L76: 17.29 | M76: 18.72
A77: 67 | B77: 2012-07-09 | C77: 18.17 | D77: 18.32 | E77: 17.73 | F77: 18.05 | G77: 0 | H77: 18.05 | I77: 1 | J77: 18.17 | K77: 18.32 | L77: 17.73 | M77: 18.05
A78: 68 | B78: 2012-07-06 | C78: 18.2 | D78: 18.25 | E78: 16.95 | F78: 17.1 | G78: 0 | H78: 17.1 | I78: 1 | J78: 18.2 | K78: 18.25 | L78: 16.95 | M78: 17.1
A79: 69 | B79: 2012-07-05 | C79: 17.61 | D79: 18.22 | E79: 17.18 | F79: 17.5 | G79: 0 | H79: 17.5 | I79: 1 | J79: 17.61 | K79: 18.22 | L79: 17.18 | M79: 17.5
A80: 70 | B80: 2012-07-03 | C80: 16.67 | D80: 16.92 | E80: 16.27 | F80: 16.66 | G80: 0 | H80: 16.66 | I80: 1 | J80: 16.67 | K80: 16.92 | L80: 16.27 | M80: 16.66
A81: 71 | B81: 2012-07-02 | C81: 17.62 | D81: 18.19 | E81: 16.66 | F81: 16.8 | G81: 0 | H81: 16.8 | I81: 1 | J81: 17.62 | K81: 18.19 | L81: 16.66 | M81: 16.8
A82: 72 | B82: 2012-06-29 | C82: 17.52 | D82: 18.31 | E82: 16.87 | F82: 17.08 | G82: 0 | H82: 17.08 | I82: 1 | J82: 17.52 | K82: 18.31 | L82: 16.87 | M82: 17.08
A83: 73 | B83: 2012-06-28 | C83: 20.33 | D83: 21.19 | E83: 19.6 | F83: 19.71 | G83: 0 | H83: 19.71 | I83: 1 | J83: 20.33 | K83: 21.19 | L83: 19.6 | M83: 19.71
A84: 74 | B84: 2012-06-27 | C84: 19.55 | D84: 20.12 | E84: 19.38 | F84: 19.45 | G84: 0 | H84: 19.45 | I84: 1 | J84: 19.55 | K84: 20.12 | L84: 19.38 | M84: 19.45
A85: 75 | B85: 2012-06-26 | C85: 20.01 | D85: 20.57 | E85: 19.42 | F85: 19.72 | G85: 0 | H85: 19.72 | I85: 1 | J85: 20.01 | K85: 20.57 | L85: 19.42 | M85: 19.72
A86: 76 | B86: 2012-06-25 | C86: 20.47 | D86: 21.36 | E86: 19.89 | F86: 20.38 | G86: 0 | H86: 20.38 | I86: 1 | J86: 20.47 | K86: 21.36 | L86: 19.89 | M86: 20.38
A87: 77 | B87: 2012-06-22 | C87: 18.65 | D87: 19.37 | E87: 17.9 | F87: 18.11 | G87: 0 | H87: 18.11 | I87: 1 | J87: 18.65 | K87: 19.37 | L87: 17.9 | M87: 18.11
A88: 78 | B88: 2012-06-21 | C88: 16.89 | D88: 20.48 | E88: 16.77 | F88: 20.08 | G88: 0 | H88: 20.08 | I88: 1 | J88: 16.89 | K88: 20.48 | L88: 16.77 | M88: 20.08
A89: 79 | B89: 2012-06-20 | C89: 17.96 | D89: 20.05 | E89: 17.09 | F89: 17.24 | G89: 0 | H89: 17.24 | I89: 1 | J89: 17.96 | K89: 20.05 | L89: 17.09 | M89: 17.24
A90: 80 | B90: 2012-06-19 | C90: 17.66 | D90: 18.62 | E90: 17.36 | F90: 18.38 | G90: 0 | H90: 18.38 | I90: 1 | J90: 17.66 | K90: 18.62 | L90: 17.36 | M90: 18.38
A91: 81 | B91: 2012-06-18 | C91: 21.76 | D91: 21.98 | E91: 18.24 | F91: 18.32 | G91: 0 | H91: 18.32 | I91: 1 | J91: 21.76 | K91: 21.98 | L91: 18.24 | M91: 18.32
A92: 82 | B92: 2012-06-15 | C92: 22.47 | D92: 23.09 | E92: 20.61 | F92: 21.11 | G92: 0 | H92: 21.11 | I92: 1 | J92: 22.47 | K92: 23.09 | L92: 20.61 | M92: 21.11
A93: 83 | B93: 2012-06-14 | C93: 24.19 | D93: 24.81 | E93: 21.55 | F93: 21.68 | G93: 0 | H93: 21.68 | I93: 1 | J93: 24.19 | K93: 24.81 | L93: 21.55 | M93: 21.68
A94: 84 | B94: 2012-06-13 | C94: 22.93 | D94: 24.93 | E94: 22.66 | F94: 24.27 | G94: 0 | H94: 24.27 | I94: 1 | J94: 22.93 | K94: 24.93 | L94: 22.66 | M94: 24.27
A95: 85 | B95: 2012-06-12 | C95: 23.15 | D95: 23.9 | E95: 22.09 | F95: 22.09 | G95: 0 | H95: 22.09 | I95: 1 | J95: 23.15 | K95: 23.9 | L95: 22.09 | M95: 22.09
A96: 86 | B96: 2012-06-11 | C96: 19.87 | D96: 23.56 | E96: 19.63 | F96: 23.56 | G96: 0 | H96: 23.56 | I96: 1 | J96: 19.87 | K96: 23.56 | L96: 19.63 | M96: 23.56
A97: 87 | B97: 2012-06-08 | C97: 22.54 | D97: 23.1 | E97: 20.29 | F97: 21.23 | G97: 0 | H97: 21.23 | I97: 1 | J97: 22.54 | K97: 23.1 | L97: 20.29 | M97: 21.23
A98: 88 | B98: 2012-06-07 | C98: 21 | D98: 22.48 | E98: 20.74 | F98: 21.72 | G98: 0 | H98: 21.72 | I98: 1 | J98: 21 | K98: 22.48 | L98: 20.74 | M98: 21.72
A99: 89 | B99: 2012-06-06 | C99: 23.76 | D99: 23.89 | E99: 21.8 | F99: 22.16 | G99: 0 | H99: 22.16 | I99: 1 | J99: 23.76 | K99: 23.89 | L99: 21.8 | M99: 22.16
A100: 90 | B100: 2012-06-05 | C100: 25.9 | D100: 25.9 | E100: 24.5 | F100: 24.68 | G100: 0 | H100: 24.68 | I100: 1 | J100: 25.9 | K100: 25.9 | L100: 24.5 | M100: 24.68
A101: 91 | B101: 2012-06-04 | C101: 26.35 | D101: 27.73 | E101: 25.72 | F101: 26.12 | G101: 0 | H101: 26.12 | I101: 1 | J101: 26.35 | K101: 27.73 | L101: 25.72 | M101: 26.12
A102: 92 | B102: 2012-06-01 | C102: 25.87 | D102: 26.71 | E102: 23.94 | F102: 26.66 | G102: 0 | H102: 26.66 | I102: 1 | J102: 25.87 | K102: 26.71 | L102: 23.94 | M102: 26.66
A103: 93 | B103: 2012-05-31 | C103: 23.83 | D103: 25.46 | E103: 22.78 | F103: 24.06 | G103: 0 | H103: 24.06 | I103: 1 | J103: 23.83 | K103: 25.46 | L103: 22.78 | M103: 24.06
A104: 94 | B104: 2012-05-30 | C104: 22.68 | D104: 24.14 | E104: 22.66 | F104: 24.14 | G104: 0 | H104: 24.14 | I104: 1 | J104: 22.68 | K104: 24.14 | L104: 22.66 | M104: 24.14
A105: 95 | B105: 2012-05-29 | C105: 21.7 | D105: 22.47 | E105: 20.99 | F105: 21.03 | G105: 0 | H105: 21.03 | I105: 1 | J105: 21.7 | K105: 22.47 | L105: 20.99 | M105: 21.03
A106: 96 | B106: 2012-05-25 | C106: 22.05 | D106: 22.29 | E106: 21.3 | F106: 21.76 | G106: 0 | H106: 21.76 | I106: 1 | J106: 22.05 | K106: 22.29 | L106: 21.3 | M106: 21.76
A107: 97 | B107: 2012-05-24 | C107: 22 | D107: 23.22 | E107: 21.48 | F107: 21.54 | G107: 0 | H107: 21.54 | I107: 1 | J107: 22 | K107: 23.22 | L107: 21.48 | M107: 21.54
A108: 98 | B108: 2012-05-23 | C108: 23.32 | D108: 24.62 | E108: 21.99 | F108: 22.33 | G108: 0 | H108: 22.33 | I108: 1 | J108: 23.32 | K108: 24.62 | L108: 21.99 | M108: 22.33
A109: 99 | B109: 2012-05-22 | C109: 21.76 | D109: 23.19 | E109: 19.98 | F109: 22.48 | G109: 0 | H109: 22.48 | I109: 1 | J109: 21.76 | K109: 23.19 | L109: 19.98 | M109: 22.48
A110: 100 | B110: 2012-05-21 | C110: 24.88 | D110: 24.88 | E110: 22.01 | F110: 22.01 | G110: 0 | H110: 22.01 | I110: 1 | J110: 24.88 | K110: 24.88 | L110: 22.01 | M110: 22.01
A111: 101 | B111: 2012-05-18 | C111: 23.27 | D111: 25.14 | E111: 23.07 | F111: 25.1 | G111: 0 | H111: 25.1 | I111: 1 | J111: 23.27 | K111: 25.14 | L111: 23.07 | M111: 25.1
A112: 102 | B112: 2012-05-17 | C112: 21.99 | D112: 24.51 | E112: 21.87 | F112: 24.49 | G112: 0 | H112: 24.49 | I112: 1 | J112: 21.99 | K112: 24.51 | L112: 21.87 | M112: 24.49
A113: 103 | B113: 2012-05-16 | C113: 21.54 | D113: 22.69 | E113: 20.83 | F113: 22.27 | G113: 0 | H113: 22.27 | I113: 1 | J113: 21.54 | K113: 22.69 | L113: 20.83 | M113: 22.27
A114: 104 | B114: 2012-05-15 | C114: 21.43 | D114: 22.7 | E114: 20.76 | F114: 21.97 | G114: 0 | H114: 21.97 | I114: 1 | J114: 21.43 | K114: 22.7 | L114: 20.76 | M114: 21.97
A115: 105 | B115: 2012-05-14 | C115: 21.47 | D115: 21.87 | E115: 20.94 | F115: 21.87 | G115: 0 | H115: 21.87 | I115: 1 | J115: 21.47 | K115: 21.87 | L115: 20.94 | M115: 21.87
A116: 106 | B116: 2012-05-11 | C116: 19.93 | D116: 19.94 | E116: 18.62 | F116: 19.89 | G116: 0 | H116: 19.89 | I116: 1 | J116: 19.93 | K116: 19.94 | L116: 18.62 | M116: 19.89
A117: 107 | B117: 2012-05-10 | C117: 19.25 | D117: 19.88 | E117: 18.77 | F117: 18.83 | G117: 0 | H117: 18.83 | I117: 1 | J117: 19.25 | K117: 19.88 | L117: 18.77 | M117: 18.83
A118: 108 | B118: 2012-05-09 | C118: 20.65 | D118: 21.59 | E118: 19.38 | F118: 20.08 | G118: 0 | H118: 20.08 | I118: 1 | J118: 20.65 | K118: 21.59 | L118: 19.38 | M118: 20.08
A119: 109 | B119: 2012-05-08 | C119: 19.44 | D119: 20.91 | E119: 17.95 | F119: 19.05 | G119: 0 | H119: 19.05 | I119: 1 | J119: 19.44 | K119: 20.91 | L119: 17.95 | M119: 19.05
A120: 110 | B120: 2012-05-07 | C120: 19.8 | D120: 19.87 | E120: 18.41 | F120: 18.94 | G120: 0 | H120: 18.94 | I120: 1 | J120: 19.8 | K120: 19.87 | L120: 18.41 | M120: 18.94
